Workbook

Sheet Titel
B14: Version: 1.1 (Stand: 16.08.2018, letzte redaktionelle Bearbeitung: 4.10.2019)
B16: Erarbeitung:
B17: Öko-Institut e.V.
B19: Ran Liu | E19: Jens Gröger
B20: Tel. 030/405085-327 | E20: Tel. 030/405085-378
B21: r.liu@oeko.de | E21: j.groeger@oeko.de
B24: Redaktion:
B25: Umweltbundesamt
B27: Maike Janßen | E27: Dr. Hans-Jürgen Baumeister
B28: Fachgebiet III 1.1 (Übergreifende Aspekte des produktbezogenen Umweltschutzes, Nachhaltige Konsumstrukturen, Innovationsprogramm) | E28: Beratungsstelle nachhaltige Informations- und Kommunikationstechnik - Green IT
B29: Tel. 0340/2103-3385 | E29: Tel. 0340/2103-2640
B30: maike.janssen@uba.de | E30: hans-juergen.baumeister@uba.de

Sheet Inhaltsverzeichnis
B2: Inhaltsverzeichnis
B4: Einführung
B6: Konstante_Werte
B8: Variable_Werte
B10: UBA-Empfehlung
B12: CO2e-Ergebnisse
B14: Kosten-Ergebnisse
B16: Default Werte
B18: Quellen- und Literaturverzeichnis
B20: FAQs

Sheet Einführung
D2: Einführung | G2: Zurück zum Inhaltsverzeichnis
A5: Im Forschungsvorhaben „Öko-APC “ des Umweltbundesamtes (siehe Quelle [1]) wurden die ökologischen und ökonomischen Auswirkungen von drei verschiedenen Arbeitsplatzlösungen in der Bundesverwaltung miteinander verglichen. Um mit den daraus gewonnenen Erkenntnissen die Beschaffung in der Praxis zu unterstützen, hat das Öko-Institut auf Basis der im Forschungsvorhaben erhobenen Daten dieses Excel-basierte Berechnungswerkzeug im Auftrag des Umweltbundesamtes entwickelt. Zweck des Werkzeugs ist es, verschiedene Computervarianten für die Arbeitsplätze in der Verwaltung im Hinblick auf Kosten und Klimaschutz miteinander zu vergleichen. Als Anwenderinnen und Anwender können Sie verschiedene Varianten (Szenarien) für die Ausstattung Ihrer Arbeitsplätze mit Computern definieren und sehen anhand automatisch erzeugter Grafiken und Tabellen, welchen Treibhauseffekt (in kg CO2e), welche Lebenszykluskosten (in Euro) und welche jährlichen Kosten die Varianten über einen Betrachtungszeitraum von bis zu 12 Jahren verursachen.
A6: Wer kann dieses Tool nutzen? Zielgruppe sind Behördenleiter/-innen, Geschäftsführer/-innen, Verwaltungsleiter/-innen, Leiter/innen der IT-Abteilung, Umweltbeauftragte und andere Verantwortliche für IT, Beschaffung, Haushalt und Umweltaspekte in Behörden und anderen (auch gewerblichen) Verwaltungen, die die (Lebenszyklus)-Kosten und Umweltauswirkungen der Computerarbeitsplätze in ihrem Hause berechnen möchten.
A7: Für welche Zwecke ist dieses Tool nicht geeignet? Anwendbar ist dieses Tool ausschließlich für Standard-Arbeitsplätze in der Verwaltung. Computerarbeitsplätze mit einem anderen Zuschnitt - beispielsweise für aufwändige Grafikbearbeitung u.ä. - wurden im Forschungsvorhaben "Öko-APC", in dem die hier verwendeten ökoblanzellen Daten erhoben wurden, nicht betrachtet und können deshalb hier leider nicht abgebildet werden. Es ist auch nicht anwendbar, um Kosten und Umweltauswirkungen von IT-Anschaffungen im Privathaushalt zu berechnen.
A8: Was wird berücksichtigt? Das Tool umfasst die Berechnung von Treibhausgas-Emissionen (CO2e) und anfallenden Kosten. Die Kosten berücksichtigen die Hardware, den Strom und erforderliche Personalkosten für begleitende Aktivitäten wie bspw. Rollout der Systeme und einen ggf. erforderlichen Austausch von Komponenten. Die Treibhausgas-Emissionen werden auf Grundlage des Forschungsvorhabens "Öko-APC" (siehe Quelle [1]) über den gesamten Lebensweg der Geräte berechnet, also inklusive Herstellung (mit Rohstoffgewinnung), Distribution, Energiebedarf in der Nutzung und Entsorgung/Recycling.
A9: Welche Arten von Computer-Arbeitsplätzen sind abgebildet? Die Standard-Arbeitsplätze werden für die Zwecke dieses Tools in drei Typen eingeteilt: - Arbeitsplatz mit Desktop-PC: Desktop-PC + externe Tastatur + Maus - Arbeitsplatz mit Notebook: Notebook (mit integriertem Monitor und Tastatur) + Docking-Station + externe Tastatur + Maus - Arbeitsplatz mit Mini-PC: Mini-PC + externe Tastatur + Maus (Hinweis: Mini-PCs sind kleine und kompakte PCs, die bspw. durch die Verwendung von Notebook-Komponenten besonders energieeffizient in der Nutzung sind. Thin Clients werden hier nicht betrachtet.) Für jeden Arbeitsplatztyp geben Sie die Anzahl der eingesetzten (externen) Monitore an. Die Anzahl der eingesetzten Computer und der Monitore können sich unterscheiden (z.B. falls Arbeitsplätze mit zwei Monitoren ausgestattet sind). Die Gesamtanzahl der Arbeitsplätze über alle drei Typen ist in allen betrachteten Szenarien identisch zu wählen, damit die Ergebnisse vergleichbar sind.
A10: Bezugsgrößen Die Bezugsgröße der Ergebnisse für das Berechnungsmodell des Treibhauseffekts ist der Betrachtungszeitraum (gesamte THG-Emissionen). Das Berechnungsmodell der Lebenszykluskosten hat zwei Bezugsgrößen: - Betrachtungszeitraum (Gesamt-Kosten über mehrere Jahre) und - Kalenderjahr (je Haushaltsjahr zu erwartende Ausgaben). Der Betrachtungszeitraum wird von Ihnen gewählt. So können Sie mittel- bis langfristige Effekte abbilden, die sich durch unterschiedliche Nutzungsdauern (in Jahren) ergeben. Je nach Nutzungsdauer der einzelnen Komponenten müssen während des Betrachtungszeitraums unterschiedlich oft neue Geräte beschafft werden. Die Nachrüstung einzelner Komponenten kann ebenfalls (mit einigen Vereinfachungen, s.u.) betrachtet werden.
A11: Betrachtete Aspekte Der Treibhauseffekt (als THG-Emissionen in CO2e ausgedrückt) und die Lebenszykluskosten (in Euro) werden für die Computerarbeitsplätze über den gesamten Lebenszyklus einschließlich aller in diesem Vorhaben betrachteten Komponenten in Verbindung mit dem Nutzungsprofil betrachtet. Das Nutzungsprofil beinhaltet insbesondere die tägliche Nutzungsdauer der Geräte, die Nutzungsintensität und die jährliche Arbeitszeit.
A12: Systemgrenze Für die Untersuchung der Treibhausgasemissionen wurden alle Lebensphasen der Geräte einbezogen: Rohstoffgewinnung, Herstellung, Transport, Nutzung und Entsorgung/Verwertung. Die Untersuchung der Lebenszykluskosten umfasst Anschaffungskosten, Stromkosten in der Nutzungsphase, Personalkosten und Sach- und Gemeinkosten. Nicht berücksichtigt werden Aufwendungen für Netzwerk und Rechenzentren sowie für Büromöbel, Gebäude, Beleuchtung etc. (analog zum Forschungsvorhaben „Öko-APC", s. Quelle [1]).
A13: Annahmen zur Vereinfachung 1) Es wurde angenommen, dass bei den Desktops und Mini-PCs der Ersatz von HDD durch SSD und die Erweiterung des RAM möglich sind; bei den Notebooks zusätzlich die Erneuerung des Akkus. Die Nutzer können den Anteil der vom Austausch betroffenen Computer und die Anzahl der Austauschvorgänge während der Nutzungsdauer angeben. 2) Während der Nutzungsdauer der jeweiligen Geräte bleibt deren Stromverbrauch konstant. Bei einer Neuanschaffung während des Betrachtungszeitraums berücksichtigt das Tool eine Zunahme der Energieeffizienz von 5% pro Jahr durch den technischen Fortschritt. 3) Das Berechnungswerkzeug betrachtet nicht alle Parameter in dem durch die Nutzer definierten Betrachtungszeitraum als dynamisch. a) Dynamische Parameter während des Betrachtungszeitraums sind: Strompreis; Energieeffizienzsteigerung der neubeschafften Geräte (s.o.); b) Konstante Parameter während des Betrachtungszeitraums sind: Emissionsfaktoren des deutschen Strommixes und Emissionen bei Produktion, Distribution und Entsorgung der Geräte sowie Anschaffungskosten der Geräte.
A14: Wie funktioniert das Tool? Die folgende Abbildung zeigt den Ablauf der Nutzung des Tools.
A19: Die Parameter, die Sie eingeben, teilen sich in zwei Bereiche auf: Konstante und variable Werte der Szenarien. Im Blatt Konstante_Werte geben Sie Daten ein, die für alle Szenarien als Rahmenbedingungen unverändert bleiben, beispielsweise der Betrachtungszeitraum und die Zahl der Arbeitsplätze. Im Blatt Variable_Werte geben Sie weitere Daten ein, die Ihr Basis-Szenario bilden. In späteren Schritten können Sie diese variablen Werte für Ihre weiteren Szenarien ändern. Zu den variablen Werten gehört beispielsweise die Angabe, wie viele Jahre Ihre Geräte genutzt werden, welcher Anteil der Arbeitsplätze in Ihrem Haus mit Notebooks ausgestattet werden soll usw. Auf der Grundlage des von Ihnen festgelegten Basisszenarios wird automatisch eine UBA-Empfehlung generiert. Dabei wird lediglich die Nutzungsdauer (in Jahren) der Geräte auf sechs Jahre verlängert (sofern die von Ihnen angegebene Zeit nicht ohnehin schon sechs Jahre oder länger ist). Dadurch können Sie vergleichen, welche Kosten und Treibhausgasemissionen sich ergeben, wenn Sie die Geräte seltener ersetzen. Auf dem Blatt Variable_Werte finden Sie unten die Schaltfläche "Neues Szenario erstellen". Bis zu drei weitere Szenarien sind möglich. Wenn Sie die Schaltfläche anklicken, öffnet sich jeweils ein weiteres Blatt: Szen1_Variablen, Szen2_Variablen, Szen3_Variablen. Dort finden Sie die Angaben wieder, die Sie im Basis-Szenario (auf dem Blatt Variable_Werte) eingegeben haben und können sie gezielt ändern. Sie können beispielsweise die Anzahlen für die einzelnen Gerätetypen (bei konstanter Gesamtanzahl der Arbeitsplätze) ändern. So können Sie sich ansehen, wie das Gesamtergebnis sich verändert, wenn Sie beispielsweise Mini-PCs statt Desktop-PCs einsetzen. Sie können auch technische Parameter der Geräte ändern. Auf diese Weise können Sie die Effekte unterschiedlichster Veränderungen sichtbar machen. Auch die Nutzungsdauer (in Jahren) können Sie ändern. Die Ergebnisse werden auf den Blättern CO2e-Ergebnisse und Kosten-Ergebnisse angezeigt - als Tabellen und als Grafiken. Auf den Ergebnis-Blättern finden Sie außerdem Schaltflächen, mit deren Hilfe Sie auf diesen Blättern die Ergebnisse Ihrer zusätzlichen Szenarien (falls Sie welche angelegt haben) ein- und ausblenden können.
A20: Experten-Modus: Im Blatt Konstante_Werte ist ein Button eingebettet, mit dem Sie den "Expertenmodus" aktivieren können. Dann werden alle versteckten Berechnungsblätter und das Default-Werte-Blatt eingeblendet. Wenn Sie den Expertenmodus mit derselben Schaltfläche deaktivieren, werden die versteckten Blätter wieder ausgeblendet. Default-Werte: In hellgrünen Zellen sind bereits Default-Werte vorgegeben, die wir Ihnen als Ausgangswerte vorschlagen, beispielsweise für die Leistungsaufnahme der Geräte oder für den Personalaufwand. Diese Werte sind im Blatt Default-Werte dokumentiert. Die Default-Werte basieren auf dem Forschungsvorhaben "Öko-APC", vgl. Quelle [1]. Wenn Sie eigene, andere Werte haben, können Sie sie anstelle der Default-Werte eingeben. Auf allen Blättern mit Eingabefeldern finden Sie Schaltflächen, mit deren Hilfe Sie die Default-Werte wieder herstellen können. Quellen: Alle Quellenangaben sind im Blatt Quellen dokumentiert. FAQs: Auf dem Blatt FAQs finden Sie Antworten auf häufig gestellte Fragen. Wir werden dieses Blatt laufend ergänzen. Wenn Sie dort etwas vermissen, dann schicken Sie Ihre Frage bitte an das Umweltbundesamt. Die Mail-Adressen finden Sie auf dem Blatt Titel.
A21: Wichtiger Hinweis: Das Tool arbeitet mit VBA-Makros. Nach Öffnen des Tools wird evtl. eine gelbe Statusleiste angezeigt (s. unten). Klicken Sie in der Statusleiste auf „Inhalt aktivieren“. Die Makros werden aktiviert und können ausgeführt werden. Sofern die Makro-Ausführung bei Ihrem System gesperrt ist, wenden Sie sich bitte an Ihren Systemadministrator.
A23: Legende
C25: Eingabe erforderlich / möglich
C27: vom UBA vorgeschlagene Default-Werte, die Sie ändern können
C29: vorgegebene Werte, die Sie nicht ändern können (Ergebnisse Ökobilanz)
C31: keine Eingabe möglich / Ausgabe berechneter Werte
C33: Fehler in der Ausgabe / fehlende Eingabe
A35: Abkürzungen
A36: APC | B36: Arbeitsplatzcomputer
A37: GWP | B37: Global Warming Potential (Treibhauseffekt)
A38: THG | B38: Treibhausgasemissionen
A39: Szen. | B39: Szenario
A41: Wir freuen uns über Ihre Rückmeldung! Wenn Sie uns von Ihren Erfahrungen mit diesem Tool berichten möchten, Fragen oder Verbesserungsvorschläge haben oder Fehler bemerken, dann wenden Sie sich bitte ans Umweltbundesamt. Die Mailadressen finden Sie auf dem Titel-Blatt.
A42: Impressum
A43: Dieses Berechnungswerkzeug entstand im Auftrag des Umweltbundesamtes im Vorhaben "Nutzerorientiertes Informations- und Berechnungsmodul zum Ufoplanvorhaben Öko-APC" (Projektnummer78 711) und stellt eine Ergänzung zum Forschungsvorhaben „Ökologische und ökonomische Aspekte beim Vergleich von Arbeitsplatzcomputern für den Einsatz in Behörden unter Einbeziehung des Nutzerverhaltens“ (Öko-APC, FKZ 3712 95 301, vgl. Quelle [1]) dar. Die konzeptionelle und technische Realisierung erfolgte durch das Öko-Institut e.V., Freiburg, 2018.
A44: Diese Excel-Datei auf der UBA-Webseite (www.umweltbundesamt.de) zum Download verfügbar.

Sheet Konstante_Werte
C2: Hinweis:
C3: Bei Aktivierung des Expertenmodus werden alle versteckten Berechnungsblätter und das Default-Werte-Blatt eingeblendet, bei Deaktivierung des Expertenmodus werden diese ausgeblendet.
B8: Eingaben zur Nutzung und den Kosten | E8: Zurück zum Inhaltsverzeichnis
B10: Beschreibung | C10: Geben Sie hier Ihre Beschreibung ein! Beispiel: Daten für Musterbehörde Standort Musterdorf; Daten aus dem Jahr 2018
I11: Default-Werte (Standard-Werte)
B14: Allgemeine Angaben
C15: Name der Organisation: | E15: Musterbehörde
C16: Betrachtungszeitraum: [Jahr] | E16: =L16 -> 10 | J16: Betrachtungszeitraum: [Jahr] | L16: ='Default-Werte'!$C$5 -> 10
C17: GWP-Strommix: [kg CO2e/kWh] | E17: =L17 -> 0.622 | J17: GWP-Strommix: [kg CO2e/kWh] | L17: ='Default-Werte'!$C$6 -> 0.622
C18: Strompreis: [€/kWh] | E18: =L18 -> 0.212 | J18: Strompreis: [€/kWh] | L18: ='Default-Werte'!C151 -> 0.212
C19: Reale Preissteigerungsrate Strom: [%/Jahr] | E19: =L19 -> 0.005759682224 | J19: Reale Preissteigerungsrate Strom: [%/Jahr] | L19: ='Default-Werte'!$C$154 -> 0.005759682224
B21: Nutzungsprofile
B22: Anzahl der Stunden pro Arbeitstag je Betriebszustand | E22: Idle-Mode | F22: Sleep-Mode | G22: Off-Mode
C23: Hohe Nutzungsintensität [h/d] | E23: 7.5 | F23: 2.5 | G23: =24-E23-F23 -> 14
C24: Mittlere Nutzungsintensität [h/d] | E24: 6 | F24: 4 | G24: =24-E24-F24 -> 14
C25: Geringe Nutzungsintensität [h/d] | E25: 4.5 | F25: 5.5 | G25: =24-E25-F25 -> 14
I26: Standardnutzungsprofile
B27: Anzahl Stunden pro Arbeitstag je Betriebszust.: Desktop | E27: Idle-Mode | F27: Sleep-Mode | G27: Off-Mode | I27: Anzahl Stunden pro Arbeitstag je Betriebszust.: Desktop | L27: Idle-Mode | M27: Sleep-Mode | N27: Off-Mode
C28: Hohe Nutzungsintensität [h/d] | E28: =L28 -> 7.5 | F28: =M28 -> 2.5 | G28: =24-E28-F28 -> 14 | J28: Hohe Nutzungsintensität [h/d] | L28: ='Default-Werte'!C131 -> 7.5 | M28: ='Default-Werte'!D131 -> 2.5 | N28: ='Default-Werte'!E131 -> 14
C29: Mittlere Nutzungsintensität [h/d] | E29: =L29 -> 6 | F29: =M29 -> 4 | G29: =24-E29-F29 -> 14 | J29: Mittlere Nutzungsintensität [h/d] | L29: ='Default-Werte'!C132 -> 6 | M29: ='Default-Werte'!D132 -> 4 | N29: ='Default-Werte'!E132 -> 14
C30: Geringe Nutzungsintensität [h/d] | E30: 4.5 | F30: 5.5 | G30: =24-E30-F30 -> 14 | J30: Geringe Nutzungsintensität [h/d] | L30: ='Default-Werte'!C133 -> 4.5 | M30: ='Default-Werte'!D133 -> 5.5 | N30: ='Default-Werte'!E133 -> 14
B32: Anzahl Stunden pro Arbeitstag je Betriebszust.: Notebook | E32: =L32 -> Idle-Mode | F32: =M32 -> Sleep-Mode | G32: =N32 -> Off-Mode | I32: Anzahl Stunden pro Arbeitstag je Betriebszust.: Notebook | L32: Idle-Mode | M32: Sleep-Mode | N32: Off-Mode
C33: Hohe Nutzungsintensität [h/d] | E33: =L33 -> 7.5 | F33: =M33 -> 2.5 | G33: =24-E33-F33 -> 14 | J33: Hohe Nutzungsintensität [h/d] | L33: ='Default-Werte'!C136 -> 7.5 | M33: ='Default-Werte'!D136 -> 2.5 | N33: ='Default-Werte'!E136 -> 14
C34: Mittlere Nutzungsintensität [h/d] | E34: =L34 -> 6 | F34: =M34 -> 4 | G34: =24-E34-F34 -> 14 | J34: Mittlere Nutzungsintensität [h/d] | L34: ='Default-Werte'!C137 -> 6 | M34: ='Default-Werte'!D137 -> 4 | N34: ='Default-Werte'!E137 -> 14
C35: Geringe Nutzungsintensität [h/d] | E35: 4.5 | F35: 5.5 | G35: =24-E35-F35 -> 14 | J35: Geringe Nutzungsintensität [h/d] | L35: ='Default-Werte'!C138 -> 4.5 | M35: ='Default-Werte'!D138 -> 5.5 | N35: ='Default-Werte'!E138 -> 14
B37: Anzahl Stunden pro Arbeitstag je Betriebszust.: Mini-PC | E37: Idle-Mode | F37: Sleep-Mode | G37: Off-Mode | I37: Anzahl Stunden pro Arbeitstag je Betriebszust.: Mini-PC | L37: Idle-Mode | M37: Sleep-Mode | N37: Off-Mode
C38: Hohe Nutzungsintensität [h/d] | E38: =L38 -> 7.5 | F38: =M38 -> 2.5 | G38: =24-E38-F38 -> 14 | J38: Hohe Nutzungsintensität [h/d] | L38: ='Default-Werte'!C141 -> 7.5 | M38: ='Default-Werte'!D141 -> 2.5 | N38: ='Default-Werte'!E141 -> 14
C39: Mittlere Nutzungsintensität [h/d] | E39: =L39 -> 6 | F39: =M39 -> 4 | G39: =24-E39-F39 -> 14 | J39: Mittlere Nutzungsintensität [h/d] | L39: ='Default-Werte'!C142 -> 6 | M39: ='Default-Werte'!D142 -> 4 | N39: ='Default-Werte'!E142 -> 14
C40: Geringe Nutzungsintensität [h/d] | E40: 4.5 | F40: 5.5 | G40: =24-E40-F40 -> 14 | J40: Geringe Nutzungsintensität [h/d] | L40: ='Default-Werte'!C143 -> 4.5 | M40: ='Default-Werte'!D143 -> 5.5 | N40: ='Default-Werte'!E143 -> 14
B42: Anzahl Stunden pro Arbeitstag je Betriebszust.: Monitor | E42: Idle-Mode | F42: Sleep-Mode | G42: Off-Mode | I42: Anzahl Stunden pro Arbeitstag je Betriebszust.: Monitor | L42: Idle-Mode | M42: Sleep-Mode | N42: Off-Mode
C43: Hohe Nutzungsintensität [h/d] | E43: =L43 -> 7.5 | F43: =M43 -> 2.5 | G43: =24-E43-F43 -> 14 | J43: Hohe Nutzungsintensität [h/d] | L43: ='Default-Werte'!C146 -> 7.5 | M43: ='Default-Werte'!D146 -> 2.5 | N43: ='Default-Werte'!E146 -> 14
C44: Mittlere Nutzungsintensität [h/d] | E44: =L44 -> 6 | F44: =M44 -> 4 | G44: =24-E44-F44 -> 14 | J44: Mittlere Nutzungsintensität [h/d] | L44: ='Default-Werte'!C147 -> 6 | M44: ='Default-Werte'!D147 -> 4 | N44: ='Default-Werte'!E147 -> 14
C45: Geringe Nutzungsintensität [h/d] | E45: 4.5 | F45: 5.5 | G45: =24-E45-F45 -> 14 | J45: Geringe Nutzungsintensität [h/d] | L45: ='Default-Werte'!C148 -> 4.5 | M45: ='Default-Werte'!D148 -> 5.5 | N45: ='Default-Werte'!E148 -> 14
B47: Anteil Nutzer nach Nutzungsintensität | I47: Anteil Nutzer nach Nutzungsintensität
C48: Hohe Nutzungsintensität [%] | E48: =L48 -> 0.25 | J48: =C48 -> Hohe Nutzungsintensität [%] | L48: ='Default-Werte'!$C$112 -> 0.25
C49: Mittlere Nutzungsintensität [%] | E49: =L49 -> 0.5 | J49: =C49 -> Mittlere Nutzungsintensität [%] | L49: ='Default-Werte'!$C$113 -> 0.5
C50: Geringe Nutzungsintensität [%] | E50: 0.25 | J50: Geringe Nutzungsintensität [%] | L50: ='Default-Werte'!$C$114 -> 0.25
C51: Summe | E51: =SUM(E48:G50) -> 1 | F51: =SUM(E48:G50) -> 1 | J51: Summe | L51: =SUM(L48:N50) -> 1 | M51: =SUM(L48:N50) -> 1
B53: Personalkosten | I53: Personalkosten | L53: Oberste Bundesbehörden (OB)
E54: Höherer Dienst | F54: Gehobener Dienst | G54: Mittlerer Dienst | L54: Höherer Dienst | M54: Gehobener Dienst | N54: Mittlerer Dienst
C55: Tagesbruttopersonalkosten [€/d] | E55: =L55 -> 533.97 | F55: =M55 -> 408.91 | G55: 285.09 | J55: Tagesbruttopersonalkosten [€/d] | L55: ='Default-Werte'!C167 -> 533.97 | M55: ='Default-Werte'!D167 -> 408.91 | N55: ='Default-Werte'!E167 -> 285.09
C56: Tagessach- und -gemeinkosten [€/d] | E56: =L56 -> 344.53 | F56: 297 | G56: 249.95 | J56: Tagessach- und -gemeinkosten [€/d] | L56: ='Default-Werte'!C168 -> 344.53 | M56: ='Default-Werte'!D168 -> 297 | N56: ='Default-Werte'!E168 -> 249.95
B58: Personalaufwand für Beschaffung, Roll-Out, Instandsetzung und Entsorgung je Gerät | I58: Personalaufwand für Beschaffung, Roll-Out, Instandsetzung und Entsorgung je Gerät
E59: Höherer Dienst | F59: Gehobener Dienst | G59: Mittlerer Dienst | L59: Höherer Dienst | M59: Gehobener Dienst | N59: Mittlerer Dienst
C60: Personalaufwand [d/Stück] | E60: =L60 -> 0.01162 | F60: =M60 -> 0.08766 | G60: 0.18442 | J60: Personalaufwand [d/Stück] | L60: ='Default-Werte'!C184 -> 0.01162 | M60: ='Default-Werte'!D184 -> 0.08766 | N60: ='Default-Werte'!E184 -> 0.18442
B62: Anschaffungskosten je Gerät bzw. Ersatzteil | I62: Anschaffungskosten je Gerät bzw. Ersatzteil
C63: Desktop-PC [€/Stück] | E63: =L63 -> 312 | J63: Desktop-PC [€/Stück] | L63: ='Default-Werte'!$C$157 -> 312
C64: Notebook [€/Stück] | E64: =L64 -> 431 | J64: Notebook [€/Stück] | L64: ='Default-Werte'!$C$158 -> 431
C65: Mini-PC [€/Stück] | E65: 325 | J65: Mini-PC [€/Stück] | L65: ='Default-Werte'!$C$159 -> 325
C66: Monitor [€/Stück] | E66: 189 | J66: Monitor [€/Stück] | L66: ='Default-Werte'!$C$160 -> 189
C67: SSD [€/Stück] | E67: 89 | J67: SSD [€/Stück] | L67: ='Default-Werte'!$C$161 -> 89
C68: RAM [€/Stück] | E68: 60 | J68: RAM [€/Stück] | L68: ='Default-Werte'!$C$162 -> 60
C69: Akku [€/Stück] | E69: 75 | J69: Akku [€/Stück] | L69: ='Default-Werte'!$C$163 -> 75

Sheet Variable_Werte
B1: Eingaben zum Mengengerüst, den Energieverbrauchswerten und zum Komponentenaustausch
G2: Zurück zum Inhaltsverzeichnis
B3: Bezeichnung: | C3: Basisszenario
B4: Beschreibung | C4: Beispiel: Daten für Musterbehörde Standort Musterdorf; Daten aus dem Jahr 2018; Ausstattung wie von XYZ vorgeschlagen
L5: Default-Werte (Standard-Werte)
B7: Modellbezeichnungen
C8: Desktop-PC | E8: Beispiel: Firma XY Modell A1
C9: Notebook
C10: Mini-PC
C11: Monitor
B13: Anzahl aller Geräte [Stück] | E13: Anzahl der Geräte | F13: Anzahl der zugeordneten Monitore
C14: APC-Desktop-PC | E14: 100 | F14: 120
C15: APC-Notebook | E15: 50 | F15: 50
C16: APC-Mini-PC | E16: 70 | F16: 80
C17: Summe | E17: =SUM(E14:E16) -> 220 | F17: =SUM(F14:G16) -> 250
B19: Nutzungsdauer [Jahre] | L19: Nutzungsdauer [Jahre]
C20: Desktop-PC | E20: =O20 -> 6 | M20: Desktop-PC | O20: ='Default-Werte'!$C$106 -> 6
C21: Notebook | E21: =O21 -> 6 | M21: Notebook | O21: ='Default-Werte'!$C$107 -> 6
C22: Mini-PC | E22: 6 | M22: Mini-PC | O22: 6
C23: Monitor | E23: 6 | M23: Monitor | O23: ='Default-Werte'!$C$109 -> 6
B25: Anzahl der Austauschvorgänge von Komponenten je Gerät während der Nutzungsphase | L25: =B25 -> Anzahl der Austauschvorgänge von Komponenten je Gerät während der Nutzungsphase
E26: Ersatz HDD durch SSD | F26: RAM hinzufügen | G26: Wechsel des Akkus | O26: Ersatz HDD durch SSD | P26: RAM hinzufügen | Q26: Wechsel des Akkus
C27: Desktop-PC | E27: =O27 -> 1 | F27: =P27 -> 1 | G27: =Q27 -> - | M27: Desktop-PC | O27: ='Default-Werte'!C100 -> 1 | P27: ='Default-Werte'!D100 -> 1 | Q27: ='Default-Werte'!E100 -> -
C28: Notebook | E28: =O28 -> 1 | F28: 1 | G28: =Q28 -> 1 | M28: Notebook | O28: ='Default-Werte'!C101 -> 1 | P28: ='Default-Werte'!D101 -> 1 | Q28: 1
C29: Mini-PC | E29: 1 | F29: 1 | G29: - | M29: Mini-PC | O29: ='Default-Werte'!C102 -> 1 | P29: ='Default-Werte'!D102 -> 1 | Q29: ='Default-Werte'!E102 -> -
B31: Prozentualer Anteil der Geräte, bei denen während der Nutzungsphase folgende Komponenten nachgerüstet bzw. ausgetauscht werden [%] | L31: =B31 -> Prozentualer Anteil der Geräte, bei denen während der Nutzungsphase folgende Komponenten nachgerüstet bzw. ausgetauscht werden [%]
E32: Ersatz HDD durch SSD | F32: RAM hinzufügen | G32: Wechsel des Akkus | O32: Ersatz HDD durch SSD | P32: RAM hinzufügen | Q32: Wechsel des Akkus
C33: Desktop-PC | E33: =O33 -> 0 | F33: =P33 -> 0 | G33: =Q33 -> - | M33: Desktop-PC | O33: ='Default-Werte'!C$93 -> 0 | P33: ='Default-Werte'!D$93 -> 0 | Q33: ='Default-Werte'!E$93 -> -
C34: Notebook | E34: =O34 -> 0 | F34: =P34 -> 0 | G34: =Q34 -> 0.5 | M34: Notebook | O34: ='Default-Werte'!C$94 -> 0 | P34: ='Default-Werte'!D$94 -> 0 | Q34: 0.5
C35: Mini-PC | E35: 0 | F35: 0 | G35: - | M35: Mini-PC | O35: ='Default-Werte'!C$95 -> 0 | P35: ='Default-Werte'!D$95 -> 0 | Q35: ='Default-Werte'!E$95 -> -
B37: Leistungsaufnahme: | E37: Idle-Mode/Short-Idle-Mode | F37: Sleep-Mode | G37: Off-Mode | L37: Leistungsaufnahme: | O37: Idle-Mode | P37: Sleep-Mode | Q37: Off-Mode
C38: Desktop [W] | E38: =O38 -> 32.39 | F38: =P38 -> 2.08 | G38: 0.79 | M38: Desktop [W] | O38: ='Default-Werte'!C118 -> 32.39 | P38: ='Default-Werte'!D118 -> 2.08 | Q38: ='Default-Werte'!E118 -> 0.79
B41: Leistungsaufnahme: | E41: Idle-Mode/Short-Idle-Mode | F41: Sleep-Mode | G41: Off-Mode | L41: Leistungsaufnahme: | O41: Idle-Mode | P41: Sleep-Mode | Q41: Off-Mode
C42: Notebook [W] | E42: =O42 -> 9.04 | F42: =P42 -> 0.735 | G42: 0.46 | M42: Notebook [W] | O42: ='Default-Werte'!C121 -> 9.04 | P42: ='Default-Werte'!D121 -> 0.735 | Q42: ='Default-Werte'!E121 -> 0.46
B45: Leistungsaufnahme: | E45: Idle-Mode/Short-Idle-Mode | F45: Sleep-Mode | G45: Off-Mode | L45: Leistungsaufnahme: | O45: Idle-Mode | P45: Sleep-Mode | Q45: Off-Mode
C46: Mini-PC [W] | E46: =O46 -> 16.27 | F46: =P46 -> 1.72 | G46: 0.91 | M46: Mini-PC [W] | O46: ='Default-Werte'!C124 -> 16.27 | P46: ='Default-Werte'!D124 -> 1.72 | Q46: ='Default-Werte'!E124 -> 0.91
B49: Leistungsaufnahme: | E49: Idle-Mode/Short-Idle-Mode | F49: Sleep-Mode | G49: Off-Mode | L49: Leistungsaufnahme: | O49: Idle-Mode | P49: Sleep-Mode | Q49: Off-Mode
C50: Monitor [W] | E50: =O50 -> 18.82 | F50: =P50 -> 0.5 | G50: 0.3 | M50: Monitor [W] | O50: ='Default-Werte'!C127 -> 18.82 | P50: ='Default-Werte'!D127 -> 0.5 | Q50: ='Default-Werte'!E127 -> 0.3

Sheet Szen1_Variablen (hidden)
B1: Alternativszenario in dem variable Eingabedaten geändert werden können
G2: Zurück zum Inhaltsverzeichnis
B3: Bezeichnung: | C3: Szenario 1
B4: Beschreibung | C4: Beschreiben Sie hier Ihr Szenario 1! Hinweis: Die Werte in den neuen Szenarien wurden aus dem Basisszenario übernommen (Blatt Variable_Werte). Sie können sie nach Ihren Vorstellungen verändern.
L5: Default-Werte (Standard-Werte)
B7: =Variable_Werte!B7 -> Modellbezeichnungen
C8: Desktop-PC | E8: =IF(Variable_Werte!E8<>"",Variable_Werte!E8,"-") -> Beispiel: Firma XY Modell A1
C9: Notebook | E9: =IF(Variable_Werte!E9<>"",Variable_Werte!E9,"-") -> 
C10: Mini-PC | E10: =IF(Variable_Werte!E10<>"",Variable_Werte!E10,"-") -> 
C11: Monitor | E11: =IF(Variable_Werte!E11<>"",Variable_Werte!E11,"-") -> 
B13: Anzahl der Geräte [Stück] | E13: Anzahl der Geräte [Stück] | F13: Anzahl der zugeordneten Monitore
C14: APC-Desktop-PC | E14: =Variable_Werte!E14 -> 100 | F14: =Variable_Werte!F14 -> 120
C15: APC-Notebook | E15: =Variable_Werte!E15 -> 50 | F15: =Variable_Werte!F15 -> 50
C16: APC-Mini-PC | E16: =Variable_Werte!E16 -> 70 | F16: =Variable_Werte!F16 -> 80
C17: Summe | E17: =IF(SUM(E14:E16)<>Variable_Werte!$E$17,"Summe muss "&(Variable_Werte!$E$17)&" ergeben",SUM(E14:E16)) -> 220 | F17: =SUM(F14:G16) -> 250
B19: =Variable_Werte!B19 -> Nutzungsdauer [Jahre] | L19: =Variable_Werte!L19 -> Nutzungsdauer [Jahre]
C20: Desktop-PC | E20: =Variable_Werte!E20 -> 6 | M20: Desktop-PC | O20: ='Default-Werte'!$C$106 -> 6
C21: Notebook | E21: =Variable_Werte!E21 -> 6 | M21: Notebook | O21: ='Default-Werte'!$C$107 -> 6
C22: Mini-PC | E22: =Variable_Werte!E22 -> 6 | M22: Mini-PC | O22: ='Default-Werte'!$C$108 -> 6
C23: Monitor | E23: =Variable_Werte!E23 -> 6 | M23: Monitor | O23: ='Default-Werte'!$C$109 -> 6
B25: =Variable_Werte!B25 -> Anzahl der Austauschvorgänge von Komponenten je Gerät während der Nutzungsphase | L25: =Variable_Werte!L25 -> Anzahl der Austauschvorgänge von Komponenten je Gerät während der Nutzungsphase
E26: Ersatz HDD durch SSD | F26: RAM hinzufügen | G26: Wechsel des Akkus | O26: Ersatz HDD durch SSD | P26: RAM hinzufügen | Q26: Wechsel des Akkus
C27: Desktop-PC | E27: =Variable_Werte!E27 -> 1 | F27: =Variable_Werte!F27 -> 1 | G27: =Variable_Werte!G27 -> - | M27: Desktop-PC | O27: ='Default-Werte'!C100 -> 1 | P27: ='Default-Werte'!D100 -> 1 | Q27: ='Default-Werte'!E100 -> -
C28: Notebook | E28: =Variable_Werte!E28 -> 1 | F28: =Variable_Werte!F28 -> 1 | G28: =Variable_Werte!G28 -> 1 | M28: Notebook | O28: ='Default-Werte'!C101 -> 1 | P28: ='Default-Werte'!D101 -> 1 | Q28: 1
C29: Mini-PC | E29: =Variable_Werte!E29 -> 1 | F29: =Variable_Werte!F29 -> 1 | G29: =Variable_Werte!G29 -> - | M29: Mini-PC | O29: ='Default-Werte'!C102 -> 1 | P29: ='Default-Werte'!D102 -> 1 | Q29: ='Default-Werte'!E102 -> -
B31: =Variable_Werte!B31 -> Prozentualer Anteil der Geräte, bei denen während der Nutzungsphase folgende Komponenten nachgerüstet bzw. ausgetauscht werden [%] | L31: =Variable_Werte!L31 -> Prozentualer Anteil der Geräte, bei denen während der Nutzungsphase folgende Komponenten nachgerüstet bzw. ausgetauscht werden [%]
E32: Ersatz HDD durch SSD | F32: RAM hinzufügen | G32: Wechsel des Akkus | O32: Ersatz HDD durch SSD | P32: RAM hinzufügen | Q32: Wechsel des Akkus
C33: Desktop-PC | E33: =Variable_Werte!E33 -> 0 | F33: =Variable_Werte!F33 -> 0 | G33: =Variable_Werte!G33 -> - | M33: Desktop-PC | O33: ='Default-Werte'!C$95 -> 0 | P33: ='Default-Werte'!D$93 -> 0 | Q33: ='Default-Werte'!E$93 -> -
C34: Notebook | E34: =Variable_Werte!E34 -> 0 | F34: =Variable_Werte!F34 -> 0 | G34: =Variable_Werte!G34 -> 0.5 | M34: Notebook | O34: ='Default-Werte'!C$95 -> 0 | P34: ='Default-Werte'!D$94 -> 0 | Q34: 0.5
C35: Mini-PC | E35: =Variable_Werte!E35 -> 0 | F35: =Variable_Werte!F35 -> 0 | G35: =Variable_Werte!G35 -> - | M35: Mini-PC | O35: ='Default-Werte'!C$95 -> 0 | P35: ='Default-Werte'!D$95 -> 0 | Q35: ='Default-Werte'!E$95 -> -
B37: Leistungsaufnahme: | E37: Idle-Mode/Short-Idle-Mode | F37: Sleep-Mode | G37: Off-Mode | L37: Leistungsaufnahme: | O37: Idle-Mode | P37: Sleep-Mode | Q37: Off-Mode
C38: Desktop [W] | E38: =Variable_Werte!E38 -> 32.39 | F38: =Variable_Werte!F38 -> 2.08 | G38: =Variable_Werte!G38 -> 0.79 | M38: Desktop [W] | O38: ='Default-Werte'!C118 -> 32.39 | P38: ='Default-Werte'!D118 -> 2.08 | Q38: ='Default-Werte'!E118 -> 0.79
B41: Leistungsaufnahme: | E41: Idle-Mode/Short-Idle-Mode | F41: Sleep-Mode | G41: Off-Mode | L41: Leistungsaufnahme: | O41: Idle-Mode | P41: Sleep-Mode | Q41: Off-Mode
C42: Notebook [W] | E42: =Variable_Werte!E42 -> 9.04 | F42: =Variable_Werte!F42 -> 0.735 | G42: =Variable_Werte!G42 -> 0.46 | M42: Notebook [W] | O42: ='Default-Werte'!C121 -> 9.04 | P42: ='Default-Werte'!D121 -> 0.735 | Q42: ='Default-Werte'!E121 -> 0.46
B45: Leistungsaufnahme: | E45: Idle-Mode/Short-Idle-Mode | F45: Sleep-Mode | G45: Off-Mode | L45: Leistungsaufnahme: | O45: Idle-Mode | P45: Sleep-Mode | Q45: Off-Mode
C46: Mini-PC [W] | E46: =Variable_Werte!E46 -> 16.27 | F46: =Variable_Werte!F46 -> 1.72 | G46: =Variable_Werte!G46 -> 0.91 | M46: Mini-PC [W] | O46: ='Default-Werte'!C124 -> 16.27 | P46: ='Default-Werte'!D124 -> 1.72 | Q46: ='Default-Werte'!E124 -> 0.91
B49: Leistungsaufnahme: | E49: Idle-Mode/Short-Idle-Mode | F49: Sleep-Mode | G49: Off-Mode | L49: Leistungsaufnahme: | O49: Idle-Mode | P49: Sleep-Mode | Q49: Off-Mode
C50: Monitor [W] | E50: =Variable_Werte!E50 -> 18.82 | F50: =Variable_Werte!F50 -> 0.5 | G50: =Variable_Werte!G50 -> 0.3 | M50: Monitor [W] | O50: ='Default-Werte'!C127 -> 18.82 | P50: ='Default-Werte'!D127 -> 0.5 | Q50: ='Default-Werte'!E127 -> 0.3

Sheet Szen2_Variablen (hidden)
B1: Alternativszenario in dem variable Eingabedaten geändert werden können
G2: Zurück zum Inhaltsverzeichnis
B3: Bezeichnung: | C3: Szenario 2
B4: Beschreibung | C4: Beschreiben Sie hier Ihr Szenario 2! Hinweis: Die Werte in den neuen Szenarien wurden aus dem Basisszenario (Blatt Variable_Werte) übernommen. Sie können sie nach Ihren Vorstellungen verändern.
L5: Default-Werte (Standard-Werte)
B7: =Variable_Werte!B7 -> Modellbezeichnungen
C8: Desktop-PC | E8: =IF(Variable_Werte!E8<>"",Variable_Werte!E8,"-") -> Beispiel: Firma XY Modell A1
C9: Notebook | E9: =IF(Variable_Werte!E9<>"",Variable_Werte!E9,"-") -> 
C10: Mini-PC | E10: =IF(Variable_Werte!E10<>"",Variable_Werte!E10,"-") -> 
C11: Monitor | E11: =IF(Variable_Werte!E11<>"",Variable_Werte!E11,"-") -> 
B13: Anzahl der Geräte [Stück] | E13: Anzahl der Geräte [Stück] | F13: Anzahl der zugeordneten Monitore
C14: APC-Desktop-PC | E14: =Variable_Werte!E14 -> 100 | F14: =Variable_Werte!F14 -> 120
C15: APC-Notebook | E15: =Variable_Werte!E15 -> 50 | F15: =Variable_Werte!F15 -> 50
C16: APC-Mini-PC | E16: =Variable_Werte!E16 -> 70 | F16: =Variable_Werte!F16 -> 80
C17: Summe | E17: =IF(SUM(E14:E16)<>Variable_Werte!$E$17,"Summe muss "&(Variable_Werte!$E$17)&" ergeben", SUM(E14:E16)) -> 220 | F17: =SUM(F14:G16) -> 250
B19: =Variable_Werte!B19 -> Nutzungsdauer [Jahre] | L19: =Variable_Werte!L19 -> Nutzungsdauer [Jahre]
C20: Desktop-PC | E20: =Variable_Werte!E20 -> 6 | M20: Desktop-PC | O20: ='Default-Werte'!$C$106 -> 6
C21: Notebook | E21: =Variable_Werte!E21 -> 6 | M21: Notebook | O21: ='Default-Werte'!$C$107 -> 6
C22: Mini-PC | E22: =Variable_Werte!E22 -> 6 | M22: Mini-PC | O22: ='Default-Werte'!$C$108 -> 6
C23: Monitor | E23: =Variable_Werte!E23 -> 6 | M23: Monitor | O23: ='Default-Werte'!$C$109 -> 6
B25: =Variable_Werte!B25 -> Anzahl der Austauschvorgänge von Komponenten je Gerät während der Nutzungsphase | L25: =Variable_Werte!L25 -> Anzahl der Austauschvorgänge von Komponenten je Gerät während der Nutzungsphase
E26: Ersatz HDD durch SSD | F26: RAM hinzufügen | G26: Wechsel des Akkus | O26: Ersatz HDD durch SSD | P26: RAM hinzufügen | Q26: Wechsel des Akkus
C27: Desktop-PC | E27: =Variable_Werte!E27 -> 1 | F27: =Variable_Werte!F27 -> 1 | G27: =Variable_Werte!G27 -> - | M27: Desktop-PC | O27: ='Default-Werte'!C100 -> 1 | P27: ='Default-Werte'!D100 -> 1 | Q27: ='Default-Werte'!E100 -> -
C28: Notebook | E28: =Variable_Werte!E28 -> 1 | F28: =Variable_Werte!F28 -> 1 | G28: =Variable_Werte!G28 -> 1 | M28: Notebook | O28: ='Default-Werte'!C101 -> 1 | P28: ='Default-Werte'!D101 -> 1 | Q28: 1
C29: Mini-PC | E29: =Variable_Werte!E29 -> 1 | F29: =Variable_Werte!F29 -> 1 | G29: =Variable_Werte!G29 -> - | M29: Mini-PC | O29: ='Default-Werte'!C102 -> 1 | P29: ='Default-Werte'!D102 -> 1 | Q29: ='Default-Werte'!E102 -> -
B31: =Variable_Werte!B31 -> Prozentualer Anteil der Geräte, bei denen während der Nutzungsphase folgende Komponenten nachgerüstet bzw. ausgetauscht werden [%] | L31: =Variable_Werte!L31 -> Prozentualer Anteil der Geräte, bei denen während der Nutzungsphase folgende Komponenten nachgerüstet bzw. ausgetauscht werden [%]
E32: Ersatz HDD durch SSD | F32: RAM hinzufügen | G32: Wechsel des Akkus | O32: Ersatz HDD durch SSD | P32: RAM hinzufügen | Q32: Wechsel des Akkus
C33: Desktop-PC | E33: =Variable_Werte!E33 -> 0 | F33: =Variable_Werte!F33 -> 0 | G33: =Variable_Werte!G33 -> - | M33: Desktop-PC | O33: ='Default-Werte'!C$93 -> 0 | P33: ='Default-Werte'!D$93 -> 0 | Q33: ='Default-Werte'!E$93 -> -
C34: Notebook | E34: =Variable_Werte!E34 -> 0 | F34: =Variable_Werte!F34 -> 0 | G34: =Variable_Werte!G34 -> 0.5 | M34: Notebook | O34: ='Default-Werte'!C$94 -> 0 | P34: ='Default-Werte'!D$94 -> 0 | Q34: 0.5
C35: Mini-PC | E35: =Variable_Werte!E35 -> 0 | F35: =Variable_Werte!F35 -> 0 | G35: =Variable_Werte!G35 -> - | M35: Mini-PC | O35: ='Default-Werte'!C$95 -> 0 | P35: ='Default-Werte'!D$95 -> 0 | Q35: ='Default-Werte'!E$95 -> -
B37: Leistungsaufnahme: | E37: Idle-Mode/Short-Idle-Mode | F37: Sleep-Mode | G37: Off-Mode | L37: Leistungsaufnahme: | O37: Idle-Mode | P37: Sleep-Mode | Q37: Off-Mode
C38: Desktop [W] | E38: =Variable_Werte!E38 -> 32.39 | F38: =Variable_Werte!F38 -> 2.08 | G38: =Variable_Werte!G38 -> 0.79 | M38: Desktop [W] | O38: ='Default-Werte'!C118 -> 32.39 | P38: ='Default-Werte'!D118 -> 2.08 | Q38: ='Default-Werte'!E118 -> 0.79
B41: Leistungsaufnahme: | E41: Idle-Mode/Short-Idle-Mode | F41: Sleep-Mode | G41: Off-Mode | L41: Leistungsaufnahme: | O41: Idle-Mode | P41: Sleep-Mode | Q41: Off-Mode
C42: Notebook [W] | E42: =Variable_Werte!E42 -> 9.04 | F42: =Variable_Werte!F42 -> 0.735 | G42: =Variable_Werte!G42 -> 0.46 | M42: Notebook [W] | O42: ='Default-Werte'!C121 -> 9.04 | P42: ='Default-Werte'!D121 -> 0.735 | Q42: ='Default-Werte'!E121 -> 0.46
B45: Leistungsaufnahme: | E45: Idle-Mode/Short-Idle-Mode | F45: Sleep-Mode | G45: Off-Mode | L45: Leistungsaufnahme: | O45: Idle-Mode | P45: Sleep-Mode | Q45: Off-Mode
C46: Mini-PC [W] | E46: =Variable_Werte!E46 -> 16.27 | F46: =Variable_Werte!F46 -> 1.72 | G46: =Variable_Werte!G46 -> 0.91 | M46: Mini-PC [W] | O46: ='Default-Werte'!C124 -> 16.27 | P46: ='Default-Werte'!D124 -> 1.72 | Q46: ='Default-Werte'!E124 -> 0.91
B49: Leistungsaufnahme: | E49: Idle-Mode/Short-Idle-Mode | F49: Sleep-Mode | G49: Off-Mode | L49: Leistungsaufnahme: | O49: Idle-Mode | P49: Sleep-Mode | Q49: Off-Mode
C50: Monitor [W] | E50: =Variable_Werte!E50 -> 18.82 | F50: =Variable_Werte!F50 -> 0.5 | G50: =Variable_Werte!G50 -> 0.3 | M50: Monitor [W] | O50: ='Default-Werte'!C127 -> 18.82 | P50: ='Default-Werte'!D127 -> 0.5 | Q50: ='Default-Werte'!E127 -> 0.3

Sheet Szen3_Variablen (hidden)
B1: Alternativszenario in dem variable Eingabedaten geändert werden können
G2: Zurück zum Inhaltsverzeichnis
B3: Bezeichnung: | C3: Szenario 3
B4: Beschreibung | C4: Beschreiben Sie hier Ihr Szenario 3! Hinweis: Die Werte in den neuen Szenarien wurden aus dem Basisszenario (Blatt Variable_Werte) übernommen. Sie können sie nach Ihren Vorstellungen verändern.
L5: Default-Werte (Standard-Werte)
B7: =Variable_Werte!B7 -> Modellbezeichnungen
C8: Desktop-PC | E8: =IF(Variable_Werte!E8<>"",Variable_Werte!E8,"-") -> Beispiel: Firma XY Modell A1
C9: Notebook | E9: =IF(Variable_Werte!E9<>"",Variable_Werte!E9,"-") -> 
C10: Mini-PC | E10: =IF(Variable_Werte!E10<>"",Variable_Werte!E10,"-") -> 
C11: Monitor | E11: =IF(Variable_Werte!E11<>"",Variable_Werte!E11,"-") -> 
B13: Anzahl der Geräte [Stück] | E13: Anzahl der Geräte [Stück] | F13: Anzahl der zugeordneten Monitore
C14: APC-Desktop-PC | E14: =Variable_Werte!E14 -> 100 | F14: =Variable_Werte!F14 -> 120
C15: APC-Notebook | E15: =Variable_Werte!E15 -> 50 | F15: =Variable_Werte!F15 -> 50
C16: APC-Mini-PC | E16: =Variable_Werte!E16 -> 70 | F16: =Variable_Werte!F16 -> 80
C17: Summe | E17: =IF(SUM(E14:E16)<>Variable_Werte!$E$17,"Summe muss "&(Variable_Werte!$E$17)&" ergeben", SUM(E14:E16)) -> 220 | F17: =SUM(F14:G16) -> 250
B19: =Variable_Werte!B19 -> Nutzungsdauer [Jahre] | L19: =Variable_Werte!L19 -> Nutzungsdauer [Jahre]
C20: Desktop-PC | E20: =Variable_Werte!E20 -> 6 | M20: Desktop-PC | O20: ='Default-Werte'!$C$106 -> 6
C21: Notebook | E21: =Variable_Werte!E21 -> 6 | M21: Notebook | O21: ='Default-Werte'!$C$107 -> 6
C22: Mini-PC | E22: =Variable_Werte!E22 -> 6 | M22: Mini-PC | O22: ='Default-Werte'!$C$108 -> 6
C23: Monitor | E23: =Variable_Werte!E23 -> 6 | M23: Monitor | O23: ='Default-Werte'!$C$109 -> 6
B25: =Variable_Werte!B25 -> Anzahl der Austauschvorgänge von Komponenten je Gerät während der Nutzungsphase | L25: =Variable_Werte!L25 -> Anzahl der Austauschvorgänge von Komponenten je Gerät während der Nutzungsphase
E26: Ersatz HDD durch SSD | F26: RAM hinzufügen | G26: Wechsel des Akkus | O26: Ersatz HDD durch SSD | P26: RAM hinzufügen | Q26: Wechsel des Akkus
C27: Desktop-PC | E27: =Variable_Werte!E27 -> 1 | F27: =Variable_Werte!F27 -> 1 | G27: =Variable_Werte!G27 -> - | M27: Desktop-PC | O27: ='Default-Werte'!C100 -> 1 | P27: ='Default-Werte'!D100 -> 1 | Q27: ='Default-Werte'!E100 -> -
C28: Notebook | E28: =Variable_Werte!E28 -> 1 | F28: =Variable_Werte!F28 -> 1 | G28: =Variable_Werte!G28 -> 1 | M28: Notebook | O28: ='Default-Werte'!C101 -> 1 | P28: ='Default-Werte'!D101 -> 1 | Q28: 1
C29: Mini-PC | E29: =Variable_Werte!E29 -> 1 | F29: =Variable_Werte!F29 -> 1 | G29: =Variable_Werte!G29 -> - | M29: Mini-PC | O29: ='Default-Werte'!C102 -> 1 | P29: ='Default-Werte'!D102 -> 1 | Q29: ='Default-Werte'!E102 -> -
B31: =Variable_Werte!B31 -> Prozentualer Anteil der Geräte, bei denen während der Nutzungsphase folgende Komponenten nachgerüstet bzw. ausgetauscht werden [%] | L31: =Variable_Werte!L31 -> Prozentualer Anteil der Geräte, bei denen während der Nutzungsphase folgende Komponenten nachgerüstet bzw. ausgetauscht werden [%]
E32: Ersatz HDD durch SSD | F32: RAM hinzufügen | G32: Wechsel des Akkus | O32: Ersatz HDD durch SSD | P32: RAM hinzufügen | Q32: Wechsel des Akkus
C33: Desktop-PC | E33: =Variable_Werte!E33 -> 0 | F33: =Variable_Werte!F33 -> 0 | G33: =Variable_Werte!G33 -> - | M33: Desktop-PC | O33: ='Default-Werte'!C$93 -> 0 | P33: ='Default-Werte'!D$93 -> 0 | Q33: ='Default-Werte'!E$93 -> -
C34: Notebook | E34: =Variable_Werte!E34 -> 0 | F34: =Variable_Werte!F34 -> 0 | G34: =Variable_Werte!G34 -> 0.5 | M34: Notebook | O34: ='Default-Werte'!C$94 -> 0 | P34: ='Default-Werte'!D$94 -> 0 | Q34: 0.5
C35: Mini-PC | E35: =Variable_Werte!E35 -> 0 | F35: =Variable_Werte!F35 -> 0 | G35: =Variable_Werte!G35 -> - | M35: Mini-PC | O35: ='Default-Werte'!C$95 -> 0 | P35: ='Default-Werte'!D$95 -> 0 | Q35: ='Default-Werte'!E$95 -> -
B37: Leistungsaufnahme: | E37: Idle-Mode/Short-Idle-Mode | F37: Sleep-Mode | G37: Off-Mode | L37: Leistungsaufnahme: | O37: Idle-Mode | P37: Sleep-Mode | Q37: Off-Mode
C38: Desktop [W] | E38: =Variable_Werte!E38 -> 32.39 | F38: =Variable_Werte!F38 -> 2.08 | G38: =Variable_Werte!G38 -> 0.79 | M38: Desktop [W] | O38: ='Default-Werte'!C118 -> 32.39 | P38: ='Default-Werte'!D118 -> 2.08 | Q38: ='Default-Werte'!E118 -> 0.79
B41: Leistungsaufnahme: | E41: Idle-Mode/Short-Idle-Mode | F41: Sleep-Mode | G41: Off-Mode | L41: Leistungsaufnahme: | O41: Idle-Mode | P41: Sleep-Mode | Q41: Off-Mode
C42: Notebook [W] | E42: =Variable_Werte!E42 -> 9.04 | F42: =Variable_Werte!F42 -> 0.735 | G42: =Variable_Werte!G42 -> 0.46 | M42: Notebook [W] | O42: ='Default-Werte'!C121 -> 9.04 | P42: ='Default-Werte'!D121 -> 0.735 | Q42: ='Default-Werte'!E121 -> 0.46
B45: Leistungsaufnahme: | E45: Idle-Mode/Short-Idle-Mode | F45: Sleep-Mode | G45: Off-Mode | L45: Leistungsaufnahme: | O45: Idle-Mode | P45: Sleep-Mode | Q45: Off-Mode
C46: Mini-PC [W] | E46: =Variable_Werte!E46 -> 16.27 | F46: =Variable_Werte!F46 -> 1.72 | G46: =Variable_Werte!G46 -> 0.91 | M46: Mini-PC [W] | O46: ='Default-Werte'!C124 -> 16.27 | P46: ='Default-Werte'!D124 -> 1.72 | Q46: ='Default-Werte'!E124 -> 0.91
B49: Leistungsaufnahme: | E49: Idle-Mode/Short-Idle-Mode | F49: Sleep-Mode | G49: Off-Mode | L49: Leistungsaufnahme: | O49: Idle-Mode | P49: Sleep-Mode | Q49: Off-Mode
C50: Monitor [W] | E50: =Variable_Werte!E50 -> 18.82 | F50: =Variable_Werte!F50 -> 0.5 | G50: =Variable_Werte!G50 -> 0.3 | M50: Monitor [W] | O50: ='Default-Werte'!C127 -> 18.82 | P50: ='Default-Werte'!D127 -> 0.5 | Q50: ='Default-Werte'!E127 -> 0.3

Sheet UBA-Empfehlung
B1: UBA-Empfehlung mit verlängerter Nutzungsdauer
G2: Zurück zum Inhaltsverzeichnis
B3: Bezeichnung: | C3: UBA-Empfehlung | E3: (Nutzungsdauer auf 6 verlängert, falls nicht bereits 6 oder mehr Jahre angesetzt wurden)
B4: Beschreibung | C4: Das UBA-Szenario wird automatisch aus Ihren Angaben in den Tabellenblättern Konstante_Werte und Variable_Werte erstellt. Es unterscheidet sich von Ihrem Basiszenario dadurch, dass die Nutzungsdauer auf 6 Jahre je Gerät verlängert wird, sofern Ihre Angaben im Basisszenario (Tabellenblatt Variable_Werte) darunter liegen.
K5: Berechnung der neuen Nutzungsdauer für die UBA-Empfehlung
B7: =Variable_Werte!B7 -> Modellbezeichnungen
C8: Desktop-PC | E8: =IF(Variable_Werte!E8<>"",Variable_Werte!E8,"-") -> Beispiel: Firma XY Modell A1
C9: Notebook | E9: =IF(Variable_Werte!E9<>"",Variable_Werte!E9,"-") -> 
C10: Mini-PC | E10: =IF(Variable_Werte!E10<>"",Variable_Werte!E10,"-") -> 
C11: Monitor | E11: =IF(Variable_Werte!E11<>"",Variable_Werte!E11,"-") -> 
B13: =Variable_Werte!B13 -> Anzahl aller Geräte [Stück] | E13: =Variable_Werte!E13 -> Anzahl der Geräte | F13: =Variable_Werte!F13 -> Anzahl der zugeordneten Monitore
C14: APC-Desktop-PC | E14: =Variable_Werte!E14 -> 100 | F14: =Variable_Werte!F14 -> 120
C15: APC-Notebook | E15: =Variable_Werte!E15 -> 50 | F15: =Variable_Werte!F15 -> 50 | L15: Nutzungsdauer für UBA-Empfehlung
C16: APC-Mini-PC | E16: =Variable_Werte!E16 -> 70 | F16: =Variable_Werte!F16 -> 80 | K16: Vom Nutzer eingegebene Nutzungsdauer [Jahre] | L16: Desktop-PC | M16: Notebook | N16: Mini-PC | O16: Monitor
C17: Summe | E17: =SUM(E14:E16) -> 220 | F17: =SUM(F14:G16) -> 250 | K17: 1 | L17: 6 | M17: 6 | N17: 6 | O17: 6
K18: 2 | L18: 6 | M18: 6 | N18: 6 | O18: 6
B19: Geänderte Nutzungsdauer auf Basis der UBA-Empfehlung: Nutzungsdauer [Jahre] | K19: 3 | L19: 6 | M19: 6 | N19: 6 | O19: 6
C20: Desktop-PC | E20: =IF(Variable_Werte!$E$20=0,"0",IF(Variable_Werte!$E$20>10,Variable_Werte!$E$20,VLOOKUP(Variable_Werte!E20,$K$17:$O$26,2))) -> 6 | K20: 4 | L20: 6 | M20: 6 | N20: 6 | O20: 6
C21: Notebook | E21: =IF(Variable_Werte!$E$21=0,"0",IF(Variable_Werte!$E$21>10,Variable_Werte!$E$21,VLOOKUP(Variable_Werte!E21,'UBA-Empfehlung'!$K$17:$O$26,3))) -> 6 | K21: 5 | L21: 6 | M21: 6 | N21: 6 | O21: 6
C22: Mini-PC | E22: =IF(Variable_Werte!$E$22=0,"0",(IF(Variable_Werte!$E$22>10,Variable_Werte!$E$22,VLOOKUP(Variable_Werte!E22,'UBA-Empfehlung'!$K$17:$O$26,4)))) -> 6 | K22: 6 | L22: 6 | M22: 6 | N22: 6 | O22: 6
C23: Monitor | E23: =IF(Variable_Werte!$E$23=0,"-",IF(Variable_Werte!$E$23>10,Variable_Werte!$E$23,VLOOKUP(Variable_Werte!E23,'UBA-Empfehlung'!$K$17:$O$26,5))) -> 6 | K23: 7 | L23: 7 | M23: 7 | N23: 7 | O23: 7
K24: 8 | L24: 8 | M24: 8 | N24: 8 | O24: 8
B25: =Variable_Werte!B25 -> Anzahl der Austauschvorgänge von Komponenten je Gerät während der Nutzungsphase | K25: 9 | L25: 9 | M25: 9 | N25: 9 | O25: 9
E26: Ersatz HDD durch SSD | F26: RAM hinzufügen | G26: Wechsel des Akkus | K26: 10 | L26: =K26 -> 10 | M26: =K26 -> 10 | N26: =K26 -> 10 | O26: 10
C27: Desktop-PC | E27: =Variable_Werte!E27 -> 1 | F27: =Variable_Werte!F27 -> 1 | G27: =Variable_Werte!G27 -> - | K27: >10 | L27: gleich wie beim Basis-Szenario
C28: Notebook | E28: =Variable_Werte!E28 -> 1 | F28: =Variable_Werte!F28 -> 1 | G28: =Variable_Werte!G28 -> 1 | K28: Zum Vergleich
C29: Mini-PC | E29: =Variable_Werte!E29 -> 1 | F29: =Variable_Werte!F29 -> 1 | G29: =Variable_Werte!G29 -> - | K29: Nutzungsdauer (Jahre), die durch Nutzer im Basisszenario (BS) angegeben wurden
K30: =Variable_Werte!C20 -> Desktop-PC | L30: =Variable_Werte!E20 -> 6
B31: =Variable_Werte!B31 -> Prozentualer Anteil der Geräte, bei denen während der Nutzungsphase folgende Komponenten nachgerüstet bzw. ausgetauscht werden [%] | K31: =Variable_Werte!C21 -> Notebook | L31: =Variable_Werte!E21 -> 6
E32: Ersatz HDD durch SSD | F32: RAM hinzufügen | G32: Wechsel des Akkus | K32: =Variable_Werte!C22 -> Mini-PC | L32: =Variable_Werte!E22 -> 6
C33: Desktop-PC | E33: =Variable_Werte!E33 -> 0 | F33: =Variable_Werte!F33 -> 0 | G33: =Variable_Werte!G33 -> - | K33: =Variable_Werte!C23 -> Monitor | L33: =Variable_Werte!E23 -> 6
C34: Notebook | E34: =Variable_Werte!E34 -> 0 | F34: =Variable_Werte!F34 -> 0 | G34: =Variable_Werte!G34 -> 0.5
C35: Mini-PC | E35: =Variable_Werte!E35 -> 0 | F35: =Variable_Werte!F35 -> 0 | G35: =Variable_Werte!G35 -> -
B37: Leistungsaufnahme: | E37: Idle-Mode/Short-Idle-Mode | F37: Sleep-Mode | G37: Off-Mode
C38: Desktop [W] | E38: =Variable_Werte!E38 -> 32.39 | F38: =Variable_Werte!F38 -> 2.08 | G38: =Variable_Werte!G38 -> 0.79
B41: Leistungsaufnahme: | E41: Idle-Mode/Short-Idle-Mode | F41: Sleep-Mode | G41: Off-Mode
C42: Notebook [W] | E42: =Variable_Werte!E42 -> 9.04 | F42: =Variable_Werte!F42 -> 0.735 | G42: =Variable_Werte!G42 -> 0.46
B45: Leistungsaufnahme: | E45: Idle-Mode/Short-Idle-Mode | F45: Sleep-Mode | G45: Off-Mode
C46: Mini-PC [W] | E46: =Variable_Werte!E46 -> 16.27 | F46: =Variable_Werte!F46 -> 1.72 | G46: =Variable_Werte!G46 -> 0.91
B49: Leistungsaufnahme: | E49: Idle-Mode/Short-Idle-Mode | F49: Sleep-Mode | G49: Off-Mode
C50: Monitor [W] | E50: =Variable_Werte!E50 -> 18.82 | F50: =Variable_Werte!F50 -> 0.5 | G50: =Variable_Werte!G50 -> 0.3

Sheet Berechnung_BasisS (hidden)
B1: Berechnung der CO2-Äquivalente und der Kosten
F2: Zurück zum Inhaltsverzeichnis
B3: =Variable_Werte!B3 -> Bezeichnung: | D3: =Variable_Werte!C3 -> Basisszenario
B4: 1. Feste Daten
C5: ='Default-Werte'!B4 -> Anzahl von Arbeitstagen/Jahr | E5: 203 | F5: d/a
C6: ='Default-Werte'!B5 -> Betrachtungszeitraum [Jahr] | E6: =IF(Konstante_Werte!E16<>"0", Konstante_Werte!E16, Konstante_Werte!L16) -> 10 | F6: Jahre
C8: =Konstante_Werte!C18 -> Strompreis: [€/kWh] | G8: =Konstante_Werte!E18 -> 0.212
C9: =Konstante_Werte!C19 -> Reale Preissteigerungsrate Strom: [%/Jahr] | G9: =Konstante_Werte!E19 -> 0.005759682224
C11: Durchschnittlicher Verwaltungsaufwand eines Beschaffungszyklus | H11: =Konstante_Werte!E59 -> Höherer Dienst | I11: =Konstante_Werte!F59 -> Gehobener Dienst | J11: =Konstante_Werte!G59 -> Mittlerer Dienst | K11: Summe
C12: =Konstante_Werte!C60 -> Personalaufwand [d/Stück] | H12: =Konstante_Werte!$E$60 -> 0.01162 | I12: =Konstante_Werte!F60 -> 0.08766 | J12: =Konstante_Werte!G60 -> 0.18442 | K12: =SUM(H12:J12) -> 0.2837
C13: Personalkosten pro Gerät [EUR/Stck] | H13: =$H$12*Konstante_Werte!E55 -> 6.2047314 | I13: =$I$12*Konstante_Werte!F55 -> 35.8450506 | J13: =$J$12*Konstante_Werte!G55 -> 52.5762978 | K13: =SUM(H13:J13) -> 94.6260798
C14: Sach- und Gemeinkosten pro Gerät [EUR/Stck] | H14: =$H$12*Konstante_Werte!E56 -> 4.0034386 | I14: =$I$12*Konstante_Werte!F56 -> 26.03502 | J14: =$J$12*Konstante_Werte!G56 -> 46.095779 | K14: =SUM(H14:J14) -> 76.1342376
C16: =Konstante_Werte!B47 -> Anteil Nutzer nach Nutzungsintensität | D16: =Konstante_Werte!C48 -> Hohe Nutzungsintensität [%] | E16: =Konstante_Werte!C49 -> Mittlere Nutzungsintensität [%] | F16: =Konstante_Werte!C50 -> Geringe Nutzungsintensität [%]
C17: Geräte | D17: =Konstante_Werte!E48 -> 0.25 | E17: =Konstante_Werte!E49 -> 0.5 | F17: =Konstante_Werte!E50 -> 0.25
B19: 2. Variable Daten
C20: =Variable_Werte!B13 -> Anzahl aller Geräte [Stück] | D20: =Variable_Werte!E13 -> Anzahl der Geräte | E20: =Variable_Werte!F13 -> Anzahl der zugeordneten Monitore
C21: =Variable_Werte!C14 -> APC-Desktop-PC | D21: =Variable_Werte!E14 -> 100 | E21: =Variable_Werte!F14 -> 120
C22: =Variable_Werte!C15 -> APC-Notebook | D22: =Variable_Werte!E15 -> 50 | E22: =Variable_Werte!F15 -> 50
C23: =Variable_Werte!C16 -> APC-Mini-PC | D23: =Variable_Werte!E16 -> 70 | E23: =Variable_Werte!F16 -> 80
C24: =Variable_Werte!C17 -> Summe | D24: =Variable_Werte!E17 -> 220 | E24: =SUM(E21:E23) -> 250
C26: =Variable_Werte!$B$19 -> Nutzungsdauer [Jahre]
C27: =Variable_Werte!C20 -> Desktop-PC | D27: =Variable_Werte!E20 -> 6
C28: =Variable_Werte!C21 -> Notebook | D28: =Variable_Werte!E21 -> 6
C29: =Variable_Werte!C22 -> Mini-PC | D29: =Variable_Werte!E22 -> 6
C30: =Variable_Werte!C23 -> Monitor | D30: =Variable_Werte!E23 -> 6
C32: =Variable_Werte!B31 -> Prozentualer Anteil der Geräte, bei denen während der Nutzungsphase folgende Komponenten nachgerüstet bzw. ausgetauscht werden [%] | I32: =Variable_Werte!B25 -> Anzahl der Austauschvorgänge von Komponenten je Gerät während der Nutzungsphase
D33: =Variable_Werte!E32 -> Ersatz HDD durch SSD | E33: =Variable_Werte!F32 -> RAM hinzufügen | F33: =Variable_Werte!G32 -> Wechsel des Akkus | J33: =Variable_Werte!E26 -> Ersatz HDD durch SSD | K33: =Variable_Werte!F26 -> RAM hinzufügen | L33: =Variable_Werte!G26 -> Wechsel des Akkus
C34: =Variable_Werte!C33 -> Desktop-PC | D34: =Variable_Werte!E33 -> 0 | E34: =Variable_Werte!F33 -> 0 | F34: =Variable_Werte!G33 -> - | I34: =Variable_Werte!C27 -> Desktop-PC | J34: =Variable_Werte!E27 -> 1 | K34: =Variable_Werte!F27 -> 1 | L34: =Variable_Werte!G27 -> -
C35: =Variable_Werte!C34 -> Notebook | D35: =Variable_Werte!E34 -> 0 | E35: =Variable_Werte!F34 -> 0 | F35: =Variable_Werte!G34 -> 0.5 | I35: =Variable_Werte!C28 -> Notebook | J35: =Variable_Werte!E28 -> 1 | K35: =Variable_Werte!F28 -> 1 | L35: =Variable_Werte!G28 -> 1
C36: =Variable_Werte!C35 -> Mini-PC | D36: =Variable_Werte!E35 -> 0 | E36: =Variable_Werte!F35 -> 0 | F36: =Variable_Werte!G35 -> - | I36: =Variable_Werte!C29 -> Mini-PC | J36: =Variable_Werte!E29 -> 1 | K36: =Variable_Werte!F29 -> 1 | L36: =Variable_Werte!G29 -> -
B38: 3. Ergebnisse
B39: 3.1 Stromverbrauch während der Nutzung
C40: Stromverbrauch pro Gerät während der Nutzung [kWh/Gerät/Betrachtungsraum]
C41: IT-Gerät | D41: kWh/Gerät/Betrachtungsraum
C42: Desktop-PC | D42: =$D$125 -> 415.3397949
C43: Notebook | D43: =$E$125 -> 131.453264
C44: Mini-PC | D44: =$F$125 -> 244.4099804
C45: Monitor | D45: =$G$125 -> 226.6182913
C47: Arbeitsplatztyp | D47: kWh/Betrachtungsraum
C48: APC mit Desktop-PC | D48: =D42*$D21+$D$45*$E21 -> 68728.17445
C49: APC mit Notebook | D49: =D43*$D22+$D$45*$E22 -> 17903.57776
C50: APC mit Mini-PC | D50: =D44*$D23+$D$45*$E23 -> 35238.16193
B52: 3.2 GWP-Ergebnisse bezogen auf alle Geräte des Typs über den Betrachtungszeitraum
C53: kg CO2e / Betrachtungszeitraum | D53: APC mit Desktop (incl. zugehöriger Monitore) | E53: APC mit Notebook (incl. zugehöriger Monitore) | F53: APC mit Mini-PC (incl. zugehöriger Monitore) | G53: Summe | I53: GWP der Lebensphasen in % bezogen auf den Arbeitsplatztyp / Betrachtungszeitraum | J53: APC mit Desktop (incl. zugehöriger Monitore) | K53: APC mit Notebook (incl. zugehöriger Monitore) | L53: APC mit Mini-PC (incl. zugehöriger Monitore) | M53: % (Summe)
C54: Herstellung | D54: =IF(OR($D$21>0,$E$21>0),('Default-Werte'!$D$24+$D$34*$J$34*'Default-Werte'!$C$26+$E$34*$K$34*'Default-Werte'!$C$12)*$J$91*$D$21+'Default-Werte'!$D$25*$E$21*$J$94,0) -> 75456.66667 | E54: =IF(OR($D$22>0,$E$22>0),('Default-Werte'!$D$47+'Default-Werte'!$C$39*$D$35*$J$35+'Default-Werte'!$C$30*$E$35*$K$35+'Default-Werte'!$C$38*$F$35*$L$35)*$J$92*$D$22+'Default-Werte'!$D$48*$J$94*$E$22,0) -> 28554.16667 | F54: =IF(OR($D$23>0,$E$23>0),('Default-Werte'!$D$67+'Default-Werte'!$C$60*$D$36*$J$36+'Default-Werte'!$C$53*$E$36*$K$36)*$J$93*$D$23+$E$23*$J$94*'Default-Werte'!$D$68,0) -> 33985 | G54: =SUM(D54:F54) -> 137995.8333 | I54: Herstellung | J54: =IF($D$58=0,0,D54/$D$58) -> 0.614937396 | K54: =IF($E$58=0,0,E54/$E$58) -> 0.7000796554 | L54: =IF($F$58=0,0,F54/$F$58) -> 0.587087326 | M54: =G54/$G$58 -> 0.6233416017
C55: Distribution | D55: =IF(OR($D$21>0,$E$21>0),('Default-Werte'!$C$72+$D$34*$J$34*'Default-Werte'!$C$78+$E$34*$K$34*'Default-Werte'!$C$77)*$J$91*$D$21+$J$94*$E$21*'Default-Werte'!$C$75,0) -> 3528 | E55: =IF(OR($D$22>0,$E$22>0),('Default-Werte'!$C$73+'Default-Werte'!$C$78*$D$35*$J$35+'Default-Werte'!$C$77*$E$35*$K$35+'Default-Werte'!$C$76*$F$35*$L$35)*$J$92*$D$22+$J$94*$E$22*'Default-Werte'!$C$75,0) -> 865.2916667 | F55: =IF(OR($D$23>0,$E$23>0),('Default-Werte'!$C$74+'Default-Werte'!$C$78*$D$36*$J$36+'Default-Werte'!$C$77*$E$36*$K$36)*$J$93*$D$23+$J$94*$E$23*'Default-Werte'!$C$75,0) -> 1678.5 | G55: =SUM(D55:F55) -> 6071.791667 | I55: Distribution | J55: =IF($D$58=0,0,D55/$D$58) -> 0.02875158987 | K55: =IF($E$58=0,0,E55/$E$58) -> 0.02121487554 | L55: =IF($F$58=0,0,F55/$F$58) -> 0.02899591222 | M55: =G55/$G$58 -> 0.02742691755
C56: Nutzung | D56: =IF(OR($D$21>0,$E$21>0),$D$48*Konstante_Werte!$E$17,0) -> 42748.92451 | E56: =IF(OR($D$22>0,$E$22>0),$D$49*Konstante_Werte!$E$17,0) -> 11136.02537 | F56: =IF(OR($D$23>0,$E$23>0),$D$50*Konstante_Werte!$E$17,0) -> 21918.13672 | G56: =SUM(D56:F56) -> 75803.08659 | I56: Nutzung | J56: =IF($D$58=0,0,D56/$D$58) -> 0.3483842247 | K56: 0.2730286229 | L56: 0.3786335229 | M56: 0.3424104647
C57: Entsorgung | D57: =IF(OR($D$21>0,$E$21>0),('Default-Werte'!$C$82+$D$34*$J$34*'Default-Werte'!$C$88+$E$34*$K$34*'Default-Werte'!$C$87)*$J$91*$D$21+$J$94*$E$21*'Default-Werte'!$C$85,0) -> 972.6666667 | E57: =IF(OR($D$22>0,$E$22>0),('Default-Werte'!$C$83+'Default-Werte'!$C$88*$D$35*$J$35+'Default-Werte'!$C$87*$E$35*$K$35+'Default-Werte'!$C$86*$F$35*$L$35)*$J$92*$D$22+$J$94*$E$22*'Default-Werte'!$C$85,0) -> 231.5416667 | F57: =IF(OR($D$23>0,$E$23>0),('Default-Werte'!$C$84+'Default-Werte'!$C$88*$D$36*$J$36+'Default-Werte'!$C$87*$E$36*$K$36)*$J$93*$D$23+$J$94*$E$23*'Default-Werte'!$C$85,0) -> 305.8333333 | G57: =SUM(D57:F57) -> 1510.041667 | I57: Entsorgung | J57: =IF($D$58=0,0,D57/$D$58) -> 0.007926789422 | K57: 0.005676846119 | L57: 0.005283238895 | M57: 0.00682101603
C58: Summe | D58: =SUM(D54:D57) -> 122706.2578 | E58: =SUM(E54:E57) -> 40787.02537 | F58: =SUM(F54:F57) -> 57887.47005 | G58: =SUM(D58:F58) -> 221380.7533 | I58: Summe | J58: =SUM(J54:J57) -> 1 | K58: =SUM(K54:K57) -> 1 | L58: =SUM(L54:L57) -> 1 | M58: =SUM(M54:M57) -> 1
B60: 3.3 Kosten-Ergebnisse bezogen auf Betrachtungszeitraum und je Haushaltsjahr
C61: Lebenszykluskosten-Ergebnisse bezogen auf Betrachtungszeitraum
C62: Kosten in EURO / Betrachtungszeitraum | D62: APC mit Desktop | E62: APC mit Notebook | F62: APC mit Mini-PC | G62: Summe | I62: Kosten in % / Betrachtungszeitraum | J62: APC mit Desktop | K62: APC mit Notebook | L62: APC mit Mini-PC | M62: % (Summe)
C63: Anschaffungskosten | D63: =IF(OR($D$21>0,$E$21>0),(Konstante_Werte!$E$63+$D$34*$J$34*Konstante_Werte!$E$67+$E$34*$K$34*Konstante_Werte!$E$68)*$J$91*$D$21+Konstante_Werte!$E$66*$J$94*$E$21,0) -> 89800 | E63: =IF(OR($D$22>0,$E$22>0),(Konstante_Werte!$E$64+Konstante_Werte!$E$67*$D$35*$J$35+Konstante_Werte!$E$68*$E$35*$K$35+Konstante_Werte!$E$69*$F$35*$L$35)*$J$92*$D$22+Konstante_Werte!$E$66*$J$94*$E$22,0) -> 54791.66667 | F63: =IF(OR($D$23>0,$E$23>0),(Konstante_Werte!$E$65+Konstante_Werte!$E$67*$D$36*$J$36+Konstante_Werte!$E$68*$E$36*$K$36)*$J$93*$D$23+Konstante_Werte!$E$66*$J$94*$E$23,0) -> 63116.66667 | G63: =SUM(D63:F63) -> 207708.3333 | I63: =C63 -> Anschaffungskosten | J63: =IF($D$67=0,0,D63/$D$67) -> 0.5366467638 | K63: =IF($E$67=0,0,E63/$E$67) -> 0.6287831448 | L63: =IF($F$67=0,0,F63/$F$67) -> 0.5562989568 | M63: =G63/$G$67 -> 0.5645279254
C64: Energiekosten | D64: =IF(OR($D$21>0,$E$21>0),D141*$D$21+$G$141*$E21,0) -> 14923.28197 | E64: =IF(OR($D$22>0,$E$22>0),(E141*$D$22+$G$141*$E$22),0) -> 3887.490704 | F64: =IF(OR($D$23>0,$E$23>0),(F141*$D$23+$G$141*$E$23),0) -> 7651.433067 | G64: =SUM(D64:F64) -> 26462.20574 | I64: =C64 -> Energiekosten | J64: =IF($D$67=0,0,D64/$D$67) -> 0.08918185942 | K64: =IF($E$67=0,0,E64/$E$67) -> 0.04461241607 | L64: =IF($F$67=0,0,F64/$F$67) -> 0.06743835596 | M64: =G64/$G$67 -> 0.07192130364
C65: Bruttopersonalkosten | D65: =IF(OR($D$21>0,$E$21>0),($K$13)*($J$91*$D$21+$E$21*$J$94),0) -> 34696.22926 | E65: =IF(OR($D$22>0,$E$22>0),($K$13)*($J$92*$D$22+$E$22*$J$94),0) -> 15771.0133 | F65: =IF(OR($D$23>0,$E$23>0),($K$13)*($J$93*$D$23+$E$23*$J$94),0) -> 23656.51995 | G65: =SUM(D65:F65) -> 74123.76251 | I65: Bruttopersonalkosten | J65: 0.2073454248 | K65: 0.1809864153 | L65: 0.2085043153 | M65: 0.2014600628
C66: Sach-und Gemeinkosten | D66: =IF(OR($D$21>0,$E$21>0),($K$14)*($J$91*$D$21+$E$21*$J$94),0) -> 27915.88712 | E66: =IF(OR($D$22>0,$E$22>0),($K$14)*($J$92*$D$22+$E$22*$J$94),0) -> 12689.0396 | F66: =IF(OR($D$23>0,$E$23>0),($K$14)*($J$93*$D$23+$E$23*$J$94),0) -> 19033.5594 | G66: =SUM(D66:F66) -> 59638.48612 | I66: Sach-und Gemeinkosten | J66: 0.1668259519 | K66: 0.1456180239 | L66: 0.1677583719 | M66: 0.1620907082
C67: Summe | D67: =SUM(D63:D66) -> 167335.3984 | E67: =SUM(E63:E66) -> 87139.21027 | F67: =SUM(F63:F66) -> 113458.1791 | G67: =SUM(D67:F67) -> 367932.7877 | I67: Summe | J67: =SUM(J63:J66) -> 1 | K67: =SUM(K63:K66) -> 1 | L67: =SUM(L63:L66) -> 1 | M67: =SUM(M63:M66) -> 1
C69: Kosten je Haushaltsjahr
C70: Haushaltplan: erforderliche Haushaltsmittel (in €) je Haushaltsjahr im Betrachtungszeitraum
C71: Hinweis: | D71: Die Summe kann höher sein als die Lebenszykluskosten. Bei den Lebenszykluskosten wird die letzte Beschaffung einer Komponente nur anteilig einbezogen, sofern der Betrachtungszeitraum kein ganzzahliges Vielfaches der angenommenen Nutzungsdauer der Komponente ist.
C73: Kosten in EURO / Betrachtungszeitraum | D73: APC mit Desktop | E73: APC mit Notebook | F73: APC mit Mini-PC | G73: Summe | I73: Kosten: Anteil der Ausstattung in % innerhalb eines Jahres | J73: APC mit Desktop | K73: APC mit Notebook | L73: APC mit Mini-PC | M73: Summe
C74: =C146 -> 1 | D74: =IF(C74<=$F$89,M146,"-") -> 93076.99846 | E74: =IF(C74<=$F$89,M163,"-") -> 48500.5734 | F74: =IF(C74<=$F$89,M180,"-") -> 64319.63857 | G74: =IF(C74<=$F$89,(IF(SUM(D74:F74)>=0,SUM(D74:F74),0)),"-") -> 205897.2104 | I74: =C74 -> 1 | J74: =IF(C74<=$F$89,(IF(G74=0,0,D74/$G$74)),"-") -> 0.4520556557 | K74: =IF(C74<=$F$89,(IF(G74=0,0,E74/$G$74)),"-") -> 0.2355572147 | L74: =IF(C74<=$F$89,(IF(G74=0,0,F74/$G$74)),"-") -> 0.3123871297 | M74: =IF(C74<=$F$89,SUM(J74:L74),"-") -> 1
C75: 2 | D75: 1639.115349 | E75: 426.9868851 | F75: 840.4037 | G75: 2906.505934 | I75: =C75 -> 2 | J75: =IF(C75<=$F$89,(IF(G75=0,0,D75/$G$74)),"-") -> 0.007960842918 | K75: 0.002073786644 | L75: =IF(C75<=$F$89,(IF(G75=0,0,F75/$G$74)),"-") -> 0.004081666275 | M75: =IF(C75<=$F$89,SUM(J75:L75),"-") -> 0.01411629584
C76: 3 | D76: 1648.556133 | E76: 2304.446194 | F76: 845.2441583 | G76: 4798.246485 | I76: 3 | J76: 0.008006694843 | K76: 0.01119221668 | L76: 0.004105175376 | M76: 0.0233040869
C77: 4 | D77: =IF(C77<=$F$89,M149,"-") -> 1658.051292 | E77: 431.9196674 | F77: 850.112496 | G77: 2940.083456 | I77: 4 | J77: 0.008052810861 | K77: 0.002097744144 | L77: 0.004128819882 | M77: 0.01427937489
C78: 5 | D78: 1667.601141 | E78: 434.4073875 | F78: 855.0088738 | G78: 2957.017402 | I78: 5 | J78: 0.008099192493 | K78: 0.002109826484 | L78: 0.004152600572 | M78: 0.01436161955
C79: 6 | D79: 1677.205994 | E79: 436.909436 | F79: 859.9334533 | G79: 2974.048883 | I79: 6 | J79: 0.008145841268 | K79: 0.002121978414 | L79: 0.004176518232 | M79: 0.01444433791
C80: 7 | D80: 92687.27147 | E80: 48399.05015 | F80: 64119.81859 | G80: 205206.1402 | I80: 7 | J80: 0.4501628326 | K80: 0.2350641373 | L80: 0.3114166455 | M80: 0.9966436154
C81: 8 | D81: 1247.143655 | E81: 324.8788957 | F81: 639.4328153 | G81: 2211.455366 | I81: 8 | J81: 0.006057117786 | K81: 0.001577869341 | L81: 0.003105592417 | M81: 0.01074057954
C82: 9 | D82: 1254.326807 | E82: 2201.750095 | F82: 643.1157451 | G82: 4099.192647 | I82: 9 | J82: 0.00609200486 | K82: 0.01069344305 | L82: 0.003123479642 | M82: 0.01990892756
C83: 10 | D83: 1261.55133 | E83: 328.6320716 | F83: 646.8198875 | G83: 2237.003289 | I83: 10 | J83: 0.006127092872 | K83: 0.001596097737 | L83: 0.003141469892 | M83: 0.0108646605
C84: 11 | D84: - | E84: - | F84: - | G84: =IF(C84<=$F$89,(IF(SUM(D84:F84)>=0,SUM(D84:F84),0)),"-") -> - | I84: 11 | J84: - | K84: =IF(C84<=$F$89,(IF(G84=0,0,E84/$G$74)),"-") -> - | L84: - | M84: -
C85: 12 | D85: - | E85: - | F85: - | G85: =IF(C85<=$F$89,(IF(SUM(D85:F85)>=0,SUM(D85:F85),0)),"-") -> - | I85: 12 | J85: - | K85: - | L85: - | M85: -
B87: 4.Berechnungsweg: Stromverbrauch und Energiekosten
C88: Berechnung des Stromverbrauchs innerhalb des Betrachtungszeitraums
C89: Betrachtungszeitraum | F89: =E6 -> 10 | G89: Jahre
C90: =C26 -> Nutzungsdauer [Jahre] | I90: IT-Gerät | J90: Anzahl Beschaffungszyklen im Betrachtungszeitraum | K90: Einheit
D91: Desktop-PC | F91: =D27 -> 6 | G91: Jahre | I91: Desktop-PC | J91: =IF(D21<>0,$E$6/D27, "0") -> 1.666666667 | K91: Zahl Beschaffungszyklen
D92: Notebook | F92: =D28 -> 6 | G92: Jahre | I92: Notebook | J92: =IF(D22<>0,$E$6/D28, "0") -> 1.666666667 | K92: Zahl Beschaffungszyklen
D93: Mini-PC | F93: =D29 -> 6 | G93: Jahre | I93: Mini-PC | J93: =IF(D23<>0,$E$6/D29, "0") -> 1.666666667 | K93: Zahl Beschaffungszyklen
D94: Monitor | F94: =D30 -> 6 | G94: Jahre | I94: Monitor | J94: =IF(D30<>0,$E$6/D30, "0") -> 1.666666667 | K94: Zahl Beschaffungszyklen
C95: Energieeffizienzsteigerung von 5% pro Jahr | F95: 0.05
C97: Stromverbrauch | D97: Wh je Gerät und Kalendertag | I97: Stromverbrauch | J97: kWh je Gerät und Jahr im ersten Jahr
C98: IT-Gerät | D98: Hohe Nutzungsintensität | E98: Mittlere Nutzungsintensität | F98: Geringe Nutzungsintensität | I98: IT-Gerät | J98: Hohe Nutzungsintensität | K98: Mittlere Nutzungsintensität | L98: Geringe Nutzungsintensität
C99: Desktop-PC | D99: =IF($D$21>0,SUMPRODUCT(Konstante_Werte!$E$28:$G$28,Variable_Werte!$E$38:$G$38),0) -> 259.185 | E99: =IF($D$21>0,SUMPRODUCT(Konstante_Werte!$E$29:$G$29,Variable_Werte!$E$38:$G$38),0) -> 213.72 | F99: =IF($D$21>0,SUMPRODUCT(Konstante_Werte!$E$30:$G$30,Variable_Werte!$E$38:$G$38),0) -> 168.255 | I99: Desktop-PC | J99: =IF($D$21>0,(D$99*$E$5+Variable_Werte!$G$38*24*(365-$E$5))/1000,0) -> 55.686075 | K99: =IF($D$21>0,(E$99*$E$5+Variable_Werte!$G$38*24*(365-$E$5))/1000,0) -> 46.45668 | L99: =IF($D$21>0,(F$99*$E$5+Variable_Werte!$G$38*24*(365-$E$5))/1000,0) -> 37.227285
C100: Notebook | D100: =IF($D$22>0,SUMPRODUCT(Konstante_Werte!$E$33:$G$33,Variable_Werte!$E$42:$G$42),0) -> 76.0775 | E100: =IF($D$22>0,SUMPRODUCT(Konstante_Werte!$E$34:$G$34,Variable_Werte!$E$42:$G$42),0) -> 63.62 | F100: =IF($D$22>0,SUMPRODUCT(Konstante_Werte!$E$35:$G$35,Variable_Werte!$E$42:$G$42),0) -> 51.1625 | I100: Notebook | J100: =IF($D$22>0,(D$100*$E$5+Variable_Werte!$G$42*24*(365-$E$5))/1000,0) -> 17.2322125 | K100: =IF($D$22>0,(E$100*$E$5+Variable_Werte!$G$42*24*(365-$E$5))/1000,0) -> 14.70334 | L100: =IF($D$22>0,(F$100*$E$5+Variable_Werte!$G$42*24*(365-$E$5))/1000,0) -> 12.1744675
C101: Mini-PC | D101: =IF($D$23>0,SUMPRODUCT(Konstante_Werte!$E$38:$G$38,Variable_Werte!$E$46:$G$46),0) -> 139.065 | E101: =IF($D$23>0,SUMPRODUCT(Konstante_Werte!$E$39:$G$39,Variable_Werte!$E$46:$G$46),0) -> 117.24 | F101: =IF($D$23>0,SUMPRODUCT(Konstante_Werte!$E$40:$G$40,Variable_Werte!$E$46:$G$46),0) -> 95.415 | I101: Mini-PC | J101: =IF($D$23>0,(D$101*$E$5+Variable_Werte!$G$46*24*(365-$E$5))/1000,0) -> 31.768275 | K101: =IF($D$23>0,(E$101*$E$5+Variable_Werte!$G$46*24*(365-$E$5))/1000,0) -> 27.3378 | L101: =IF($D$23>0,(F$101*$E$5+Variable_Werte!$G$46*24*(365-$E$5))/1000,0) -> 22.907325
C102: Monitor | D102: =IF($E$24>0,SUMPRODUCT(Konstante_Werte!$E$43:$G$43,Variable_Werte!$E$50:$G$50),0) -> 146.6 | E102: =IF($E$24>0,SUMPRODUCT(Konstante_Werte!$E$44:$G$44,Variable_Werte!$E$50:$G$50),0) -> 119.12 | F102: =IF($E$24>0,SUMPRODUCT(Konstante_Werte!$E$45:$G$45,Variable_Werte!$E$50:$G$50),0) -> 91.64 | I102: Monitor | J102: =IF($E$24>0,(D$102*$E$5+Variable_Werte!$G$50*24*(365-$E$5))/1000,0) -> 30.9262 | K102: =IF($E$24>0,(E$102*$E$5+Variable_Werte!$G$50*24*(365-$E$5))/1000,0) -> 25.34776 | L102: =IF($E$24>0,(F$102*$E$5+Variable_Werte!$G$50*24*(365-$E$5))/1000,0) -> 19.76932
C104: Stromverbrauch im ersten Jahr je Geräteklasse unter Berücksichtigung der Nutzungsprofile
C105: IT-Gerät | D105: kWh je Gerät und Jahr im ersten Jahr
C106: Desktop-PC | D106: =IF($D$21>0,SUMPRODUCT(J99:L99,$D$17:$F$17),0) -> 46.45668
C107: Notebook | D107: =IF($D$22>0,SUMPRODUCT(J100:L100,$D$17:$F$17),0) -> 14.70334
C108: Mini-PC | D108: =IF($D$23>0,SUMPRODUCT(J101:L101,$D$17:$F$17),0) -> 27.3378
C109: Monitor | D109: =IF($E$24>0,SUMPRODUCT(J102:L102,$D$17:$F$17),0) -> 25.34776
C111: kWh je Gerät und Jahr; Energieeffizienzsteigerung von 5% pro Jahr der ggf neubeschafften Geräte wird berücksichtigt
C112: Jahr (max: 12 Jahre) | D112: Desktop | E112: Notebook | F112: Mini-PC | G112: Monitor | H112: Einheit
C113: 1 | D113: =D106 -> 46.45668 | E113: =D107 -> 14.70334 | F113: =D108 -> 27.3378 | G113: =D109 -> 25.34776 | H113: kWh/a/Gerät
C114: =C113+1 -> 2 | D114: =IF($D$113<>0,IF(MOD(C113,$F$91)=0,$D$113*(1-$F$95)^C113,D113),0) -> 46.45668 | E114: =IF($E$113<>0,IF(MOD(C113,$F$92)=0,$E$113*(1-$F$95)^C113,E113),0) -> 14.70334 | F114: =IF($F$113<>0,IF(MOD(C113,$F$93)=0,$F$113*(1-$F$95)^C113,F113),0) -> 27.3378 | G114: =IF($G$113<>0,IF(MOD(C113,$F$94)=0,$G$113*(1-$F$95)^C113,G113),0) -> 25.34776 | H114: kWh/a/Gerät
C115: =C114+1 -> 3 | D115: =IF($D$113<>0,IF(MOD(C114,$F$91)=0,$D$113*(1-$F$95)^C114,D114),0) -> 46.45668 | E115: =IF($E$113<>0,IF(MOD(C114,$F$92)=0,$E$113*(1-$F$95)^C114,E114),0) -> 14.70334 | F115: =IF($F$113<>0,IF(MOD(C114,$F$93)=0,$F$113*(1-$F$95)^C114,F114),0) -> 27.3378 | G115: =IF($G$113<>0,IF(MOD(C114,$F$94)=0,$G$113*(1-$F$95)^C114,G114),0) -> 25.34776 | H115: kWh/a/Gerät
C116: 4 | D116: 46.45668 | E116: 14.70334 | F116: 27.3378 | G116: 25.34776 | H116: kWh/a/Gerät
C117: 5 | D117: 46.45668 | E117: 14.70334 | F117: 27.3378 | G117: 25.34776 | H117: kWh/a/Gerät
C118: 6 | D118: 46.45668 | E118: 14.70334 | F118: 27.3378 | G118: 25.34776 | H118: kWh/a/Gerät
C119: 7 | D119: 34.14992873 | E119: 10.808306 | F119: 20.09579509 | G119: 18.63293282 | H119: kWh/a/Gerät
C120: 8 | D120: 34.14992873 | E120: 10.808306 | F120: 20.09579509 | G120: 18.63293282 | H120: kWh/a/Gerät
C121: 9 | D121: 34.14992873 | E121: 10.808306 | F121: 20.09579509 | G121: 18.63293282 | H121: kWh/a/Gerät
C122: 10 | D122: 34.14992873 | E122: 10.808306 | F122: 20.09579509 | G122: 18.63293282 | H122: kWh/a/Gerät
C123: 11 | D123: 34.14992873 | E123: 10.808306 | F123: 20.09579509 | G123: 18.63293282 | H123: kWh/a/Gerät
C124: 12 | D124: 34.14992873 | E124: 10.808306 | F124: 20.09579509 | G124: =IF($G$113<>0,IF(MOD(C123,$F$94)=0,$G$113*(1-$F$95)^C123,G123),0) -> 18.63293282 | H124: kWh/a/Gerät
C125: ="Summe über Betrachtungszeitraum von " &$F$89 & " Jahren" -> Summe über Betrachtungszeitraum von 10 Jahren | D125: =SUM(D113:OFFSET(D113,$F$89-1,0)) -> 415.3397949 | E125: =SUM(E113:OFFSET(E113,$F$89-1,0)) -> 131.453264 | F125: =SUM(F113:OFFSET(F113,$F$89-1,0)) -> 244.4099804 | G125: =SUM(G113:OFFSET(G113,$F$89-1,0)) -> 226.6182913 | H125: kWh/Betrachtungszeitraum/Gerät
C127: Berechnung der Energiekosten innerhalb des Betrachtungszeitraums
C128: Jahr (max: 12 Jahre) | D128: Desktop | E128: Notebook | F128: Mini-PC | G128: Monitor | H128: Einheit
C129: 1 | D129: =IF($D$21>0,D113*$G8,0) -> 9.84881616 | E129: =IF($D$22>0,E113*$G8,0) -> 3.11710808 | F129: =IF($D$23>0,F113*$G8,0) -> 5.7956136 | G129: =IF($E$24>0,G113*$G8,0) -> 5.37372512 | H129: Euro/a/Gerät
C130: =C129+1 -> 2 | D130: =IF($D$21>0,D114*$G$8*(1+$G$9)^C129,0) -> 9.905542211 | E130: =IF($D$22>0,E114*$G$8*(1+$G$9)^C129,0) -> 3.135061632 | F130: =IF($D$23>0,F114*$G$8*(1+$G$9)^C129,0) -> 5.828994493 | G130: =IF($E$24>0,G114*$G$8*(1+$G$9)^C129,0) -> 5.404676069 | H130: Euro/a/Gerät
C131: =C130+1 -> 3 | D131: =IF($D$21>0,D115*$G$8*(1+$G$9)^C130,0) -> 9.962594987 | E131: =IF($D$22>0,E115*$G$8*(1+$G$9)^C130,0) -> 3.153118591 | F131: =IF($D$23>0,F115*$G$8*(1+$G$9)^C130,0) -> 5.862567649 | G131: =IF($E$24>0,G115*$G$8*(1+$G$9)^C130,0) -> 5.435805286 | H131: Euro/a/Gerät
C132: 4 | D132: 10.01997637 | E132: 3.171279552 | F132: 5.896334175 | G132: 5.467113797 | H132: Euro/a/Gerät
C133: 5 | D133: 10.07768825 | E133: 3.189545114 | F133: 5.930295186 | G133: 5.498602635 | H133: Euro/a/Gerät
C134: 6 | D134: 10.13573253 | E134: 3.207915881 | F134: 5.964451802 | G134: 5.530272839 | H134: Euro/a/Gerät
C135: 7 | D135: 7.493608422 | E135: 2.371694931 | F135: 4.409673019 | G135: 4.088673315 | H135: Euro/a/Gerät
C136: 8 | D136: 7.536769226 | E136: 2.38535514 | F136: 4.435071334 | G136: 4.112222774 | H136: Euro/a/Gerät
C137: 9 | D137: 7.580178621 | E137: 2.399094028 | F137: 4.460615935 | G137: 4.135907871 | H137: Euro/a/Gerät
C138: 10 | D138: 7.623838041 | E138: 2.412912047 | F138: 4.486307666 | G138: 4.159729386 | H138: Euro/a/Gerät
C139: 11 | D139: 7.667748926 | E139: 2.426809653 | F139: 4.512147372 | G139: 4.183688105 | H139: Euro/a/Gerät
C140: 12 | D140: 7.711912723 | E140: 2.440787306 | F140: 4.538135907 | G140: 4.207784819 | H140: Euro/a/Gerät
C141: =C125 -> Summe über Betrachtungszeitraum von 10 Jahren | D141: =SUM(D129:OFFSET(D129,$F$89-1,0)) -> 90.18474481 | E141: =SUM(E129:OFFSET(E129,$F$89-1,0)) -> 28.54308499 | F141: =SUM(F129:OFFSET(F129,$F$89-1,0)) -> 53.06992486 | G141: =SUM(G129:OFFSET(G129,$F$89-1,0)) -> 49.20672909 | H141: Euro/Betrachtungszeitraum/Gerät
C143: APC mit Desktop (für alle Geräte)
C144: In EURO | D144: Anschaffungskosten | I144: Energiekosten | K144: Bruttopersonal-kosten | L144: Sach-und Gemeinkosten | M144: Summe | O144: Anteil
C145: Jahr (max: 12 Jahre) | D145: Desktop | E145: Monitor | F145: Ersatz HDD durch SSD | G145: RAM hinzufügen | H145: Wechsel des Akkus | I145: Desktop | J145: Monitor
C146: 1 | D146: =IF($D$21>0,(IF(MOD(($C146-1),$D$27)<>0,0,Konstante_Werte!$E$63*$D$21)),0) -> 31200 | E146: =IF($E$21>0,(IF(MOD(($C146-1),$D$30)<>0,0,Konstante_Werte!$E$66*$E$21)),0) -> 22680 | F146: =IF($D$21>0,(IF($D$27=1,$D$21*$D$34*$J$34*Konstante_Werte!$E$67, IF(AND($D$27<>1,$D$27/($J$34+1)<1),Konstante_Werte!$E$67*$D$34*$D$21*$J$34/$D$27,IF(MOD($C146,$D$27)=0,0,IF(INT(MOD(($C146-$D$27*INT(($C146-1)/$D$27)),($D$27/($J$34+1))))<>0,0,Konstante_Werte!$E$67*$D$34*$D$21))))),0) -> 0 | G146: =IF($D$21>0,(IF($D$27=1,$D$21*$E$34*$K$34*Konstante_Werte!$E$68, IF(AND($D$27<>1,$D$27/($K$34+1)<1),Konstante_Werte!$E$68*$E$34*$D$21*$K$34/$D$27,IF(MOD($C146,$D$27)=0,0,IF(INT(MOD(($C146-$D$27*INT(($C146-1)/$D$27)),($D$27/($K$34+1))))<>0,0,Konstante_Werte!$E$68*$E$34*$D$21))))),0) -> 0 | H146: - | I146: =IF($D$21>0, D129*$D$21,0) -> 984.881616 | J146: =G129*$E$21 -> 644.8470144 | K146: =IF($D$21>0,(IF(MOD(($C146-1),$D$27)<>0,0,$K$13*$D$21)),0)+IF($E$21>0,(IF(MOD(($C146-1),$D$30)<>0,0,$K$13*$E$21)),0) -> 20817.73756 | L146: =IF($D$21>0,(IF(MOD(($C146-1),$D$27)<>0,0,$K$14*$D$21)),0)+IF($E$21>0,(IF(MOD(($C146-1),$D$30)<>0,0,$K$14*$E$21)),0) -> 16749.53227 | M146: =SUM(D146:L146) -> 93076.99846 | N146: Euro/a | O146: =IF($M$158<>0,(IF(C146<=$F$89,M146/$M$158,"-")),0) -> 0.4705187717
C147: =C146+1 -> 2 | D147: =IF($D$21>0,(IF(MOD(($C147-1),$D$27)<>0,0,Konstante_Werte!$E$63*$D$21)),0) -> 0 | E147: =IF($E$21>0,(IF(MOD(($C147-1),$D$30)<>0,0,Konstante_Werte!$E$66*$E$21)),0) -> 0 | F147: =IF($D$21>0,(IF($D$27=1,$D$21*$D$34*$J$34*Konstante_Werte!$E$67, IF(AND($D$27<>1,$D$27/($J$34+1)<1),Konstante_Werte!$E$67*$D$34*$D$21*$J$34/$D$27,IF(MOD($C147,$D$27)=0,0,IF(INT(MOD(($C147-$D$27*INT(($C147-1)/$D$27)),($D$27/($J$34+1))))<>0,0,Konstante_Werte!$E$67*$D$34*$D$21))))),0) -> 0 | G147: =IF($D$21>0,(IF($D$27=1,$D$21*$E$34*$K$34*Konstante_Werte!$E$68, IF(AND($D$27<>1,$D$27/($K$34+1)<1),Konstante_Werte!$E$68*$E$34*$D$21*$K$34/$D$27,IF(MOD($C147,$D$27)=0,0,IF(INT(MOD(($C147-$D$27*INT(($C147-1)/$D$27)),($D$27/($K$34+1))))<>0,0,Konstante_Werte!$E$68*$E$34*$D$21))))),0) -> 0 | H147: - | I147: 990.5542211 | J147: =G130*$E$21 -> 648.5611283 | K147: =IF($D$21>0,(IF(MOD(($C147-1),$D$27)<>0,0,$K$13*$D$21)),0)+IF($E$21>0,(IF(MOD(($C147-1),$D$30)<>0,0,$K$13*$E$21)),0) -> 0 | L147: 0 | M147: =SUM(D147:L147) -> 1639.115349 | N147: Euro/a | O147: 0.008285984225
C148: =C147+1 -> 3 | D148: =IF($D$21>0,(IF(MOD(($C148-1),$D$27)<>0,0,Konstante_Werte!$E$63*$D$21)),0) -> 0 | E148: =IF($E$21>0,(IF(MOD(($C148-1),$D$30)<>0,0,Konstante_Werte!$E$66*$E$21)),0) -> 0 | F148: =IF($D$21>0,(IF($D$27=1,$D$21*$D$34*$J$34*Konstante_Werte!$E$67, IF(AND($D$27<>1,$D$27/($J$34+1)<1),Konstante_Werte!$E$67*$D$34*$D$21*$J$34/$D$27,IF(MOD($C148,$D$27)=0,0,IF(INT(MOD(($C148-$D$27*INT(($C148-1)/$D$27)),($D$27/($J$34+1))))<>0,0,Konstante_Werte!$E$67*$D$34*$D$21))))),0) -> 0 | G148: =IF($D$21>0,(IF($D$27=1,$D$21*$E$34*$K$34*Konstante_Werte!$E$68, IF(AND($D$27<>1,$D$27/($K$34+1)<1),Konstante_Werte!$E$68*$E$34*$D$21*$K$34/$D$27,IF(MOD($C148,$D$27)=0,0,IF(INT(MOD(($C148-$D$27*INT(($C148-1)/$D$27)),($D$27/($K$34+1))))<>0,0,Konstante_Werte!$E$68*$E$34*$D$21))))),0) -> 0 | H148: - | I148: 996.2594987 | J148: 652.2966343 | K148: 0 | L148: 0 | M148: 1648.556133 | N148: Euro/a | O148: 0.008333708861
C149: 4 | D149: =IF($D$21>0,(IF(MOD(($C149-1),$D$27)<>0,0,Konstante_Werte!$E$63*$D$21)),0) -> 0 | E149: =IF($E$21>0,(IF(MOD(($C149-1),$D$30)<>0,0,Konstante_Werte!$E$66*$E$21)),0) -> 0 | F149: =IF($D$21>0,(IF($D$27=1,$D$21*$D$34*$J$34*Konstante_Werte!$E$67, IF(AND($D$27<>1,$D$27/($J$34+1)<1),Konstante_Werte!$E$67*$D$34*$D$21*$J$34/$D$27,IF(MOD($C149,$D$27)=0,0,IF(INT(MOD(($C149-$D$27*INT(($C149-1)/$D$27)),($D$27/($J$34+1))))<>0,0,Konstante_Werte!$E$67*$D$34*$D$21))))),0) -> 0 | G149: =IF($D$21>0,(IF($D$27=1,$D$21*$E$34*$K$34*Konstante_Werte!$E$68, IF(AND($D$27<>1,$D$27/($K$34+1)<1),Konstante_Werte!$E$68*$E$34*$D$21*$K$34/$D$27,IF(MOD($C149,$D$27)=0,0,IF(INT(MOD(($C149-$D$27*INT(($C149-1)/$D$27)),($D$27/($K$34+1))))<>0,0,Konstante_Werte!$E$68*$E$34*$D$21))))),0) -> 0 | H149: - | I149: 1001.997637 | J149: 656.0536556 | K149: 0 | L149: 0 | M149: 1658.051292 | N149: Euro/a | O149: 0.008381708376
C150: 5 | D150: =IF($D$21>0,(IF(MOD(($C150-1),$D$27)<>0,0,Konstante_Werte!$E$63*$D$21)),0) -> 0 | E150: =IF($E$21>0,(IF(MOD(($C150-1),$D$30)<>0,0,Konstante_Werte!$E$66*$E$21)),0) -> 0 | F150: =IF($D$21>0,(IF($D$27=1,$D$21*$D$34*$J$34*Konstante_Werte!$E$67, IF(AND($D$27<>1,$D$27/($J$34+1)<1),Konstante_Werte!$E$67*$D$34*$D$21*$J$34/$D$27,IF(MOD($C150,$D$27)=0,0,IF(INT(MOD(($C150-$D$27*INT(($C150-1)/$D$27)),($D$27/($J$34+1))))<>0,0,Konstante_Werte!$E$67*$D$34*$D$21))))),0) -> 0 | G150: =IF($D$21>0,(IF($D$27=1,$D$21*$E$34*$K$34*Konstante_Werte!$E$68, IF(AND($D$27<>1,$D$27/($K$34+1)<1),Konstante_Werte!$E$68*$E$34*$D$21*$K$34/$D$27,IF(MOD($C150,$D$27)=0,0,IF(INT(MOD(($C150-$D$27*INT(($C150-1)/$D$27)),($D$27/($K$34+1))))<>0,0,Konstante_Werte!$E$68*$E$34*$D$21))))),0) -> 0 | H150: - | I150: 1007.768825 | J150: 659.8323162 | K150: 0 | L150: 0 | M150: 1667.601141 | N150: Euro/a | O150: 0.008429984353
C151: 6 | D151: =IF($D$21>0,(IF(MOD(($C151-1),$D$27)<>0,0,Konstante_Werte!$E$63*$D$21)),0) -> 0 | E151: =IF($E$21>0,(IF(MOD(($C151-1),$D$30)<>0,0,Konstante_Werte!$E$66*$E$21)),0) -> 0 | F151: =IF($D$21>0,(IF($D$27=1,$D$21*$D$34*$J$34*Konstante_Werte!$E$67, IF(AND($D$27<>1,$D$27/($J$34+1)<1),Konstante_Werte!$E$67*$D$34*$D$21*$J$34/$D$27,IF(MOD($C151,$D$27)=0,0,IF(INT(MOD(($C151-$D$27*INT(($C151-1)/$D$27)),($D$27/($J$34+1))))<>0,0,Konstante_Werte!$E$67*$D$34*$D$21))))),0) -> 0 | G151: =IF($D$21>0,(IF($D$27=1,$D$21*$E$34*$K$34*Konstante_Werte!$E$68, IF(AND($D$27<>1,$D$27/($K$34+1)<1),Konstante_Werte!$E$68*$E$34*$D$21*$K$34/$D$27,IF(MOD($C151,$D$27)=0,0,IF(INT(MOD(($C151-$D$27*INT(($C151-1)/$D$27)),($D$27/($K$34+1))))<>0,0,Konstante_Werte!$E$68*$E$34*$D$21))))),0) -> 0 | H151: - | I151: 1013.573253 | J151: 663.6327407 | K151: 0 | L151: 0 | M151: 1677.205994 | N151: Euro/a | O151: 0.008478538384
C152: 7 | D152: =IF($D$21>0,(IF(MOD(($C152-1),$D$27)<>0,0,Konstante_Werte!$E$63*$D$21)),0) -> 31200 | E152: =IF($E$21>0,(IF(MOD(($C152-1),$D$30)<>0,0,Konstante_Werte!$E$66*$E$21)),0) -> 22680 | F152: =IF($D$21>0,(IF($D$27=1,$D$21*$D$34*$J$34*Konstante_Werte!$E$67, IF(AND($D$27<>1,$D$27/($J$34+1)<1),Konstante_Werte!$E$67*$D$34*$D$21*$J$34/$D$27,IF(MOD($C152,$D$27)=0,0,IF(INT(MOD(($C152-$D$27*INT(($C152-1)/$D$27)),($D$27/($J$34+1))))<>0,0,Konstante_Werte!$E$67*$D$34*$D$21))))),0) -> 0 | G152: =IF($D$21>0,(IF($D$27=1,$D$21*$E$34*$K$34*Konstante_Werte!$E$68, IF(AND($D$27<>1,$D$27/($K$34+1)<1),Konstante_Werte!$E$68*$E$34*$D$21*$K$34/$D$27,IF(MOD($C152,$D$27)=0,0,IF(INT(MOD(($C152-$D$27*INT(($C152-1)/$D$27)),($D$27/($K$34+1))))<>0,0,Konstante_Werte!$E$68*$E$34*$D$21))))),0) -> 0 | H152: - | I152: 749.3608422 | J152: 490.6407978 | K152: 20817.73756 | L152: 16749.53227 | M152: 92687.27147 | N152: Euro/a | O152: 0.4685486409
C153: 8 | D153: =IF($D$21>0,(IF(MOD(($C153-1),$D$27)<>0,0,Konstante_Werte!$E$63*$D$21)),0) -> 0 | E153: =IF($E$21>0,(IF(MOD(($C153-1),$D$30)<>0,0,Konstante_Werte!$E$66*$E$21)),0) -> 0 | F153: =IF($D$21>0,(IF($D$27=1,$D$21*$D$34*$J$34*Konstante_Werte!$E$67, IF(AND($D$27<>1,$D$27/($J$34+1)<1),Konstante_Werte!$E$67*$D$34*$D$21*$J$34/$D$27,IF(MOD($C153,$D$27)=0,0,IF(INT(MOD(($C153-$D$27*INT(($C153-1)/$D$27)),($D$27/($J$34+1))))<>0,0,Konstante_Werte!$E$67*$D$34*$D$21))))),0) -> 0 | G153: =IF($D$21>0,(IF($D$27=1,$D$21*$E$34*$K$34*Konstante_Werte!$E$68, IF(AND($D$27<>1,$D$27/($K$34+1)<1),Konstante_Werte!$E$68*$E$34*$D$21*$K$34/$D$27,IF(MOD($C153,$D$27)=0,0,IF(INT(MOD(($C153-$D$27*INT(($C153-1)/$D$27)),($D$27/($K$34+1))))<>0,0,Konstante_Werte!$E$68*$E$34*$D$21))))),0) -> 0 | H153: - | I153: 753.6769226 | J153: 493.4667329 | K153: 0 | L153: 0 | M153: 1247.143655 | N153: Euro/a | O153: 0.006304506061
C154: 9 | D154: =IF($D$21>0,(IF(MOD(($C154-1),$D$27)<>0,0,Konstante_Werte!$E$63*$D$21)),0) -> 0 | E154: =IF($E$21>0,(IF(MOD(($C154-1),$D$30)<>0,0,Konstante_Werte!$E$66*$E$21)),0) -> 0 | F154: =IF($D$21>0,(IF($D$27=1,$D$21*$D$34*$J$34*Konstante_Werte!$E$67, IF(AND($D$27<>1,$D$27/($J$34+1)<1),Konstante_Werte!$E$67*$D$34*$D$21*$J$34/$D$27,IF(MOD($C154,$D$27)=0,0,IF(INT(MOD(($C154-$D$27*INT(($C154-1)/$D$27)),($D$27/($J$34+1))))<>0,0,Konstante_Werte!$E$67*$D$34*$D$21))))),0) -> 0 | G154: =IF($D$21>0,(IF($D$27=1,$D$21*$E$34*$K$34*Konstante_Werte!$E$68, IF(AND($D$27<>1,$D$27/($K$34+1)<1),Konstante_Werte!$E$68*$E$34*$D$21*$K$34/$D$27,IF(MOD($C154,$D$27)=0,0,IF(INT(MOD(($C154-$D$27*INT(($C154-1)/$D$27)),($D$27/($K$34+1))))<>0,0,Konstante_Werte!$E$68*$E$34*$D$21))))),0) -> 0 | H154: - | I154: 758.0178621 | J154: 496.3089445 | K154: 0 | L154: 0 | M154: 1254.326807 | N154: Euro/a | O154: 0.006340818013
C155: 10 | D155: =IF($D$21>0,(IF(MOD(($C155-1),$D$27)<>0,0,Konstante_Werte!$E$63*$D$21)),0) -> 0 | E155: =IF($E$21>0,(IF(MOD(($C155-1),$D$30)<>0,0,Konstante_Werte!$E$66*$E$21)),0) -> 0 | F155: =IF($D$21>0,(IF($D$27=1,$D$21*$D$34*$J$34*Konstante_Werte!$E$67, IF(AND($D$27<>1,$D$27/($J$34+1)<1),Konstante_Werte!$E$67*$D$34*$D$21*$J$34/$D$27,IF(MOD($C155,$D$27)=0,0,IF(INT(MOD(($C155-$D$27*INT(($C155-1)/$D$27)),($D$27/($J$34+1))))<>0,0,Konstante_Werte!$E$67*$D$34*$D$21))))),0) -> 0 | G155: =IF($D$21>0,(IF($D$27=1,$D$21*$E$34*$K$34*Konstante_Werte!$E$68, IF(AND($D$27<>1,$D$27/($K$34+1)<1),Konstante_Werte!$E$68*$E$34*$D$21*$K$34/$D$27,IF(MOD($C155,$D$27)=0,0,IF(INT(MOD(($C155-$D$27*INT(($C155-1)/$D$27)),($D$27/($K$34+1))))<>0,0,Konstante_Werte!$E$68*$E$34*$D$21))))),0) -> 0 | H155: - | I155: 762.3838041 | J155: 499.1675263 | K155: 0 | L155: 0 | M155: 1261.55133 | N155: Euro/a | O155: 0.006377339109
C156: 11 | D156: =IF($D$21>0,(IF(MOD(($C156-1),$D$27)<>0,0,Konstante_Werte!$E$63*$D$21)),0) -> 0 | E156: =IF($E$21>0,(IF(MOD(($C156-1),$D$30)<>0,0,Konstante_Werte!$E$66*$E$21)),0) -> 0 | F156: =IF($D$21>0,(IF($D$27=1,$D$21*$D$34*$J$34*Konstante_Werte!$E$67, IF(AND($D$27<>1,$D$27/($J$34+1)<1),Konstante_Werte!$E$67*$D$34*$D$21*$J$34/$D$27,IF(MOD($C156,$D$27)=0,0,IF(INT(MOD(($C156-$D$27*INT(($C156-1)/$D$27)),($D$27/($J$34+1))))<>0,0,Konstante_Werte!$E$67*$D$34*$D$21))))),0) -> 0 | G156: =IF($D$21>0,(IF($D$27=1,$D$21*$E$34*$K$34*Konstante_Werte!$E$68, IF(AND($D$27<>1,$D$27/($K$34+1)<1),Konstante_Werte!$E$68*$E$34*$D$21*$K$34/$D$27,IF(MOD($C156,$D$27)=0,0,IF(INT(MOD(($C156-$D$27*INT(($C156-1)/$D$27)),($D$27/($K$34+1))))<>0,0,Konstante_Werte!$E$68*$E$34*$D$21))))),0) -> 0 | H156: - | I156: 766.7748926 | J156: 502.0425726 | K156: 0 | L156: 0 | M156: 1268.817465 | N156: Euro/a | O156: -
C157: 12 | D157: =IF($D$21>0,(IF(MOD(($C157-1),$D$27)<>0,0,Konstante_Werte!$E$63*$D$21)),0) -> 0 | E157: =IF($E$21>0,(IF(MOD(($C157-1),$D$30)<>0,0,Konstante_Werte!$E$66*$E$21)),0) -> 0 | F157: =IF($D$21>0,(IF($D$27=1,$D$21*$D$34*$J$34*Konstante_Werte!$E$67, IF(AND($D$27<>1,$D$27/($J$34+1)<1),Konstante_Werte!$E$67*$D$34*$D$21*$J$34/$D$27,IF(MOD($C157,$D$27)=0,0,IF(INT(MOD(($C157-$D$27*INT(($C157-1)/$D$27)),($D$27/($J$34+1))))<>0,0,Konstante_Werte!$E$67*$D$34*$D$21))))),0) -> 0 | G157: =IF($D$21>0,(IF($D$27=1,$D$21*$E$34*$K$34*Konstante_Werte!$E$68, IF(AND($D$27<>1,$D$27/($K$34+1)<1),Konstante_Werte!$E$68*$E$34*$D$21*$K$34/$D$27,IF(MOD($C157,$D$27)=0,0,IF(INT(MOD(($C157-$D$27*INT(($C157-1)/$D$27)),($D$27/($K$34+1))))<>0,0,Konstante_Werte!$E$68*$E$34*$D$21))))),0) -> 0 | H157: - | I157: 771.1912723 | J157: 504.9341783 | K157: 0 | L157: 0 | M157: 1276.125451 | N157: Euro/a | O157: -
C158: Summe über Betrachtungszeitraum | D158: =SUM(D146:OFFSET(D146,$F$89-1,0)) -> 62400 | E158: =SUM(E146:OFFSET(E146,$F$89-1,0)) -> 45360 | F158: =SUM(F146:OFFSET(F146,$F$89-1,0)) -> 0 | G158: =SUM(G146:OFFSET(G146,$F$89-1,0)) -> 0 | H158: - | I158: =SUM(I146:OFFSET(I146,$F$89-1,0)) -> 9018.474481 | J158: =SUM(J146:OFFSET(J146,$F$89-1,0)) -> 5904.807491 | K158: =SUM(K146:OFFSET(K146,$F$89-1,0)) -> 41635.47511 | L158: =SUM(L146:OFFSET(L146,$F$89-1,0)) -> 33499.06454 | M158: =SUM(M146:OFFSET(M146,$F$89-1,0)) -> 197817.8216 | N158: Euro/Betrachtungszeitraum | O158: -
C160: APC mit Notebook (für alle Geräte)
C161: In EURO | D161: Anschaffungskosten | I161: Energiekosten | K161: Bruttopersonal-kosten | L161: Sach-und Gemeinkosten | M161: Summe | O161: Anteil
C162: Jahr (max: 12 Jahre) | D162: Notebook | E162: Monitor | F162: Ersatz HDD durch SSD | G162: RAM hinzufügen | H162: Wechsel des Akkus | I162: =E128 -> Notebook | J162: =G128 -> Monitor
C163: 1 | D163: =IF($D$22>0,(IF(MOD(($C146-1),$D$28)<>0,0,Konstante_Werte!$E$64*$D$22)),0) -> 21550 | E163: =IF($E$22>0,(IF(MOD(($C163-1),$D$30)<>0,0,Konstante_Werte!$E$66*$E$22)),0) -> 9450 | F163: =IF($D$22>0,(IF($D$28=1,$D$22*$D$35*$J$35*Konstante_Werte!$E$67, IF(AND($D$28<>1,$D$28/($J$35+1)<1),Konstante_Werte!$E$67*$D$35*$D$22*$J$35/$D$28,IF(MOD($C163,$D$28)=0,0,IF(INT(MOD(($C163-$D$28*INT(($C163-1)/$D$28)),($D$28/($J$35+1))))<>0,0,Konstante_Werte!$E$67*$D$35*$D$22))))),0) -> 0 | G163: =IF($D$22>0,(IF($D$28=1,$D$22*$E$35*$K$35*Konstante_Werte!$E$68, IF(AND($D$28<>1,$D$28/($K$35+1)<1),Konstante_Werte!$E$68*$E$35*$D$22*$K$35/$D$28,IF(MOD($C163,$D$28)=0,0,IF(INT(MOD(($C163-$D$28*INT(($C163-1)/$D$28)),($D$28/($K$35+1))))<>0,0,Konstante_Werte!$E$68*$E$35*$D$22))))),0) -> 0 | H163: =IF($D$22>0,(IF($D$28=1,$D$22*$F$35*$L$35*Konstante_Werte!$E$69, IF(AND($D$28<>1,$D$28/($L$35+1)<1),Konstante_Werte!$E$69*$F$35*$D$22*$L$35/$D$28,IF(MOD($C163,$D$28)=0,0,IF(INT(MOD(($C163-$D$28*INT(($C163-1)/$D$28)),($D$28/($L$35+1))))<>0,0,Konstante_Werte!$E$69*$F$35*$D$22))))),0) -> 0 | I163: =IF($D$22>0, E129*$D$22,"0") -> 155.855404 | J163: =G129*$E$22 -> 268.686256 | K163: =IF($D$22>0,(IF(MOD(($C163-1),$D$28)<>0,0,$K$13*$D$22)),0)+IF($E$22>0,(IF(MOD(($C163-1),$D$30)<>0,0,$K$13*$E$22)),0) -> 9462.60798 | L163: =IF($D$22>0,(IF(MOD(($C163-1),$D$28)<>0,0,$K$14*$D$22)),0)+IF($E$22>0,(IF(MOD(($C163-1),$D$30)<>0,0,$K$14*$E$22)),0) -> 7613.42376 | M163: =SUM(D163:L163) -> 48500.5734 | N163: Euro/a | O163: =IF($M$175<>0,(IF(C163<=$F$89,M163/$M$175,"-")),0) -> 0.4672972515
C164: =C163+1 -> 2 | D164: =IF($D$22>0,(IF(MOD(($C147-1),$D$28)<>0,0,Konstante_Werte!$E$64*$D$22)),0) -> 0 | E164: =IF($E$22>0,(IF(MOD(($C164-1),$D$30)<>0,0,Konstante_Werte!$E$66*$E$22)),0) -> 0 | F164: =IF($D$22>0,(IF($D$28=1,$D$22*$D$35*$J$35*Konstante_Werte!$E$67, IF(AND($D$28<>1,$D$28/($J$35+1)<1),Konstante_Werte!$E$67*$D$35*$D$22*$J$35/$D$28,IF(MOD($C164,$D$28)=0,0,IF(INT(MOD(($C164-$D$28*INT(($C164-1)/$D$28)),($D$28/($J$35+1))))<>0,0,Konstante_Werte!$E$67*$D$35*$D$22))))),0) -> 0 | G164: =IF($D$22>0,(IF($D$28=1,$D$22*$E$35*$K$35*Konstante_Werte!$E$68, IF(AND($D$28<>1,$D$28/($K$35+1)<1),Konstante_Werte!$E$68*$E$35*$D$22*$K$35/$D$28,IF(MOD($C164,$D$28)=0,0,IF(INT(MOD(($C164-$D$28*INT(($C164-1)/$D$28)),($D$28/($K$35+1))))<>0,0,Konstante_Werte!$E$68*$E$35*$D$22))))),0) -> 0 | H164: =IF($D$22>0,(IF($D$28=1,$D$22*$F$35*$L$35*Konstante_Werte!$E$69, IF(AND($D$28<>1,$D$28/($L$35+1)<1),Konstante_Werte!$E$69*$F$35*$D$22*$L$35/$D$28,IF(MOD($C164,$D$28)=0,0,IF(INT(MOD(($C164-$D$28*INT(($C164-1)/$D$28)),($D$28/($L$35+1))))<>0,0,Konstante_Werte!$E$69*$F$35*$D$22))))),0) -> 0 | I164: 156.7530816 | J164: 270.2338035 | K164: 0 | L164: 0 | M164: =SUM(D164:L164) -> 426.9868851 | N164: Euro/a | O164: 0.004113967811
C165: =C164+1 -> 3 | D165: =IF($D$22>0,(IF(MOD(($C148-1),$D$28)<>0,0,Konstante_Werte!$E$64*$D$22)),0) -> 0 | E165: =IF($E$22>0,(IF(MOD(($C165-1),$D$30)<>0,0,Konstante_Werte!$E$66*$E$22)),0) -> 0 | F165: =IF($D$22>0,(IF($D$28=1,$D$22*$D$35*$J$35*Konstante_Werte!$E$67, IF(AND($D$28<>1,$D$28/($J$35+1)<1),Konstante_Werte!$E$67*$D$35*$D$22*$J$35/$D$28,IF(MOD($C165,$D$28)=0,0,IF(INT(MOD(($C165-$D$28*INT(($C165-1)/$D$28)),($D$28/($J$35+1))))<>0,0,Konstante_Werte!$E$67*$D$35*$D$22))))),0) -> 0 | G165: =IF($D$22>0,(IF($D$28=1,$D$22*$E$35*$K$35*Konstante_Werte!$E$68, IF(AND($D$28<>1,$D$28/($K$35+1)<1),Konstante_Werte!$E$68*$E$35*$D$22*$K$35/$D$28,IF(MOD($C165,$D$28)=0,0,IF(INT(MOD(($C165-$D$28*INT(($C165-1)/$D$28)),($D$28/($K$35+1))))<>0,0,Konstante_Werte!$E$68*$E$35*$D$22))))),0) -> 0 | H165: =IF($D$22>0,(IF($D$28=1,$D$22*$F$35*$L$35*Konstante_Werte!$E$69, IF(AND($D$28<>1,$D$28/($L$35+1)<1),Konstante_Werte!$E$69*$F$35*$D$22*$L$35/$D$28,IF(MOD($C165,$D$28)=0,0,IF(INT(MOD(($C165-$D$28*INT(($C165-1)/$D$28)),($D$28/($L$35+1))))<>0,0,Konstante_Werte!$E$69*$F$35*$D$22))))),0) -> 1875 | I165: 157.6559295 | J165: 271.7902643 | K165: 0 | L165: 0 | M165: 2304.446194 | N165: Euro/a | O165: 0.02220306477
C166: 4 | D166: =IF($D$22>0,(IF(MOD(($C149-1),$D$28)<>0,0,Konstante_Werte!$E$64*$D$22)),0) -> 0 | E166: =IF($E$22>0,(IF(MOD(($C166-1),$D$30)<>0,0,Konstante_Werte!$E$66*$E$22)),0) -> 0 | F166: =IF($D$22>0,(IF($D$28=1,$D$22*$D$35*$J$35*Konstante_Werte!$E$67, IF(AND($D$28<>1,$D$28/($J$35+1)<1),Konstante_Werte!$E$67*$D$35*$D$22*$J$35/$D$28,IF(MOD($C166,$D$28)=0,0,IF(INT(MOD(($C166-$D$28*INT(($C166-1)/$D$28)),($D$28/($J$35+1))))<>0,0,Konstante_Werte!$E$67*$D$35*$D$22))))),0) -> 0 | G166: =IF($D$22>0,(IF($D$28=1,$D$22*$E$35*$K$35*Konstante_Werte!$E$68, IF(AND($D$28<>1,$D$28/($K$35+1)<1),Konstante_Werte!$E$68*$E$35*$D$22*$K$35/$D$28,IF(MOD($C166,$D$28)=0,0,IF(INT(MOD(($C166-$D$28*INT(($C166-1)/$D$28)),($D$28/($K$35+1))))<>0,0,Konstante_Werte!$E$68*$E$35*$D$22))))),0) -> 0 | H166: =IF($D$22>0,(IF($D$28=1,$D$22*$F$35*$L$35*Konstante_Werte!$E$69, IF(AND($D$28<>1,$D$28/($L$35+1)<1),Konstante_Werte!$E$69*$F$35*$D$22*$L$35/$D$28,IF(MOD($C166,$D$28)=0,0,IF(INT(MOD(($C166-$D$28*INT(($C166-1)/$D$28)),($D$28/($L$35+1))))<>0,0,Konstante_Werte!$E$69*$F$35*$D$22))))),0) -> 0 | I166: 158.5639776 | J166: 273.3556898 | K166: 0 | L166: 0 | M166: 431.9196674 | N166: Euro/a | O166: 0.004161494582
C167: 5 | D167: =IF($D$22>0,(IF(MOD(($C150-1),$D$28)<>0,0,Konstante_Werte!$E$64*$D$22)),0) -> 0 | E167: =IF($E$22>0,(IF(MOD(($C167-1),$D$30)<>0,0,Konstante_Werte!$E$66*$E$22)),0) -> 0 | F167: =IF($D$22>0,(IF($D$28=1,$D$22*$D$35*$J$35*Konstante_Werte!$E$67, IF(AND($D$28<>1,$D$28/($J$35+1)<1),Konstante_Werte!$E$67*$D$35*$D$22*$J$35/$D$28,IF(MOD($C167,$D$28)=0,0,IF(INT(MOD(($C167-$D$28*INT(($C167-1)/$D$28)),($D$28/($J$35+1))))<>0,0,Konstante_Werte!$E$67*$D$35*$D$22))))),0) -> 0 | G167: =IF($D$22>0,(IF($D$28=1,$D$22*$E$35*$K$35*Konstante_Werte!$E$68, IF(AND($D$28<>1,$D$28/($K$35+1)<1),Konstante_Werte!$E$68*$E$35*$D$22*$K$35/$D$28,IF(MOD($C167,$D$28)=0,0,IF(INT(MOD(($C167-$D$28*INT(($C167-1)/$D$28)),($D$28/($K$35+1))))<>0,0,Konstante_Werte!$E$68*$E$35*$D$22))))),0) -> 0 | H167: =IF($D$22>0,(IF($D$28=1,$D$22*$F$35*$L$35*Konstante_Werte!$E$69, IF(AND($D$28<>1,$D$28/($L$35+1)<1),Konstante_Werte!$E$69*$F$35*$D$22*$L$35/$D$28,IF(MOD($C167,$D$28)=0,0,IF(INT(MOD(($C167-$D$28*INT(($C167-1)/$D$28)),($D$28/($L$35+1))))<>0,0,Konstante_Werte!$E$69*$F$35*$D$22))))),0) -> 0 | I167: 159.4772557 | J167: 274.9301317 | K167: 0 | L167: 0 | M167: 434.4073875 | N167: Euro/a | O167: 0.004185463469
C168: 6 | D168: =IF($D$22>0,(IF(MOD(($C151-1),$D$28)<>0,0,Konstante_Werte!$E$64*$D$22)),0) -> 0 | E168: =IF($E$22>0,(IF(MOD(($C168-1),$D$30)<>0,0,Konstante_Werte!$E$66*$E$22)),0) -> 0 | F168: =IF($D$22>0,(IF($D$28=1,$D$22*$D$35*$J$35*Konstante_Werte!$E$67, IF(AND($D$28<>1,$D$28/($J$35+1)<1),Konstante_Werte!$E$67*$D$35*$D$22*$J$35/$D$28,IF(MOD($C168,$D$28)=0,0,IF(INT(MOD(($C168-$D$28*INT(($C168-1)/$D$28)),($D$28/($J$35+1))))<>0,0,Konstante_Werte!$E$67*$D$35*$D$22))))),0) -> 0 | G168: =IF($D$22>0,(IF($D$28=1,$D$22*$E$35*$K$35*Konstante_Werte!$E$68, IF(AND($D$28<>1,$D$28/($K$35+1)<1),Konstante_Werte!$E$68*$E$35*$D$22*$K$35/$D$28,IF(MOD($C168,$D$28)=0,0,IF(INT(MOD(($C168-$D$28*INT(($C168-1)/$D$28)),($D$28/($K$35+1))))<>0,0,Konstante_Werte!$E$68*$E$35*$D$22))))),0) -> 0 | H168: =IF($D$22>0,(IF($D$28=1,$D$22*$F$35*$L$35*Konstante_Werte!$E$69, IF(AND($D$28<>1,$D$28/($L$35+1)<1),Konstante_Werte!$E$69*$F$35*$D$22*$L$35/$D$28,IF(MOD($C168,$D$28)=0,0,IF(INT(MOD(($C168-$D$28*INT(($C168-1)/$D$28)),($D$28/($L$35+1))))<>0,0,Konstante_Werte!$E$69*$F$35*$D$22))))),0) -> 0 | I168: 160.395794 | J168: 276.5136419 | K168: 0 | L168: 0 | M168: 436.909436 | N168: Euro/a | O168: 0.004209570408
C169: 7 | D169: =IF($D$22>0,(IF(MOD(($C152-1),$D$28)<>0,0,Konstante_Werte!$E$64*$D$22)),0) -> 21550 | E169: =IF($E$22>0,(IF(MOD(($C169-1),$D$30)<>0,0,Konstante_Werte!$E$66*$E$22)),0) -> 9450 | F169: =IF($D$22>0,(IF($D$28=1,$D$22*$D$35*$J$35*Konstante_Werte!$E$67, IF(AND($D$28<>1,$D$28/($J$35+1)<1),Konstante_Werte!$E$67*$D$35*$D$22*$J$35/$D$28,IF(MOD($C169,$D$28)=0,0,IF(INT(MOD(($C169-$D$28*INT(($C169-1)/$D$28)),($D$28/($J$35+1))))<>0,0,Konstante_Werte!$E$67*$D$35*$D$22))))),0) -> 0 | G169: =IF($D$22>0,(IF($D$28=1,$D$22*$E$35*$K$35*Konstante_Werte!$E$68, IF(AND($D$28<>1,$D$28/($K$35+1)<1),Konstante_Werte!$E$68*$E$35*$D$22*$K$35/$D$28,IF(MOD($C169,$D$28)=0,0,IF(INT(MOD(($C169-$D$28*INT(($C169-1)/$D$28)),($D$28/($K$35+1))))<>0,0,Konstante_Werte!$E$68*$E$35*$D$22))))),0) -> 0 | H169: =IF($D$22>0,(IF($D$28=1,$D$22*$F$35*$L$35*Konstante_Werte!$E$69, IF(AND($D$28<>1,$D$28/($L$35+1)<1),Konstante_Werte!$E$69*$F$35*$D$22*$L$35/$D$28,IF(MOD($C169,$D$28)=0,0,IF(INT(MOD(($C169-$D$28*INT(($C169-1)/$D$28)),($D$28/($L$35+1))))<>0,0,Konstante_Werte!$E$69*$F$35*$D$22))))),0) -> 0 | I169: 118.5847465 | J169: 204.4336658 | K169: 9462.60798 | L169: 7613.42376 | M169: 48399.05015 | N169: Euro/a | O169: 0.466319087
C170: 8 | D170: =IF($D$22>0,(IF(MOD(($C153-1),$D$28)<>0,0,Konstante_Werte!$E$64*$D$22)),0) -> 0 | E170: =IF($E$22>0,(IF(MOD(($C170-1),$D$30)<>0,0,Konstante_Werte!$E$66*$E$22)),0) -> 0 | F170: =IF($D$22>0,(IF($D$28=1,$D$22*$D$35*$J$35*Konstante_Werte!$E$67, IF(AND($D$28<>1,$D$28/($J$35+1)<1),Konstante_Werte!$E$67*$D$35*$D$22*$J$35/$D$28,IF(MOD($C170,$D$28)=0,0,IF(INT(MOD(($C170-$D$28*INT(($C170-1)/$D$28)),($D$28/($J$35+1))))<>0,0,Konstante_Werte!$E$67*$D$35*$D$22))))),0) -> 0 | G170: =IF($D$22>0,(IF($D$28=1,$D$22*$E$35*$K$35*Konstante_Werte!$E$68, IF(AND($D$28<>1,$D$28/($K$35+1)<1),Konstante_Werte!$E$68*$E$35*$D$22*$K$35/$D$28,IF(MOD($C170,$D$28)=0,0,IF(INT(MOD(($C170-$D$28*INT(($C170-1)/$D$28)),($D$28/($K$35+1))))<>0,0,Konstante_Werte!$E$68*$E$35*$D$22))))),0) -> 0 | H170: =IF($D$22>0,(IF($D$28=1,$D$22*$F$35*$L$35*Konstante_Werte!$E$69, IF(AND($D$28<>1,$D$28/($L$35+1)<1),Konstante_Werte!$E$69*$F$35*$D$22*$L$35/$D$28,IF(MOD($C170,$D$28)=0,0,IF(INT(MOD(($C170-$D$28*INT(($C170-1)/$D$28)),($D$28/($L$35+1))))<>0,0,Konstante_Werte!$E$69*$F$35*$D$22))))),0) -> 0 | I170: 119.267757 | J170: 205.6111387 | K170: 0 | L170: 0 | M170: 324.8788957 | N170: Euro/a | O170: 0.003130169488
C171: 9 | D171: =IF($D$22>0,(IF(MOD(($C154-1),$D$28)<>0,0,Konstante_Werte!$E$64*$D$22)),0) -> 0 | E171: =IF($E$22>0,(IF(MOD(($C171-1),$D$30)<>0,0,Konstante_Werte!$E$66*$E$22)),0) -> 0 | F171: =IF($D$22>0,(IF($D$28=1,$D$22*$D$35*$J$35*Konstante_Werte!$E$67, IF(AND($D$28<>1,$D$28/($J$35+1)<1),Konstante_Werte!$E$67*$D$35*$D$22*$J$35/$D$28,IF(MOD($C171,$D$28)=0,0,IF(INT(MOD(($C171-$D$28*INT(($C171-1)/$D$28)),($D$28/($J$35+1))))<>0,0,Konstante_Werte!$E$67*$D$35*$D$22))))),0) -> 0 | G171: =IF($D$22>0,(IF($D$28=1,$D$22*$E$35*$K$35*Konstante_Werte!$E$68, IF(AND($D$28<>1,$D$28/($K$35+1)<1),Konstante_Werte!$E$68*$E$35*$D$22*$K$35/$D$28,IF(MOD($C171,$D$28)=0,0,IF(INT(MOD(($C171-$D$28*INT(($C171-1)/$D$28)),($D$28/($K$35+1))))<>0,0,Konstante_Werte!$E$68*$E$35*$D$22))))),0) -> 0 | H171: =IF($D$22>0,(IF($D$28=1,$D$22*$F$35*$L$35*Konstante_Werte!$E$69, IF(AND($D$28<>1,$D$28/($L$35+1)<1),Konstante_Werte!$E$69*$F$35*$D$22*$L$35/$D$28,IF(MOD($C171,$D$28)=0,0,IF(INT(MOD(($C171-$D$28*INT(($C171-1)/$D$28)),($D$28/($L$35+1))))<>0,0,Konstante_Werte!$E$69*$F$35*$D$22))))),0) -> 1875 | I171: 119.9547014 | J171: 206.7953935 | K171: 0 | L171: 0 | M171: 2201.750095 | N171: Euro/a | O171: 0.02121360008
C172: 10 | D172: =IF($D$22>0,(IF(MOD(($C155-1),$D$28)<>0,0,Konstante_Werte!$E$64*$D$22)),0) -> 0 | E172: =IF($E$22>0,(IF(MOD(($C172-1),$D$30)<>0,0,Konstante_Werte!$E$66*$E$22)),0) -> 0 | F172: =IF($D$22>0,(IF($D$28=1,$D$22*$D$35*$J$35*Konstante_Werte!$E$67, IF(AND($D$28<>1,$D$28/($J$35+1)<1),Konstante_Werte!$E$67*$D$35*$D$22*$J$35/$D$28,IF(MOD($C172,$D$28)=0,0,IF(INT(MOD(($C172-$D$28*INT(($C172-1)/$D$28)),($D$28/($J$35+1))))<>0,0,Konstante_Werte!$E$67*$D$35*$D$22))))),0) -> 0 | G172: =IF($D$22>0,(IF($D$28=1,$D$22*$E$35*$K$35*Konstante_Werte!$E$68, IF(AND($D$28<>1,$D$28/($K$35+1)<1),Konstante_Werte!$E$68*$E$35*$D$22*$K$35/$D$28,IF(MOD($C172,$D$28)=0,0,IF(INT(MOD(($C172-$D$28*INT(($C172-1)/$D$28)),($D$28/($K$35+1))))<>0,0,Konstante_Werte!$E$68*$E$35*$D$22))))),0) -> 0 | H172: =IF($D$22>0,(IF($D$28=1,$D$22*$F$35*$L$35*Konstante_Werte!$E$69, IF(AND($D$28<>1,$D$28/($L$35+1)<1),Konstante_Werte!$E$69*$F$35*$D$22*$L$35/$D$28,IF(MOD($C172,$D$28)=0,0,IF(INT(MOD(($C172-$D$28*INT(($C172-1)/$D$28)),($D$28/($L$35+1))))<>0,0,Konstante_Werte!$E$69*$F$35*$D$22))))),0) -> 0 | I172: 120.6456023 | J172: 207.9864693 | K172: 0 | L172: 0 | M172: 328.6320716 | N172: Euro/a | O172: 0.003166330891
C173: 11 | D173: =IF($D$22>0,(IF(MOD(($C156-1),$D$28)<>0,0,Konstante_Werte!$E$64*$D$22)),0) -> 0 | E173: =IF($E$22>0,(IF(MOD(($C173-1),$D$30)<>0,0,Konstante_Werte!$E$66*$E$22)),0) -> 0 | F173: =IF($D$22>0,(IF($D$28=1,$D$22*$D$35*$J$35*Konstante_Werte!$E$67, IF(AND($D$28<>1,$D$28/($J$35+1)<1),Konstante_Werte!$E$67*$D$35*$D$22*$J$35/$D$28,IF(MOD($C173,$D$28)=0,0,IF(INT(MOD(($C173-$D$28*INT(($C173-1)/$D$28)),($D$28/($J$35+1))))<>0,0,Konstante_Werte!$E$67*$D$35*$D$22))))),0) -> 0 | G173: =IF($D$22>0,(IF($D$28=1,$D$22*$E$35*$K$35*Konstante_Werte!$E$68, IF(AND($D$28<>1,$D$28/($K$35+1)<1),Konstante_Werte!$E$68*$E$35*$D$22*$K$35/$D$28,IF(MOD($C173,$D$28)=0,0,IF(INT(MOD(($C173-$D$28*INT(($C173-1)/$D$28)),($D$28/($K$35+1))))<>0,0,Konstante_Werte!$E$68*$E$35*$D$22))))),0) -> 0 | H173: =IF($D$22>0,(IF($D$28=1,$D$22*$F$35*$L$35*Konstante_Werte!$E$69, IF(AND($D$28<>1,$D$28/($L$35+1)<1),Konstante_Werte!$E$69*$F$35*$D$22*$L$35/$D$28,IF(MOD($C173,$D$28)=0,0,IF(INT(MOD(($C173-$D$28*INT(($C173-1)/$D$28)),($D$28/($L$35+1))))<>0,0,Konstante_Werte!$E$69*$F$35*$D$22))))),0) -> 0 | I173: 121.3404827 | J173: 209.1844053 | K173: 0 | L173: 0 | M173: 330.5248879 | N173: Euro/a | O173: -
C174: 12 | D174: =IF($D$22>0,(IF(MOD(($C157-1),$D$28)<>0,0,Konstante_Werte!$E$64*$D$22)),0) -> 0 | E174: =IF($E$22>0,(IF(MOD(($C174-1),$D$30)<>0,0,Konstante_Werte!$E$66*$E$22)),0) -> 0 | F174: =IF($D$22>0,(IF($D$28=1,$D$22*$D$35*$J$35*Konstante_Werte!$E$67, IF(AND($D$28<>1,$D$28/($J$35+1)<1),Konstante_Werte!$E$67*$D$35*$D$22*$J$35/$D$28,IF(MOD($C174,$D$28)=0,0,IF(INT(MOD(($C174-$D$28*INT(($C174-1)/$D$28)),($D$28/($J$35+1))))<>0,0,Konstante_Werte!$E$67*$D$35*$D$22))))),0) -> 0 | G174: =IF($D$22>0,(IF($D$28=1,$D$22*$E$35*$K$35*Konstante_Werte!$E$68, IF(AND($D$28<>1,$D$28/($K$35+1)<1),Konstante_Werte!$E$68*$E$35*$D$22*$K$35/$D$28,IF(MOD($C174,$D$28)=0,0,IF(INT(MOD(($C174-$D$28*INT(($C174-1)/$D$28)),($D$28/($K$35+1))))<>0,0,Konstante_Werte!$E$68*$E$35*$D$22))))),0) -> 0 | H174: =IF($D$22>0,(IF($D$28=1,$D$22*$F$35*$L$35*Konstante_Werte!$E$69, IF(AND($D$28<>1,$D$28/($L$35+1)<1),Konstante_Werte!$E$69*$F$35*$D$22*$L$35/$D$28,IF(MOD($C174,$D$28)=0,0,IF(INT(MOD(($C174-$D$28*INT(($C174-1)/$D$28)),($D$28/($L$35+1))))<>0,0,Konstante_Werte!$E$69*$F$35*$D$22))))),0) -> 0 | I174: 122.0393653 | J174: 210.389241 | K174: 0 | L174: 0 | M174: 332.4286062 | N174: Euro/a | O174: -
C175: Summe über Betrachtungszeitraum | D175: =SUM(D163:OFFSET(D163,$F$89-1,0)) -> 43100 | E175: =SUM(E163:OFFSET(E163,$F$89-1,0)) -> 18900 | F175: =SUM(F163:OFFSET(F163,$F$89-1,0)) -> 0 | G175: =SUM(G163:OFFSET(G163,$F$89-1,0)) -> 0 | H175: =SUM(H163:OFFSET(H163,$F$89-1,0)) -> 3750 | I175: =SUM(I163:OFFSET(I163,$F$89-1,0)) -> 1427.15425 | J175: =SUM(J163:OFFSET(J163,$F$89-1,0)) -> 2460.336455 | K175: =SUM(K163:OFFSET(K163,$F$89-1,0)) -> 18925.21596 | L175: =SUM(L163:OFFSET(L163,$F$89-1,0)) -> 15226.84752 | M175: =SUM(M163:OFFSET(M163,$F$89-1,0)) -> 103789.5542 | N175: Euro/Betrachtungszeitraum | O175: =SUM(O163:O174) -> 1
C177: APC mit Mini-PC (für alle Geräte)
C178: In EURO | D178: Anschaffungskosten | I178: Energiekosten | K178: Bruttopersonal-kosten | L178: Sach-und Gemeinkosten | M178: Summe | O178: Anteil
C179: Jahr (max: 12 Jahre) | D179: Mini-PC | E179: Monitor | F179: Ersatz HDD durch SSD | G179: RAM hinzufügen | H179: Wechsel des Akkus | I179: Desktop | J179: Monitor
C180: 1 | D180: =IF($D$23>0,(IF(MOD(($C146-1),$D$29)<>0,0,Konstante_Werte!$E$65*$D$23)),0) -> 22750 | E180: =IF($E$23>0,(IF(MOD(($C180-1),$D$30)<>0,0,Konstante_Werte!$E$66*$E$23)),0) -> 15120 | F180: =IF($D$23>0,(IF($D$29=1,$D$23*$D$36*$J$36*Konstante_Werte!$E$67, IF(AND($D$29<>1,$D$29/($J$36+1)<1),Konstante_Werte!$E$67*$D$36*$D$23*$J$36/$D$29,IF(MOD($C180,$D$29)=0,0,IF(INT(MOD(($C180-$D$29*INT(($C180-1)/$D$29)),($D$29/($J$36+1))))<>0,0,Konstante_Werte!$E$67*$D$36*$D$23))))),0) -> 0 | G180: =IF($D$23>0,(IF($D$29=1,$D$23*$E$36*$K$36*Konstante_Werte!$E$68, IF(AND($D$29<>1,$D$29/($K$36+1)<1),Konstante_Werte!$E$68*$E$36*$D$23*$K$36/$D$29,IF(MOD($C180,$D$29)=0,0,IF(INT(MOD(($C180-$D$29*INT(($C180-1)/$D$29)),($D$29/($K$36+1))))<>0,0,Konstante_Werte!$E$68*$E$36*$D$23))))),0) -> 0 | H180: - | I180: =IF($D$23>0, F129*$D$23,0) -> 405.692952 | J180: =G129*$E$23 -> 429.8980096 | K180: =IF($D$23>0,(IF(MOD(($C180-1),$D$29)<>0,0,$K$13*$D$23)),0)+IF($E$23>0,(IF(MOD(($C180-1),$D$30)<>0,0,$K$13*$E$23)),0) -> 14193.91197 | L180: =IF($D$23>0,(IF(MOD(($C180-1),$D$29)<>0,0,$K$14*$D$23)),0)+IF($E$23>0,(IF(MOD(($C180-1),$D$30)<>0,0,$K$14*$E$23)),0) -> 11420.13564 | M180: =SUM(D180:L180) -> 64319.63857 | N180: Euro/a | O180: =IF($M$192<>0,(IF(C180<=$F$89,M180/$M$192,"-")),0) -> 0.4777883223
C181: =C180+1 -> 2 | D181: =IF($D$23>0,(IF(MOD(($C147-1),$D$29)<>0,0,Konstante_Werte!$E$65*$D$23)),0) -> 0 | E181: =IF($E$23>0,(IF(MOD(($C181-1),$D$30)<>0,0,Konstante_Werte!$E$66*$E$23)),0) -> 0 | F181: =IF($D$23>0,(IF($D$29=1,$D$23*$D$36*$J$36*Konstante_Werte!$E$67, IF(AND($D$29<>1,$D$29/($J$36+1)<1),Konstante_Werte!$E$67*$D$36*$D$23*$J$36/$D$29,IF(MOD($C181,$D$29)=0,0,IF(INT(MOD(($C181-$D$29*INT(($C181-1)/$D$29)),($D$29/($J$36+1))))<>0,0,Konstante_Werte!$E$67*$D$36*$D$23))))),0) -> 0 | G181: =IF($D$23>0,(IF($D$29=1,$D$23*$E$36*$K$36*Konstante_Werte!$E$68, IF(AND($D$29<>1,$D$29/($K$36+1)<1),Konstante_Werte!$E$68*$E$36*$D$23*$K$36/$D$29,IF(MOD($C181,$D$29)=0,0,IF(INT(MOD(($C181-$D$29*INT(($C181-1)/$D$29)),($D$29/($K$36+1))))<>0,0,Konstante_Werte!$E$68*$E$36*$D$23))))),0) -> 0 | H181: - | I181: 408.0296145 | J181: 432.3740855 | K181: 0 | L181: 0 | M181: 840.4037 | N181: Euro/a | O181: 0.006242806751
C182: =C181+1 -> 3 | D182: =IF($D$23>0,(IF(MOD(($C148-1),$D$29)<>0,0,Konstante_Werte!$E$65*$D$23)),0) -> 0 | E182: =IF($E$23>0,(IF(MOD(($C182-1),$D$30)<>0,0,Konstante_Werte!$E$66*$E$23)),0) -> 0 | F182: =IF($D$23>0,(IF($D$29=1,$D$23*$D$36*$J$36*Konstante_Werte!$E$67, IF(AND($D$29<>1,$D$29/($J$36+1)<1),Konstante_Werte!$E$67*$D$36*$D$23*$J$36/$D$29,IF(MOD($C182,$D$29)=0,0,IF(INT(MOD(($C182-$D$29*INT(($C182-1)/$D$29)),($D$29/($J$36+1))))<>0,0,Konstante_Werte!$E$67*$D$36*$D$23))))),0) -> 0 | G182: =IF($D$23>0,(IF($D$29=1,$D$23*$E$36*$K$36*Konstante_Werte!$E$68, IF(AND($D$29<>1,$D$29/($K$36+1)<1),Konstante_Werte!$E$68*$E$36*$D$23*$K$36/$D$29,IF(MOD($C182,$D$29)=0,0,IF(INT(MOD(($C182-$D$29*INT(($C182-1)/$D$29)),($D$29/($K$36+1))))<>0,0,Konstante_Werte!$E$68*$E$36*$D$23))))),0) -> 0 | H182: - | I182: 410.3797354 | J182: 434.8644229 | K182: 0 | L182: 0 | M182: 845.2441583 | N182: Euro/a | O182: 0.006278763334
C183: 4 | D183: =IF($D$23>0,(IF(MOD(($C149-1),$D$29)<>0,0,Konstante_Werte!$E$65*$D$23)),0) -> 0 | E183: =IF($E$23>0,(IF(MOD(($C183-1),$D$30)<>0,0,Konstante_Werte!$E$66*$E$23)),0) -> 0 | F183: =IF($D$23>0,(IF($D$29=1,$D$23*$D$36*$J$36*Konstante_Werte!$E$67, IF(AND($D$29<>1,$D$29/($J$36+1)<1),Konstante_Werte!$E$67*$D$36*$D$23*$J$36/$D$29,IF(MOD($C183,$D$29)=0,0,IF(INT(MOD(($C183-$D$29*INT(($C183-1)/$D$29)),($D$29/($J$36+1))))<>0,0,Konstante_Werte!$E$67*$D$36*$D$23))))),0) -> 0 | G183: =IF($D$23>0,(IF($D$29=1,$D$23*$E$36*$K$36*Konstante_Werte!$E$68, IF(AND($D$29<>1,$D$29/($K$36+1)<1),Konstante_Werte!$E$68*$E$36*$D$23*$K$36/$D$29,IF(MOD($C183,$D$29)=0,0,IF(INT(MOD(($C183-$D$29*INT(($C183-1)/$D$29)),($D$29/($K$36+1))))<>0,0,Konstante_Werte!$E$68*$E$36*$D$23))))),0) -> 0 | H183: - | I183: 412.7433923 | J183: 437.3691037 | K183: 0 | L183: 0 | M183: 850.112496 | N183: Euro/a | O183: 0.006314927016
C184: 5 | D184: =IF($D$23>0,(IF(MOD(($C150-1),$D$29)<>0,0,Konstante_Werte!$E$65*$D$23)),0) -> 0 | E184: =IF($E$23>0,(IF(MOD(($C184-1),$D$30)<>0,0,Konstante_Werte!$E$66*$E$23)),0) -> 0 | F184: =IF($D$23>0,(IF($D$29=1,$D$23*$D$36*$J$36*Konstante_Werte!$E$67, IF(AND($D$29<>1,$D$29/($J$36+1)<1),Konstante_Werte!$E$67*$D$36*$D$23*$J$36/$D$29,IF(MOD($C184,$D$29)=0,0,IF(INT(MOD(($C184-$D$29*INT(($C184-1)/$D$29)),($D$29/($J$36+1))))<>0,0,Konstante_Werte!$E$67*$D$36*$D$23))))),0) -> 0 | G184: =IF($D$23>0,(IF($D$29=1,$D$23*$E$36*$K$36*Konstante_Werte!$E$68, IF(AND($D$29<>1,$D$29/($K$36+1)<1),Konstante_Werte!$E$68*$E$36*$D$23*$K$36/$D$29,IF(MOD($C184,$D$29)=0,0,IF(INT(MOD(($C184-$D$29*INT(($C184-1)/$D$29)),($D$29/($K$36+1))))<>0,0,Konstante_Werte!$E$68*$E$36*$D$23))))),0) -> 0 | H184: - | I184: 415.120663 | J184: 439.8882108 | K184: 0 | L184: 0 | M184: 855.0088738 | N184: Euro/a | O184: 0.006351298989
C185: 6 | D185: =IF($D$23>0,(IF(MOD(($C151-1),$D$29)<>0,0,Konstante_Werte!$E$65*$D$23)),0) -> 0 | E185: =IF($E$23>0,(IF(MOD(($C185-1),$D$30)<>0,0,Konstante_Werte!$E$66*$E$23)),0) -> 0 | F185: =IF($D$23>0,(IF($D$29=1,$D$23*$D$36*$J$36*Konstante_Werte!$E$67, IF(AND($D$29<>1,$D$29/($J$36+1)<1),Konstante_Werte!$E$67*$D$36*$D$23*$J$36/$D$29,IF(MOD($C185,$D$29)=0,0,IF(INT(MOD(($C185-$D$29*INT(($C185-1)/$D$29)),($D$29/($J$36+1))))<>0,0,Konstante_Werte!$E$67*$D$36*$D$23))))),0) -> 0 | G185: =IF($D$23>0,(IF($D$29=1,$D$23*$E$36*$K$36*Konstante_Werte!$E$68, IF(AND($D$29<>1,$D$29/($K$36+1)<1),Konstante_Werte!$E$68*$E$36*$D$23*$K$36/$D$29,IF(MOD($C185,$D$29)=0,0,IF(INT(MOD(($C185-$D$29*INT(($C185-1)/$D$29)),($D$29/($K$36+1))))<>0,0,Konstante_Werte!$E$68*$E$36*$D$23))))),0) -> 0 | H185: - | I185: 417.5116262 | J185: 442.4218271 | K185: 0 | L185: 0 | M185: 859.9334533 | N185: Euro/a | O185: 0.006387880452
C186: 7 | D186: =IF($D$23>0,(IF(MOD(($C152-1),$D$29)<>0,0,Konstante_Werte!$E$65*$D$23)),0) -> 22750 | E186: =IF($E$23>0,(IF(MOD(($C186-1),$D$30)<>0,0,Konstante_Werte!$E$66*$E$23)),0) -> 15120 | F186: =IF($D$23>0,(IF($D$29=1,$D$23*$D$36*$J$36*Konstante_Werte!$E$67, IF(AND($D$29<>1,$D$29/($J$36+1)<1),Konstante_Werte!$E$67*$D$36*$D$23*$J$36/$D$29,IF(MOD($C186,$D$29)=0,0,IF(INT(MOD(($C186-$D$29*INT(($C186-1)/$D$29)),($D$29/($J$36+1))))<>0,0,Konstante_Werte!$E$67*$D$36*$D$23))))),0) -> 0 | G186: =IF($D$23>0,(IF($D$29=1,$D$23*$E$36*$K$36*Konstante_Werte!$E$68, IF(AND($D$29<>1,$D$29/($K$36+1)<1),Konstante_Werte!$E$68*$E$36*$D$23*$K$36/$D$29,IF(MOD($C186,$D$29)=0,0,IF(INT(MOD(($C186-$D$29*INT(($C186-1)/$D$29)),($D$29/($K$36+1))))<>0,0,Konstante_Werte!$E$68*$E$36*$D$23))))),0) -> 0 | H186: - | I186: 308.6771113 | J186: 327.0938652 | K186: 14193.91197 | L186: 11420.13564 | M186: 64119.81859 | N186: Euro/a | O186: 0.476303991
C187: 8 | D187: =IF($D$23>0,(IF(MOD(($C153-1),$D$29)<>0,0,Konstante_Werte!$E$65*$D$23)),0) -> 0 | E187: =IF($E$23>0,(IF(MOD(($C187-1),$D$30)<>0,0,Konstante_Werte!$E$66*$E$23)),0) -> 0 | F187: =IF($D$23>0,(IF($D$29=1,$D$23*$D$36*$J$36*Konstante_Werte!$E$67, IF(AND($D$29<>1,$D$29/($J$36+1)<1),Konstante_Werte!$E$67*$D$36*$D$23*$J$36/$D$29,IF(MOD($C187,$D$29)=0,0,IF(INT(MOD(($C187-$D$29*INT(($C187-1)/$D$29)),($D$29/($J$36+1))))<>0,0,Konstante_Werte!$E$67*$D$36*$D$23))))),0) -> 0 | G187: =IF($D$23>0,(IF($D$29=1,$D$23*$E$36*$K$36*Konstante_Werte!$E$68, IF(AND($D$29<>1,$D$29/($K$36+1)<1),Konstante_Werte!$E$68*$E$36*$D$23*$K$36/$D$29,IF(MOD($C187,$D$29)=0,0,IF(INT(MOD(($C187-$D$29*INT(($C187-1)/$D$29)),($D$29/($K$36+1))))<>0,0,Konstante_Werte!$E$68*$E$36*$D$23))))),0) -> 0 | H187: - | I187: 310.4549934 | J187: 328.9778219 | K187: 0 | L187: 0 | M187: 639.4328153 | N187: Euro/a | O187: 0.004749926132
C188: 9 | D188: =IF($D$23>0,(IF(MOD(($C154-1),$D$29)<>0,0,Konstante_Werte!$E$65*$D$23)),0) -> 0 | E188: =IF($E$23>0,(IF(MOD(($C188-1),$D$30)<>0,0,Konstante_Werte!$E$66*$E$23)),0) -> 0 | F188: =IF($D$23>0,(IF($D$29=1,$D$23*$D$36*$J$36*Konstante_Werte!$E$67, IF(AND($D$29<>1,$D$29/($J$36+1)<1),Konstante_Werte!$E$67*$D$36*$D$23*$J$36/$D$29,IF(MOD($C188,$D$29)=0,0,IF(INT(MOD(($C188-$D$29*INT(($C188-1)/$D$29)),($D$29/($J$36+1))))<>0,0,Konstante_Werte!$E$67*$D$36*$D$23))))),0) -> 0 | G188: =IF($D$23>0,(IF($D$29=1,$D$23*$E$36*$K$36*Konstante_Werte!$E$68, IF(AND($D$29<>1,$D$29/($K$36+1)<1),Konstante_Werte!$E$68*$E$36*$D$23*$K$36/$D$29,IF(MOD($C188,$D$29)=0,0,IF(INT(MOD(($C188-$D$29*INT(($C188-1)/$D$29)),($D$29/($K$36+1))))<>0,0,Konstante_Werte!$E$68*$E$36*$D$23))))),0) -> 0 | H188: - | I188: 312.2431155 | J188: 330.8726296 | K188: 0 | L188: 0 | M188: 643.1157451 | N188: Euro/a | O188: 0.004777284197
C189: 10 | D189: =IF($D$23>0,(IF(MOD(($C155-1),$D$29)<>0,0,Konstante_Werte!$E$65*$D$23)),0) -> 0 | E189: =IF($E$23>0,(IF(MOD(($C189-1),$D$30)<>0,0,Konstante_Werte!$E$66*$E$23)),0) -> 0 | F189: =IF($D$23>0,(IF($D$29=1,$D$23*$D$36*$J$36*Konstante_Werte!$E$67, IF(AND($D$29<>1,$D$29/($J$36+1)<1),Konstante_Werte!$E$67*$D$36*$D$23*$J$36/$D$29,IF(MOD($C189,$D$29)=0,0,IF(INT(MOD(($C189-$D$29*INT(($C189-1)/$D$29)),($D$29/($J$36+1))))<>0,0,Konstante_Werte!$E$67*$D$36*$D$23))))),0) -> 0 | G189: =IF($D$23>0,(IF($D$29=1,$D$23*$E$36*$K$36*Konstante_Werte!$E$68, IF(AND($D$29<>1,$D$29/($K$36+1)<1),Konstante_Werte!$E$68*$E$36*$D$23*$K$36/$D$29,IF(MOD($C189,$D$29)=0,0,IF(INT(MOD(($C189-$D$29*INT(($C189-1)/$D$29)),($D$29/($K$36+1))))<>0,0,Konstante_Werte!$E$68*$E$36*$D$23))))),0) -> 0 | H189: - | I189: 314.0415366 | J189: 332.7783508 | K189: 0 | L189: 0 | M189: 646.8198875 | N189: Euro/a | O189: 0.004804799836
C190: 11 | D190: =IF($D$23>0,(IF(MOD(($C156-1),$D$29)<>0,0,Konstante_Werte!$E$65*$D$23)),0) -> 0 | E190: =IF($E$23>0,(IF(MOD(($C190-1),$D$30)<>0,0,Konstante_Werte!$E$66*$E$23)),0) -> 0 | F190: =IF($D$23>0,(IF($D$29=1,$D$23*$D$36*$J$36*Konstante_Werte!$E$67, IF(AND($D$29<>1,$D$29/($J$36+1)<1),Konstante_Werte!$E$67*$D$36*$D$23*$J$36/$D$29,IF(MOD($C190,$D$29)=0,0,IF(INT(MOD(($C190-$D$29*INT(($C190-1)/$D$29)),($D$29/($J$36+1))))<>0,0,Konstante_Werte!$E$67*$D$36*$D$23))))),0) -> 0 | G190: =IF($D$23>0,(IF($D$29=1,$D$23*$E$36*$K$36*Konstante_Werte!$E$68, IF(AND($D$29<>1,$D$29/($K$36+1)<1),Konstante_Werte!$E$68*$E$36*$D$23*$K$36/$D$29,IF(MOD($C190,$D$29)=0,0,IF(INT(MOD(($C190-$D$29*INT(($C190-1)/$D$29)),($D$29/($K$36+1))))<>0,0,Konstante_Werte!$E$68*$E$36*$D$23))))),0) -> 0 | H190: - | I190: 315.8503161 | J190: 334.6950484 | K190: 0 | L190: 0 | M190: 650.5453645 | N190: Euro/a | O190: -
C191: 12 | D191: =IF($D$23>0,(IF(MOD(($C157-1),$D$29)<>0,0,Konstante_Werte!$E$65*$D$23)),0) -> 0 | E191: =IF($E$23>0,(IF(MOD(($C191-1),$D$30)<>0,0,Konstante_Werte!$E$66*$E$23)),0) -> 0 | F191: =IF($D$23>0,(IF($D$29=1,$D$23*$D$36*$J$36*Konstante_Werte!$E$67, IF(AND($D$29<>1,$D$29/($J$36+1)<1),Konstante_Werte!$E$67*$D$36*$D$23*$J$36/$D$29,IF(MOD($C191,$D$29)=0,0,IF(INT(MOD(($C191-$D$29*INT(($C191-1)/$D$29)),($D$29/($J$36+1))))<>0,0,Konstante_Werte!$E$67*$D$36*$D$23))))),0) -> 0 | G191: =IF($D$23>0,(IF($D$29=1,$D$23*$E$36*$K$36*Konstante_Werte!$E$68, IF(AND($D$29<>1,$D$29/($K$36+1)<1),Konstante_Werte!$E$68*$E$36*$D$23*$K$36/$D$29,IF(MOD($C191,$D$29)=0,0,IF(INT(MOD(($C191-$D$29*INT(($C191-1)/$D$29)),($D$29/($K$36+1))))<>0,0,Konstante_Werte!$E$68*$E$36*$D$23))))),0) -> 0 | H191: - | I191: 317.6695135 | J191: 336.6227855 | K191: 0 | L191: 0 | M191: 654.292299 | N191: Euro/a | O191: -
C192: Summe über Betrachtungszeitraum | D192: =SUM(D180:OFFSET(D180,$F$89-1,0)) -> 45500 | E192: =SUM(E180:OFFSET(E180,$F$89-1,0)) -> 30240 | F192: =SUM(F180:OFFSET(F180,$F$89-1,0)) -> 0 | G192: =SUM(G180:OFFSET(G180,$F$89-1,0)) -> 0 | H192: - | I192: =SUM(I180:OFFSET(I180,$F$89-1,0)) -> 3714.89474 | J192: =SUM(J180:OFFSET(J180,$F$89-1,0)) -> 3936.538327 | K192: =SUM(K180:OFFSET(K180,$F$89-1,0)) -> 28387.82394 | L192: =SUM(L180:OFFSET(L180,$F$89-1,0)) -> 22840.27128 | M192: =SUM(M180:OFFSET(M180,$F$89-1,0)) -> 134619.5283 | N192: Euro/Betrachtungszeitraum | O192: =SUM(O180:O191) -> 1

Sheet Berechnung_UBA-Empfehlung (hidden)
B1: Berechnung der CO2-Äquivalente und der Kosten
F2: Zurück zum Inhaltsverzeichnis
B3: ='UBA-Empfehlung'!B3 -> Bezeichnung: | D3: ='UBA-Empfehlung'!C3 -> UBA-Empfehlung
B4: 1. Feste Daten
C5: ='Default-Werte'!B4 -> Anzahl von Arbeitstagen/Jahr | E5: 203 | F5: d/a
C6: ='Default-Werte'!B5 -> Betrachtungszeitraum [Jahr] | E6: =IF(Konstante_Werte!E16<>"0", Konstante_Werte!E16, Konstante_Werte!L16) -> 10 | F6: Jahre
C8: =Konstante_Werte!C18 -> Strompreis: [€/kWh] | G8: =Konstante_Werte!E18 -> 0.212
C9: =Konstante_Werte!C19 -> Reale Preissteigerungsrate Strom: [%/Jahr] | G9: =Konstante_Werte!E19 -> 0.005759682224
C11: Durchschnittlicher Verwaltungsaufwand eines Beschaffungszyklus | H11: =Konstante_Werte!E59 -> Höherer Dienst | I11: =Konstante_Werte!F59 -> Gehobener Dienst | J11: =Konstante_Werte!G59 -> Mittlerer Dienst | K11: Summe
C12: =Konstante_Werte!C60 -> Personalaufwand [d/Stück] | H12: =Konstante_Werte!$E$60 -> 0.01162 | I12: =Konstante_Werte!F60 -> 0.08766 | J12: =Konstante_Werte!G60 -> 0.18442 | K12: =SUM(H12:J12) -> 0.2837
C13: Personalkosten pro Gerät [EUR/Stck] | H13: =$H$12*Konstante_Werte!E55 -> 6.2047314 | I13: =$I$12*Konstante_Werte!F55 -> 35.8450506 | J13: =$J$12*Konstante_Werte!G55 -> 52.5762978 | K13: =SUM(H13:J13) -> 94.6260798
C14: Sach- und Gemeinkosten pro Gerät [EUR/Stck] | H14: =$H$12*Konstante_Werte!E56 -> 4.0034386 | I14: =$I$12*Konstante_Werte!F56 -> 26.03502 | J14: =$J$12*Konstante_Werte!G56 -> 46.095779 | K14: =SUM(H14:J14) -> 76.1342376
C16: =Konstante_Werte!B47 -> Anteil Nutzer nach Nutzungsintensität | D16: =Konstante_Werte!C48 -> Hohe Nutzungsintensität [%] | E16: =Konstante_Werte!C49 -> Mittlere Nutzungsintensität [%] | F16: =Konstante_Werte!C50 -> Geringe Nutzungsintensität [%]
C17: Geräte | D17: =Konstante_Werte!E48 -> 0.25 | E17: =Konstante_Werte!E49 -> 0.5 | F17: =Konstante_Werte!E50 -> 0.25
B19: 2. Variable Daten
C20: ='UBA-Empfehlung'!B13 -> Anzahl aller Geräte [Stück] | D20: ='UBA-Empfehlung'!E13 -> Anzahl der Geräte | E20: ='UBA-Empfehlung'!F13 -> Anzahl der zugeordneten Monitore
C21: ='UBA-Empfehlung'!C14 -> APC-Desktop-PC | D21: ='UBA-Empfehlung'!E14 -> 100 | E21: ='UBA-Empfehlung'!F14 -> 120
C22: ='UBA-Empfehlung'!C15 -> APC-Notebook | D22: ='UBA-Empfehlung'!E15 -> 50 | E22: ='UBA-Empfehlung'!F15 -> 50
C23: ='UBA-Empfehlung'!C16 -> APC-Mini-PC | D23: ='UBA-Empfehlung'!E16 -> 70 | E23: ='UBA-Empfehlung'!F16 -> 80
C24: ='UBA-Empfehlung'!C17 -> Summe | D24: ='UBA-Empfehlung'!E17 -> 220 | E24: =SUM(E21:E23) -> 250
C26: ='UBA-Empfehlung'!B19 -> Geänderte Nutzungsdauer auf Basis der UBA-Empfehlung: Nutzungsdauer [Jahre]
C27: ='UBA-Empfehlung'!C20 -> Desktop-PC | D27: ='UBA-Empfehlung'!E20 -> 6
C28: ='UBA-Empfehlung'!C21 -> Notebook | D28: ='UBA-Empfehlung'!E21 -> 6
C29: ='UBA-Empfehlung'!C22 -> Mini-PC | D29: ='UBA-Empfehlung'!E22 -> 6
C30: ='UBA-Empfehlung'!C23 -> Monitor | D30: ='UBA-Empfehlung'!E23 -> 6
C32: ='UBA-Empfehlung'!B31 -> Prozentualer Anteil der Geräte, bei denen während der Nutzungsphase folgende Komponenten nachgerüstet bzw. ausgetauscht werden [%] | I32: ='UBA-Empfehlung'!B25 -> Anzahl der Austauschvorgänge von Komponenten je Gerät während der Nutzungsphase
D33: ='UBA-Empfehlung'!E32 -> Ersatz HDD durch SSD | E33: ='UBA-Empfehlung'!F32 -> RAM hinzufügen | F33: ='UBA-Empfehlung'!G32 -> Wechsel des Akkus | J33: ='UBA-Empfehlung'!E26 -> Ersatz HDD durch SSD | K33: ='UBA-Empfehlung'!F26 -> RAM hinzufügen | L33: ='UBA-Empfehlung'!G26 -> Wechsel des Akkus
C34: ='UBA-Empfehlung'!C33 -> Desktop-PC | D34: ='UBA-Empfehlung'!E33 -> 0 | E34: ='UBA-Empfehlung'!F33 -> 0 | F34: ='UBA-Empfehlung'!G33 -> - | I34: ='UBA-Empfehlung'!C27 -> Desktop-PC | J34: ='UBA-Empfehlung'!E27 -> 1 | K34: ='UBA-Empfehlung'!F27 -> 1 | L34: ='UBA-Empfehlung'!G27 -> -
C35: ='UBA-Empfehlung'!C34 -> Notebook | D35: ='UBA-Empfehlung'!E34 -> 0 | E35: ='UBA-Empfehlung'!F34 -> 0 | F35: ='UBA-Empfehlung'!G34 -> 0.5 | I35: ='UBA-Empfehlung'!C28 -> Notebook | J35: ='UBA-Empfehlung'!E28 -> 1 | K35: ='UBA-Empfehlung'!F28 -> 1 | L35: ='UBA-Empfehlung'!G28 -> 1
C36: ='UBA-Empfehlung'!C35 -> Mini-PC | D36: ='UBA-Empfehlung'!E35 -> 0 | E36: ='UBA-Empfehlung'!F35 -> 0 | F36: ='UBA-Empfehlung'!G35 -> - | I36: ='UBA-Empfehlung'!C29 -> Mini-PC | J36: ='UBA-Empfehlung'!E29 -> 1 | K36: ='UBA-Empfehlung'!F29 -> 1 | L36: ='UBA-Empfehlung'!G29 -> -
B38: 3. Ergebnisse
B39: 3.1 Stromverbrauch während der Nutzung
C40: Stromverbrauch pro Gerät während der Nutzung [kWh/Gerät/Betrachtungsraum]
C41: IT-Gerät | D41: kWh/Gerät/Betrachtungsraum
C42: Desktop-PC | D42: =$D$125 -> 415.3397949
C43: Notebook | D43: =$E$125 -> 131.453264
C44: Mini-PC | D44: =$F$125 -> 244.4099804
C45: Monitor | D45: =$G$125 -> 226.6182913
C47: Arbeitsplatztyp | D47: kWh/Betrachtungsraum ( für alle Geräte)
C48: APC mit Desktop-PC | D48: =D42*$D21+$D$45*$E21 -> 68728.17445
C49: APC mit Notebook | D49: =D43*$D22+$D$45*$E22 -> 17903.57776
C50: APC mit Mini-PC | D50: =D44*$D23+$D$45*$E23 -> 35238.16193
B52: 3.2 GWP-Ergebnisse bezogen auf alle Geräte des Typs über den Betrachtungszeitraum
C53: kg CO2e / Betrachtungszeitraum | D53: APC mit Desktop | E53: APC mit Notebook | F53: APC mit Mini-PC | G53: Summe | I53: GWP in % bezogen auf den Arbeitsplatztyp / Betrachtungszeitraum | J53: APC mit Desktop | K53: APC mit Notebook | L53: APC mit Mini-PC | M53: % (Summe)
C54: Herstellung | D54: =IF(OR($D$21>0,$E$21>0),('Default-Werte'!$D$24+$D$34*$J$34*'Default-Werte'!$C$26+$E$34*$K$34*'Default-Werte'!$C$12)*$J$91*$D$21+'Default-Werte'!$D$25*$E$21*$J$94,0) -> 75456.66667 | E54: =IF(OR($D$22>0,$E$22>0),('Default-Werte'!$D$47+'Default-Werte'!$C$39*$D$35*$J$35+'Default-Werte'!$C$30*$E$35*$K$35+'Default-Werte'!$C$38*$F$35*$L$35)*$J$92*$D$22+'Default-Werte'!$D$48*$J$94*$E$22,0) -> 28554.16667 | F54: =IF(OR($D$23>0,$E$23>0),('Default-Werte'!$D$67+'Default-Werte'!$C$60*$D$36*$J$36+'Default-Werte'!$C$53*$E$36*$K$36)*$J$93*$D$23+$E$23*$J$94*'Default-Werte'!$D$68,0) -> 33985 | G54: =SUM(D54:F54) -> 137995.8333 | I54: Herstellung | J54: =IF($D$58=0,0,D54/$D$58) -> 0.614937396 | K54: =IF($E$58=0,0,E54/$E$58) -> 0.7000796554 | L54: =IF($F$58=0,0,F54/$F$58) -> 0.587087326 | M54: =G54/$G$58 -> 0.6233416017
C55: Distribution | D55: =IF(OR($D$21>0,$E$21>0),('Default-Werte'!$C$72+$D$34*$J$34*'Default-Werte'!$C$78+$E$34*$K$34*'Default-Werte'!$C$77)*$J$91*$D$21+$J$94*$E$21*'Default-Werte'!$C$75,0) -> 3528 | E55: =IF(OR($D$22>0,$E$22>0),('Default-Werte'!$C$73+'Default-Werte'!$C$78*$D$35*$J$35+'Default-Werte'!$C$77*$E$35*$K$35+'Default-Werte'!$C$76*$F$35*$L$35)*$J$92*$D$22+$J$94*$E$22*'Default-Werte'!$C$75,0) -> 865.2916667 | F55: =IF(OR($D$23>0,$E$23>0),('Default-Werte'!$C$74+'Default-Werte'!$C$78*$D$36*$J$36+'Default-Werte'!$C$77*$E$36*$K$36)*$J$93*$D$23+$J$94*$E$23*'Default-Werte'!$C$75,0) -> 1678.5 | G55: =SUM(D55:F55) -> 6071.791667 | I55: Distribution | J55: =IF($D$58=0,0,D55/$D$58) -> 0.02875158987 | K55: =IF($E$58=0,0,E55/$E$58) -> 0.02121487554 | L55: =IF($F$58=0,0,F55/$F$58) -> 0.02899591222 | M55: =G55/$G$58 -> 0.02742691755
C56: Nutzung | D56: =IF(OR($D$21>0,$E$21>0),$D$48*Konstante_Werte!$E$17,0) -> 42748.92451 | E56: =IF(OR($D$22>0,$E$22>0),$D$49*Konstante_Werte!$E$17,0) -> 11136.02537 | F56: =IF(OR($D$23>0,$E$23>0),$D$50*Konstante_Werte!$E$17,0) -> 21918.13672 | G56: =SUM(D56:F56) -> 75803.08659 | I56: Nutzung | J56: =IF($D$58=0,0,D56/$D$58) -> 0.3483842247 | K56: 0.2730286229 | L56: 0.3786335229 | M56: 0.3424104647
C57: Entsorgung | D57: =IF(OR($D$21>0,$E$21>0),('Default-Werte'!$C$82+$D$34*$J$34*'Default-Werte'!$C$88+$E$34*$K$34*'Default-Werte'!$C$87)*$J$91*$D$21+$J$94*$E$21*'Default-Werte'!$C$85,0) -> 972.6666667 | E57: =IF(OR($D$22>0,$E$22>0),('Default-Werte'!$C$83+'Default-Werte'!$C$88*$D$35*$J$35+'Default-Werte'!$C$87*$E$35*$K$35+'Default-Werte'!$C$86*$F$35*$L$35)*$J$92*$D$22+$J$94*$E$22*'Default-Werte'!$C$85,0) -> 231.5416667 | F57: =IF(OR($D$23>0,$E$23>0),('Default-Werte'!$C$84+'Default-Werte'!$C$88*$D$36*$J$36+'Default-Werte'!$C$87*$E$36*$K$36)*$J$93*$D$23+$J$94*$E$23*'Default-Werte'!$C$85,0) -> 305.8333333 | G57: =SUM(D57:F57) -> 1510.041667 | I57: Entsorgung | J57: =IF($D$58=0,0,D57/$D$58) -> 0.007926789422 | K57: 0.005676846119 | L57: 0.005283238895 | M57: 0.00682101603
C58: Summe | D58: =SUM(D54:D57) -> 122706.2578 | E58: =SUM(E54:E57) -> 40787.02537 | F58: =SUM(F54:F57) -> 57887.47005 | G58: =SUM(D58:F58) -> 221380.7533 | I58: Summe | J58: =SUM(J54:J57) -> 1 | K58: =SUM(K54:K57) -> 1 | L58: =SUM(L54:L57) -> 1 | M58: =SUM(M54:M57) -> 1
B60: 3.3 Kosten-Ergebnisse bezogen auf Betrachtungszeitraum und je Haushaltsjahr
C61: Lebenszykluskosten-Ergebnisse bezogen auf Betrachtungszeitraum
C62: Kosten in EURO / Betrachtungszeitraum | D62: APC mit Desktop | E62: APC mit Notebook | F62: APC mit Mini-PC | G62: Summe | I62: Kosten in % / Betrachtungszeitraum | J62: APC mit Desktop | K62: APC mit Notebook | L62: APC mit Mini-PC | M62: % (Summe)
C63: Anschaffungskosten | D63: =IF(OR($D$21>0,$E$21>0),(Konstante_Werte!$E$63+$D$34*$J$34*Konstante_Werte!$E$67+$E$34*$K$34*Konstante_Werte!$E$68)*$J$91*$D$21+Konstante_Werte!$E$66*$J$94*$E$21,0) -> 89800 | E63: =IF(OR($D$22>0,$E$22>0),(Konstante_Werte!$E$64+Konstante_Werte!$E$67*$D$35*$J$35+Konstante_Werte!$E$68*$E$35*$K$35+Konstante_Werte!$E$69*$F$35*$L$35)*$J$92*$D$22+Konstante_Werte!$E$66*$J$94*$E$22,0) -> 54791.66667 | F63: =IF(OR($D$23>0,$E$23>0),(Konstante_Werte!$E$65+Konstante_Werte!$E$67*$D$36*$J$36+Konstante_Werte!$E$68*$E$36*$K$36)*$J$93*$D$23+Konstante_Werte!$E$66*$J$94*$E$23,0) -> 63116.66667 | G63: =SUM(D63:F63) -> 207708.3333 | I63: =C63 -> Anschaffungskosten | J63: =IF($D$67=0,0,D63/$D$67) -> 0.5366467638 | K63: =IF($E$67=0,0,E63/$E$67) -> 0.6287831448 | L63: =IF($F$67=0,0,F63/$F$67) -> 0.5562989568 | M63: =G63/$G$67 -> 0.5645279254
C64: Energiekosten | D64: =IF(OR($D$21>0,$E$21>0),D141*$D$21+$G$141*$E21,0) -> 14923.28197 | E64: =IF(OR($D$22>0,$E$22>0),(E141*$D$22+$G$141*$E$22),0) -> 3887.490704 | F64: =IF(OR($D$23>0,$E$23>0),(F141*$D$23+$G$141*$E$23),0) -> 7651.433067 | G64: =SUM(D64:F64) -> 26462.20574 | I64: =C64 -> Energiekosten | J64: =IF($D$67=0,0,D64/$D$67) -> 0.08918185942 | K64: =IF($E$67=0,0,E64/$E$67) -> 0.04461241607 | L64: =IF($F$67=0,0,F64/$F$67) -> 0.06743835596 | M64: =G64/$G$67 -> 0.07192130364
C65: Bruttopersonalkosten | D65: =IF(OR($D$21>0,$E$21>0),($K$13)*($J$91*$D$21+$E$21*$J$94),0) -> 34696.22926 | E65: =IF(OR($D$22>0,$E$22>0),($K$13)*($J$92*$D$22+$E$22*$J$94),0) -> 15771.0133 | F65: =IF(OR($D$23>0,$E$23>0),($K$13)*($J$93*$D$23+$E$23*$J$94),0) -> 23656.51995 | G65: =SUM(D65:F65) -> 74123.76251 | I65: Bruttopersonalkosten | J65: 0.2073454248 | K65: 0.1809864153 | L65: 0.2085043153 | M65: 0.2014600628
C66: Sach-und Gemeinkosten | D66: =IF(OR($D$21>0,$E$21>0),($K$14)*($J$91*$D$21+$E$21*$J$94),0) -> 27915.88712 | E66: =IF(OR($D$22>0,$E$22>0),($K$14)*($J$92*$D$22+$E$22*$J$94),0) -> 12689.0396 | F66: =IF(OR($D$23>0,$E$23>0),($K$14)*($J$93*$D$23+$E$23*$J$94),0) -> 19033.5594 | G66: =SUM(D66:F66) -> 59638.48612 | I66: Sach-und Gemeinkosten | J66: 0.1668259519 | K66: 0.1456180239 | L66: 0.1677583719 | M66: 0.1620907082
C67: Summe | D67: =SUM(D63:D66) -> 167335.3984 | E67: =SUM(E63:E66) -> 87139.21027 | F67: =SUM(F63:F66) -> 113458.1791 | G67: =SUM(D67:F67) -> 367932.7877 | I67: Summe | J67: =SUM(J63:J66) -> 1 | K67: =SUM(K63:K66) -> 1 | L67: =SUM(L63:L66) -> 1 | M67: =SUM(M63:M66) -> 1
C69: Kosten je Haushaltsjahr
C70: Haushaltplan: erforderliche Haushaltsmittel (in €) je Haushaltsjahr im Betrachtungszeitraum
C71: Hinweis: | D71: Die Summe kann höher sein als die Lebenszykluskosten. Bei den Lebenszykluskosten wird die letzte Beschaffung einer Komponente nur anteilig einbezogen, sofern der Betrachtungszeitraum kein ganzzahliges Vielfaches der angenommenen Nutzungsdauer der Komponente ist.
C73: Kosten in EURO / Betrachtungszeitraum | D73: APC mit Desktop | E73: APC mit Notebook | F73: APC mit Mini-PC | G73: Summe | I73: Kosten: Anteil der Ausstattung in % innerhalb eines Jahres | J73: APC mit Desktop | K73: APC mit Notebook | L73: APC mit Mini-PC | M73: Summe
C74: =C146 -> 1 | D74: =IF(C74<=$F$89,M146,"-") -> 93076.99846 | E74: =IF(C74<=$F$89,M163,"-") -> 48500.5734 | F74: =IF(C74<=$F$89,M180,"-") -> 64319.63857 | G74: =IF(C74<=$F$89,(IF(SUM(D74:F74)>=0,SUM(D74:F74),0)),"-") -> 205897.2104 | I74: =C74 -> 1 | J74: =IF(C74<=$F$89,(IF(G74=0,0,D74/$G$74)),"-") -> 0.4520556557 | K74: =IF(C74<=$F$89,(IF(G74=0,0,E74/$G$74)),"-") -> 0.2355572147 | L74: =IF(C74<=$F$89,(IF(G74=0,0,F74/$G$74)),"-") -> 0.3123871297 | M74: =IF(C74<=$F$89,SUM(J74:L74),"-") -> 1
C75: 2 | D75: 1639.115349 | E75: 426.9868851 | F75: 840.4037 | G75: 2906.505934 | I75: =C75 -> 2 | J75: =IF(C75<=$F$89,(IF(G75=0,0,D75/$G$74)),"-") -> 0.007960842918 | K75: 0.002073786644 | L75: =IF(C75<=$F$89,(IF(G75=0,0,F75/$G$74)),"-") -> 0.004081666275 | M75: =IF(C75<=$F$89,SUM(J75:L75),"-") -> 0.01411629584
C76: 3 | D76: 1648.556133 | E76: 2304.446194 | F76: 845.2441583 | G76: 4798.246485 | I76: 3 | J76: 0.008006694843 | K76: 0.01119221668 | L76: 0.004105175376 | M76: 0.0233040869
C77: 4 | D77: 1658.051292 | E77: 431.9196674 | F77: 850.112496 | G77: 2940.083456 | I77: 4 | J77: 0.008052810861 | K77: 0.002097744144 | L77: 0.004128819882 | M77: 0.01427937489
C78: 5 | D78: 1667.601141 | E78: 434.4073875 | F78: 855.0088738 | G78: 2957.017402 | I78: 5 | J78: 0.008099192493 | K78: 0.002109826484 | L78: 0.004152600572 | M78: 0.01436161955
C79: 6 | D79: 1677.205994 | E79: 436.909436 | F79: 859.9334533 | G79: 2974.048883 | I79: 6 | J79: 0.008145841268 | K79: 0.002121978414 | L79: 0.004176518232 | M79: 0.01444433791
C80: 7 | D80: 92687.27147 | E80: 48399.05015 | F80: 64119.81859 | G80: 205206.1402 | I80: 7 | J80: 0.4501628326 | K80: 0.2350641373 | L80: 0.3114166455 | M80: 0.9966436154
C81: 8 | D81: 1247.143655 | E81: 324.8788957 | F81: 639.4328153 | G81: 2211.455366 | I81: 8 | J81: 0.006057117786 | K81: 0.001577869341 | L81: 0.003105592417 | M81: 0.01074057954
C82: 9 | D82: 1254.326807 | E82: 2201.750095 | F82: 643.1157451 | G82: 4099.192647 | I82: 9 | J82: 0.00609200486 | K82: 0.01069344305 | L82: 0.003123479642 | M82: 0.01990892756
C83: 10 | D83: 1261.55133 | E83: 328.6320716 | F83: 646.8198875 | G83: 2237.003289 | I83: 10 | J83: 0.006127092872 | K83: 0.001596097737 | L83: 0.003141469892 | M83: 0.0108646605
C84: 11 | D84: - | E84: - | F84: - | G84: =IF(C84<=$F$89,(IF(SUM(D84:F84)>=0,SUM(D84:F84),0)),"-") -> - | I84: 11 | J84: - | K84: =IF(C84<=$F$89,(IF(G84=0,0,E84/$G$74)),"-") -> - | L84: - | M84: -
C85: 12 | D85: - | E85: - | F85: - | G85: =IF(C85<=$F$89,(IF(SUM(D85:F85)>=0,SUM(D85:F85),0)),"-") -> - | I85: 12 | J85: - | K85: - | L85: - | M85: -
B87: 4.Berechnungsweg: Stromverbrauch und Energiekosten
C88: Berechnung des Stromverbrauchs innerhalb des Betrachtungszeitraums
C89: Betrachtungszeitraum | F89: =E6 -> 10 | G89: Jahre
C90: =C26 -> Geänderte Nutzungsdauer auf Basis der UBA-Empfehlung: Nutzungsdauer [Jahre] | I90: IT-Gerät | J90: Anzahl des Beschaffungszyklus | K90: Einheit
D91: Desktop-PC | F91: =D27 -> 6 | G91: Jahre | I91: Desktop-PC | J91: =IF(D21<>0,$E$6/D27, "0") -> 1.666666667 | K91: Anzahl des Beschaffungszyklus
D92: Notebook | F92: =D28 -> 6 | G92: Jahre | I92: Notebook | J92: =IF(D22<>0,$E$6/D28, "0") -> 1.666666667 | K92: Anzahl des Beschaffungszyklus
D93: Mini-PC | F93: =D29 -> 6 | G93: Jahre | I93: Mini-PC | J93: =IF(D23<>0,$E$6/D29, "0") -> 1.666666667 | K93: Anzahl des Beschaffungszyklus
D94: Monitor | F94: =D30 -> 6 | G94: Jahre | I94: Monitor | J94: =IF(D30<>0,$E$6/D30, "0") -> 1.666666667 | K94: Anzahl des Beschaffungszyklus
C95: Energieeffizienzsteigerung von 5% pro Jahr | F95: 0.05
C97: Stromverbrauch | D97: Wh/Gerät/pro Kalendertag | I97: Stromverbrauch | J97: kWh/Gerät/das erste Jahr
C98: IT-Gerät | D98: Hohe Nutzungsintensität | E98: Mittlere Nutzungsintensität | F98: Geringe Nutzungsintensität | I98: IT-Gerät | J98: Hohe Nutzungsintensität | K98: Mittlere Nutzungsintensität | L98: Geringe Nutzungsintensität
C99: Desktop-PC | D99: =IF($D$21>0,SUMPRODUCT(Konstante_Werte!$E$28:$G$28,'UBA-Empfehlung'!$E$38:$G$38),0) -> 259.185 | E99: =IF($D$21>0,SUMPRODUCT(Konstante_Werte!$E$29:$G$29,'UBA-Empfehlung'!$E$38:$G$38),0) -> 213.72 | F99: =IF($D$21>0,SUMPRODUCT(Konstante_Werte!$E$30:$G$30,'UBA-Empfehlung'!$E$38:$G$38),0) -> 168.255 | I99: Desktop-PC | J99: =IF($D$21>0,(D$99*$E$5+'UBA-Empfehlung'!$G$38*24*(365-$E$5))/1000,0) -> 55.686075 | K99: =IF($D$21>0,(E$99*$E$5+'UBA-Empfehlung'!$G$38*24*(365-$E$5))/1000,0) -> 46.45668 | L99: =IF($D$21>0,(F$99*$E$5+'UBA-Empfehlung'!$G$38*24*(365-$E$5))/1000,0) -> 37.227285
C100: Notebook | D100: =IF($D$22>0,SUMPRODUCT(Konstante_Werte!$E$33:$G$33,'UBA-Empfehlung'!$E$42:$G$42),0) -> 76.0775 | E100: =IF($D$22>0,SUMPRODUCT(Konstante_Werte!$E$34:$G$34,'UBA-Empfehlung'!$E$42:$G$42),0) -> 63.62 | F100: =IF($D$22>0,SUMPRODUCT(Konstante_Werte!$E$35:$G$35,'UBA-Empfehlung'!$E$42:$G$42),0) -> 51.1625 | I100: Notebook | J100: =IF($D$22>0,(D$100*$E$5+'UBA-Empfehlung'!$G$42*24*(365-$E$5))/1000,0) -> 17.2322125 | K100: =IF($D$22>0,(E$100*$E$5+'UBA-Empfehlung'!$G$42*24*(365-$E$5))/1000,0) -> 14.70334 | L100: =IF($D$22>0,(F$100*$E$5+'UBA-Empfehlung'!$G$42*24*(365-$E$5))/1000,0) -> 12.1744675
C101: Mini-PC | D101: =IF($D$23>0,SUMPRODUCT(Konstante_Werte!$E$38:$G$38,'UBA-Empfehlung'!$E$46:$G$46),0) -> 139.065 | E101: =IF($D$23>0,SUMPRODUCT(Konstante_Werte!$E$39:$G$39,'UBA-Empfehlung'!$E$46:$G$46),0) -> 117.24 | F101: =IF($D$23>0,SUMPRODUCT(Konstante_Werte!$E$40:$G$40,'UBA-Empfehlung'!$E$46:$G$46),0) -> 95.415 | I101: Mini-PC | J101: =IF($D$23>0,(D$101*$E$5+'UBA-Empfehlung'!$G$46*24*(365-$E$5))/1000,0) -> 31.768275 | K101: =IF($D$23>0,(E$101*$E$5+'UBA-Empfehlung'!$G$46*24*(365-$E$5))/1000,0) -> 27.3378 | L101: =IF($D$23>0,(F$101*$E$5+'UBA-Empfehlung'!$G$46*24*(365-$E$5))/1000,0) -> 22.907325
C102: Monitor | D102: =IF($E$24>0,SUMPRODUCT(Konstante_Werte!$E$43:$G$43,'UBA-Empfehlung'!$E$50:$G$50),0) -> 146.6 | E102: =IF($E$24>0,SUMPRODUCT(Konstante_Werte!$E$44:$G$44,'UBA-Empfehlung'!$E$50:$G$50),0) -> 119.12 | F102: =IF($E$24>0,SUMPRODUCT(Konstante_Werte!$E$45:$G$45,'UBA-Empfehlung'!$E$50:$G$50),0) -> 91.64 | I102: Monitor | J102: =IF($E$24>0,(D$102*$E$5+'UBA-Empfehlung'!$G$50*24*(365-$E$5))/1000,0) -> 30.9262 | K102: =IF($E$24>0,(E$102*$E$5+'UBA-Empfehlung'!$G$50*24*(365-$E$5))/1000,0) -> 25.34776 | L102: =IF($E$24>0,(F$102*$E$5+'UBA-Empfehlung'!$G$50*24*(365-$E$5))/1000,0) -> 19.76932
C104: Stromverbrauch im ersten Jahr je Geräteklasse unter Berücksichtigung der Nutzungsprofile
C105: IT-Gerät | D105: kWh/Gerät/das erste Jahr
C106: Desktop-PC | D106: =IF($D$21>0,SUMPRODUCT(J99:L99,$D$17:$F$17),0) -> 46.45668
C107: Notebook | D107: =IF($D$22>0,SUMPRODUCT(J100:L100,$D$17:$F$17),0) -> 14.70334
C108: Mini-PC | D108: =IF($D$23>0,SUMPRODUCT(J101:L101,$D$17:$F$17),0) -> 27.3378
C109: Monitor | D109: =IF($E$24>0,SUMPRODUCT(J102:L102,$D$17:$F$17),0) -> 25.34776
C111: Energieeffizienzsteigerung von 5% pro Jahr der neubeschafften Geräte wird berücksichtigt
C112: Jahr (max: 12 Jahre) | D112: Desktop | E112: Notebook | F112: Mini-PC | G112: Monitor | H112: Einheit
C113: 1 | D113: =D106 -> 46.45668 | E113: =D107 -> 14.70334 | F113: =D108 -> 27.3378 | G113: =D109 -> 25.34776 | H113: kWh/a/Gerät
C114: =C113+1 -> 2 | D114: =IF($D$113<>0,IF(MOD(C113,$F$91)=0,$D$113*(1-$F$95)^C113,D113),0) -> 46.45668 | E114: =IF($E$113<>0,IF(MOD(C113,$F$92)=0,$E$113*(1-$F$95)^C113,E113),0) -> 14.70334 | F114: =IF($F$113<>0,IF(MOD(C113,$F$93)=0,$F$113*(1-$F$95)^C113,F113),0) -> 27.3378 | G114: =IF($G$113<>0,IF(MOD(C113,$F$94)=0,$G$113*(1-$F$95)^C113,G113),0) -> 25.34776 | H114: kWh/a/Gerät
C115: =C114+1 -> 3 | D115: =IF($D$113<>0,IF(MOD(C114,$F$91)=0,$D$113*(1-$F$95)^C114,D114),0) -> 46.45668 | E115: =IF($E$113<>0,IF(MOD(C114,$F$92)=0,$E$113*(1-$F$95)^C114,E114),0) -> 14.70334 | F115: =IF($F$113<>0,IF(MOD(C114,$F$93)=0,$F$113*(1-$F$95)^C114,F114),0) -> 27.3378 | G115: =IF($G$113<>0,IF(MOD(C114,$F$94)=0,$G$113*(1-$F$95)^C114,G114),0) -> 25.34776 | H115: kWh/a/Gerät
C116: 4 | D116: 46.45668 | E116: 14.70334 | F116: 27.3378 | G116: 25.34776 | H116: kWh/a/Gerät
C117: 5 | D117: 46.45668 | E117: 14.70334 | F117: 27.3378 | G117: 25.34776 | H117: kWh/a/Gerät
C118: 6 | D118: 46.45668 | E118: 14.70334 | F118: 27.3378 | G118: 25.34776 | H118: kWh/a/Gerät
C119: 7 | D119: 34.14992873 | E119: 10.808306 | F119: 20.09579509 | G119: 18.63293282 | H119: kWh/a/Gerät
C120: 8 | D120: 34.14992873 | E120: 10.808306 | F120: 20.09579509 | G120: 18.63293282 | H120: kWh/a/Gerät
C121: 9 | D121: 34.14992873 | E121: 10.808306 | F121: 20.09579509 | G121: 18.63293282 | H121: kWh/a/Gerät
C122: 10 | D122: 34.14992873 | E122: 10.808306 | F122: 20.09579509 | G122: 18.63293282 | H122: kWh/a/Gerät
C123: 11 | D123: 34.14992873 | E123: 10.808306 | F123: 20.09579509 | G123: 18.63293282 | H123: kWh/a/Gerät
C124: 12 | D124: 34.14992873 | E124: 10.808306 | F124: 20.09579509 | G124: 18.63293282 | H124: kWh/a/Gerät
C125: ="Summe über Betrachtungszeitraum von " &$F$89 & " Jahren" -> Summe über Betrachtungszeitraum von 10 Jahren | D125: =SUM(D113:OFFSET(D113,$F$89-1,0)) -> 415.3397949 | E125: =SUM(E113:OFFSET(E113,$F$89-1,0)) -> 131.453264 | F125: =SUM(F113:OFFSET(F113,$F$89-1,0)) -> 244.4099804 | G125: =SUM(G113:OFFSET(G113,$F$89-1,0)) -> 226.6182913 | H125: kWh/Betrachtungszeitraum/Gerät
C127: Berechnung der Energiekosten innerhalb des Betrachtungszeitraums
C128: Jahr (max: 12 Jahre) | D128: Desktop | E128: Notebook | F128: Mini-PC | G128: Monitor | H128: Einheit
C129: 1 | D129: =IF($D$21>0,D113*$G8,0) -> 9.84881616 | E129: =IF($D$22>0,E113*$G8,0) -> 3.11710808 | F129: =IF($D$23>0,F113*$G8,0) -> 5.7956136 | G129: =IF($E$24>0,G113*$G8,0) -> 5.37372512 | H129: Euro/a/Gerät
C130: =C129+1 -> 2 | D130: =IF($D$21>0,D114*$G$8*(1+$G$9)^C129,0) -> 9.905542211 | E130: =IF($D$22>0,E114*$G$8*(1+$G$9)^C129,0) -> 3.135061632 | F130: =IF($D$23>0,F114*$G$8*(1+$G$9)^C129,0) -> 5.828994493 | G130: =IF($E$24>0,G114*$G$8*(1+$G$9)^C129,0) -> 5.404676069 | H130: Euro/a/Gerät
C131: =C130+1 -> 3 | D131: =IF($D$21>0,D115*$G$8*(1+$G$9)^C130,0) -> 9.962594987 | E131: =IF($D$22>0,E115*$G$8*(1+$G$9)^C130,0) -> 3.153118591 | F131: =IF($D$23>0,F115*$G$8*(1+$G$9)^C130,0) -> 5.862567649 | G131: =IF($E$24>0,G115*$G$8*(1+$G$9)^C130,0) -> 5.435805286 | H131: Euro/a/Gerät
C132: 4 | D132: 10.01997637 | E132: 3.171279552 | F132: 5.896334175 | G132: 5.467113797 | H132: Euro/a/Gerät
C133: 5 | D133: 10.07768825 | E133: 3.189545114 | F133: 5.930295186 | G133: 5.498602635 | H133: Euro/a/Gerät
C134: 6 | D134: 10.13573253 | E134: 3.207915881 | F134: 5.964451802 | G134: 5.530272839 | H134: Euro/a/Gerät
C135: 7 | D135: 7.493608422 | E135: 2.371694931 | F135: 4.409673019 | G135: 4.088673315 | H135: Euro/a/Gerät
C136: 8 | D136: 7.536769226 | E136: 2.38535514 | F136: 4.435071334 | G136: 4.112222774 | H136: Euro/a/Gerät
C137: 9 | D137: 7.580178621 | E137: 2.399094028 | F137: 4.460615935 | G137: 4.135907871 | H137: Euro/a/Gerät
C138: 10 | D138: 7.623838041 | E138: 2.412912047 | F138: 4.486307666 | G138: 4.159729386 | H138: Euro/a/Gerät
C139: 11 | D139: 7.667748926 | E139: 2.426809653 | F139: 4.512147372 | G139: 4.183688105 | H139: Euro/a/Gerät
C140: 12 | D140: 7.711912723 | E140: 2.440787306 | F140: 4.538135907 | G140: 4.207784819 | H140: Euro/a/Gerät
C141: =C125 -> Summe über Betrachtungszeitraum von 10 Jahren | D141: =SUM(D129:OFFSET(D129,$F$89-1,0)) -> 90.18474481 | E141: =SUM(E129:OFFSET(E129,$F$89-1,0)) -> 28.54308499 | F141: =SUM(F129:OFFSET(F129,$F$89-1,0)) -> 53.06992486 | G141: =SUM(G129:OFFSET(G129,$F$89-1,0)) -> 49.20672909 | H141: Euro/Betrachtungszeitraum/Gerät
C143: APC mit Desktop (für alle Geräte)
C144: In EURO | D144: Anschaffungskosten | I144: Energiekosten | K144: Bruttopersonal-kosten | L144: Sach-und Gemeinkosten | M144: Summe | O144: Anteil
C145: Jahr (max: 12 Jahre) | D145: Desktop | E145: Monitor | F145: Ersatz HDD durch SSD | G145: RAM hinzufügen | H145: Wechsel des Akkus | I145: Desktop | J145: Monitor
C146: 1 | D146: =IF($D$21>0,(IF(MOD(($C146-1),$D$27)<>0,0,Konstante_Werte!$E$63*$D$21)),0) -> 31200 | E146: =IF($E$21>0,(IF(MOD(($C146-1),$D$30)<>0,0,Konstante_Werte!$E$66*$E$21)),0) -> 22680 | F146: =IF($D$21>0,(IF($D$27=1,$D$21*$D$34*$J$34*Konstante_Werte!$E$67, IF(AND($D$27<>1,$D$27/($J$34+1)<1),Konstante_Werte!$E$67*$D$34*$D$21*$J$34/$D$27,IF(MOD($C146,$D$27)=0,0,IF(INT(MOD(($C146-$D$27*INT(($C146-1)/$D$27)),($D$27/($J$34+1))))<>0,0,Konstante_Werte!$E$67*$D$34*$D$21))))),0) -> 0 | G146: =IF($D$21>0,(IF($D$27=1,$D$21*$E$34*$K$34*Konstante_Werte!$E$68, IF(AND($D$27<>1,$D$27/($K$34+1)<1),Konstante_Werte!$E$68*$E$34*$D$21*$K$34/$D$27,IF(MOD($C146,$D$27)=0,0,IF(INT(MOD(($C146-$D$27*INT(($C146-1)/$D$27)),($D$27/($K$34+1))))<>0,0,Konstante_Werte!$E$68*$E$34*$D$21))))),0) -> 0 | H146: - | I146: =IF($D$21>0, D129*$D$21,0) -> 984.881616 | J146: =G129*$E$21 -> 644.8470144 | K146: =IF($D$21>0,(IF(MOD(($C146-1),$D$27)<>0,0,$K$13*$D$21)),0)+IF($E$21>0,(IF(MOD(($C146-1),$D$30)<>0,0,$K$13*$E$21)),0) -> 20817.73756 | L146: =IF($D$21>0,(IF(MOD(($C146-1),$D$27)<>0,0,$K$14*$D$21)),0)+IF($E$21>0,(IF(MOD(($C146-1),$D$30)<>0,0,$K$14*$E$21)),0) -> 16749.53227 | M146: =SUM(D146:L146) -> 93076.99846 | N146: Euro/a | O146: =IF($M$158<>0,(IF(C146<=$F$89,M146/$M$158,"-")),0) -> 0.4705187717
C147: =C146+1 -> 2 | D147: =IF($D$21>0,(IF(MOD(($C147-1),$D$27)<>0,0,Konstante_Werte!$E$63*$D$21)),0) -> 0 | E147: =IF($E$21>0,(IF(MOD(($C147-1),$D$30)<>0,0,Konstante_Werte!$E$66*$E$21)),0) -> 0 | F147: =IF($D$21>0,(IF($D$27=1,$D$21*$D$34*$J$34*Konstante_Werte!$E$67, IF(AND($D$27<>1,$D$27/($J$34+1)<1),Konstante_Werte!$E$67*$D$34*$D$21*$J$34/$D$27,IF(MOD($C147,$D$27)=0,0,IF(INT(MOD(($C147-$D$27*INT(($C147-1)/$D$27)),($D$27/($J$34+1))))<>0,0,Konstante_Werte!$E$67*$D$34*$D$21))))),0) -> 0 | G147: =IF($D$21>0,(IF($D$27=1,$D$21*$E$34*$K$34*Konstante_Werte!$E$68, IF(AND($D$27<>1,$D$27/($K$34+1)<1),Konstante_Werte!$E$68*$E$34*$D$21*$K$34/$D$27,IF(MOD($C147,$D$27)=0,0,IF(INT(MOD(($C147-$D$27*INT(($C147-1)/$D$27)),($D$27/($K$34+1))))<>0,0,Konstante_Werte!$E$68*$E$34*$D$21))))),0) -> 0 | H147: - | I147: 990.5542211 | J147: 648.5611283 | K147: 0 | L147: 0 | M147: =SUM(D147:L147) -> 1639.115349 | N147: Euro/a | O147: 0.008285984225
C148: =C147+1 -> 3 | D148: =IF($D$21>0,(IF(MOD(($C148-1),$D$27)<>0,0,Konstante_Werte!$E$63*$D$21)),0) -> 0 | E148: =IF($E$21>0,(IF(MOD(($C148-1),$D$30)<>0,0,Konstante_Werte!$E$66*$E$21)),0) -> 0 | F148: =IF($D$21>0,(IF($D$27=1,$D$21*$D$34*$J$34*Konstante_Werte!$E$67, IF(AND($D$27<>1,$D$27/($J$34+1)<1),Konstante_Werte!$E$67*$D$34*$D$21*$J$34/$D$27,IF(MOD($C148,$D$27)=0,0,IF(INT(MOD(($C148-$D$27*INT(($C148-1)/$D$27)),($D$27/($J$34+1))))<>0,0,Konstante_Werte!$E$67*$D$34*$D$21))))),0) -> 0 | G148: =IF($D$21>0,(IF($D$27=1,$D$21*$E$34*$K$34*Konstante_Werte!$E$68, IF(AND($D$27<>1,$D$27/($K$34+1)<1),Konstante_Werte!$E$68*$E$34*$D$21*$K$34/$D$27,IF(MOD($C148,$D$27)=0,0,IF(INT(MOD(($C148-$D$27*INT(($C148-1)/$D$27)),($D$27/($K$34+1))))<>0,0,Konstante_Werte!$E$68*$E$34*$D$21))))),0) -> 0 | H148: - | I148: 996.2594987 | J148: 652.2966343 | K148: 0 | L148: 0 | M148: 1648.556133 | N148: Euro/a | O148: 0.008333708861
C149: 4 | D149: =IF($D$21>0,(IF(MOD(($C149-1),$D$27)<>0,0,Konstante_Werte!$E$63*$D$21)),0) -> 0 | E149: =IF($E$21>0,(IF(MOD(($C149-1),$D$30)<>0,0,Konstante_Werte!$E$66*$E$21)),0) -> 0 | F149: =IF($D$21>0,(IF($D$27=1,$D$21*$D$34*$J$34*Konstante_Werte!$E$67, IF(AND($D$27<>1,$D$27/($J$34+1)<1),Konstante_Werte!$E$67*$D$34*$D$21*$J$34/$D$27,IF(MOD($C149,$D$27)=0,0,IF(INT(MOD(($C149-$D$27*INT(($C149-1)/$D$27)),($D$27/($J$34+1))))<>0,0,Konstante_Werte!$E$67*$D$34*$D$21))))),0) -> 0 | G149: =IF($D$21>0,(IF($D$27=1,$D$21*$E$34*$K$34*Konstante_Werte!$E$68, IF(AND($D$27<>1,$D$27/($K$34+1)<1),Konstante_Werte!$E$68*$E$34*$D$21*$K$34/$D$27,IF(MOD($C149,$D$27)=0,0,IF(INT(MOD(($C149-$D$27*INT(($C149-1)/$D$27)),($D$27/($K$34+1))))<>0,0,Konstante_Werte!$E$68*$E$34*$D$21))))),0) -> 0 | H149: - | I149: 1001.997637 | J149: 656.0536556 | K149: 0 | L149: 0 | M149: 1658.051292 | N149: Euro/a | O149: 0.008381708376
C150: 5 | D150: =IF($D$21>0,(IF(MOD(($C150-1),$D$27)<>0,0,Konstante_Werte!$E$63*$D$21)),0) -> 0 | E150: =IF($E$21>0,(IF(MOD(($C150-1),$D$30)<>0,0,Konstante_Werte!$E$66*$E$21)),0) -> 0 | F150: =IF($D$21>0,(IF($D$27=1,$D$21*$D$34*$J$34*Konstante_Werte!$E$67, IF(AND($D$27<>1,$D$27/($J$34+1)<1),Konstante_Werte!$E$67*$D$34*$D$21*$J$34/$D$27,IF(MOD($C150,$D$27)=0,0,IF(INT(MOD(($C150-$D$27*INT(($C150-1)/$D$27)),($D$27/($J$34+1))))<>0,0,Konstante_Werte!$E$67*$D$34*$D$21))))),0) -> 0 | G150: =IF($D$21>0,(IF($D$27=1,$D$21*$E$34*$K$34*Konstante_Werte!$E$68, IF(AND($D$27<>1,$D$27/($K$34+1)<1),Konstante_Werte!$E$68*$E$34*$D$21*$K$34/$D$27,IF(MOD($C150,$D$27)=0,0,IF(INT(MOD(($C150-$D$27*INT(($C150-1)/$D$27)),($D$27/($K$34+1))))<>0,0,Konstante_Werte!$E$68*$E$34*$D$21))))),0) -> 0 | H150: - | I150: 1007.768825 | J150: 659.8323162 | K150: 0 | L150: 0 | M150: 1667.601141 | N150: Euro/a | O150: 0.008429984353
C151: 6 | D151: =IF($D$21>0,(IF(MOD(($C151-1),$D$27)<>0,0,Konstante_Werte!$E$63*$D$21)),0) -> 0 | E151: =IF($E$21>0,(IF(MOD(($C151-1),$D$30)<>0,0,Konstante_Werte!$E$66*$E$21)),0) -> 0 | F151: =IF($D$21>0,(IF($D$27=1,$D$21*$D$34*$J$34*Konstante_Werte!$E$67, IF(AND($D$27<>1,$D$27/($J$34+1)<1),Konstante_Werte!$E$67*$D$34*$D$21*$J$34/$D$27,IF(MOD($C151,$D$27)=0,0,IF(INT(MOD(($C151-$D$27*INT(($C151-1)/$D$27)),($D$27/($J$34+1))))<>0,0,Konstante_Werte!$E$67*$D$34*$D$21))))),0) -> 0 | G151: =IF($D$21>0,(IF($D$27=1,$D$21*$E$34*$K$34*Konstante_Werte!$E$68, IF(AND($D$27<>1,$D$27/($K$34+1)<1),Konstante_Werte!$E$68*$E$34*$D$21*$K$34/$D$27,IF(MOD($C151,$D$27)=0,0,IF(INT(MOD(($C151-$D$27*INT(($C151-1)/$D$27)),($D$27/($K$34+1))))<>0,0,Konstante_Werte!$E$68*$E$34*$D$21))))),0) -> 0 | H151: - | I151: 1013.573253 | J151: 663.6327407 | K151: 0 | L151: 0 | M151: 1677.205994 | N151: Euro/a | O151: 0.008478538384
C152: 7 | D152: =IF($D$21>0,(IF(MOD(($C152-1),$D$27)<>0,0,Konstante_Werte!$E$63*$D$21)),0) -> 31200 | E152: =IF($E$21>0,(IF(MOD(($C152-1),$D$30)<>0,0,Konstante_Werte!$E$66*$E$21)),0) -> 22680 | F152: =IF($D$21>0,(IF($D$27=1,$D$21*$D$34*$J$34*Konstante_Werte!$E$67, IF(AND($D$27<>1,$D$27/($J$34+1)<1),Konstante_Werte!$E$67*$D$34*$D$21*$J$34/$D$27,IF(MOD($C152,$D$27)=0,0,IF(INT(MOD(($C152-$D$27*INT(($C152-1)/$D$27)),($D$27/($J$34+1))))<>0,0,Konstante_Werte!$E$67*$D$34*$D$21))))),0) -> 0 | G152: =IF($D$21>0,(IF($D$27=1,$D$21*$E$34*$K$34*Konstante_Werte!$E$68, IF(AND($D$27<>1,$D$27/($K$34+1)<1),Konstante_Werte!$E$68*$E$34*$D$21*$K$34/$D$27,IF(MOD($C152,$D$27)=0,0,IF(INT(MOD(($C152-$D$27*INT(($C152-1)/$D$27)),($D$27/($K$34+1))))<>0,0,Konstante_Werte!$E$68*$E$34*$D$21))))),0) -> 0 | H152: - | I152: 749.3608422 | J152: 490.6407978 | K152: 20817.73756 | L152: 16749.53227 | M152: 92687.27147 | N152: Euro/a | O152: 0.4685486409
C153: 8 | D153: =IF($D$21>0,(IF(MOD(($C153-1),$D$27)<>0,0,Konstante_Werte!$E$63*$D$21)),0) -> 0 | E153: =IF($E$21>0,(IF(MOD(($C153-1),$D$30)<>0,0,Konstante_Werte!$E$66*$E$21)),0) -> 0 | F153: =IF($D$21>0,(IF($D$27=1,$D$21*$D$34*$J$34*Konstante_Werte!$E$67, IF(AND($D$27<>1,$D$27/($J$34+1)<1),Konstante_Werte!$E$67*$D$34*$D$21*$J$34/$D$27,IF(MOD($C153,$D$27)=0,0,IF(INT(MOD(($C153-$D$27*INT(($C153-1)/$D$27)),($D$27/($J$34+1))))<>0,0,Konstante_Werte!$E$67*$D$34*$D$21))))),0) -> 0 | G153: =IF($D$21>0,(IF($D$27=1,$D$21*$E$34*$K$34*Konstante_Werte!$E$68, IF(AND($D$27<>1,$D$27/($K$34+1)<1),Konstante_Werte!$E$68*$E$34*$D$21*$K$34/$D$27,IF(MOD($C153,$D$27)=0,0,IF(INT(MOD(($C153-$D$27*INT(($C153-1)/$D$27)),($D$27/($K$34+1))))<>0,0,Konstante_Werte!$E$68*$E$34*$D$21))))),0) -> 0 | H153: - | I153: 753.6769226 | J153: 493.4667329 | K153: 0 | L153: 0 | M153: 1247.143655 | N153: Euro/a | O153: 0.006304506061
C154: 9 | D154: =IF($D$21>0,(IF(MOD(($C154-1),$D$27)<>0,0,Konstante_Werte!$E$63*$D$21)),0) -> 0 | E154: =IF($E$21>0,(IF(MOD(($C154-1),$D$30)<>0,0,Konstante_Werte!$E$66*$E$21)),0) -> 0 | F154: =IF($D$21>0,(IF($D$27=1,$D$21*$D$34*$J$34*Konstante_Werte!$E$67, IF(AND($D$27<>1,$D$27/($J$34+1)<1),Konstante_Werte!$E$67*$D$34*$D$21*$J$34/$D$27,IF(MOD($C154,$D$27)=0,0,IF(INT(MOD(($C154-$D$27*INT(($C154-1)/$D$27)),($D$27/($J$34+1))))<>0,0,Konstante_Werte!$E$67*$D$34*$D$21))))),0) -> 0 | G154: =IF($D$21>0,(IF($D$27=1,$D$21*$E$34*$K$34*Konstante_Werte!$E$68, IF(AND($D$27<>1,$D$27/($K$34+1)<1),Konstante_Werte!$E$68*$E$34*$D$21*$K$34/$D$27,IF(MOD($C154,$D$27)=0,0,IF(INT(MOD(($C154-$D$27*INT(($C154-1)/$D$27)),($D$27/($K$34+1))))<>0,0,Konstante_Werte!$E$68*$E$34*$D$21))))),0) -> 0 | H154: - | I154: 758.0178621 | J154: 496.3089445 | K154: 0 | L154: 0 | M154: 1254.326807 | N154: Euro/a | O154: 0.006340818013
C155: 10 | D155: =IF($D$21>0,(IF(MOD(($C155-1),$D$27)<>0,0,Konstante_Werte!$E$63*$D$21)),0) -> 0 | E155: =IF($E$21>0,(IF(MOD(($C155-1),$D$30)<>0,0,Konstante_Werte!$E$66*$E$21)),0) -> 0 | F155: =IF($D$21>0,(IF($D$27=1,$D$21*$D$34*$J$34*Konstante_Werte!$E$67, IF(AND($D$27<>1,$D$27/($J$34+1)<1),Konstante_Werte!$E$67*$D$34*$D$21*$J$34/$D$27,IF(MOD($C155,$D$27)=0,0,IF(INT(MOD(($C155-$D$27*INT(($C155-1)/$D$27)),($D$27/($J$34+1))))<>0,0,Konstante_Werte!$E$67*$D$34*$D$21))))),0) -> 0 | G155: =IF($D$21>0,(IF($D$27=1,$D$21*$E$34*$K$34*Konstante_Werte!$E$68, IF(AND($D$27<>1,$D$27/($K$34+1)<1),Konstante_Werte!$E$68*$E$34*$D$21*$K$34/$D$27,IF(MOD($C155,$D$27)=0,0,IF(INT(MOD(($C155-$D$27*INT(($C155-1)/$D$27)),($D$27/($K$34+1))))<>0,0,Konstante_Werte!$E$68*$E$34*$D$21))))),0) -> 0 | H155: - | I155: 762.3838041 | J155: 499.1675263 | K155: 0 | L155: 0 | M155: 1261.55133 | N155: Euro/a | O155: 0.006377339109
C156: 11 | D156: =IF($D$21>0,(IF(MOD(($C156-1),$D$27)<>0,0,Konstante_Werte!$E$63*$D$21)),0) -> 0 | E156: =IF($E$21>0,(IF(MOD(($C156-1),$D$30)<>0,0,Konstante_Werte!$E$66*$E$21)),0) -> 0 | F156: =IF($D$21>0,(IF($D$27=1,$D$21*$D$34*$J$34*Konstante_Werte!$E$67, IF(AND($D$27<>1,$D$27/($J$34+1)<1),Konstante_Werte!$E$67*$D$34*$D$21*$J$34/$D$27,IF(MOD($C156,$D$27)=0,0,IF(INT(MOD(($C156-$D$27*INT(($C156-1)/$D$27)),($D$27/($J$34+1))))<>0,0,Konstante_Werte!$E$67*$D$34*$D$21))))),0) -> 0 | G156: =IF($D$21>0,(IF($D$27=1,$D$21*$E$34*$K$34*Konstante_Werte!$E$68, IF(AND($D$27<>1,$D$27/($K$34+1)<1),Konstante_Werte!$E$68*$E$34*$D$21*$K$34/$D$27,IF(MOD($C156,$D$27)=0,0,IF(INT(MOD(($C156-$D$27*INT(($C156-1)/$D$27)),($D$27/($K$34+1))))<>0,0,Konstante_Werte!$E$68*$E$34*$D$21))))),0) -> 0 | H156: - | I156: 766.7748926 | J156: 502.0425726 | K156: 0 | L156: 0 | M156: 1268.817465 | N156: Euro/a | O156: -
C157: 12 | D157: =IF($D$21>0,(IF(MOD(($C157-1),$D$27)<>0,0,Konstante_Werte!$E$63*$D$21)),0) -> 0 | E157: =IF($E$21>0,(IF(MOD(($C157-1),$D$30)<>0,0,Konstante_Werte!$E$66*$E$21)),0) -> 0 | F157: =IF($D$21>0,(IF($D$27=1,$D$21*$D$34*$J$34*Konstante_Werte!$E$67, IF(AND($D$27<>1,$D$27/($J$34+1)<1),Konstante_Werte!$E$67*$D$34*$D$21*$J$34/$D$27,IF(MOD($C157,$D$27)=0,0,IF(INT(MOD(($C157-$D$27*INT(($C157-1)/$D$27)),($D$27/($J$34+1))))<>0,0,Konstante_Werte!$E$67*$D$34*$D$21))))),0) -> 0 | G157: =IF($D$21>0,(IF($D$27=1,$D$21*$E$34*$K$34*Konstante_Werte!$E$68, IF(AND($D$27<>1,$D$27/($K$34+1)<1),Konstante_Werte!$E$68*$E$34*$D$21*$K$34/$D$27,IF(MOD($C157,$D$27)=0,0,IF(INT(MOD(($C157-$D$27*INT(($C157-1)/$D$27)),($D$27/($K$34+1))))<>0,0,Konstante_Werte!$E$68*$E$34*$D$21))))),0) -> 0 | H157: - | I157: 771.1912723 | J157: 504.9341783 | K157: 0 | L157: 0 | M157: 1276.125451 | N157: Euro/a | O157: -
C158: Summe über Betrachtungszeitraum | D158: =SUM(D146:OFFSET(D146,$F$89-1,0)) -> 62400 | E158: =SUM(E146:OFFSET(E146,$F$89-1,0)) -> 45360 | F158: =SUM(F146:OFFSET(F146,$F$89-1,0)) -> 0 | G158: =SUM(G146:OFFSET(G146,$F$89-1,0)) -> 0 | H158: - | I158: =SUM(I146:OFFSET(I146,$F$89-1,0)) -> 9018.474481 | J158: =SUM(J146:OFFSET(J146,$F$89-1,0)) -> 5904.807491 | K158: =SUM(K146:OFFSET(K146,$F$89-1,0)) -> 41635.47511 | L158: =SUM(L146:OFFSET(L146,$F$89-1,0)) -> 33499.06454 | M158: =SUM(M146:OFFSET(M146,$F$89-1,0)) -> 197817.8216 | N158: Euro/Betrachtungszeitraum | O158: -
C160: APC mit Notebook (für alle Geräte)
C161: In EURO | D161: Anschaffungskosten | I161: Energiekosten | K161: Bruttopersonal-kosten | L161: Sach-und Gemeinkosten | M161: Summe | O161: Anteil
C162: Jahr (max: 12 Jahre) | D162: Notebook | E162: Monitor | F162: Ersatz HDD durch SSD | G162: RAM hinzufügen | H162: Wechsel des Akkus | I162: =E128 -> Notebook | J162: =G128 -> Monitor
C163: 1 | D163: =IF($D$22>0,(IF(MOD(($C146-1),$D$28)<>0,0,Konstante_Werte!$E$64*$D$22)),0) -> 21550 | E163: =IF($E$22>0,(IF(MOD(($C163-1),$D$30)<>0,0,Konstante_Werte!$E$66*$E$22)),0) -> 9450 | F163: =IF($D$22>0,(IF($D$28=1,$D$22*$D$35*$J$35*Konstante_Werte!$E$67, IF(AND($D$28<>1,$D$28/($J$35+1)<1),Konstante_Werte!$E$67*$D$35*$D$22*$J$35/$D$28,IF(MOD($C163,$D$28)=0,0,IF(INT(MOD(($C163-$D$28*INT(($C163-1)/$D$28)),($D$28/($J$35+1))))<>0,0,Konstante_Werte!$E$67*$D$35*$D$22))))),0) -> 0 | G163: =IF($D$22>0,(IF($D$28=1,$D$22*$E$35*$K$35*Konstante_Werte!$E$68, IF(AND($D$28<>1,$D$28/($K$35+1)<1),Konstante_Werte!$E$68*$E$35*$D$22*$K$35/$D$28,IF(MOD($C163,$D$28)=0,0,IF(INT(MOD(($C163-$D$28*INT(($C163-1)/$D$28)),($D$28/($K$35+1))))<>0,0,Konstante_Werte!$E$68*$E$35*$D$22))))),0) -> 0 | H163: =IF($D$22>0,(IF($D$28=1,$D$22*$F$35*$L$35*Konstante_Werte!$E$69, IF(AND($D$28<>1,$D$28/($L$35+1)<1),Konstante_Werte!$E$69*$F$35*$D$22*$L$35/$D$28,IF(MOD($C163,$D$28)=0,0,IF(INT(MOD(($C163-$D$28*INT(($C163-1)/$D$28)),($D$28/($L$35+1))))<>0,0,Konstante_Werte!$E$69*$F$35*$D$22))))),0) -> 0 | I163: =IF($D$22>0, E129*$D$22,"0") -> 155.855404 | J163: =G129*$E$22 -> 268.686256 | K163: =IF($D$22>0,(IF(MOD(($C163-1),$D$28)<>0,0,$K$13*$D$22)),0)+IF($E$22>0,(IF(MOD(($C163-1),$D$30)<>0,0,$K$13*$E$22)),0) -> 9462.60798 | L163: =IF($D$22>0,(IF(MOD(($C163-1),$D$28)<>0,0,$K$14*$D$22)),0)+IF($E$22>0,(IF(MOD(($C163-1),$D$30)<>0,0,$K$14*$E$22)),0) -> 7613.42376 | M163: =SUM(D163:L163) -> 48500.5734 | N163: Euro/a | O163: =IF($M$175<>0,(IF(C163<=$F$89,M163/$M$175,"-")),0) -> 0.4672972515
C164: =C163+1 -> 2 | D164: =IF($D$22>0,(IF(MOD(($C147-1),$D$28)<>0,0,Konstante_Werte!$E$64*$D$22)),0) -> 0 | E164: =IF($E$22>0,(IF(MOD(($C164-1),$D$30)<>0,0,Konstante_Werte!$E$66*$E$22)),0) -> 0 | F164: =IF($D$22>0,(IF($D$28=1,$D$22*$D$35*$J$35*Konstante_Werte!$E$67, IF(AND($D$28<>1,$D$28/($J$35+1)<1),Konstante_Werte!$E$67*$D$35*$D$22*$J$35/$D$28,IF(MOD($C164,$D$28)=0,0,IF(INT(MOD(($C164-$D$28*INT(($C164-1)/$D$28)),($D$28/($J$35+1))))<>0,0,Konstante_Werte!$E$67*$D$35*$D$22))))),0) -> 0 | G164: =IF($D$22>0,(IF($D$28=1,$D$22*$E$35*$K$35*Konstante_Werte!$E$68, IF(AND($D$28<>1,$D$28/($K$35+1)<1),Konstante_Werte!$E$68*$E$35*$D$22*$K$35/$D$28,IF(MOD($C164,$D$28)=0,0,IF(INT(MOD(($C164-$D$28*INT(($C164-1)/$D$28)),($D$28/($K$35+1))))<>0,0,Konstante_Werte!$E$68*$E$35*$D$22))))),0) -> 0 | H164: =IF($D$22>0,(IF($D$28=1,$D$22*$F$35*$L$35*Konstante_Werte!$E$69, IF(AND($D$28<>1,$D$28/($L$35+1)<1),Konstante_Werte!$E$69*$F$35*$D$22*$L$35/$D$28,IF(MOD($C164,$D$28)=0,0,IF(INT(MOD(($C164-$D$28*INT(($C164-1)/$D$28)),($D$28/($L$35+1))))<>0,0,Konstante_Werte!$E$69*$F$35*$D$22))))),0) -> 0 | I164: 156.7530816 | J164: 270.2338035 | K164: 0 | L164: 0 | M164: =SUM(D164:L164) -> 426.9868851 | N164: Euro/a | O164: 0.004113967811
C165: =C164+1 -> 3 | D165: =IF($D$22>0,(IF(MOD(($C148-1),$D$28)<>0,0,Konstante_Werte!$E$64*$D$22)),0) -> 0 | E165: =IF($E$22>0,(IF(MOD(($C165-1),$D$30)<>0,0,Konstante_Werte!$E$66*$E$22)),0) -> 0 | F165: =IF($D$22>0,(IF($D$28=1,$D$22*$D$35*$J$35*Konstante_Werte!$E$67, IF(AND($D$28<>1,$D$28/($J$35+1)<1),Konstante_Werte!$E$67*$D$35*$D$22*$J$35/$D$28,IF(MOD($C165,$D$28)=0,0,IF(INT(MOD(($C165-$D$28*INT(($C165-1)/$D$28)),($D$28/($J$35+1))))<>0,0,Konstante_Werte!$E$67*$D$35*$D$22))))),0) -> 0 | G165: =IF($D$22>0,(IF($D$28=1,$D$22*$E$35*$K$35*Konstante_Werte!$E$68, IF(AND($D$28<>1,$D$28/($K$35+1)<1),Konstante_Werte!$E$68*$E$35*$D$22*$K$35/$D$28,IF(MOD($C165,$D$28)=0,0,IF(INT(MOD(($C165-$D$28*INT(($C165-1)/$D$28)),($D$28/($K$35+1))))<>0,0,Konstante_Werte!$E$68*$E$35*$D$22))))),0) -> 0 | H165: =IF($D$22>0,(IF($D$28=1,$D$22*$F$35*$L$35*Konstante_Werte!$E$69, IF(AND($D$28<>1,$D$28/($L$35+1)<1),Konstante_Werte!$E$69*$F$35*$D$22*$L$35/$D$28,IF(MOD($C165,$D$28)=0,0,IF(INT(MOD(($C165-$D$28*INT(($C165-1)/$D$28)),($D$28/($L$35+1))))<>0,0,Konstante_Werte!$E$69*$F$35*$D$22))))),0) -> 1875 | I165: 157.6559295 | J165: 271.7902643 | K165: 0 | L165: 0 | M165: 2304.446194 | N165: Euro/a | O165: 0.02220306477
C166: 4 | D166: =IF($D$22>0,(IF(MOD(($C149-1),$D$28)<>0,0,Konstante_Werte!$E$64*$D$22)),0) -> 0 | E166: =IF($E$22>0,(IF(MOD(($C166-1),$D$30)<>0,0,Konstante_Werte!$E$66*$E$22)),0) -> 0 | F166: =IF($D$22>0,(IF($D$28=1,$D$22*$D$35*$J$35*Konstante_Werte!$E$67, IF(AND($D$28<>1,$D$28/($J$35+1)<1),Konstante_Werte!$E$67*$D$35*$D$22*$J$35/$D$28,IF(MOD($C166,$D$28)=0,0,IF(INT(MOD(($C166-$D$28*INT(($C166-1)/$D$28)),($D$28/($J$35+1))))<>0,0,Konstante_Werte!$E$67*$D$35*$D$22))))),0) -> 0 | G166: =IF($D$22>0,(IF($D$28=1,$D$22*$E$35*$K$35*Konstante_Werte!$E$68, IF(AND($D$28<>1,$D$28/($K$35+1)<1),Konstante_Werte!$E$68*$E$35*$D$22*$K$35/$D$28,IF(MOD($C166,$D$28)=0,0,IF(INT(MOD(($C166-$D$28*INT(($C166-1)/$D$28)),($D$28/($K$35+1))))<>0,0,Konstante_Werte!$E$68*$E$35*$D$22))))),0) -> 0 | H166: =IF($D$22>0,(IF($D$28=1,$D$22*$F$35*$L$35*Konstante_Werte!$E$69, IF(AND($D$28<>1,$D$28/($L$35+1)<1),Konstante_Werte!$E$69*$F$35*$D$22*$L$35/$D$28,IF(MOD($C166,$D$28)=0,0,IF(INT(MOD(($C166-$D$28*INT(($C166-1)/$D$28)),($D$28/($L$35+1))))<>0,0,Konstante_Werte!$E$69*$F$35*$D$22))))),0) -> 0 | I166: 158.5639776 | J166: 273.3556898 | K166: 0 | L166: 0 | M166: 431.9196674 | N166: Euro/a | O166: 0.004161494582
C167: 5 | D167: =IF($D$22>0,(IF(MOD(($C150-1),$D$28)<>0,0,Konstante_Werte!$E$64*$D$22)),0) -> 0 | E167: =IF($E$22>0,(IF(MOD(($C167-1),$D$30)<>0,0,Konstante_Werte!$E$66*$E$22)),0) -> 0 | F167: =IF($D$22>0,(IF($D$28=1,$D$22*$D$35*$J$35*Konstante_Werte!$E$67, IF(AND($D$28<>1,$D$28/($J$35+1)<1),Konstante_Werte!$E$67*$D$35*$D$22*$J$35/$D$28,IF(MOD($C167,$D$28)=0,0,IF(INT(MOD(($C167-$D$28*INT(($C167-1)/$D$28)),($D$28/($J$35+1))))<>0,0,Konstante_Werte!$E$67*$D$35*$D$22))))),0) -> 0 | G167: =IF($D$22>0,(IF($D$28=1,$D$22*$E$35*$K$35*Konstante_Werte!$E$68, IF(AND($D$28<>1,$D$28/($K$35+1)<1),Konstante_Werte!$E$68*$E$35*$D$22*$K$35/$D$28,IF(MOD($C167,$D$28)=0,0,IF(INT(MOD(($C167-$D$28*INT(($C167-1)/$D$28)),($D$28/($K$35+1))))<>0,0,Konstante_Werte!$E$68*$E$35*$D$22))))),0) -> 0 | H167: =IF($D$22>0,(IF($D$28=1,$D$22*$F$35*$L$35*Konstante_Werte!$E$69, IF(AND($D$28<>1,$D$28/($L$35+1)<1),Konstante_Werte!$E$69*$F$35*$D$22*$L$35/$D$28,IF(MOD($C167,$D$28)=0,0,IF(INT(MOD(($C167-$D$28*INT(($C167-1)/$D$28)),($D$28/($L$35+1))))<>0,0,Konstante_Werte!$E$69*$F$35*$D$22))))),0) -> 0 | I167: 159.4772557 | J167: 274.9301317 | K167: 0 | L167: 0 | M167: 434.4073875 | N167: Euro/a | O167: 0.004185463469
C168: 6 | D168: =IF($D$22>0,(IF(MOD(($C151-1),$D$28)<>0,0,Konstante_Werte!$E$64*$D$22)),0) -> 0 | E168: =IF($E$22>0,(IF(MOD(($C168-1),$D$30)<>0,0,Konstante_Werte!$E$66*$E$22)),0) -> 0 | F168: =IF($D$22>0,(IF($D$28=1,$D$22*$D$35*$J$35*Konstante_Werte!$E$67, IF(AND($D$28<>1,$D$28/($J$35+1)<1),Konstante_Werte!$E$67*$D$35*$D$22*$J$35/$D$28,IF(MOD($C168,$D$28)=0,0,IF(INT(MOD(($C168-$D$28*INT(($C168-1)/$D$28)),($D$28/($J$35+1))))<>0,0,Konstante_Werte!$E$67*$D$35*$D$22))))),0) -> 0 | G168: =IF($D$22>0,(IF($D$28=1,$D$22*$E$35*$K$35*Konstante_Werte!$E$68, IF(AND($D$28<>1,$D$28/($K$35+1)<1),Konstante_Werte!$E$68*$E$35*$D$22*$K$35/$D$28,IF(MOD($C168,$D$28)=0,0,IF(INT(MOD(($C168-$D$28*INT(($C168-1)/$D$28)),($D$28/($K$35+1))))<>0,0,Konstante_Werte!$E$68*$E$35*$D$22))))),0) -> 0 | H168: =IF($D$22>0,(IF($D$28=1,$D$22*$F$35*$L$35*Konstante_Werte!$E$69, IF(AND($D$28<>1,$D$28/($L$35+1)<1),Konstante_Werte!$E$69*$F$35*$D$22*$L$35/$D$28,IF(MOD($C168,$D$28)=0,0,IF(INT(MOD(($C168-$D$28*INT(($C168-1)/$D$28)),($D$28/($L$35+1))))<>0,0,Konstante_Werte!$E$69*$F$35*$D$22))))),0) -> 0 | I168: 160.395794 | J168: 276.5136419 | K168: 0 | L168: 0 | M168: 436.909436 | N168: Euro/a | O168: 0.004209570408
C169: 7 | D169: =IF($D$22>0,(IF(MOD(($C152-1),$D$28)<>0,0,Konstante_Werte!$E$64*$D$22)),0) -> 21550 | E169: =IF($E$22>0,(IF(MOD(($C169-1),$D$30)<>0,0,Konstante_Werte!$E$66*$E$22)),0) -> 9450 | F169: =IF($D$22>0,(IF($D$28=1,$D$22*$D$35*$J$35*Konstante_Werte!$E$67, IF(AND($D$28<>1,$D$28/($J$35+1)<1),Konstante_Werte!$E$67*$D$35*$D$22*$J$35/$D$28,IF(MOD($C169,$D$28)=0,0,IF(INT(MOD(($C169-$D$28*INT(($C169-1)/$D$28)),($D$28/($J$35+1))))<>0,0,Konstante_Werte!$E$67*$D$35*$D$22))))),0) -> 0 | G169: =IF($D$22>0,(IF($D$28=1,$D$22*$E$35*$K$35*Konstante_Werte!$E$68, IF(AND($D$28<>1,$D$28/($K$35+1)<1),Konstante_Werte!$E$68*$E$35*$D$22*$K$35/$D$28,IF(MOD($C169,$D$28)=0,0,IF(INT(MOD(($C169-$D$28*INT(($C169-1)/$D$28)),($D$28/($K$35+1))))<>0,0,Konstante_Werte!$E$68*$E$35*$D$22))))),0) -> 0 | H169: =IF($D$22>0,(IF($D$28=1,$D$22*$F$35*$L$35*Konstante_Werte!$E$69, IF(AND($D$28<>1,$D$28/($L$35+1)<1),Konstante_Werte!$E$69*$F$35*$D$22*$L$35/$D$28,IF(MOD($C169,$D$28)=0,0,IF(INT(MOD(($C169-$D$28*INT(($C169-1)/$D$28)),($D$28/($L$35+1))))<>0,0,Konstante_Werte!$E$69*$F$35*$D$22))))),0) -> 0 | I169: 118.5847465 | J169: 204.4336658 | K169: 9462.60798 | L169: 7613.42376 | M169: 48399.05015 | N169: Euro/a | O169: 0.466319087
C170: 8 | D170: =IF($D$22>0,(IF(MOD(($C153-1),$D$28)<>0,0,Konstante_Werte!$E$64*$D$22)),0) -> 0 | E170: =IF($E$22>0,(IF(MOD(($C170-1),$D$30)<>0,0,Konstante_Werte!$E$66*$E$22)),0) -> 0 | F170: =IF($D$22>0,(IF($D$28=1,$D$22*$D$35*$J$35*Konstante_Werte!$E$67, IF(AND($D$28<>1,$D$28/($J$35+1)<1),Konstante_Werte!$E$67*$D$35*$D$22*$J$35/$D$28,IF(MOD($C170,$D$28)=0,0,IF(INT(MOD(($C170-$D$28*INT(($C170-1)/$D$28)),($D$28/($J$35+1))))<>0,0,Konstante_Werte!$E$67*$D$35*$D$22))))),0) -> 0 | G170: =IF($D$22>0,(IF($D$28=1,$D$22*$E$35*$K$35*Konstante_Werte!$E$68, IF(AND($D$28<>1,$D$28/($K$35+1)<1),Konstante_Werte!$E$68*$E$35*$D$22*$K$35/$D$28,IF(MOD($C170,$D$28)=0,0,IF(INT(MOD(($C170-$D$28*INT(($C170-1)/$D$28)),($D$28/($K$35+1))))<>0,0,Konstante_Werte!$E$68*$E$35*$D$22))))),0) -> 0 | H170: =IF($D$22>0,(IF($D$28=1,$D$22*$F$35*$L$35*Konstante_Werte!$E$69, IF(AND($D$28<>1,$D$28/($L$35+1)<1),Konstante_Werte!$E$69*$F$35*$D$22*$L$35/$D$28,IF(MOD($C170,$D$28)=0,0,IF(INT(MOD(($C170-$D$28*INT(($C170-1)/$D$28)),($D$28/($L$35+1))))<>0,0,Konstante_Werte!$E$69*$F$35*$D$22))))),0) -> 0 | I170: 119.267757 | J170: 205.6111387 | K170: 0 | L170: 0 | M170: 324.8788957 | N170: Euro/a | O170: 0.003130169488
C171: 9 | D171: =IF($D$22>0,(IF(MOD(($C154-1),$D$28)<>0,0,Konstante_Werte!$E$64*$D$22)),0) -> 0 | E171: =IF($E$22>0,(IF(MOD(($C171-1),$D$30)<>0,0,Konstante_Werte!$E$66*$E$22)),0) -> 0 | F171: =IF($D$22>0,(IF($D$28=1,$D$22*$D$35*$J$35*Konstante_Werte!$E$67, IF(AND($D$28<>1,$D$28/($J$35+1)<1),Konstante_Werte!$E$67*$D$35*$D$22*$J$35/$D$28,IF(MOD($C171,$D$28)=0,0,IF(INT(MOD(($C171-$D$28*INT(($C171-1)/$D$28)),($D$28/($J$35+1))))<>0,0,Konstante_Werte!$E$67*$D$35*$D$22))))),0) -> 0 | G171: =IF($D$22>0,(IF($D$28=1,$D$22*$E$35*$K$35*Konstante_Werte!$E$68, IF(AND($D$28<>1,$D$28/($K$35+1)<1),Konstante_Werte!$E$68*$E$35*$D$22*$K$35/$D$28,IF(MOD($C171,$D$28)=0,0,IF(INT(MOD(($C171-$D$28*INT(($C171-1)/$D$28)),($D$28/($K$35+1))))<>0,0,Konstante_Werte!$E$68*$E$35*$D$22))))),0) -> 0 | H171: =IF($D$22>0,(IF($D$28=1,$D$22*$F$35*$L$35*Konstante_Werte!$E$69, IF(AND($D$28<>1,$D$28/($L$35+1)<1),Konstante_Werte!$E$69*$F$35*$D$22*$L$35/$D$28,IF(MOD($C171,$D$28)=0,0,IF(INT(MOD(($C171-$D$28*INT(($C171-1)/$D$28)),($D$28/($L$35+1))))<>0,0,Konstante_Werte!$E$69*$F$35*$D$22))))),0) -> 1875 | I171: 119.9547014 | J171: 206.7953935 | K171: 0 | L171: 0 | M171: 2201.750095 | N171: Euro/a | O171: 0.02121360008
C172: 10 | D172: =IF($D$22>0,(IF(MOD(($C155-1),$D$28)<>0,0,Konstante_Werte!$E$64*$D$22)),0) -> 0 | E172: =IF($E$22>0,(IF(MOD(($C172-1),$D$30)<>0,0,Konstante_Werte!$E$66*$E$22)),0) -> 0 | F172: =IF($D$22>0,(IF($D$28=1,$D$22*$D$35*$J$35*Konstante_Werte!$E$67, IF(AND($D$28<>1,$D$28/($J$35+1)<1),Konstante_Werte!$E$67*$D$35*$D$22*$J$35/$D$28,IF(MOD($C172,$D$28)=0,0,IF(INT(MOD(($C172-$D$28*INT(($C172-1)/$D$28)),($D$28/($J$35+1))))<>0,0,Konstante_Werte!$E$67*$D$35*$D$22))))),0) -> 0 | G172: =IF($D$22>0,(IF($D$28=1,$D$22*$E$35*$K$35*Konstante_Werte!$E$68, IF(AND($D$28<>1,$D$28/($K$35+1)<1),Konstante_Werte!$E$68*$E$35*$D$22*$K$35/$D$28,IF(MOD($C172,$D$28)=0,0,IF(INT(MOD(($C172-$D$28*INT(($C172-1)/$D$28)),($D$28/($K$35+1))))<>0,0,Konstante_Werte!$E$68*$E$35*$D$22))))),0) -> 0 | H172: =IF($D$22>0,(IF($D$28=1,$D$22*$F$35*$L$35*Konstante_Werte!$E$69, IF(AND($D$28<>1,$D$28/($L$35+1)<1),Konstante_Werte!$E$69*$F$35*$D$22*$L$35/$D$28,IF(MOD($C172,$D$28)=0,0,IF(INT(MOD(($C172-$D$28*INT(($C172-1)/$D$28)),($D$28/($L$35+1))))<>0,0,Konstante_Werte!$E$69*$F$35*$D$22))))),0) -> 0 | I172: 120.6456023 | J172: 207.9864693 | K172: 0 | L172: 0 | M172: 328.6320716 | N172: Euro/a | O172: 0.003166330891
C173: 11 | D173: =IF($D$22>0,(IF(MOD(($C156-1),$D$28)<>0,0,Konstante_Werte!$E$64*$D$22)),0) -> 0 | E173: =IF($E$22>0,(IF(MOD(($C173-1),$D$30)<>0,0,Konstante_Werte!$E$66*$E$22)),0) -> 0 | F173: =IF($D$22>0,(IF($D$28=1,$D$22*$D$35*$J$35*Konstante_Werte!$E$67, IF(AND($D$28<>1,$D$28/($J$35+1)<1),Konstante_Werte!$E$67*$D$35*$D$22*$J$35/$D$28,IF(MOD($C173,$D$28)=0,0,IF(INT(MOD(($C173-$D$28*INT(($C173-1)/$D$28)),($D$28/($J$35+1))))<>0,0,Konstante_Werte!$E$67*$D$35*$D$22))))),0) -> 0 | G173: =IF($D$22>0,(IF($D$28=1,$D$22*$E$35*$K$35*Konstante_Werte!$E$68, IF(AND($D$28<>1,$D$28/($K$35+1)<1),Konstante_Werte!$E$68*$E$35*$D$22*$K$35/$D$28,IF(MOD($C173,$D$28)=0,0,IF(INT(MOD(($C173-$D$28*INT(($C173-1)/$D$28)),($D$28/($K$35+1))))<>0,0,Konstante_Werte!$E$68*$E$35*$D$22))))),0) -> 0 | H173: =IF($D$22>0,(IF($D$28=1,$D$22*$F$35*$L$35*Konstante_Werte!$E$69, IF(AND($D$28<>1,$D$28/($L$35+1)<1),Konstante_Werte!$E$69*$F$35*$D$22*$L$35/$D$28,IF(MOD($C173,$D$28)=0,0,IF(INT(MOD(($C173-$D$28*INT(($C173-1)/$D$28)),($D$28/($L$35+1))))<>0,0,Konstante_Werte!$E$69*$F$35*$D$22))))),0) -> 0 | I173: 121.3404827 | J173: 209.1844053 | K173: 0 | L173: 0 | M173: 330.5248879 | N173: Euro/a | O173: -
C174: 12 | D174: =IF($D$22>0,(IF(MOD(($C157-1),$D$28)<>0,0,Konstante_Werte!$E$64*$D$22)),0) -> 0 | E174: =IF($E$22>0,(IF(MOD(($C174-1),$D$30)<>0,0,Konstante_Werte!$E$66*$E$22)),0) -> 0 | F174: =IF($D$22>0,(IF($D$28=1,$D$22*$D$35*$J$35*Konstante_Werte!$E$67, IF(AND($D$28<>1,$D$28/($J$35+1)<1),Konstante_Werte!$E$67*$D$35*$D$22*$J$35/$D$28,IF(MOD($C174,$D$28)=0,0,IF(INT(MOD(($C174-$D$28*INT(($C174-1)/$D$28)),($D$28/($J$35+1))))<>0,0,Konstante_Werte!$E$67*$D$35*$D$22))))),0) -> 0 | G174: =IF($D$22>0,(IF($D$28=1,$D$22*$E$35*$K$35*Konstante_Werte!$E$68, IF(AND($D$28<>1,$D$28/($K$35+1)<1),Konstante_Werte!$E$68*$E$35*$D$22*$K$35/$D$28,IF(MOD($C174,$D$28)=0,0,IF(INT(MOD(($C174-$D$28*INT(($C174-1)/$D$28)),($D$28/($K$35+1))))<>0,0,Konstante_Werte!$E$68*$E$35*$D$22))))),0) -> 0 | H174: =IF($D$22>0,(IF($D$28=1,$D$22*$F$35*$L$35*Konstante_Werte!$E$69, IF(AND($D$28<>1,$D$28/($L$35+1)<1),Konstante_Werte!$E$69*$F$35*$D$22*$L$35/$D$28,IF(MOD($C174,$D$28)=0,0,IF(INT(MOD(($C174-$D$28*INT(($C174-1)/$D$28)),($D$28/($L$35+1))))<>0,0,Konstante_Werte!$E$69*$F$35*$D$22))))),0) -> 0 | I174: 122.0393653 | J174: 210.389241 | K174: 0 | L174: 0 | M174: 332.4286062 | N174: Euro/a | O174: -
C175: Summe über Betrachtungszeitraum | D175: =SUM(D163:OFFSET(D163,$F$89-1,0)) -> 43100 | E175: =SUM(E163:OFFSET(E163,$F$89-1,0)) -> 18900 | F175: =SUM(F163:OFFSET(F163,$F$89-1,0)) -> 0 | G175: =SUM(G163:OFFSET(G163,$F$89-1,0)) -> 0 | H175: =SUM(H163:OFFSET(H163,$F$89-1,0)) -> 3750 | I175: =SUM(I163:OFFSET(I163,$F$89-1,0)) -> 1427.15425 | J175: =SUM(J163:OFFSET(J163,$F$89-1,0)) -> 2460.336455 | K175: =SUM(K163:OFFSET(K163,$F$89-1,0)) -> 18925.21596 | L175: =SUM(L163:OFFSET(L163,$F$89-1,0)) -> 15226.84752 | M175: =SUM(M163:OFFSET(M163,$F$89-1,0)) -> 103789.5542 | N175: Euro/Betrachtungszeitraum | O175: =SUM(O163:O174) -> 1
C177: APC mit Mini-PC (für alle Geräte)
C178: In EURO | D178: Anschaffungskosten | I178: Energiekosten | K178: Bruttopersonal-kosten | L178: Sach-und Gemeinkosten | M178: Summe | O178: Anteil
C179: Jahr (max: 12 Jahre) | D179: Mini-PC | E179: Monitor | F179: Ersatz HDD durch SSD | G179: RAM hinzufügen | H179: Wechsel des Akkus | I179: Desktop | J179: Monitor
C180: 1 | D180: =IF($D$23>0,(IF(MOD(($C146-1),$D$29)<>0,0,Konstante_Werte!$E$65*$D$23)),0) -> 22750 | E180: =IF($E$23>0,(IF(MOD(($C180-1),$D$30)<>0,0,Konstante_Werte!$E$66*$E$23)),0) -> 15120 | F180: =IF($D$23>0,(IF($D$29=1,$D$23*$D$36*$J$36*Konstante_Werte!$E$67, IF(AND($D$29<>1,$D$29/($J$36+1)<1),Konstante_Werte!$E$67*$D$36*$D$23*$J$36/$D$29,IF(MOD($C180,$D$29)=0,0,IF(INT(MOD(($C180-$D$29*INT(($C180-1)/$D$29)),($D$29/($J$36+1))))<>0,0,Konstante_Werte!$E$67*$D$36*$D$23))))),0) -> 0 | G180: =IF($D$23>0,(IF($D$29=1,$D$23*$E$36*$K$36*Konstante_Werte!$E$68, IF(AND($D$29<>1,$D$29/($K$36+1)<1),Konstante_Werte!$E$68*$E$36*$D$23*$K$36/$D$29,IF(MOD($C180,$D$29)=0,0,IF(INT(MOD(($C180-$D$29*INT(($C180-1)/$D$29)),($D$29/($K$36+1))))<>0,0,Konstante_Werte!$E$68*$E$36*$D$23))))),0) -> 0 | H180: - | I180: =IF($D$23>0, F129*$D$23,0) -> 405.692952 | J180: =G129*$E$23 -> 429.8980096 | K180: =IF($D$23>0,(IF(MOD(($C180-1),$D$29)<>0,0,$K$13*$D$23)),0)+IF($E$23>0,(IF(MOD(($C180-1),$D$30)<>0,0,$K$13*$E$23)),0) -> 14193.91197 | L180: =IF($D$23>0,(IF(MOD(($C180-1),$D$29)<>0,0,$K$14*$D$23)),0)+IF($E$23>0,(IF(MOD(($C180-1),$D$30)<>0,0,$K$14*$E$23)),0) -> 11420.13564 | M180: =SUM(D180:L180) -> 64319.63857 | N180: Euro/a | O180: =IF($M$192<>0,(IF(C180<=$F$89,M180/$M$192,"-")),0) -> 0.4777883223
C181: =C180+1 -> 2 | D181: =IF($D$23>0,(IF(MOD(($C147-1),$D$29)<>0,0,Konstante_Werte!$E$65*$D$23)),0) -> 0 | E181: =IF($E$23>0,(IF(MOD(($C181-1),$D$30)<>0,0,Konstante_Werte!$E$66*$E$23)),0) -> 0 | F181: =IF($D$23>0,(IF($D$29=1,$D$23*$D$36*$J$36*Konstante_Werte!$E$67, IF(AND($D$29<>1,$D$29/($J$36+1)<1),Konstante_Werte!$E$67*$D$36*$D$23*$J$36/$D$29,IF(MOD($C181,$D$29)=0,0,IF(INT(MOD(($C181-$D$29*INT(($C181-1)/$D$29)),($D$29/($J$36+1))))<>0,0,Konstante_Werte!$E$67*$D$36*$D$23))))),0) -> 0 | G181: =IF($D$23>0,(IF($D$29=1,$D$23*$E$36*$K$36*Konstante_Werte!$E$68, IF(AND($D$29<>1,$D$29/($K$36+1)<1),Konstante_Werte!$E$68*$E$36*$D$23*$K$36/$D$29,IF(MOD($C181,$D$29)=0,0,IF(INT(MOD(($C181-$D$29*INT(($C181-1)/$D$29)),($D$29/($K$36+1))))<>0,0,Konstante_Werte!$E$68*$E$36*$D$23))))),0) -> 0 | H181: - | I181: 408.0296145 | J181: 432.3740855 | K181: 0 | L181: 0 | M181: 840.4037 | N181: Euro/a | O181: 0.006242806751
C182: =C181+1 -> 3 | D182: =IF($D$23>0,(IF(MOD(($C148-1),$D$29)<>0,0,Konstante_Werte!$E$65*$D$23)),0) -> 0 | E182: =IF($E$23>0,(IF(MOD(($C182-1),$D$30)<>0,0,Konstante_Werte!$E$66*$E$23)),0) -> 0 | F182: =IF($D$23>0,(IF($D$29=1,$D$23*$D$36*$J$36*Konstante_Werte!$E$67, IF(AND($D$29<>1,$D$29/($J$36+1)<1),Konstante_Werte!$E$67*$D$36*$D$23*$J$36/$D$29,IF(MOD($C182,$D$29)=0,0,IF(INT(MOD(($C182-$D$29*INT(($C182-1)/$D$29)),($D$29/($J$36+1))))<>0,0,Konstante_Werte!$E$67*$D$36*$D$23))))),0) -> 0 | G182: =IF($D$23>0,(IF($D$29=1,$D$23*$E$36*$K$36*Konstante_Werte!$E$68, IF(AND($D$29<>1,$D$29/($K$36+1)<1),Konstante_Werte!$E$68*$E$36*$D$23*$K$36/$D$29,IF(MOD($C182,$D$29)=0,0,IF(INT(MOD(($C182-$D$29*INT(($C182-1)/$D$29)),($D$29/($K$36+1))))<>0,0,Konstante_Werte!$E$68*$E$36*$D$23))))),0) -> 0 | H182: - | I182: 410.3797354 | J182: 434.8644229 | K182: 0 | L182: 0 | M182: 845.2441583 | N182: Euro/a | O182: 0.006278763334
C183: 4 | D183: =IF($D$23>0,(IF(MOD(($C149-1),$D$29)<>0,0,Konstante_Werte!$E$65*$D$23)),0) -> 0 | E183: =IF($E$23>0,(IF(MOD(($C183-1),$D$30)<>0,0,Konstante_Werte!$E$66*$E$23)),0) -> 0 | F183: =IF($D$23>0,(IF($D$29=1,$D$23*$D$36*$J$36*Konstante_Werte!$E$67, IF(AND($D$29<>1,$D$29/($J$36+1)<1),Konstante_Werte!$E$67*$D$36*$D$23*$J$36/$D$29,IF(MOD($C183,$D$29)=0,0,IF(INT(MOD(($C183-$D$29*INT(($C183-1)/$D$29)),($D$29/($J$36+1))))<>0,0,Konstante_Werte!$E$67*$D$36*$D$23))))),0) -> 0 | G183: =IF($D$23>0,(IF($D$29=1,$D$23*$E$36*$K$36*Konstante_Werte!$E$68, IF(AND($D$29<>1,$D$29/($K$36+1)<1),Konstante_Werte!$E$68*$E$36*$D$23*$K$36/$D$29,IF(MOD($C183,$D$29)=0,0,IF(INT(MOD(($C183-$D$29*INT(($C183-1)/$D$29)),($D$29/($K$36+1))))<>0,0,Konstante_Werte!$E$68*$E$36*$D$23))))),0) -> 0 | H183: - | I183: 412.7433923 | J183: 437.3691037 | K183: 0 | L183: 0 | M183: 850.112496 | N183: Euro/a | O183: 0.006314927016
C184: 5 | D184: =IF($D$23>0,(IF(MOD(($C150-1),$D$29)<>0,0,Konstante_Werte!$E$65*$D$23)),0) -> 0 | E184: =IF($E$23>0,(IF(MOD(($C184-1),$D$30)<>0,0,Konstante_Werte!$E$66*$E$23)),0) -> 0 | F184: =IF($D$23>0,(IF($D$29=1,$D$23*$D$36*$J$36*Konstante_Werte!$E$67, IF(AND($D$29<>1,$D$29/($J$36+1)<1),Konstante_Werte!$E$67*$D$36*$D$23*$J$36/$D$29,IF(MOD($C184,$D$29)=0,0,IF(INT(MOD(($C184-$D$29*INT(($C184-1)/$D$29)),($D$29/($J$36+1))))<>0,0,Konstante_Werte!$E$67*$D$36*$D$23))))),0) -> 0 | G184: =IF($D$23>0,(IF($D$29=1,$D$23*$E$36*$K$36*Konstante_Werte!$E$68, IF(AND($D$29<>1,$D$29/($K$36+1)<1),Konstante_Werte!$E$68*$E$36*$D$23*$K$36/$D$29,IF(MOD($C184,$D$29)=0,0,IF(INT(MOD(($C184-$D$29*INT(($C184-1)/$D$29)),($D$29/($K$36+1))))<>0,0,Konstante_Werte!$E$68*$E$36*$D$23))))),0) -> 0 | H184: - | I184: 415.120663 | J184: 439.8882108 | K184: 0 | L184: 0 | M184: 855.0088738 | N184: Euro/a | O184: 0.006351298989
C185: 6 | D185: =IF($D$23>0,(IF(MOD(($C151-1),$D$29)<>0,0,Konstante_Werte!$E$65*$D$23)),0) -> 0 | E185: =IF($E$23>0,(IF(MOD(($C185-1),$D$30)<>0,0,Konstante_Werte!$E$66*$E$23)),0) -> 0 | F185: =IF($D$23>0,(IF($D$29=1,$D$23*$D$36*$J$36*Konstante_Werte!$E$67, IF(AND($D$29<>1,$D$29/($J$36+1)<1),Konstante_Werte!$E$67*$D$36*$D$23*$J$36/$D$29,IF(MOD($C185,$D$29)=0,0,IF(INT(MOD(($C185-$D$29*INT(($C185-1)/$D$29)),($D$29/($J$36+1))))<>0,0,Konstante_Werte!$E$67*$D$36*$D$23))))),0) -> 0 | G185: =IF($D$23>0,(IF($D$29=1,$D$23*$E$36*$K$36*Konstante_Werte!$E$68, IF(AND($D$29<>1,$D$29/($K$36+1)<1),Konstante_Werte!$E$68*$E$36*$D$23*$K$36/$D$29,IF(MOD($C185,$D$29)=0,0,IF(INT(MOD(($C185-$D$29*INT(($C185-1)/$D$29)),($D$29/($K$36+1))))<>0,0,Konstante_Werte!$E$68*$E$36*$D$23))))),0) -> 0 | H185: - | I185: 417.5116262 | J185: 442.4218271 | K185: 0 | L185: 0 | M185: 859.9334533 | N185: Euro/a | O185: 0.006387880452
C186: 7 | D186: =IF($D$23>0,(IF(MOD(($C152-1),$D$29)<>0,0,Konstante_Werte!$E$65*$D$23)),0) -> 22750 | E186: =IF($E$23>0,(IF(MOD(($C186-1),$D$30)<>0,0,Konstante_Werte!$E$66*$E$23)),0) -> 15120 | F186: =IF($D$23>0,(IF($D$29=1,$D$23*$D$36*$J$36*Konstante_Werte!$E$67, IF(AND($D$29<>1,$D$29/($J$36+1)<1),Konstante_Werte!$E$67*$D$36*$D$23*$J$36/$D$29,IF(MOD($C186,$D$29)=0,0,IF(INT(MOD(($C186-$D$29*INT(($C186-1)/$D$29)),($D$29/($J$36+1))))<>0,0,Konstante_Werte!$E$67*$D$36*$D$23))))),0) -> 0 | G186: =IF($D$23>0,(IF($D$29=1,$D$23*$E$36*$K$36*Konstante_Werte!$E$68, IF(AND($D$29<>1,$D$29/($K$36+1)<1),Konstante_Werte!$E$68*$E$36*$D$23*$K$36/$D$29,IF(MOD($C186,$D$29)=0,0,IF(INT(MOD(($C186-$D$29*INT(($C186-1)/$D$29)),($D$29/($K$36+1))))<>0,0,Konstante_Werte!$E$68*$E$36*$D$23))))),0) -> 0 | H186: - | I186: 308.6771113 | J186: 327.0938652 | K186: 14193.91197 | L186: 11420.13564 | M186: 64119.81859 | N186: Euro/a | O186: 0.476303991
C187: 8 | D187: =IF($D$23>0,(IF(MOD(($C153-1),$D$29)<>0,0,Konstante_Werte!$E$65*$D$23)),0) -> 0 | E187: =IF($E$23>0,(IF(MOD(($C187-1),$D$30)<>0,0,Konstante_Werte!$E$66*$E$23)),0) -> 0 | F187: =IF($D$23>0,(IF($D$29=1,$D$23*$D$36*$J$36*Konstante_Werte!$E$67, IF(AND($D$29<>1,$D$29/($J$36+1)<1),Konstante_Werte!$E$67*$D$36*$D$23*$J$36/$D$29,IF(MOD($C187,$D$29)=0,0,IF(INT(MOD(($C187-$D$29*INT(($C187-1)/$D$29)),($D$29/($J$36+1))))<>0,0,Konstante_Werte!$E$67*$D$36*$D$23))))),0) -> 0 | G187: =IF($D$23>0,(IF($D$29=1,$D$23*$E$36*$K$36*Konstante_Werte!$E$68, IF(AND($D$29<>1,$D$29/($K$36+1)<1),Konstante_Werte!$E$68*$E$36*$D$23*$K$36/$D$29,IF(MOD($C187,$D$29)=0,0,IF(INT(MOD(($C187-$D$29*INT(($C187-1)/$D$29)),($D$29/($K$36+1))))<>0,0,Konstante_Werte!$E$68*$E$36*$D$23))))),0) -> 0 | H187: - | I187: 310.4549934 | J187: 328.9778219 | K187: 0 | L187: 0 | M187: 639.4328153 | N187: Euro/a | O187: 0.004749926132
C188: 9 | D188: =IF($D$23>0,(IF(MOD(($C154-1),$D$29)<>0,0,Konstante_Werte!$E$65*$D$23)),0) -> 0 | E188: =IF($E$23>0,(IF(MOD(($C188-1),$D$30)<>0,0,Konstante_Werte!$E$66*$E$23)),0) -> 0 | F188: =IF($D$23>0,(IF($D$29=1,$D$23*$D$36*$J$36*Konstante_Werte!$E$67, IF(AND($D$29<>1,$D$29/($J$36+1)<1),Konstante_Werte!$E$67*$D$36*$D$23*$J$36/$D$29,IF(MOD($C188,$D$29)=0,0,IF(INT(MOD(($C188-$D$29*INT(($C188-1)/$D$29)),($D$29/($J$36+1))))<>0,0,Konstante_Werte!$E$67*$D$36*$D$23))))),0) -> 0 | G188: =IF($D$23>0,(IF($D$29=1,$D$23*$E$36*$K$36*Konstante_Werte!$E$68, IF(AND($D$29<>1,$D$29/($K$36+1)<1),Konstante_Werte!$E$68*$E$36*$D$23*$K$36/$D$29,IF(MOD($C188,$D$29)=0,0,IF(INT(MOD(($C188-$D$29*INT(($C188-1)/$D$29)),($D$29/($K$36+1))))<>0,0,Konstante_Werte!$E$68*$E$36*$D$23))))),0) -> 0 | H188: - | I188: 312.2431155 | J188: 330.8726296 | K188: 0 | L188: 0 | M188: 643.1157451 | N188: Euro/a | O188: 0.004777284197
C189: 10 | D189: =IF($D$23>0,(IF(MOD(($C155-1),$D$29)<>0,0,Konstante_Werte!$E$65*$D$23)),0) -> 0 | E189: =IF($E$23>0,(IF(MOD(($C189-1),$D$30)<>0,0,Konstante_Werte!$E$66*$E$23)),0) -> 0 | F189: =IF($D$23>0,(IF($D$29=1,$D$23*$D$36*$J$36*Konstante_Werte!$E$67, IF(AND($D$29<>1,$D$29/($J$36+1)<1),Konstante_Werte!$E$67*$D$36*$D$23*$J$36/$D$29,IF(MOD($C189,$D$29)=0,0,IF(INT(MOD(($C189-$D$29*INT(($C189-1)/$D$29)),($D$29/($J$36+1))))<>0,0,Konstante_Werte!$E$67*$D$36*$D$23))))),0) -> 0 | G189: =IF($D$23>0,(IF($D$29=1,$D$23*$E$36*$K$36*Konstante_Werte!$E$68, IF(AND($D$29<>1,$D$29/($K$36+1)<1),Konstante_Werte!$E$68*$E$36*$D$23*$K$36/$D$29,IF(MOD($C189,$D$29)=0,0,IF(INT(MOD(($C189-$D$29*INT(($C189-1)/$D$29)),($D$29/($K$36+1))))<>0,0,Konstante_Werte!$E$68*$E$36*$D$23))))),0) -> 0 | H189: - | I189: 314.0415366 | J189: 332.7783508 | K189: 0 | L189: 0 | M189: 646.8198875 | N189: Euro/a | O189: 0.004804799836
C190: 11 | D190: =IF($D$23>0,(IF(MOD(($C156-1),$D$29)<>0,0,Konstante_Werte!$E$65*$D$23)),0) -> 0 | E190: =IF($E$23>0,(IF(MOD(($C190-1),$D$30)<>0,0,Konstante_Werte!$E$66*$E$23)),0) -> 0 | F190: =IF($D$23>0,(IF($D$29=1,$D$23*$D$36*$J$36*Konstante_Werte!$E$67, IF(AND($D$29<>1,$D$29/($J$36+1)<1),Konstante_Werte!$E$67*$D$36*$D$23*$J$36/$D$29,IF(MOD($C190,$D$29)=0,0,IF(INT(MOD(($C190-$D$29*INT(($C190-1)/$D$29)),($D$29/($J$36+1))))<>0,0,Konstante_Werte!$E$67*$D$36*$D$23))))),0) -> 0 | G190: =IF($D$23>0,(IF($D$29=1,$D$23*$E$36*$K$36*Konstante_Werte!$E$68, IF(AND($D$29<>1,$D$29/($K$36+1)<1),Konstante_Werte!$E$68*$E$36*$D$23*$K$36/$D$29,IF(MOD($C190,$D$29)=0,0,IF(INT(MOD(($C190-$D$29*INT(($C190-1)/$D$29)),($D$29/($K$36+1))))<>0,0,Konstante_Werte!$E$68*$E$36*$D$23))))),0) -> 0 | H190: - | I190: 315.8503161 | J190: 334.6950484 | K190: 0 | L190: 0 | M190: 650.5453645 | N190: Euro/a | O190: -
C191: 12 | D191: =IF($D$23>0,(IF(MOD(($C157-1),$D$29)<>0,0,Konstante_Werte!$E$65*$D$23)),0) -> 0 | E191: =IF($E$23>0,(IF(MOD(($C191-1),$D$30)<>0,0,Konstante_Werte!$E$66*$E$23)),0) -> 0 | F191: =IF($D$23>0,(IF($D$29=1,$D$23*$D$36*$J$36*Konstante_Werte!$E$67, IF(AND($D$29<>1,$D$29/($J$36+1)<1),Konstante_Werte!$E$67*$D$36*$D$23*$J$36/$D$29,IF(MOD($C191,$D$29)=0,0,IF(INT(MOD(($C191-$D$29*INT(($C191-1)/$D$29)),($D$29/($J$36+1))))<>0,0,Konstante_Werte!$E$67*$D$36*$D$23))))),0) -> 0 | G191: =IF($D$23>0,(IF($D$29=1,$D$23*$E$36*$K$36*Konstante_Werte!$E$68, IF(AND($D$29<>1,$D$29/($K$36+1)<1),Konstante_Werte!$E$68*$E$36*$D$23*$K$36/$D$29,IF(MOD($C191,$D$29)=0,0,IF(INT(MOD(($C191-$D$29*INT(($C191-1)/$D$29)),($D$29/($K$36+1))))<>0,0,Konstante_Werte!$E$68*$E$36*$D$23))))),0) -> 0 | H191: - | I191: 317.6695135 | J191: 336.6227855 | K191: 0 | L191: 0 | M191: 654.292299 | N191: Euro/a | O191: -
C192: Summe über Betrachtungszeitraum | D192: =SUM(D180:OFFSET(D180,$F$89-1,0)) -> 45500 | E192: =SUM(E180:OFFSET(E180,$F$89-1,0)) -> 30240 | F192: =SUM(F180:OFFSET(F180,$F$89-1,0)) -> 0 | G192: =SUM(G180:OFFSET(G180,$F$89-1,0)) -> 0 | H192: - | I192: =SUM(I180:OFFSET(I180,$F$89-1,0)) -> 3714.89474 | J192: =SUM(J180:OFFSET(J180,$F$89-1,0)) -> 3936.538327 | K192: =SUM(K180:OFFSET(K180,$F$89-1,0)) -> 28387.82394 | L192: =SUM(L180:OFFSET(L180,$F$89-1,0)) -> 22840.27128 | M192: =SUM(M180:OFFSET(M180,$F$89-1,0)) -> 134619.5283 | N192: Euro/Betrachtungszeitraum | O192: =SUM(O180:O191) -> 1

Sheet Berechnung_Szen1 (hidden)
B1: Berechnung der CO2-Äquivalente und der Kosten
F2: Zurück zum Inhaltsverzeichnis
B3: =Szen1_Variablen!B3 -> Bezeichnung: | D3: =Szen1_Variablen!C3 -> Szenario 1
B4: 1. Feste Daten
C5: ='Default-Werte'!B4 -> Anzahl von Arbeitstagen/Jahr | E5: 203 | F5: d/a
C6: ='Default-Werte'!B5 -> Betrachtungszeitraum [Jahr] | E6: =IF(Konstante_Werte!E16<>"0", Konstante_Werte!E16, Konstante_Werte!L16) -> 10 | F6: Jahre
C8: =Konstante_Werte!C18 -> Strompreis: [€/kWh] | G8: =Konstante_Werte!E18 -> 0.212
C9: =Konstante_Werte!C19 -> Reale Preissteigerungsrate Strom: [%/Jahr] | G9: =Konstante_Werte!E19 -> 0.005759682224
C11: Durchschnittlicher Verwaltungsaufwand je Beschaffungszyklus | H11: =Konstante_Werte!E59 -> Höherer Dienst | I11: =Konstante_Werte!F59 -> Gehobener Dienst | J11: =Konstante_Werte!G59 -> Mittlerer Dienst | K11: Summe
C12: =Konstante_Werte!C60 -> Personalaufwand [d/Stück] | H12: =Konstante_Werte!$E$60 -> 0.01162 | I12: =Konstante_Werte!F60 -> 0.08766 | J12: =Konstante_Werte!G60 -> 0.18442 | K12: =SUM(H12:J12) -> 0.2837
C13: Personalkosten pro Gerät [EUR/Stck] | H13: =$H$12*Konstante_Werte!E55 -> 6.2047314 | I13: =$I$12*Konstante_Werte!F55 -> 35.8450506 | J13: =$J$12*Konstante_Werte!G55 -> 52.5762978 | K13: =SUM(H13:J13) -> 94.6260798
C14: Sach- und Gemeinkosten pro Gerät [EUR/Stck] | H14: =$H$12*Konstante_Werte!E56 -> 4.0034386 | I14: =$I$12*Konstante_Werte!F56 -> 26.03502 | J14: =$J$12*Konstante_Werte!G56 -> 46.095779 | K14: =SUM(H14:J14) -> 76.1342376
C16: =Konstante_Werte!B47 -> Anteil Nutzer nach Nutzungsintensität | D16: =Konstante_Werte!C48 -> Hohe Nutzungsintensität [%] | E16: =Konstante_Werte!C49 -> Mittlere Nutzungsintensität [%] | F16: =Konstante_Werte!C50 -> Geringe Nutzungsintensität [%]
C17: Geräte | D17: =Konstante_Werte!E48 -> 0.25 | E17: =Konstante_Werte!E49 -> 0.5 | F17: =Konstante_Werte!E50 -> 0.25
B19: 2. Variable Daten
C20: =Szen1_Variablen!B13 -> Anzahl der Geräte [Stück] | D20: =Szen1_Variablen!E13 -> Anzahl der Geräte [Stück] | E20: =Szen1_Variablen!F13 -> Anzahl der zugeordneten Monitore
C21: =Szen1_Variablen!C14 -> APC-Desktop-PC | D21: =Szen1_Variablen!E14 -> 100 | E21: =Szen1_Variablen!F14 -> 120
C22: =Szen1_Variablen!C15 -> APC-Notebook | D22: =Szen1_Variablen!E15 -> 50 | E22: =Szen1_Variablen!F15 -> 50
C23: =Szen1_Variablen!C16 -> APC-Mini-PC | D23: =Szen1_Variablen!E16 -> 70 | E23: =Szen1_Variablen!F16 -> 80
C24: =Szen1_Variablen!C17 -> Summe | D24: =Szen1_Variablen!E17 -> 220 | E24: =SUM(E21:E23) -> 250
C26: =Szen1_Variablen!$B$19 -> Nutzungsdauer [Jahre]
C27: =Szen1_Variablen!C20 -> Desktop-PC | D27: =Szen1_Variablen!E20 -> 6
C28: =Szen1_Variablen!C21 -> Notebook | D28: =Szen1_Variablen!E21 -> 6
C29: =Szen1_Variablen!C22 -> Mini-PC | D29: =Szen1_Variablen!E22 -> 6
C30: =Szen1_Variablen!C23 -> Monitor | D30: =Szen1_Variablen!E23 -> 6
C32: =Szen1_Variablen!B31 -> Prozentualer Anteil der Geräte, bei denen während der Nutzungsphase folgende Komponenten nachgerüstet bzw. ausgetauscht werden [%] | I32: =Szen1_Variablen!B25 -> Anzahl der Austauschvorgänge von Komponenten je Gerät während der Nutzungsphase
D33: =Szen1_Variablen!E32 -> Ersatz HDD durch SSD | E33: =Szen1_Variablen!F32 -> RAM hinzufügen | F33: =Szen1_Variablen!G32 -> Wechsel des Akkus | J33: =Szen1_Variablen!E26 -> Ersatz HDD durch SSD | K33: =Szen1_Variablen!F26 -> RAM hinzufügen | L33: =Szen1_Variablen!G26 -> Wechsel des Akkus
C34: =Szen1_Variablen!C33 -> Desktop-PC | D34: =Szen1_Variablen!E33 -> 0 | E34: =Szen1_Variablen!F33 -> 0 | F34: =Szen1_Variablen!G33 -> - | I34: =Szen1_Variablen!C27 -> Desktop-PC | J34: =Szen1_Variablen!E27 -> 1 | K34: =Szen1_Variablen!F27 -> 1 | L34: =Szen1_Variablen!G27 -> -
C35: =Szen1_Variablen!C34 -> Notebook | D35: =Szen1_Variablen!E34 -> 0 | E35: =Szen1_Variablen!F34 -> 0 | F35: =Szen1_Variablen!G34 -> 0.5 | I35: =Szen1_Variablen!C28 -> Notebook | J35: =Szen1_Variablen!E28 -> 1 | K35: =Szen1_Variablen!F28 -> 1 | L35: =Szen1_Variablen!G28 -> 1
C36: =Szen1_Variablen!C35 -> Mini-PC | D36: =Szen1_Variablen!E35 -> 0 | E36: =Szen1_Variablen!F35 -> 0 | F36: =Szen1_Variablen!G35 -> - | I36: =Szen1_Variablen!C29 -> Mini-PC | J36: =Szen1_Variablen!E29 -> 1 | K36: =Szen1_Variablen!F29 -> 1 | L36: =Szen1_Variablen!G29 -> -
B38: 3. Ergebnisse
B39: 3.1 Stromverbrauch während der Nutzung
C40: Stromverbrauch pro Gerät während der Nutzung [kWh/Gerät/Betrachtungsraum]
C41: IT-Gerät | D41: kWh/Gerät/Betrachtungsraum
C42: Desktop-PC | D42: =$D$125 -> 415.3397949
C43: Notebook | D43: =$E$125 -> 131.453264
C44: Mini-PC | D44: =$F$125 -> 244.4099804
C45: Monitor | D45: =$G$125 -> 226.6182913
C47: Arbeitsplatztyp | D47: kWh/Betrachtungsraum
C48: APC mit Desktop-PC | D48: =D42*$D21+$D$45*$E21 -> 68728.17445
C49: APC mit Notebook | D49: =D43*$D22+$D$45*$E22 -> 17903.57776
C50: APC mit Mini-PC | D50: =D44*$D23+$D$45*$E23 -> 35238.16193
B52: 3.2 GWP-Ergebnisse bezogen auf alle Geräte des Typs über den Betrachtungszeitraum
C53: kg CO2e / Betrachtungszeitraum | D53: APC mit Desktop | E53: APC mit Notebook | F53: APC mit Mini-PC | G53: Summe | I53: GWP in % bezogen auf den Arbeitsplatztyp / Betrachtungszeitraum | J53: APC mit Desktop | K53: APC mit Notebook | L53: APC mit Mini-PC | M53: % (Summe)
C54: Herstellung | D54: =IF(OR($D$21>0,$E$21>0),('Default-Werte'!$D$24+$D$34*$J$34*'Default-Werte'!$C$26+$E$34*$K$34*'Default-Werte'!$C$12)*$J$91*$D$21+'Default-Werte'!$D$25*$E$21*$J$94,0) -> 75456.66667 | E54: =IF(OR($D$22>0,$E$22>0),('Default-Werte'!$D$47+'Default-Werte'!$C$39*$D$35*$J$35+'Default-Werte'!$C$30*$E$35*$K$35+'Default-Werte'!$C$38*$F$35*$L$35)*$J$92*$D$22+'Default-Werte'!$D$48*$J$94*$E$22,0) -> 28554.16667 | F54: =IF(OR($D$23>0,$E$23>0),('Default-Werte'!$D$67+'Default-Werte'!$C$60*$D$36*$J$36+'Default-Werte'!$C$53*$E$36*$K$36)*$J$93*$D$23+$E$23*$J$94*'Default-Werte'!$D$68,0) -> 33985 | G54: =SUM(D54:F54) -> 137995.8333 | I54: Herstellung | J54: =IF($D$58=0,0,D54/$D$58) -> 0.614937396 | K54: =IF($E$58=0,0,E54/$E$58) -> 0.7000796554 | L54: =IF($F$58=0,0,F54/$F$58) -> 0.587087326 | M54: =G54/$G$58 -> 0.6233416017
C55: Distribution | D55: =IF(OR($D$21>0,$E$21>0),('Default-Werte'!$C$72+$D$34*$J$34*'Default-Werte'!$C$78+$E$34*$K$34*'Default-Werte'!$C$77)*$J$91*$D$21+$J$94*$E$21*'Default-Werte'!$C$75,0) -> 3528 | E55: =IF(OR($D$22>0,$E$22>0),('Default-Werte'!$C$73+'Default-Werte'!$C$78*$D$35*$J$35+'Default-Werte'!$C$77*$E$35*$K$35+'Default-Werte'!$C$76*$F$35*$L$35)*$J$92*$D$22+$J$94*$E$22*'Default-Werte'!$C$75,0) -> 865.2916667 | F55: =IF(OR($D$23>0,$E$23>0),('Default-Werte'!$C$74+'Default-Werte'!$C$78*$D$36*$J$36+'Default-Werte'!$C$77*$E$36*$K$36)*$J$93*$D$23+$J$94*$E$23*'Default-Werte'!$C$75,0) -> 1678.5 | G55: =SUM(D55:F55) -> 6071.791667 | I55: Distribution | J55: =IF($D$58=0,0,D55/$D$58) -> 0.02875158987 | K55: =IF($E$58=0,0,E55/$E$58) -> 0.02121487554 | L55: =IF($F$58=0,0,F55/$F$58) -> 0.02899591222 | M55: =G55/$G$58 -> 0.02742691755
C56: Nutzung | D56: =IF(OR($D$21>0,$E$21>0),$D$48*Konstante_Werte!$E$17,0) -> 42748.92451 | E56: =IF(OR($D$22>0,$E$22>0),$D$49*Konstante_Werte!$E$17,0) -> 11136.02537 | F56: =IF(OR($D$23>0,$E$23>0),$D$50*Konstante_Werte!$E$17,0) -> 21918.13672 | G56: =SUM(D56:F56) -> 75803.08659 | I56: Nutzung | J56: =IF($D$58=0,0,D56/$D$58) -> 0.3483842247 | K56: 0.2730286229 | L56: 0.3786335229 | M56: 0.3424104647
C57: Entsorgung | D57: =IF(OR($D$21>0,$E$21>0),('Default-Werte'!$C$82+$D$34*$J$34*'Default-Werte'!$C$88+$E$34*$K$34*'Default-Werte'!$C$87)*$J$91*$D$21+$J$94*$E$21*'Default-Werte'!$C$85,0) -> 972.6666667 | E57: =IF(OR($D$22>0,$E$22>0),('Default-Werte'!$C$83+'Default-Werte'!$C$88*$D$35*$J$35+'Default-Werte'!$C$87*$E$35*$K$35+'Default-Werte'!$C$86*$F$35*$L$35)*$J$92*$D$22+$J$94*$E$22*'Default-Werte'!$C$85,0) -> 231.5416667 | F57: =IF(OR($D$23>0,$E$23>0),('Default-Werte'!$C$84+'Default-Werte'!$C$88*$D$36*$J$36+'Default-Werte'!$C$87*$E$36*$K$36)*$J$93*$D$23+$J$94*$E$23*'Default-Werte'!$C$85,0) -> 305.8333333 | G57: =SUM(D57:F57) -> 1510.041667 | I57: Entsorgung | J57: =IF($D$58=0,0,D57/$D$58) -> 0.007926789422 | K57: 0.005676846119 | L57: 0.005283238895 | M57: 0.00682101603
C58: Summe | D58: =SUM(D54:D57) -> 122706.2578 | E58: =SUM(E54:E57) -> 40787.02537 | F58: =SUM(F54:F57) -> 57887.47005 | G58: =SUM(D58:F58) -> 221380.7533 | I58: Summe | J58: =SUM(J54:J57) -> 1 | K58: =SUM(K54:K57) -> 1 | L58: =SUM(L54:L57) -> 1 | M58: =SUM(M54:M57) -> 1
B60: 3.3 Kosten-Ergebnisse bezogen auf Betrachtungszeitraum und je Haushaltsjahr
C61: Lebenszykluskosten-Ergebnisse bezogen auf Betrachtungszeitraum
C62: Kosten in EURO / Betrachtungszeitraum | D62: APC mit Desktop | E62: APC mit Notebook | F62: APC mit Mini-PC | G62: Summe | I62: Kosten in % / Betrachtungszeitraum | J62: APC mit Desktop | K62: APC mit Notebook | L62: APC mit Mini-PC | M62: % (Summe)
C63: Anschaffungskosten | D63: =IF(OR($D$21>0,$E$21>0),(Konstante_Werte!$E$63+$D$34*$J$34*Konstante_Werte!$E$67+$E$34*$K$34*Konstante_Werte!$E$68)*$J$91*$D$21+Konstante_Werte!$E$66*$J$94*$E$21,0) -> 89800 | E63: =IF(OR($D$22>0,$E$22>0),(Konstante_Werte!$E$64+Konstante_Werte!$E$67*$D$35*$J$35+Konstante_Werte!$E$68*$E$35*$K$35+Konstante_Werte!$E$69*$F$35*$L$35)*$J$92*$D$22+Konstante_Werte!$E$66*$J$94*$E$22,0) -> 54791.66667 | F63: =IF(OR($D$23>0,$E$23>0),(Konstante_Werte!$E$65+Konstante_Werte!$E$67*$D$36*$J$36+Konstante_Werte!$E$68*$E$36*$K$36)*$J$93*$D$23+Konstante_Werte!$E$66*$J$94*$E$23,0) -> 63116.66667 | G63: =SUM(D63:F63) -> 207708.3333 | I63: =C63 -> Anschaffungskosten | J63: =IF($D$67=0,0,D63/$D$67) -> 0.5366467638 | K63: =IF($E$67=0,0,E63/$E$67) -> 0.6287831448 | L63: =IF($F$67=0,0,F63/$F$67) -> 0.5562989568 | M63: =G63/$G$67 -> 0.5645279254
C64: Energiekosten | D64: =IF(OR($D$21>0,$E$21>0),D141*$D$21+$G$141*$E21,0) -> 14923.28197 | E64: =IF(OR($D$22>0,$E$22>0),(E141*$D$22+$G$141*$E$22),0) -> 3887.490704 | F64: =IF(OR($D$23>0,$E$23>0),(F141*$D$23+$G$141*$E$23),0) -> 7651.433067 | G64: =SUM(D64:F64) -> 26462.20574 | I64: =C64 -> Energiekosten | J64: =IF($D$67=0,0,D64/$D$67) -> 0.08918185942 | K64: =IF($E$67=0,0,E64/$E$67) -> 0.04461241607 | L64: =IF($F$67=0,0,F64/$F$67) -> 0.06743835596 | M64: =G64/$G$67 -> 0.07192130364
C65: Bruttopersonalkosten | D65: =IF(OR($D$21>0,$E$21>0),($K$13)*($J$91*$D$21+$E$21*$J$94),0) -> 34696.22926 | E65: =IF(OR($D$22>0,$E$22>0),($K$13)*($J$92*$D$22+$E$22*$J$94),0) -> 15771.0133 | F65: =IF(OR($D$23>0,$E$23>0),($K$13)*($J$93*$D$23+$E$23*$J$94),0) -> 23656.51995 | G65: =SUM(D65:F65) -> 74123.76251 | I65: Bruttopersonalkosten | J65: 0.2073454248 | K65: 0.1809864153 | L65: 0.2085043153 | M65: 0.2014600628
C66: Sach-und Gemeinkosten | D66: =IF(OR($D$21>0,$E$21>0),($K$14)*($J$91*$D$21+$E$21*$J$94),0) -> 27915.88712 | E66: =IF(OR($D$22>0,$E$22>0),($K$14)*($J$92*$D$22+$E$22*$J$94),0) -> 12689.0396 | F66: =IF(OR($D$23>0,$E$23>0),($K$14)*($J$93*$D$23+$E$23*$J$94),0) -> 19033.5594 | G66: =SUM(D66:F66) -> 59638.48612 | I66: Sach-und Gemeinkosten | J66: 0.1668259519 | K66: 0.1456180239 | L66: 0.1677583719 | M66: 0.1620907082
C67: Summe | D67: =SUM(D63:D66) -> 167335.3984 | E67: =SUM(E63:E66) -> 87139.21027 | F67: =SUM(F63:F66) -> 113458.1791 | G67: =SUM(D67:F67) -> 367932.7877 | I67: Summe | J67: =SUM(J63:J66) -> 1 | K67: =SUM(K63:K66) -> 1 | L67: =SUM(L63:L66) -> 1 | M67: =SUM(M63:M66) -> 1
C69: Kosten je Haushaltsjahr
C70: Haushaltplan: erforderliche Haushaltsmittel (in €) je Haushaltsjahr im Betrachtungszeitraum
C71: Hinweis: | D71: Die Summe kann höher sein als die Lebenszykluskosten. Bei den Lebenszykluskosten wird die letzte Beschaffung einer Komponente nur anteilig einbezogen, sofern der Betrachtungszeitraum kein ganzzahliges Vielfaches der angenommenen Nutzungsdauer der Komponente ist.
C73: Kosten in EURO / Betrachtungszeitraum | D73: APC mit Desktop | E73: APC mit Notebook | F73: APC mit Mini-PC | G73: Summe | I73: Kosten: Anteil der Ausstattung in % innerhalb eines Jahres | J73: APC mit Desktop | K73: APC mit Notebook | L73: APC mit Mini-PC | M73: Summe
C74: =C146 -> 1 | D74: =IF(C74<=$F$89,M146,"-") -> 93076.99846 | E74: =IF(C74<=$F$89,M163,"-") -> 48500.5734 | F74: =IF(C74<=$F$89,M180,"-") -> 64319.63857 | G74: =IF(C74<=$F$89,(IF(SUM(D74:F74)>=0,SUM(D74:F74),0)),"-") -> 205897.2104 | I74: =C74 -> 1 | J74: =IF(C74<=$F$89,(IF(G74=0,0,D74/$G$74)),"-") -> 0.4520556557 | K74: =IF(C74<=$F$89,(IF(G74=0,0,E74/$G$74)),"-") -> 0.2355572147 | L74: =IF(C74<=$F$89,(IF(G74=0,0,F74/$G$74)),"-") -> 0.3123871297 | M74: =IF(C74<=$F$89,SUM(J74:L74),"-") -> 1
C75: 2 | D75: 1639.115349 | E75: 426.9868851 | F75: 840.4037 | G75: 2906.505934 | I75: =C75 -> 2 | J75: =IF(C75<=$F$89,(IF(G75=0,0,D75/$G$74)),"-") -> 0.007960842918 | K75: 0.002073786644 | L75: =IF(C75<=$F$89,(IF(G75=0,0,F75/$G$74)),"-") -> 0.004081666275 | M75: =IF(C75<=$F$89,SUM(J75:L75),"-") -> 0.01411629584
C76: 3 | D76: 1648.556133 | E76: 2304.446194 | F76: 845.2441583 | G76: 4798.246485 | I76: 3 | J76: 0.008006694843 | K76: 0.01119221668 | L76: 0.004105175376 | M76: 0.0233040869
C77: 4 | D77: 1658.051292 | E77: 431.9196674 | F77: 850.112496 | G77: 2940.083456 | I77: 4 | J77: 0.008052810861 | K77: 0.002097744144 | L77: 0.004128819882 | M77: 0.01427937489
C78: 5 | D78: 1667.601141 | E78: 434.4073875 | F78: 855.0088738 | G78: 2957.017402 | I78: 5 | J78: 0.008099192493 | K78: 0.002109826484 | L78: 0.004152600572 | M78: 0.01436161955
C79: 6 | D79: 1677.205994 | E79: 436.909436 | F79: 859.9334533 | G79: 2974.048883 | I79: 6 | J79: 0.008145841268 | K79: 0.002121978414 | L79: 0.004176518232 | M79: 0.01444433791
C80: 7 | D80: 92687.27147 | E80: 48399.05015 | F80: 64119.81859 | G80: 205206.1402 | I80: 7 | J80: 0.4501628326 | K80: 0.2350641373 | L80: 0.3114166455 | M80: 0.9966436154
C81: 8 | D81: 1247.143655 | E81: 324.8788957 | F81: 639.4328153 | G81: 2211.455366 | I81: 8 | J81: 0.006057117786 | K81: 0.001577869341 | L81: 0.003105592417 | M81: 0.01074057954
C82: 9 | D82: 1254.326807 | E82: 2201.750095 | F82: 643.1157451 | G82: 4099.192647 | I82: 9 | J82: 0.00609200486 | K82: 0.01069344305 | L82: 0.003123479642 | M82: 0.01990892756
C83: 10 | D83: 1261.55133 | E83: 328.6320716 | F83: 646.8198875 | G83: 2237.003289 | I83: 10 | J83: 0.006127092872 | K83: 0.001596097737 | L83: 0.003141469892 | M83: 0.0108646605
C84: 11 | D84: - | E84: - | F84: - | G84: =IF(C84<=$F$89,(IF(SUM(D84:F84)>=0,SUM(D84:F84),0)),"-") -> - | I84: 11 | J84: - | K84: =IF(C84<=$F$89,(IF(G84=0,0,E84/$G$74)),"-") -> - | L84: - | M84: -
C85: 12 | D85: - | E85: - | F85: - | G85: =IF(C85<=$F$89,(IF(SUM(D85:F85)>=0,SUM(D85:F85),0)),"-") -> - | I85: 12 | J85: - | K85: - | L85: - | M85: -
B87: 4.Berechnungsweg: Stromverbrauch und Energiekosten
C88: Berechnung des Stromverbrauchs innerhalb des Betrachtungszeitraums
C89: Betrachtungszeitraum | F89: =E6 -> 10 | G89: Jahre
C90: =C26 -> Nutzungsdauer [Jahre] | I90: IT-Gerät | J90: Anzahl des Beschaffungszyklus | K90: Einheit
D91: Desktop-PC | F91: =D27 -> 6 | G91: Jahre | I91: Desktop-PC | J91: =IF(D21<>0,$E$6/D27, "0") -> 1.666666667 | K91: Anzahl des Beschaffungszyklus
D92: Notebook | F92: =D28 -> 6 | G92: Jahre | I92: Notebook | J92: =IF(D22<>0,$E$6/D28, "0") -> 1.666666667 | K92: Anzahl des Beschaffungszyklus
D93: Mini-PC | F93: =D29 -> 6 | G93: Jahre | I93: Mini-PC | J93: =IF(D23<>0,$E$6/D29, "0") -> 1.666666667 | K93: Anzahl des Beschaffungszyklus
D94: Monitor | F94: =D30 -> 6 | G94: Jahre | I94: Monitor | J94: =IF(D30<>0,$E$6/D30, "0") -> 1.666666667 | K94: Anzahl des Beschaffungszyklus
C95: Energieeffizienzsteigerung von 5% pro Jahr | F95: 0.05
C97: Stromverbrauch | D97: Wh je Gerät und Kalendertag | I97: Stromverbrauch | J97: kWh pro Gerät und Jahr im ersten Jahr
C98: IT-Gerät | D98: Hohe Nutzungsintensität | E98: Mittlere Nutzungsintensität | F98: Geringe Nutzungsintensität | I98: IT-Gerät | J98: Hohe Nutzungsintensität | K98: Mittlere Nutzungsintensität | L98: Geringe Nutzungsintensität
C99: Desktop-PC | D99: =IF($D$21>0,SUMPRODUCT(Konstante_Werte!$E$28:$G$28,Szen1_Variablen!$E$38:$G$38),0) -> 259.185 | E99: =IF($D$21>0,SUMPRODUCT(Konstante_Werte!$E$29:$G$29,Szen1_Variablen!$E$38:$G$38),0) -> 213.72 | F99: =IF($D$21>0,SUMPRODUCT(Konstante_Werte!$E$30:$G$30,Szen1_Variablen!$E$38:$G$38),0) -> 168.255 | I99: Desktop-PC | J99: =IF($D$21>0,(D$99*$E$5+Szen1_Variablen!$G$38*24*(365-$E$5))/1000,0) -> 55.686075 | K99: =IF($D$21>0,(E$99*$E$5+Szen1_Variablen!$G$38*24*(365-$E$5))/1000,0) -> 46.45668 | L99: =IF($D$21>0,(F$99*$E$5+Szen1_Variablen!$G$38*24*(365-$E$5))/1000,0) -> 37.227285
C100: Notebook | D100: =IF($D$22>0,SUMPRODUCT(Konstante_Werte!$E$33:$G$33,Szen1_Variablen!$E$42:$G$42),0) -> 76.0775 | E100: =IF($D$22>0,SUMPRODUCT(Konstante_Werte!$E$34:$G$34,Szen1_Variablen!$E$42:$G$42),0) -> 63.62 | F100: =IF($D$22>0,SUMPRODUCT(Konstante_Werte!$E$35:$G$35,Szen1_Variablen!$E$42:$G$42),0) -> 51.1625 | I100: Notebook | J100: =IF($D$22>0,(D$100*$E$5+Szen1_Variablen!$G$42*24*(365-$E$5))/1000,0) -> 17.2322125 | K100: =IF($D$22>0,(E$100*$E$5+Szen1_Variablen!$G$42*24*(365-$E$5))/1000,0) -> 14.70334 | L100: =IF($D$22>0,(F$100*$E$5+Szen1_Variablen!$G$42*24*(365-$E$5))/1000,0) -> 12.1744675
C101: Mini-PC | D101: =IF($D$23>0,SUMPRODUCT(Konstante_Werte!$E$38:$G$38,Szen1_Variablen!$E$46:$G$46),0) -> 139.065 | E101: =IF($D$23>0,SUMPRODUCT(Konstante_Werte!$E$39:$G$39,Szen1_Variablen!$E$46:$G$46),0) -> 117.24 | F101: =IF($D$23>0,SUMPRODUCT(Konstante_Werte!$E$40:$G$40,Szen1_Variablen!$E$46:$G$46),0) -> 95.415 | I101: Mini-PC | J101: =IF($D$23>0,(D$101*$E$5+Szen1_Variablen!$G$46*24*(365-$E$5))/1000,0) -> 31.768275 | K101: =IF($D$23>0,(E$101*$E$5+Szen1_Variablen!$G$46*24*(365-$E$5))/1000,0) -> 27.3378 | L101: =IF($D$23>0,(F$101*$E$5+Szen1_Variablen!$G$46*24*(365-$E$5))/1000,0) -> 22.907325
C102: Monitor | D102: =IF($E$24>0,SUMPRODUCT(Konstante_Werte!$E$43:$G$43,Szen1_Variablen!$E$50:$G$50),0) -> 146.6 | E102: =IF($E$24>0,SUMPRODUCT(Konstante_Werte!$E$44:$G$44,Szen1_Variablen!$E$50:$G$50),0) -> 119.12 | F102: =IF($E$24>0,SUMPRODUCT(Konstante_Werte!$E$45:$G$45,Szen1_Variablen!$E$50:$G$50),0) -> 91.64 | I102: Monitor | J102: =IF($E$24>0,(D$102*$E$5+Szen1_Variablen!$G$50*24*(365-$E$5))/1000,0) -> 30.9262 | K102: =IF($E$24>0,(E$102*$E$5+Szen1_Variablen!$G$50*24*(365-$E$5))/1000,0) -> 25.34776 | L102: =IF($E$24>0,(F$102*$E$5+Szen1_Variablen!$G$50*24*(365-$E$5))/1000,0) -> 19.76932
C104: Stromverbrauch im ersten Jahr je Geräteklasse unter Berücksichtigung der Nutzungsprofile
C105: IT-Gerät | D105: kWh pro Gerät und Jahr im ersten Jahr
C106: Desktop-PC | D106: =IF($D$21>0,SUMPRODUCT(J99:L99,$D$17:$F$17),0) -> 46.45668
C107: Notebook | D107: =IF($D$22>0,SUMPRODUCT(J100:L100,$D$17:$F$17),0) -> 14.70334
C108: Mini-PC | D108: =IF($D$23>0,SUMPRODUCT(J101:L101,$D$17:$F$17),0) -> 27.3378
C109: Monitor | D109: =IF($E$24>0,SUMPRODUCT(J102:L102,$D$17:$F$17),0) -> 25.34776
C111: Energieeffizienzsteigerung von 5% pro Jahr der neubeschafften Geräte wird berücksichtigt
C112: Jahr (max: 12 Jahre) | D112: Desktop | E112: Notebook | F112: Mini-PC | G112: Monitor | H112: Einheit
C113: 1 | D113: =D106 -> 46.45668 | E113: =D107 -> 14.70334 | F113: =D108 -> 27.3378 | G113: =D109 -> 25.34776 | H113: kWh/a·Gerät
C114: =C113+1 -> 2 | D114: =IF($D$113<>0,IF(MOD(C113,$F$91)=0,$D$113*(1-$F$95)^C113,D113),0) -> 46.45668 | E114: =IF($E$113<>0,IF(MOD(C113,$F$92)=0,$E$113*(1-$F$95)^C113,E113),0) -> 14.70334 | F114: =IF($F$113<>0,IF(MOD(C113,$F$93)=0,$F$113*(1-$F$95)^C113,F113),0) -> 27.3378 | G114: =IF($G$113<>0,IF(MOD(C113,$F$94)=0,$G$113*(1-$F$95)^C113,G113),0) -> 25.34776 | H114: kWh/a·Gerät
C115: =C114+1 -> 3 | D115: =IF($D$113<>0,IF(MOD(C114,$F$91)=0,$D$113*(1-$F$95)^C114,D114),0) -> 46.45668 | E115: =IF($E$113<>0,IF(MOD(C114,$F$92)=0,$E$113*(1-$F$95)^C114,E114),0) -> 14.70334 | F115: =IF($F$113<>0,IF(MOD(C114,$F$93)=0,$F$113*(1-$F$95)^C114,F114),0) -> 27.3378 | G115: =IF($G$113<>0,IF(MOD(C114,$F$94)=0,$G$113*(1-$F$95)^C114,G114),0) -> 25.34776 | H115: kWh/a·Gerät
C116: 4 | D116: 46.45668 | E116: 14.70334 | F116: 27.3378 | G116: 25.34776 | H116: kWh/a·Gerät
C117: 5 | D117: 46.45668 | E117: 14.70334 | F117: 27.3378 | G117: 25.34776 | H117: kWh/a·Gerät
C118: 6 | D118: 46.45668 | E118: 14.70334 | F118: 27.3378 | G118: 25.34776 | H118: kWh/a·Gerät
C119: 7 | D119: 34.14992873 | E119: 10.808306 | F119: 20.09579509 | G119: 18.63293282 | H119: kWh/a·Gerät
C120: 8 | D120: 34.14992873 | E120: 10.808306 | F120: 20.09579509 | G120: 18.63293282 | H120: kWh/a·Gerät
C121: 9 | D121: 34.14992873 | E121: 10.808306 | F121: 20.09579509 | G121: 18.63293282 | H121: kWh/a·Gerät
C122: 10 | D122: 34.14992873 | E122: 10.808306 | F122: 20.09579509 | G122: 18.63293282 | H122: kWh/a·Gerät
C123: 11 | D123: 34.14992873 | E123: 10.808306 | F123: 20.09579509 | G123: 18.63293282 | H123: kWh/a·Gerät
C124: 12 | D124: 34.14992873 | E124: 10.808306 | F124: 20.09579509 | G124: 18.63293282 | H124: kWh/a·Gerät
C125: ="Summe über Betrachtungszeitraum von " &$F$89 & " Jahren" -> Summe über Betrachtungszeitraum von 10 Jahren | D125: =SUM(D113:OFFSET(D113,$F$89-1,0)) -> 415.3397949 | E125: =SUM(E113:OFFSET(E113,$F$89-1,0)) -> 131.453264 | F125: =SUM(F113:OFFSET(F113,$F$89-1,0)) -> 244.4099804 | G125: =SUM(G113:OFFSET(G113,$F$89-1,0)) -> 226.6182913 | H125: kWh/Betrachtungszeitraum·Gerät
C127: Berechnung der Energiekosten innerhalb des Betrachtungszeitraums
C128: Jahr (max: 12 Jahre) | D128: Desktop | E128: Notebook | F128: Mini-PC | G128: Monitor | H128: Einheit
C129: 1 | D129: =IF($D$21>0,D113*$G8,0) -> 9.84881616 | E129: =IF($D$22>0,E113*$G8,0) -> 3.11710808 | F129: =IF($D$23>0,F113*$G8,0) -> 5.7956136 | G129: =IF($E$24>0,G113*$G8,0) -> 5.37372512 | H129: Euro/a·Gerät
C130: =C129+1 -> 2 | D130: =IF($D$21>0,D114*$G$8*(1+$G$9)^C129,0) -> 9.905542211 | E130: =IF($D$22>0,E114*$G$8*(1+$G$9)^C129,0) -> 3.135061632 | F130: =IF($D$23>0,F114*$G$8*(1+$G$9)^C129,0) -> 5.828994493 | G130: =IF($E$24>0,G114*$G$8*(1+$G$9)^C129,0) -> 5.404676069 | H130: Euro/a·Gerät
C131: =C130+1 -> 3 | D131: =IF($D$21>0,D115*$G$8*(1+$G$9)^C130,0) -> 9.962594987 | E131: =IF($D$22>0,E115*$G$8*(1+$G$9)^C130,0) -> 3.153118591 | F131: =IF($D$23>0,F115*$G$8*(1+$G$9)^C130,0) -> 5.862567649 | G131: =IF($E$24>0,G115*$G$8*(1+$G$9)^C130,0) -> 5.435805286 | H131: Euro/a·Gerät
C132: 4 | D132: 10.01997637 | E132: 3.171279552 | F132: 5.896334175 | G132: 5.467113797 | H132: Euro/a·Gerät
C133: 5 | D133: 10.07768825 | E133: 3.189545114 | F133: 5.930295186 | G133: 5.498602635 | H133: Euro/a·Gerät
C134: 6 | D134: 10.13573253 | E134: 3.207915881 | F134: 5.964451802 | G134: 5.530272839 | H134: Euro/a·Gerät
C135: 7 | D135: 7.493608422 | E135: 2.371694931 | F135: 4.409673019 | G135: 4.088673315 | H135: Euro/a·Gerät
C136: 8 | D136: 7.536769226 | E136: 2.38535514 | F136: 4.435071334 | G136: 4.112222774 | H136: Euro/a·Gerät
C137: 9 | D137: 7.580178621 | E137: 2.399094028 | F137: 4.460615935 | G137: 4.135907871 | H137: Euro/a·Gerät
C138: 10 | D138: 7.623838041 | E138: 2.412912047 | F138: 4.486307666 | G138: 4.159729386 | H138: Euro/a·Gerät
C139: 11 | D139: 7.667748926 | E139: 2.426809653 | F139: 4.512147372 | G139: 4.183688105 | H139: Euro/a·Gerät
C140: 12 | D140: 7.711912723 | E140: 2.440787306 | F140: 4.538135907 | G140: 4.207784819 | H140: Euro/a·Gerät
C141: =C125 -> Summe über Betrachtungszeitraum von 10 Jahren | D141: =SUM(D129:OFFSET(D129,$F$89-1,0)) -> 90.18474481 | E141: =SUM(E129:OFFSET(E129,$F$89-1,0)) -> 28.54308499 | F141: =SUM(F129:OFFSET(F129,$F$89-1,0)) -> 53.06992486 | G141: =SUM(G129:OFFSET(G129,$F$89-1,0)) -> 49.20672909 | H141: Euro/Betrachtungszeitraum·Gerät
C143: APC mit Desktop (für alle Geräte)
C144: In EURO | D144: Anschaffungskosten | I144: Energiekosten | K144: Bruttopersonal-kosten | L144: Sach-und Gemeinkosten | M144: Summe | O144: Anteil
C145: Jahr (max: 12 Jahre) | D145: Desktop | E145: Monitor | F145: Ersatz HDD durch SSD | G145: RAM hinzufügen | H145: Wechsel des Akkus | I145: Desktop | J145: Monitor
C146: 1 | D146: =IF($D$21>0,(IF(MOD(($C146-1),$D$27)<>0,0,Konstante_Werte!$E$63*$D$21)),0) -> 31200 | E146: =IF($E$21>0,(IF(MOD(($C146-1),$D$30)<>0,0,Konstante_Werte!$E$66*$E$21)),0) -> 22680 | F146: =IF($D$21>0,(IF($D$27=1,$D$21*$D$34*$J$34*Konstante_Werte!$E$67, IF(AND($D$27<>1,$D$27/($J$34+1)<1),Konstante_Werte!$E$67*$D$34*$D$21*$J$34/$D$27,IF(MOD($C146,$D$27)=0,0,IF(INT(MOD(($C146-$D$27*INT(($C146-1)/$D$27)),($D$27/($J$34+1))))<>0,0,Konstante_Werte!$E$67*$D$34*$D$21))))),0) -> 0 | G146: =IF($D$21>0,(IF($D$27=1,$D$21*$E$34*$K$34*Konstante_Werte!$E$68, IF(AND($D$27<>1,$D$27/($K$34+1)<1),Konstante_Werte!$E$68*$E$34*$D$21*$K$34/$D$27,IF(MOD($C146,$D$27)=0,0,IF(INT(MOD(($C146-$D$27*INT(($C146-1)/$D$27)),($D$27/($K$34+1))))<>0,0,Konstante_Werte!$E$68*$E$34*$D$21))))),0) -> 0 | H146: - | I146: =IF($D$21>0, D129*$D$21,0) -> 984.881616 | J146: =G129*$E$21 -> 644.8470144 | K146: =IF($D$21>0,(IF(MOD(($C146-1),$D$27)<>0,0,$K$13*$D$21)),0)+IF($E$21>0,(IF(MOD(($C146-1),$D$30)<>0,0,$K$13*$E$21)),0) -> 20817.73756 | L146: =IF($D$21>0,(IF(MOD(($C146-1),$D$27)<>0,0,$K$14*$D$21)),0)+IF($E$21>0,(IF(MOD(($C146-1),$D$30)<>0,0,$K$14*$E$21)),0) -> 16749.53227 | M146: =SUM(D146:L146) -> 93076.99846 | N146: Euro/a | O146: =IF($M$158<>0,(IF(C146<=$F$89,M146/$M$158,"-")),0) -> 0.4705187717
C147: =C146+1 -> 2 | D147: =IF($D$21>0,(IF(MOD(($C147-1),$D$27)<>0,0,Konstante_Werte!$E$63*$D$21)),0) -> 0 | E147: =IF($E$21>0,(IF(MOD(($C147-1),$D$30)<>0,0,Konstante_Werte!$E$66*$E$21)),0) -> 0 | F147: =IF($D$21>0,(IF($D$27=1,$D$21*$D$34*$J$34*Konstante_Werte!$E$67, IF(AND($D$27<>1,$D$27/($J$34+1)<1),Konstante_Werte!$E$67*$D$34*$D$21*$J$34/$D$27,IF(MOD($C147,$D$27)=0,0,IF(INT(MOD(($C147-$D$27*INT(($C147-1)/$D$27)),($D$27/($J$34+1))))<>0,0,Konstante_Werte!$E$67*$D$34*$D$21))))),0) -> 0 | G147: =IF($D$21>0,(IF($D$27=1,$D$21*$E$34*$K$34*Konstante_Werte!$E$68, IF(AND($D$27<>1,$D$27/($K$34+1)<1),Konstante_Werte!$E$68*$E$34*$D$21*$K$34/$D$27,IF(MOD($C147,$D$27)=0,0,IF(INT(MOD(($C147-$D$27*INT(($C147-1)/$D$27)),($D$27/($K$34+1))))<>0,0,Konstante_Werte!$E$68*$E$34*$D$21))))),0) -> 0 | H147: - | I147: 990.5542211 | J147: 648.5611283 | K147: 0 | L147: 0 | M147: =SUM(D147:L147) -> 1639.115349 | N147: Euro/a | O147: 0.008285984225
C148: =C147+1 -> 3 | D148: =IF($D$21>0,(IF(MOD(($C148-1),$D$27)<>0,0,Konstante_Werte!$E$63*$D$21)),0) -> 0 | E148: =IF($E$21>0,(IF(MOD(($C148-1),$D$30)<>0,0,Konstante_Werte!$E$66*$E$21)),0) -> 0 | F148: =IF($D$21>0,(IF($D$27=1,$D$21*$D$34*$J$34*Konstante_Werte!$E$67, IF(AND($D$27<>1,$D$27/($J$34+1)<1),Konstante_Werte!$E$67*$D$34*$D$21*$J$34/$D$27,IF(MOD($C148,$D$27)=0,0,IF(INT(MOD(($C148-$D$27*INT(($C148-1)/$D$27)),($D$27/($J$34+1))))<>0,0,Konstante_Werte!$E$67*$D$34*$D$21))))),0) -> 0 | G148: =IF($D$21>0,(IF($D$27=1,$D$21*$E$34*$K$34*Konstante_Werte!$E$68, IF(AND($D$27<>1,$D$27/($K$34+1)<1),Konstante_Werte!$E$68*$E$34*$D$21*$K$34/$D$27,IF(MOD($C148,$D$27)=0,0,IF(INT(MOD(($C148-$D$27*INT(($C148-1)/$D$27)),($D$27/($K$34+1))))<>0,0,Konstante_Werte!$E$68*$E$34*$D$21))))),0) -> 0 | H148: - | I148: 996.2594987 | J148: 652.2966343 | K148: 0 | L148: 0 | M148: 1648.556133 | N148: Euro/a | O148: 0.008333708861
C149: 4 | D149: =IF($D$21>0,(IF(MOD(($C149-1),$D$27)<>0,0,Konstante_Werte!$E$63*$D$21)),0) -> 0 | E149: =IF($E$21>0,(IF(MOD(($C149-1),$D$30)<>0,0,Konstante_Werte!$E$66*$E$21)),0) -> 0 | F149: =IF($D$21>0,(IF($D$27=1,$D$21*$D$34*$J$34*Konstante_Werte!$E$67, IF(AND($D$27<>1,$D$27/($J$34+1)<1),Konstante_Werte!$E$67*$D$34*$D$21*$J$34/$D$27,IF(MOD($C149,$D$27)=0,0,IF(INT(MOD(($C149-$D$27*INT(($C149-1)/$D$27)),($D$27/($J$34+1))))<>0,0,Konstante_Werte!$E$67*$D$34*$D$21))))),0) -> 0 | G149: =IF($D$21>0,(IF($D$27=1,$D$21*$E$34*$K$34*Konstante_Werte!$E$68, IF(AND($D$27<>1,$D$27/($K$34+1)<1),Konstante_Werte!$E$68*$E$34*$D$21*$K$34/$D$27,IF(MOD($C149,$D$27)=0,0,IF(INT(MOD(($C149-$D$27*INT(($C149-1)/$D$27)),($D$27/($K$34+1))))<>0,0,Konstante_Werte!$E$68*$E$34*$D$21))))),0) -> 0 | H149: - | I149: 1001.997637 | J149: 656.0536556 | K149: 0 | L149: 0 | M149: 1658.051292 | N149: Euro/a | O149: 0.008381708376
C150: 5 | D150: =IF($D$21>0,(IF(MOD(($C150-1),$D$27)<>0,0,Konstante_Werte!$E$63*$D$21)),0) -> 0 | E150: =IF($E$21>0,(IF(MOD(($C150-1),$D$30)<>0,0,Konstante_Werte!$E$66*$E$21)),0) -> 0 | F150: =IF($D$21>0,(IF($D$27=1,$D$21*$D$34*$J$34*Konstante_Werte!$E$67, IF(AND($D$27<>1,$D$27/($J$34+1)<1),Konstante_Werte!$E$67*$D$34*$D$21*$J$34/$D$27,IF(MOD($C150,$D$27)=0,0,IF(INT(MOD(($C150-$D$27*INT(($C150-1)/$D$27)),($D$27/($J$34+1))))<>0,0,Konstante_Werte!$E$67*$D$34*$D$21))))),0) -> 0 | G150: =IF($D$21>0,(IF($D$27=1,$D$21*$E$34*$K$34*Konstante_Werte!$E$68, IF(AND($D$27<>1,$D$27/($K$34+1)<1),Konstante_Werte!$E$68*$E$34*$D$21*$K$34/$D$27,IF(MOD($C150,$D$27)=0,0,IF(INT(MOD(($C150-$D$27*INT(($C150-1)/$D$27)),($D$27/($K$34+1))))<>0,0,Konstante_Werte!$E$68*$E$34*$D$21))))),0) -> 0 | H150: - | I150: 1007.768825 | J150: 659.8323162 | K150: 0 | L150: 0 | M150: 1667.601141 | N150: Euro/a | O150: 0.008429984353
C151: 6 | D151: =IF($D$21>0,(IF(MOD(($C151-1),$D$27)<>0,0,Konstante_Werte!$E$63*$D$21)),0) -> 0 | E151: =IF($E$21>0,(IF(MOD(($C151-1),$D$30)<>0,0,Konstante_Werte!$E$66*$E$21)),0) -> 0 | F151: =IF($D$21>0,(IF($D$27=1,$D$21*$D$34*$J$34*Konstante_Werte!$E$67, IF(AND($D$27<>1,$D$27/($J$34+1)<1),Konstante_Werte!$E$67*$D$34*$D$21*$J$34/$D$27,IF(MOD($C151,$D$27)=0,0,IF(INT(MOD(($C151-$D$27*INT(($C151-1)/$D$27)),($D$27/($J$34+1))))<>0,0,Konstante_Werte!$E$67*$D$34*$D$21))))),0) -> 0 | G151: =IF($D$21>0,(IF($D$27=1,$D$21*$E$34*$K$34*Konstante_Werte!$E$68, IF(AND($D$27<>1,$D$27/($K$34+1)<1),Konstante_Werte!$E$68*$E$34*$D$21*$K$34/$D$27,IF(MOD($C151,$D$27)=0,0,IF(INT(MOD(($C151-$D$27*INT(($C151-1)/$D$27)),($D$27/($K$34+1))))<>0,0,Konstante_Werte!$E$68*$E$34*$D$21))))),0) -> 0 | H151: - | I151: 1013.573253 | J151: 663.6327407 | K151: 0 | L151: 0 | M151: 1677.205994 | N151: Euro/a | O151: 0.008478538384
C152: 7 | D152: =IF($D$21>0,(IF(MOD(($C152-1),$D$27)<>0,0,Konstante_Werte!$E$63*$D$21)),0) -> 31200 | E152: =IF($E$21>0,(IF(MOD(($C152-1),$D$30)<>0,0,Konstante_Werte!$E$66*$E$21)),0) -> 22680 | F152: =IF($D$21>0,(IF($D$27=1,$D$21*$D$34*$J$34*Konstante_Werte!$E$67, IF(AND($D$27<>1,$D$27/($J$34+1)<1),Konstante_Werte!$E$67*$D$34*$D$21*$J$34/$D$27,IF(MOD($C152,$D$27)=0,0,IF(INT(MOD(($C152-$D$27*INT(($C152-1)/$D$27)),($D$27/($J$34+1))))<>0,0,Konstante_Werte!$E$67*$D$34*$D$21))))),0) -> 0 | G152: =IF($D$21>0,(IF($D$27=1,$D$21*$E$34*$K$34*Konstante_Werte!$E$68, IF(AND($D$27<>1,$D$27/($K$34+1)<1),Konstante_Werte!$E$68*$E$34*$D$21*$K$34/$D$27,IF(MOD($C152,$D$27)=0,0,IF(INT(MOD(($C152-$D$27*INT(($C152-1)/$D$27)),($D$27/($K$34+1))))<>0,0,Konstante_Werte!$E$68*$E$34*$D$21))))),0) -> 0 | H152: - | I152: 749.3608422 | J152: 490.6407978 | K152: 20817.73756 | L152: 16749.53227 | M152: 92687.27147 | N152: Euro/a | O152: 0.4685486409
C153: 8 | D153: =IF($D$21>0,(IF(MOD(($C153-1),$D$27)<>0,0,Konstante_Werte!$E$63*$D$21)),0) -> 0 | E153: =IF($E$21>0,(IF(MOD(($C153-1),$D$30)<>0,0,Konstante_Werte!$E$66*$E$21)),0) -> 0 | F153: =IF($D$21>0,(IF($D$27=1,$D$21*$D$34*$J$34*Konstante_Werte!$E$67, IF(AND($D$27<>1,$D$27/($J$34+1)<1),Konstante_Werte!$E$67*$D$34*$D$21*$J$34/$D$27,IF(MOD($C153,$D$27)=0,0,IF(INT(MOD(($C153-$D$27*INT(($C153-1)/$D$27)),($D$27/($J$34+1))))<>0,0,Konstante_Werte!$E$67*$D$34*$D$21))))),0) -> 0 | G153: =IF($D$21>0,(IF($D$27=1,$D$21*$E$34*$K$34*Konstante_Werte!$E$68, IF(AND($D$27<>1,$D$27/($K$34+1)<1),Konstante_Werte!$E$68*$E$34*$D$21*$K$34/$D$27,IF(MOD($C153,$D$27)=0,0,IF(INT(MOD(($C153-$D$27*INT(($C153-1)/$D$27)),($D$27/($K$34+1))))<>0,0,Konstante_Werte!$E$68*$E$34*$D$21))))),0) -> 0 | H153: - | I153: 753.6769226 | J153: 493.4667329 | K153: 0 | L153: 0 | M153: 1247.143655 | N153: Euro/a | O153: 0.006304506061
C154: 9 | D154: =IF($D$21>0,(IF(MOD(($C154-1),$D$27)<>0,0,Konstante_Werte!$E$63*$D$21)),0) -> 0 | E154: =IF($E$21>0,(IF(MOD(($C154-1),$D$30)<>0,0,Konstante_Werte!$E$66*$E$21)),0) -> 0 | F154: =IF($D$21>0,(IF($D$27=1,$D$21*$D$34*$J$34*Konstante_Werte!$E$67, IF(AND($D$27<>1,$D$27/($J$34+1)<1),Konstante_Werte!$E$67*$D$34*$D$21*$J$34/$D$27,IF(MOD($C154,$D$27)=0,0,IF(INT(MOD(($C154-$D$27*INT(($C154-1)/$D$27)),($D$27/($J$34+1))))<>0,0,Konstante_Werte!$E$67*$D$34*$D$21))))),0) -> 0 | G154: =IF($D$21>0,(IF($D$27=1,$D$21*$E$34*$K$34*Konstante_Werte!$E$68, IF(AND($D$27<>1,$D$27/($K$34+1)<1),Konstante_Werte!$E$68*$E$34*$D$21*$K$34/$D$27,IF(MOD($C154,$D$27)=0,0,IF(INT(MOD(($C154-$D$27*INT(($C154-1)/$D$27)),($D$27/($K$34+1))))<>0,0,Konstante_Werte!$E$68*$E$34*$D$21))))),0) -> 0 | H154: - | I154: 758.0178621 | J154: 496.3089445 | K154: 0 | L154: 0 | M154: 1254.326807 | N154: Euro/a | O154: 0.006340818013
C155: 10 | D155: =IF($D$21>0,(IF(MOD(($C155-1),$D$27)<>0,0,Konstante_Werte!$E$63*$D$21)),0) -> 0 | E155: =IF($E$21>0,(IF(MOD(($C155-1),$D$30)<>0,0,Konstante_Werte!$E$66*$E$21)),0) -> 0 | F155: =IF($D$21>0,(IF($D$27=1,$D$21*$D$34*$J$34*Konstante_Werte!$E$67, IF(AND($D$27<>1,$D$27/($J$34+1)<1),Konstante_Werte!$E$67*$D$34*$D$21*$J$34/$D$27,IF(MOD($C155,$D$27)=0,0,IF(INT(MOD(($C155-$D$27*INT(($C155-1)/$D$27)),($D$27/($J$34+1))))<>0,0,Konstante_Werte!$E$67*$D$34*$D$21))))),0) -> 0 | G155: =IF($D$21>0,(IF($D$27=1,$D$21*$E$34*$K$34*Konstante_Werte!$E$68, IF(AND($D$27<>1,$D$27/($K$34+1)<1),Konstante_Werte!$E$68*$E$34*$D$21*$K$34/$D$27,IF(MOD($C155,$D$27)=0,0,IF(INT(MOD(($C155-$D$27*INT(($C155-1)/$D$27)),($D$27/($K$34+1))))<>0,0,Konstante_Werte!$E$68*$E$34*$D$21))))),0) -> 0 | H155: - | I155: 762.3838041 | J155: 499.1675263 | K155: 0 | L155: 0 | M155: 1261.55133 | N155: Euro/a | O155: 0.006377339109
C156: 11 | D156: =IF($D$21>0,(IF(MOD(($C156-1),$D$27)<>0,0,Konstante_Werte!$E$63*$D$21)),0) -> 0 | E156: =IF($E$21>0,(IF(MOD(($C156-1),$D$30)<>0,0,Konstante_Werte!$E$66*$E$21)),0) -> 0 | F156: =IF($D$21>0,(IF($D$27=1,$D$21*$D$34*$J$34*Konstante_Werte!$E$67, IF(AND($D$27<>1,$D$27/($J$34+1)<1),Konstante_Werte!$E$67*$D$34*$D$21*$J$34/$D$27,IF(MOD($C156,$D$27)=0,0,IF(INT(MOD(($C156-$D$27*INT(($C156-1)/$D$27)),($D$27/($J$34+1))))<>0,0,Konstante_Werte!$E$67*$D$34*$D$21))))),0) -> 0 | G156: =IF($D$21>0,(IF($D$27=1,$D$21*$E$34*$K$34*Konstante_Werte!$E$68, IF(AND($D$27<>1,$D$27/($K$34+1)<1),Konstante_Werte!$E$68*$E$34*$D$21*$K$34/$D$27,IF(MOD($C156,$D$27)=0,0,IF(INT(MOD(($C156-$D$27*INT(($C156-1)/$D$27)),($D$27/($K$34+1))))<>0,0,Konstante_Werte!$E$68*$E$34*$D$21))))),0) -> 0 | H156: - | I156: 766.7748926 | J156: 502.0425726 | K156: 0 | L156: 0 | M156: 1268.817465 | N156: Euro/a | O156: -
C157: 12 | D157: =IF($D$21>0,(IF(MOD(($C157-1),$D$27)<>0,0,Konstante_Werte!$E$63*$D$21)),0) -> 0 | E157: =IF($E$21>0,(IF(MOD(($C157-1),$D$30)<>0,0,Konstante_Werte!$E$66*$E$21)),0) -> 0 | F157: =IF($D$21>0,(IF($D$27=1,$D$21*$D$34*$J$34*Konstante_Werte!$E$67, IF(AND($D$27<>1,$D$27/($J$34+1)<1),Konstante_Werte!$E$67*$D$34*$D$21*$J$34/$D$27,IF(MOD($C157,$D$27)=0,0,IF(INT(MOD(($C157-$D$27*INT(($C157-1)/$D$27)),($D$27/($J$34+1))))<>0,0,Konstante_Werte!$E$67*$D$34*$D$21))))),0) -> 0 | G157: =IF($D$21>0,(IF($D$27=1,$D$21*$E$34*$K$34*Konstante_Werte!$E$68, IF(AND($D$27<>1,$D$27/($K$34+1)<1),Konstante_Werte!$E$68*$E$34*$D$21*$K$34/$D$27,IF(MOD($C157,$D$27)=0,0,IF(INT(MOD(($C157-$D$27*INT(($C157-1)/$D$27)),($D$27/($K$34+1))))<>0,0,Konstante_Werte!$E$68*$E$34*$D$21))))),0) -> 0 | H157: - | I157: 771.1912723 | J157: 504.9341783 | K157: 0 | L157: 0 | M157: 1276.125451 | N157: Euro/a | O157: -
C158: Summe über Betrachtungszeitraum | D158: =SUM(D146:OFFSET(D146,$F$89-1,0)) -> 62400 | E158: =SUM(E146:OFFSET(E146,$F$89-1,0)) -> 45360 | F158: =SUM(F146:OFFSET(F146,$F$89-1,0)) -> 0 | G158: =SUM(G146:OFFSET(G146,$F$89-1,0)) -> 0 | H158: - | I158: =SUM(I146:OFFSET(I146,$F$89-1,0)) -> 9018.474481 | J158: =SUM(J146:OFFSET(J146,$F$89-1,0)) -> 5904.807491 | K158: =SUM(K146:OFFSET(K146,$F$89-1,0)) -> 41635.47511 | L158: =SUM(L146:OFFSET(L146,$F$89-1,0)) -> 33499.06454 | M158: =SUM(M146:OFFSET(M146,$F$89-1,0)) -> 197817.8216 | N158: Euro/Betrachtungszeitraum | O158: -
C160: APC mit Notebook (für alle Geräte)
C161: In EURO | D161: Anschaffungskosten | I161: Energiekosten | K161: Bruttopersonal-kosten | L161: Sach-und Gemeinkosten | M161: Summe | O161: Anteil
C162: Jahr (max: 12 Jahre) | D162: Notebook | E162: Monitor | F162: Ersatz HDD durch SSD | G162: RAM hinzufügen | H162: Wechsel des Akkus | I162: =E128 -> Notebook | J162: =G128 -> Monitor
C163: 1 | D163: =IF($D$22>0,(IF(MOD(($C146-1),$D$28)<>0,0,Konstante_Werte!$E$64*$D$22)),0) -> 21550 | E163: =IF($E$22>0,(IF(MOD(($C163-1),$D$30)<>0,0,Konstante_Werte!$E$66*$E$22)),0) -> 9450 | F163: =IF($D$22>0,(IF($D$28=1,$D$22*$D$35*$J$35*Konstante_Werte!$E$67, IF(AND($D$28<>1,$D$28/($J$35+1)<1),Konstante_Werte!$E$67*$D$35*$D$22*$J$35/$D$28,IF(MOD($C163,$D$28)=0,0,IF(INT(MOD(($C163-$D$28*INT(($C163-1)/$D$28)),($D$28/($J$35+1))))<>0,0,Konstante_Werte!$E$67*$D$35*$D$22))))),0) -> 0 | G163: =IF($D$22>0,(IF($D$28=1,$D$22*$E$35*$K$35*Konstante_Werte!$E$68, IF(AND($D$28<>1,$D$28/($K$35+1)<1),Konstante_Werte!$E$68*$E$35*$D$22*$K$35/$D$28,IF(MOD($C163,$D$28)=0,0,IF(INT(MOD(($C163-$D$28*INT(($C163-1)/$D$28)),($D$28/($K$35+1))))<>0,0,Konstante_Werte!$E$68*$E$35*$D$22))))),0) -> 0 | H163: =IF($D$22>0,(IF($D$28=1,$D$22*$F$35*$L$35*Konstante_Werte!$E$69, IF(AND($D$28<>1,$D$28/($L$35+1)<1),Konstante_Werte!$E$69*$F$35*$D$22*$L$35/$D$28,IF(MOD($C163,$D$28)=0,0,IF(INT(MOD(($C163-$D$28*INT(($C163-1)/$D$28)),($D$28/($L$35+1))))<>0,0,Konstante_Werte!$E$69*$F$35*$D$22))))),0) -> 0 | I163: =IF($D$22>0, E129*$D$22,"0") -> 155.855404 | J163: =G129*$E$22 -> 268.686256 | K163: =IF($D$22>0,(IF(MOD(($C163-1),$D$28)<>0,0,$K$13*$D$22)),0)+IF($E$22>0,(IF(MOD(($C163-1),$D$30)<>0,0,$K$13*$E$22)),0) -> 9462.60798 | L163: =IF($D$22>0,(IF(MOD(($C163-1),$D$28)<>0,0,$K$14*$D$22)),0)+IF($E$22>0,(IF(MOD(($C163-1),$D$30)<>0,0,$K$14*$E$22)),0) -> 7613.42376 | M163: =SUM(D163:L163) -> 48500.5734 | N163: Euro/a | O163: =IF($M$175<>0,(IF(C163<=$F$89,M163/$M$175,"-")),0) -> 0.4672972515
C164: =C163+1 -> 2 | D164: =IF($D$22>0,(IF(MOD(($C147-1),$D$28)<>0,0,Konstante_Werte!$E$64*$D$22)),0) -> 0 | E164: =IF($E$22>0,(IF(MOD(($C164-1),$D$30)<>0,0,Konstante_Werte!$E$66*$E$22)),0) -> 0 | F164: =IF($D$22>0,(IF($D$28=1,$D$22*$D$35*$J$35*Konstante_Werte!$E$67, IF(AND($D$28<>1,$D$28/($J$35+1)<1),Konstante_Werte!$E$67*$D$35*$D$22*$J$35/$D$28,IF(MOD($C164,$D$28)=0,0,IF(INT(MOD(($C164-$D$28*INT(($C164-1)/$D$28)),($D$28/($J$35+1))))<>0,0,Konstante_Werte!$E$67*$D$35*$D$22))))),0) -> 0 | G164: =IF($D$22>0,(IF($D$28=1,$D$22*$E$35*$K$35*Konstante_Werte!$E$68, IF(AND($D$28<>1,$D$28/($K$35+1)<1),Konstante_Werte!$E$68*$E$35*$D$22*$K$35/$D$28,IF(MOD($C164,$D$28)=0,0,IF(INT(MOD(($C164-$D$28*INT(($C164-1)/$D$28)),($D$28/($K$35+1))))<>0,0,Konstante_Werte!$E$68*$E$35*$D$22))))),0) -> 0 | H164: =IF($D$22>0,(IF($D$28=1,$D$22*$F$35*$L$35*Konstante_Werte!$E$69, IF(AND($D$28<>1,$D$28/($L$35+1)<1),Konstante_Werte!$E$69*$F$35*$D$22*$L$35/$D$28,IF(MOD($C164,$D$28)=0,0,IF(INT(MOD(($C164-$D$28*INT(($C164-1)/$D$28)),($D$28/($L$35+1))))<>0,0,Konstante_Werte!$E$69*$F$35*$D$22))))),0) -> 0 | I164: 156.7530816 | J164: 270.2338035 | K164: 0 | L164: 0 | M164: =SUM(D164:L164) -> 426.9868851 | N164: Euro/a | O164: 0.004113967811
C165: =C164+1 -> 3 | D165: =IF($D$22>0,(IF(MOD(($C148-1),$D$28)<>0,0,Konstante_Werte!$E$64*$D$22)),0) -> 0 | E165: =IF($E$22>0,(IF(MOD(($C165-1),$D$30)<>0,0,Konstante_Werte!$E$66*$E$22)),0) -> 0 | F165: =IF($D$22>0,(IF($D$28=1,$D$22*$D$35*$J$35*Konstante_Werte!$E$67, IF(AND($D$28<>1,$D$28/($J$35+1)<1),Konstante_Werte!$E$67*$D$35*$D$22*$J$35/$D$28,IF(MOD($C165,$D$28)=0,0,IF(INT(MOD(($C165-$D$28*INT(($C165-1)/$D$28)),($D$28/($J$35+1))))<>0,0,Konstante_Werte!$E$67*$D$35*$D$22))))),0) -> 0 | G165: =IF($D$22>0,(IF($D$28=1,$D$22*$E$35*$K$35*Konstante_Werte!$E$68, IF(AND($D$28<>1,$D$28/($K$35+1)<1),Konstante_Werte!$E$68*$E$35*$D$22*$K$35/$D$28,IF(MOD($C165,$D$28)=0,0,IF(INT(MOD(($C165-$D$28*INT(($C165-1)/$D$28)),($D$28/($K$35+1))))<>0,0,Konstante_Werte!$E$68*$E$35*$D$22))))),0) -> 0 | H165: =IF($D$22>0,(IF($D$28=1,$D$22*$F$35*$L$35*Konstante_Werte!$E$69, IF(AND($D$28<>1,$D$28/($L$35+1)<1),Konstante_Werte!$E$69*$F$35*$D$22*$L$35/$D$28,IF(MOD($C165,$D$28)=0,0,IF(INT(MOD(($C165-$D$28*INT(($C165-1)/$D$28)),($D$28/($L$35+1))))<>0,0,Konstante_Werte!$E$69*$F$35*$D$22))))),0) -> 1875 | I165: 157.6559295 | J165: 271.7902643 | K165: 0 | L165: 0 | M165: 2304.446194 | N165: Euro/a | O165: 0.02220306477
C166: 4 | D166: =IF($D$22>0,(IF(MOD(($C149-1),$D$28)<>0,0,Konstante_Werte!$E$64*$D$22)),0) -> 0 | E166: =IF($E$22>0,(IF(MOD(($C166-1),$D$30)<>0,0,Konstante_Werte!$E$66*$E$22)),0) -> 0 | F166: =IF($D$22>0,(IF($D$28=1,$D$22*$D$35*$J$35*Konstante_Werte!$E$67, IF(AND($D$28<>1,$D$28/($J$35+1)<1),Konstante_Werte!$E$67*$D$35*$D$22*$J$35/$D$28,IF(MOD($C166,$D$28)=0,0,IF(INT(MOD(($C166-$D$28*INT(($C166-1)/$D$28)),($D$28/($J$35+1))))<>0,0,Konstante_Werte!$E$67*$D$35*$D$22))))),0) -> 0 | G166: =IF($D$22>0,(IF($D$28=1,$D$22*$E$35*$K$35*Konstante_Werte!$E$68, IF(AND($D$28<>1,$D$28/($K$35+1)<1),Konstante_Werte!$E$68*$E$35*$D$22*$K$35/$D$28,IF(MOD($C166,$D$28)=0,0,IF(INT(MOD(($C166-$D$28*INT(($C166-1)/$D$28)),($D$28/($K$35+1))))<>0,0,Konstante_Werte!$E$68*$E$35*$D$22))))),0) -> 0 | H166: =IF($D$22>0,(IF($D$28=1,$D$22*$F$35*$L$35*Konstante_Werte!$E$69, IF(AND($D$28<>1,$D$28/($L$35+1)<1),Konstante_Werte!$E$69*$F$35*$D$22*$L$35/$D$28,IF(MOD($C166,$D$28)=0,0,IF(INT(MOD(($C166-$D$28*INT(($C166-1)/$D$28)),($D$28/($L$35+1))))<>0,0,Konstante_Werte!$E$69*$F$35*$D$22))))),0) -> 0 | I166: 158.5639776 | J166: 273.3556898 | K166: 0 | L166: 0 | M166: 431.9196674 | N166: Euro/a | O166: 0.004161494582
C167: 5 | D167: =IF($D$22>0,(IF(MOD(($C150-1),$D$28)<>0,0,Konstante_Werte!$E$64*$D$22)),0) -> 0 | E167: =IF($E$22>0,(IF(MOD(($C167-1),$D$30)<>0,0,Konstante_Werte!$E$66*$E$22)),0) -> 0 | F167: =IF($D$22>0,(IF($D$28=1,$D$22*$D$35*$J$35*Konstante_Werte!$E$67, IF(AND($D$28<>1,$D$28/($J$35+1)<1),Konstante_Werte!$E$67*$D$35*$D$22*$J$35/$D$28,IF(MOD($C167,$D$28)=0,0,IF(INT(MOD(($C167-$D$28*INT(($C167-1)/$D$28)),($D$28/($J$35+1))))<>0,0,Konstante_Werte!$E$67*$D$35*$D$22))))),0) -> 0 | G167: =IF($D$22>0,(IF($D$28=1,$D$22*$E$35*$K$35*Konstante_Werte!$E$68, IF(AND($D$28<>1,$D$28/($K$35+1)<1),Konstante_Werte!$E$68*$E$35*$D$22*$K$35/$D$28,IF(MOD($C167,$D$28)=0,0,IF(INT(MOD(($C167-$D$28*INT(($C167-1)/$D$28)),($D$28/($K$35+1))))<>0,0,Konstante_Werte!$E$68*$E$35*$D$22))))),0) -> 0 | H167: =IF($D$22>0,(IF($D$28=1,$D$22*$F$35*$L$35*Konstante_Werte!$E$69, IF(AND($D$28<>1,$D$28/($L$35+1)<1),Konstante_Werte!$E$69*$F$35*$D$22*$L$35/$D$28,IF(MOD($C167,$D$28)=0,0,IF(INT(MOD(($C167-$D$28*INT(($C167-1)/$D$28)),($D$28/($L$35+1))))<>0,0,Konstante_Werte!$E$69*$F$35*$D$22))))),0) -> 0 | I167: 159.4772557 | J167: 274.9301317 | K167: 0 | L167: 0 | M167: 434.4073875 | N167: Euro/a | O167: 0.004185463469
C168: 6 | D168: =IF($D$22>0,(IF(MOD(($C151-1),$D$28)<>0,0,Konstante_Werte!$E$64*$D$22)),0) -> 0 | E168: =IF($E$22>0,(IF(MOD(($C168-1),$D$30)<>0,0,Konstante_Werte!$E$66*$E$22)),0) -> 0 | F168: =IF($D$22>0,(IF($D$28=1,$D$22*$D$35*$J$35*Konstante_Werte!$E$67, IF(AND($D$28<>1,$D$28/($J$35+1)<1),Konstante_Werte!$E$67*$D$35*$D$22*$J$35/$D$28,IF(MOD($C168,$D$28)=0,0,IF(INT(MOD(($C168-$D$28*INT(($C168-1)/$D$28)),($D$28/($J$35+1))))<>0,0,Konstante_Werte!$E$67*$D$35*$D$22))))),0) -> 0 | G168: =IF($D$22>0,(IF($D$28=1,$D$22*$E$35*$K$35*Konstante_Werte!$E$68, IF(AND($D$28<>1,$D$28/($K$35+1)<1),Konstante_Werte!$E$68*$E$35*$D$22*$K$35/$D$28,IF(MOD($C168,$D$28)=0,0,IF(INT(MOD(($C168-$D$28*INT(($C168-1)/$D$28)),($D$28/($K$35+1))))<>0,0,Konstante_Werte!$E$68*$E$35*$D$22))))),0) -> 0 | H168: =IF($D$22>0,(IF($D$28=1,$D$22*$F$35*$L$35*Konstante_Werte!$E$69, IF(AND($D$28<>1,$D$28/($L$35+1)<1),Konstante_Werte!$E$69*$F$35*$D$22*$L$35/$D$28,IF(MOD($C168,$D$28)=0,0,IF(INT(MOD(($C168-$D$28*INT(($C168-1)/$D$28)),($D$28/($L$35+1))))<>0,0,Konstante_Werte!$E$69*$F$35*$D$22))))),0) -> 0 | I168: 160.395794 | J168: 276.5136419 | K168: 0 | L168: 0 | M168: 436.909436 | N168: Euro/a | O168: 0.004209570408
C169: 7 | D169: =IF($D$22>0,(IF(MOD(($C152-1),$D$28)<>0,0,Konstante_Werte!$E$64*$D$22)),0) -> 21550 | E169: =IF($E$22>0,(IF(MOD(($C169-1),$D$30)<>0,0,Konstante_Werte!$E$66*$E$22)),0) -> 9450 | F169: =IF($D$22>0,(IF($D$28=1,$D$22*$D$35*$J$35*Konstante_Werte!$E$67, IF(AND($D$28<>1,$D$28/($J$35+1)<1),Konstante_Werte!$E$67*$D$35*$D$22*$J$35/$D$28,IF(MOD($C169,$D$28)=0,0,IF(INT(MOD(($C169-$D$28*INT(($C169-1)/$D$28)),($D$28/($J$35+1))))<>0,0,Konstante_Werte!$E$67*$D$35*$D$22))))),0) -> 0 | G169: =IF($D$22>0,(IF($D$28=1,$D$22*$E$35*$K$35*Konstante_Werte!$E$68, IF(AND($D$28<>1,$D$28/($K$35+1)<1),Konstante_Werte!$E$68*$E$35*$D$22*$K$35/$D$28,IF(MOD($C169,$D$28)=0,0,IF(INT(MOD(($C169-$D$28*INT(($C169-1)/$D$28)),($D$28/($K$35+1))))<>0,0,Konstante_Werte!$E$68*$E$35*$D$22))))),0) -> 0 | H169: =IF($D$22>0,(IF($D$28=1,$D$22*$F$35*$L$35*Konstante_Werte!$E$69, IF(AND($D$28<>1,$D$28/($L$35+1)<1),Konstante_Werte!$E$69*$F$35*$D$22*$L$35/$D$28,IF(MOD($C169,$D$28)=0,0,IF(INT(MOD(($C169-$D$28*INT(($C169-1)/$D$28)),($D$28/($L$35+1))))<>0,0,Konstante_Werte!$E$69*$F$35*$D$22))))),0) -> 0 | I169: 118.5847465 | J169: 204.4336658 | K169: 9462.60798 | L169: 7613.42376 | M169: 48399.05015 | N169: Euro/a | O169: 0.466319087
C170: 8 | D170: =IF($D$22>0,(IF(MOD(($C153-1),$D$28)<>0,0,Konstante_Werte!$E$64*$D$22)),0) -> 0 | E170: =IF($E$22>0,(IF(MOD(($C170-1),$D$30)<>0,0,Konstante_Werte!$E$66*$E$22)),0) -> 0 | F170: =IF($D$22>0,(IF($D$28=1,$D$22*$D$35*$J$35*Konstante_Werte!$E$67, IF(AND($D$28<>1,$D$28/($J$35+1)<1),Konstante_Werte!$E$67*$D$35*$D$22*$J$35/$D$28,IF(MOD($C170,$D$28)=0,0,IF(INT(MOD(($C170-$D$28*INT(($C170-1)/$D$28)),($D$28/($J$35+1))))<>0,0,Konstante_Werte!$E$67*$D$35*$D$22))))),0) -> 0 | G170: =IF($D$22>0,(IF($D$28=1,$D$22*$E$35*$K$35*Konstante_Werte!$E$68, IF(AND($D$28<>1,$D$28/($K$35+1)<1),Konstante_Werte!$E$68*$E$35*$D$22*$K$35/$D$28,IF(MOD($C170,$D$28)=0,0,IF(INT(MOD(($C170-$D$28*INT(($C170-1)/$D$28)),($D$28/($K$35+1))))<>0,0,Konstante_Werte!$E$68*$E$35*$D$22))))),0) -> 0 | H170: =IF($D$22>0,(IF($D$28=1,$D$22*$F$35*$L$35*Konstante_Werte!$E$69, IF(AND($D$28<>1,$D$28/($L$35+1)<1),Konstante_Werte!$E$69*$F$35*$D$22*$L$35/$D$28,IF(MOD($C170,$D$28)=0,0,IF(INT(MOD(($C170-$D$28*INT(($C170-1)/$D$28)),($D$28/($L$35+1))))<>0,0,Konstante_Werte!$E$69*$F$35*$D$22))))),0) -> 0 | I170: 119.267757 | J170: 205.6111387 | K170: 0 | L170: 0 | M170: 324.8788957 | N170: Euro/a | O170: 0.003130169488
C171: 9 | D171: =IF($D$22>0,(IF(MOD(($C154-1),$D$28)<>0,0,Konstante_Werte!$E$64*$D$22)),0) -> 0 | E171: =IF($E$22>0,(IF(MOD(($C171-1),$D$30)<>0,0,Konstante_Werte!$E$66*$E$22)),0) -> 0 | F171: =IF($D$22>0,(IF($D$28=1,$D$22*$D$35*$J$35*Konstante_Werte!$E$67, IF(AND($D$28<>1,$D$28/($J$35+1)<1),Konstante_Werte!$E$67*$D$35*$D$22*$J$35/$D$28,IF(MOD($C171,$D$28)=0,0,IF(INT(MOD(($C171-$D$28*INT(($C171-1)/$D$28)),($D$28/($J$35+1))))<>0,0,Konstante_Werte!$E$67*$D$35*$D$22))))),0) -> 0 | G171: =IF($D$22>0,(IF($D$28=1,$D$22*$E$35*$K$35*Konstante_Werte!$E$68, IF(AND($D$28<>1,$D$28/($K$35+1)<1),Konstante_Werte!$E$68*$E$35*$D$22*$K$35/$D$28,IF(MOD($C171,$D$28)=0,0,IF(INT(MOD(($C171-$D$28*INT(($C171-1)/$D$28)),($D$28/($K$35+1))))<>0,0,Konstante_Werte!$E$68*$E$35*$D$22))))),0) -> 0 | H171: =IF($D$22>0,(IF($D$28=1,$D$22*$F$35*$L$35*Konstante_Werte!$E$69, IF(AND($D$28<>1,$D$28/($L$35+1)<1),Konstante_Werte!$E$69*$F$35*$D$22*$L$35/$D$28,IF(MOD($C171,$D$28)=0,0,IF(INT(MOD(($C171-$D$28*INT(($C171-1)/$D$28)),($D$28/($L$35+1))))<>0,0,Konstante_Werte!$E$69*$F$35*$D$22))))),0) -> 1875 | I171: 119.9547014 | J171: 206.7953935 | K171: 0 | L171: 0 | M171: 2201.750095 | N171: Euro/a | O171: 0.02121360008
C172: 10 | D172: =IF($D$22>0,(IF(MOD(($C155-1),$D$28)<>0,0,Konstante_Werte!$E$64*$D$22)),0) -> 0 | E172: =IF($E$22>0,(IF(MOD(($C172-1),$D$30)<>0,0,Konstante_Werte!$E$66*$E$22)),0) -> 0 | F172: =IF($D$22>0,(IF($D$28=1,$D$22*$D$35*$J$35*Konstante_Werte!$E$67, IF(AND($D$28<>1,$D$28/($J$35+1)<1),Konstante_Werte!$E$67*$D$35*$D$22*$J$35/$D$28,IF(MOD($C172,$D$28)=0,0,IF(INT(MOD(($C172-$D$28*INT(($C172-1)/$D$28)),($D$28/($J$35+1))))<>0,0,Konstante_Werte!$E$67*$D$35*$D$22))))),0) -> 0 | G172: =IF($D$22>0,(IF($D$28=1,$D$22*$E$35*$K$35*Konstante_Werte!$E$68, IF(AND($D$28<>1,$D$28/($K$35+1)<1),Konstante_Werte!$E$68*$E$35*$D$22*$K$35/$D$28,IF(MOD($C172,$D$28)=0,0,IF(INT(MOD(($C172-$D$28*INT(($C172-1)/$D$28)),($D$28/($K$35+1))))<>0,0,Konstante_Werte!$E$68*$E$35*$D$22))))),0) -> 0 | H172: =IF($D$22>0,(IF($D$28=1,$D$22*$F$35*$L$35*Konstante_Werte!$E$69, IF(AND($D$28<>1,$D$28/($L$35+1)<1),Konstante_Werte!$E$69*$F$35*$D$22*$L$35/$D$28,IF(MOD($C172,$D$28)=0,0,IF(INT(MOD(($C172-$D$28*INT(($C172-1)/$D$28)),($D$28/($L$35+1))))<>0,0,Konstante_Werte!$E$69*$F$35*$D$22))))),0) -> 0 | I172: 120.6456023 | J172: 207.9864693 | K172: 0 | L172: 0 | M172: 328.6320716 | N172: Euro/a | O172: 0.003166330891
C173: 11 | D173: =IF($D$22>0,(IF(MOD(($C156-1),$D$28)<>0,0,Konstante_Werte!$E$64*$D$22)),0) -> 0 | E173: =IF($E$22>0,(IF(MOD(($C173-1),$D$30)<>0,0,Konstante_Werte!$E$66*$E$22)),0) -> 0 | F173: =IF($D$22>0,(IF($D$28=1,$D$22*$D$35*$J$35*Konstante_Werte!$E$67, IF(AND($D$28<>1,$D$28/($J$35+1)<1),Konstante_Werte!$E$67*$D$35*$D$22*$J$35/$D$28,IF(MOD($C173,$D$28)=0,0,IF(INT(MOD(($C173-$D$28*INT(($C173-1)/$D$28)),($D$28/($J$35+1))))<>0,0,Konstante_Werte!$E$67*$D$35*$D$22))))),0) -> 0 | G173: =IF($D$22>0,(IF($D$28=1,$D$22*$E$35*$K$35*Konstante_Werte!$E$68, IF(AND($D$28<>1,$D$28/($K$35+1)<1),Konstante_Werte!$E$68*$E$35*$D$22*$K$35/$D$28,IF(MOD($C173,$D$28)=0,0,IF(INT(MOD(($C173-$D$28*INT(($C173-1)/$D$28)),($D$28/($K$35+1))))<>0,0,Konstante_Werte!$E$68*$E$35*$D$22))))),0) -> 0 | H173: =IF($D$22>0,(IF($D$28=1,$D$22*$F$35*$L$35*Konstante_Werte!$E$69, IF(AND($D$28<>1,$D$28/($L$35+1)<1),Konstante_Werte!$E$69*$F$35*$D$22*$L$35/$D$28,IF(MOD($C173,$D$28)=0,0,IF(INT(MOD(($C173-$D$28*INT(($C173-1)/$D$28)),($D$28/($L$35+1))))<>0,0,Konstante_Werte!$E$69*$F$35*$D$22))))),0) -> 0 | I173: 121.3404827 | J173: 209.1844053 | K173: 0 | L173: 0 | M173: 330.5248879 | N173: Euro/a | O173: -
C174: 12 | D174: =IF($D$22>0,(IF(MOD(($C157-1),$D$28)<>0,0,Konstante_Werte!$E$64*$D$22)),0) -> 0 | E174: =IF($E$22>0,(IF(MOD(($C174-1),$D$30)<>0,0,Konstante_Werte!$E$66*$E$22)),0) -> 0 | F174: =IF($D$22>0,(IF($D$28=1,$D$22*$D$35*$J$35*Konstante_Werte!$E$67, IF(AND($D$28<>1,$D$28/($J$35+1)<1),Konstante_Werte!$E$67*$D$35*$D$22*$J$35/$D$28,IF(MOD($C174,$D$28)=0,0,IF(INT(MOD(($C174-$D$28*INT(($C174-1)/$D$28)),($D$28/($J$35+1))))<>0,0,Konstante_Werte!$E$67*$D$35*$D$22))))),0) -> 0 | G174: =IF($D$22>0,(IF($D$28=1,$D$22*$E$35*$K$35*Konstante_Werte!$E$68, IF(AND($D$28<>1,$D$28/($K$35+1)<1),Konstante_Werte!$E$68*$E$35*$D$22*$K$35/$D$28,IF(MOD($C174,$D$28)=0,0,IF(INT(MOD(($C174-$D$28*INT(($C174-1)/$D$28)),($D$28/($K$35+1))))<>0,0,Konstante_Werte!$E$68*$E$35*$D$22))))),0) -> 0 | H174: =IF($D$22>0,(IF($D$28=1,$D$22*$F$35*$L$35*Konstante_Werte!$E$69, IF(AND($D$28<>1,$D$28/($L$35+1)<1),Konstante_Werte!$E$69*$F$35*$D$22*$L$35/$D$28,IF(MOD($C174,$D$28)=0,0,IF(INT(MOD(($C174-$D$28*INT(($C174-1)/$D$28)),($D$28/($L$35+1))))<>0,0,Konstante_Werte!$E$69*$F$35*$D$22))))),0) -> 0 | I174: 122.0393653 | J174: 210.389241 | K174: 0 | L174: 0 | M174: 332.4286062 | N174: Euro/a | O174: -
C175: Summe über Betrachtungszeitraum | D175: =SUM(D163:OFFSET(D163,$F$89-1,0)) -> 43100 | E175: =SUM(E163:OFFSET(E163,$F$89-1,0)) -> 18900 | F175: =SUM(F163:OFFSET(F163,$F$89-1,0)) -> 0 | G175: =SUM(G163:OFFSET(G163,$F$89-1,0)) -> 0 | H175: =SUM(H163:OFFSET(H163,$F$89-1,0)) -> 3750 | I175: =SUM(I163:OFFSET(I163,$F$89-1,0)) -> 1427.15425 | J175: =SUM(J163:OFFSET(J163,$F$89-1,0)) -> 2460.336455 | K175: =SUM(K163:OFFSET(K163,$F$89-1,0)) -> 18925.21596 | L175: =SUM(L163:OFFSET(L163,$F$89-1,0)) -> 15226.84752 | M175: =SUM(M163:OFFSET(M163,$F$89-1,0)) -> 103789.5542 | N175: Euro/Betrachtungszeitraum | O175: =SUM(O163:O174) -> 1
C177: APC mit Mini-PC (für alle Geräte)
C178: In EURO | D178: Anschaffungskosten | I178: Energiekosten | K178: Bruttopersonal-kosten | L178: Sach-und Gemeinkosten | M178: Summe | O178: Anteil
C179: Jahr (max: 12 Jahre) | D179: Mini-PC | E179: Monitor | F179: Ersatz HDD durch SSD | G179: RAM hinzufügen | H179: Wechsel des Akkus | I179: Desktop | J179: Monitor
C180: 1 | D180: =IF($D$23>0,(IF(MOD(($C146-1),$D$29)<>0,0,Konstante_Werte!$E$65*$D$23)),0) -> 22750 | E180: =IF($E$23>0,(IF(MOD(($C180-1),$D$30)<>0,0,Konstante_Werte!$E$66*$E$23)),0) -> 15120 | F180: =IF($D$23>0,(IF($D$29=1,$D$23*$D$36*$J$36*Konstante_Werte!$E$67, IF(AND($D$29<>1,$D$29/($J$36+1)<1),Konstante_Werte!$E$67*$D$36*$D$23*$J$36/$D$29,IF(MOD($C180,$D$29)=0,0,IF(INT(MOD(($C180-$D$29*INT(($C180-1)/$D$29)),($D$29/($J$36+1))))<>0,0,Konstante_Werte!$E$67*$D$36*$D$23))))),0) -> 0 | G180: =IF($D$23>0,(IF($D$29=1,$D$23*$E$36*$K$36*Konstante_Werte!$E$68, IF(AND($D$29<>1,$D$29/($K$36+1)<1),Konstante_Werte!$E$68*$E$36*$D$23*$K$36/$D$29,IF(MOD($C180,$D$29)=0,0,IF(INT(MOD(($C180-$D$29*INT(($C180-1)/$D$29)),($D$29/($K$36+1))))<>0,0,Konstante_Werte!$E$68*$E$36*$D$23))))),0) -> 0 | H180: - | I180: =IF($D$23>0, F129*$D$23,0) -> 405.692952 | J180: =G129*$E$23 -> 429.8980096 | K180: =IF($D$23>0,(IF(MOD(($C180-1),$D$29)<>0,0,$K$13*$D$23)),0)+IF($E$23>0,(IF(MOD(($C180-1),$D$30)<>0,0,$K$13*$E$23)),0) -> 14193.91197 | L180: =IF($D$23>0,(IF(MOD(($C180-1),$D$29)<>0,0,$K$14*$D$23)),0)+IF($E$23>0,(IF(MOD(($C180-1),$D$30)<>0,0,$K$14*$E$23)),0) -> 11420.13564 | M180: =SUM(D180:L180) -> 64319.63857 | N180: Euro/a | O180: =IF($M$192<>0,(IF(C180<=$F$89,M180/$M$192,"-")),0) -> 0.4777883223
C181: =C180+1 -> 2 | D181: =IF($D$23>0,(IF(MOD(($C147-1),$D$29)<>0,0,Konstante_Werte!$E$65*$D$23)),0) -> 0 | E181: =IF($E$23>0,(IF(MOD(($C181-1),$D$30)<>0,0,Konstante_Werte!$E$66*$E$23)),0) -> 0 | F181: =IF($D$23>0,(IF($D$29=1,$D$23*$D$36*$J$36*Konstante_Werte!$E$67, IF(AND($D$29<>1,$D$29/($J$36+1)<1),Konstante_Werte!$E$67*$D$36*$D$23*$J$36/$D$29,IF(MOD($C181,$D$29)=0,0,IF(INT(MOD(($C181-$D$29*INT(($C181-1)/$D$29)),($D$29/($J$36+1))))<>0,0,Konstante_Werte!$E$67*$D$36*$D$23))))),0) -> 0 | G181: =IF($D$23>0,(IF($D$29=1,$D$23*$E$36*$K$36*Konstante_Werte!$E$68, IF(AND($D$29<>1,$D$29/($K$36+1)<1),Konstante_Werte!$E$68*$E$36*$D$23*$K$36/$D$29,IF(MOD($C181,$D$29)=0,0,IF(INT(MOD(($C181-$D$29*INT(($C181-1)/$D$29)),($D$29/($K$36+1))))<>0,0,Konstante_Werte!$E$68*$E$36*$D$23))))),0) -> 0 | H181: - | I181: 408.0296145 | J181: 432.3740855 | K181: 0 | L181: 0 | M181: 840.4037 | N181: Euro/a | O181: 0.006242806751
C182: =C181+1 -> 3 | D182: =IF($D$23>0,(IF(MOD(($C148-1),$D$29)<>0,0,Konstante_Werte!$E$65*$D$23)),0) -> 0 | E182: =IF($E$23>0,(IF(MOD(($C182-1),$D$30)<>0,0,Konstante_Werte!$E$66*$E$23)),0) -> 0 | F182: =IF($D$23>0,(IF($D$29=1,$D$23*$D$36*$J$36*Konstante_Werte!$E$67, IF(AND($D$29<>1,$D$29/($J$36+1)<1),Konstante_Werte!$E$67*$D$36*$D$23*$J$36/$D$29,IF(MOD($C182,$D$29)=0,0,IF(INT(MOD(($C182-$D$29*INT(($C182-1)/$D$29)),($D$29/($J$36+1))))<>0,0,Konstante_Werte!$E$67*$D$36*$D$23))))),0) -> 0 | G182: =IF($D$23>0,(IF($D$29=1,$D$23*$E$36*$K$36*Konstante_Werte!$E$68, IF(AND($D$29<>1,$D$29/($K$36+1)<1),Konstante_Werte!$E$68*$E$36*$D$23*$K$36/$D$29,IF(MOD($C182,$D$29)=0,0,IF(INT(MOD(($C182-$D$29*INT(($C182-1)/$D$29)),($D$29/($K$36+1))))<>0,0,Konstante_Werte!$E$68*$E$36*$D$23))))),0) -> 0 | H182: - | I182: 410.3797354 | J182: 434.8644229 | K182: 0 | L182: 0 | M182: 845.2441583 | N182: Euro/a | O182: 0.006278763334
C183: 4 | D183: =IF($D$23>0,(IF(MOD(($C149-1),$D$29)<>0,0,Konstante_Werte!$E$65*$D$23)),0) -> 0 | E183: =IF($E$23>0,(IF(MOD(($C183-1),$D$30)<>0,0,Konstante_Werte!$E$66*$E$23)),0) -> 0 | F183: =IF($D$23>0,(IF($D$29=1,$D$23*$D$36*$J$36*Konstante_Werte!$E$67, IF(AND($D$29<>1,$D$29/($J$36+1)<1),Konstante_Werte!$E$67*$D$36*$D$23*$J$36/$D$29,IF(MOD($C183,$D$29)=0,0,IF(INT(MOD(($C183-$D$29*INT(($C183-1)/$D$29)),($D$29/($J$36+1))))<>0,0,Konstante_Werte!$E$67*$D$36*$D$23))))),0) -> 0 | G183: =IF($D$23>0,(IF($D$29=1,$D$23*$E$36*$K$36*Konstante_Werte!$E$68, IF(AND($D$29<>1,$D$29/($K$36+1)<1),Konstante_Werte!$E$68*$E$36*$D$23*$K$36/$D$29,IF(MOD($C183,$D$29)=0,0,IF(INT(MOD(($C183-$D$29*INT(($C183-1)/$D$29)),($D$29/($K$36+1))))<>0,0,Konstante_Werte!$E$68*$E$36*$D$23))))),0) -> 0 | H183: - | I183: 412.7433923 | J183: 437.3691037 | K183: 0 | L183: 0 | M183: 850.112496 | N183: Euro/a | O183: 0.006314927016
C184: 5 | D184: =IF($D$23>0,(IF(MOD(($C150-1),$D$29)<>0,0,Konstante_Werte!$E$65*$D$23)),0) -> 0 | E184: =IF($E$23>0,(IF(MOD(($C184-1),$D$30)<>0,0,Konstante_Werte!$E$66*$E$23)),0) -> 0 | F184: =IF($D$23>0,(IF($D$29=1,$D$23*$D$36*$J$36*Konstante_Werte!$E$67, IF(AND($D$29<>1,$D$29/($J$36+1)<1),Konstante_Werte!$E$67*$D$36*$D$23*$J$36/$D$29,IF(MOD($C184,$D$29)=0,0,IF(INT(MOD(($C184-$D$29*INT(($C184-1)/$D$29)),($D$29/($J$36+1))))<>0,0,Konstante_Werte!$E$67*$D$36*$D$23))))),0) -> 0 | G184: =IF($D$23>0,(IF($D$29=1,$D$23*$E$36*$K$36*Konstante_Werte!$E$68, IF(AND($D$29<>1,$D$29/($K$36+1)<1),Konstante_Werte!$E$68*$E$36*$D$23*$K$36/$D$29,IF(MOD($C184,$D$29)=0,0,IF(INT(MOD(($C184-$D$29*INT(($C184-1)/$D$29)),($D$29/($K$36+1))))<>0,0,Konstante_Werte!$E$68*$E$36*$D$23))))),0) -> 0 | H184: - | I184: 415.120663 | J184: 439.8882108 | K184: 0 | L184: 0 | M184: 855.0088738 | N184: Euro/a | O184: 0.006351298989
C185: 6 | D185: =IF($D$23>0,(IF(MOD(($C151-1),$D$29)<>0,0,Konstante_Werte!$E$65*$D$23)),0) -> 0 | E185: =IF($E$23>0,(IF(MOD(($C185-1),$D$30)<>0,0,Konstante_Werte!$E$66*$E$23)),0) -> 0 | F185: =IF($D$23>0,(IF($D$29=1,$D$23*$D$36*$J$36*Konstante_Werte!$E$67, IF(AND($D$29<>1,$D$29/($J$36+1)<1),Konstante_Werte!$E$67*$D$36*$D$23*$J$36/$D$29,IF(MOD($C185,$D$29)=0,0,IF(INT(MOD(($C185-$D$29*INT(($C185-1)/$D$29)),($D$29/($J$36+1))))<>0,0,Konstante_Werte!$E$67*$D$36*$D$23))))),0) -> 0 | G185: =IF($D$23>0,(IF($D$29=1,$D$23*$E$36*$K$36*Konstante_Werte!$E$68, IF(AND($D$29<>1,$D$29/($K$36+1)<1),Konstante_Werte!$E$68*$E$36*$D$23*$K$36/$D$29,IF(MOD($C185,$D$29)=0,0,IF(INT(MOD(($C185-$D$29*INT(($C185-1)/$D$29)),($D$29/($K$36+1))))<>0,0,Konstante_Werte!$E$68*$E$36*$D$23))))),0) -> 0 | H185: - | I185: 417.5116262 | J185: 442.4218271 | K185: 0 | L185: 0 | M185: 859.9334533 | N185: Euro/a | O185: 0.006387880452
C186: 7 | D186: =IF($D$23>0,(IF(MOD(($C152-1),$D$29)<>0,0,Konstante_Werte!$E$65*$D$23)),0) -> 22750 | E186: =IF($E$23>0,(IF(MOD(($C186-1),$D$30)<>0,0,Konstante_Werte!$E$66*$E$23)),0) -> 15120 | F186: =IF($D$23>0,(IF($D$29=1,$D$23*$D$36*$J$36*Konstante_Werte!$E$67, IF(AND($D$29<>1,$D$29/($J$36+1)<1),Konstante_Werte!$E$67*$D$36*$D$23*$J$36/$D$29,IF(MOD($C186,$D$29)=0,0,IF(INT(MOD(($C186-$D$29*INT(($C186-1)/$D$29)),($D$29/($J$36+1))))<>0,0,Konstante_Werte!$E$67*$D$36*$D$23))))),0) -> 0 | G186: =IF($D$23>0,(IF($D$29=1,$D$23*$E$36*$K$36*Konstante_Werte!$E$68, IF(AND($D$29<>1,$D$29/($K$36+1)<1),Konstante_Werte!$E$68*$E$36*$D$23*$K$36/$D$29,IF(MOD($C186,$D$29)=0,0,IF(INT(MOD(($C186-$D$29*INT(($C186-1)/$D$29)),($D$29/($K$36+1))))<>0,0,Konstante_Werte!$E$68*$E$36*$D$23))))),0) -> 0 | H186: - | I186: 308.6771113 | J186: 327.0938652 | K186: 14193.91197 | L186: 11420.13564 | M186: 64119.81859 | N186: Euro/a | O186: 0.476303991
C187: 8 | D187: =IF($D$23>0,(IF(MOD(($C153-1),$D$29)<>0,0,Konstante_Werte!$E$65*$D$23)),0) -> 0 | E187: =IF($E$23>0,(IF(MOD(($C187-1),$D$30)<>0,0,Konstante_Werte!$E$66*$E$23)),0) -> 0 | F187: =IF($D$23>0,(IF($D$29=1,$D$23*$D$36*$J$36*Konstante_Werte!$E$67, IF(AND($D$29<>1,$D$29/($J$36+1)<1),Konstante_Werte!$E$67*$D$36*$D$23*$J$36/$D$29,IF(MOD($C187,$D$29)=0,0,IF(INT(MOD(($C187-$D$29*INT(($C187-1)/$D$29)),($D$29/($J$36+1))))<>0,0,Konstante_Werte!$E$67*$D$36*$D$23))))),0) -> 0 | G187: =IF($D$23>0,(IF($D$29=1,$D$23*$E$36*$K$36*Konstante_Werte!$E$68, IF(AND($D$29<>1,$D$29/($K$36+1)<1),Konstante_Werte!$E$68*$E$36*$D$23*$K$36/$D$29,IF(MOD($C187,$D$29)=0,0,IF(INT(MOD(($C187-$D$29*INT(($C187-1)/$D$29)),($D$29/($K$36+1))))<>0,0,Konstante_Werte!$E$68*$E$36*$D$23))))),0) -> 0 | H187: - | I187: 310.4549934 | J187: 328.9778219 | K187: 0 | L187: 0 | M187: 639.4328153 | N187: Euro/a | O187: 0.004749926132
C188: 9 | D188: =IF($D$23>0,(IF(MOD(($C154-1),$D$29)<>0,0,Konstante_Werte!$E$65*$D$23)),0) -> 0 | E188: =IF($E$23>0,(IF(MOD(($C188-1),$D$30)<>0,0,Konstante_Werte!$E$66*$E$23)),0) -> 0 | F188: =IF($D$23>0,(IF($D$29=1,$D$23*$D$36*$J$36*Konstante_Werte!$E$67, IF(AND($D$29<>1,$D$29/($J$36+1)<1),Konstante_Werte!$E$67*$D$36*$D$23*$J$36/$D$29,IF(MOD($C188,$D$29)=0,0,IF(INT(MOD(($C188-$D$29*INT(($C188-1)/$D$29)),($D$29/($J$36+1))))<>0,0,Konstante_Werte!$E$67*$D$36*$D$23))))),0) -> 0 | G188: =IF($D$23>0,(IF($D$29=1,$D$23*$E$36*$K$36*Konstante_Werte!$E$68, IF(AND($D$29<>1,$D$29/($K$36+1)<1),Konstante_Werte!$E$68*$E$36*$D$23*$K$36/$D$29,IF(MOD($C188,$D$29)=0,0,IF(INT(MOD(($C188-$D$29*INT(($C188-1)/$D$29)),($D$29/($K$36+1))))<>0,0,Konstante_Werte!$E$68*$E$36*$D$23))))),0) -> 0 | H188: - | I188: 312.2431155 | J188: 330.8726296 | K188: 0 | L188: 0 | M188: 643.1157451 | N188: Euro/a | O188: 0.004777284197
C189: 10 | D189: =IF($D$23>0,(IF(MOD(($C155-1),$D$29)<>0,0,Konstante_Werte!$E$65*$D$23)),0) -> 0 | E189: =IF($E$23>0,(IF(MOD(($C189-1),$D$30)<>0,0,Konstante_Werte!$E$66*$E$23)),0) -> 0 | F189: =IF($D$23>0,(IF($D$29=1,$D$23*$D$36*$J$36*Konstante_Werte!$E$67, IF(AND($D$29<>1,$D$29/($J$36+1)<1),Konstante_Werte!$E$67*$D$36*$D$23*$J$36/$D$29,IF(MOD($C189,$D$29)=0,0,IF(INT(MOD(($C189-$D$29*INT(($C189-1)/$D$29)),($D$29/($J$36+1))))<>0,0,Konstante_Werte!$E$67*$D$36*$D$23))))),0) -> 0 | G189: =IF($D$23>0,(IF($D$29=1,$D$23*$E$36*$K$36*Konstante_Werte!$E$68, IF(AND($D$29<>1,$D$29/($K$36+1)<1),Konstante_Werte!$E$68*$E$36*$D$23*$K$36/$D$29,IF(MOD($C189,$D$29)=0,0,IF(INT(MOD(($C189-$D$29*INT(($C189-1)/$D$29)),($D$29/($K$36+1))))<>0,0,Konstante_Werte!$E$68*$E$36*$D$23))))),0) -> 0 | H189: - | I189: 314.0415366 | J189: 332.7783508 | K189: 0 | L189: 0 | M189: 646.8198875 | N189: Euro/a | O189: 0.004804799836
C190: 11 | D190: =IF($D$23>0,(IF(MOD(($C156-1),$D$29)<>0,0,Konstante_Werte!$E$65*$D$23)),0) -> 0 | E190: =IF($E$23>0,(IF(MOD(($C190-1),$D$30)<>0,0,Konstante_Werte!$E$66*$E$23)),0) -> 0 | F190: =IF($D$23>0,(IF($D$29=1,$D$23*$D$36*$J$36*Konstante_Werte!$E$67, IF(AND($D$29<>1,$D$29/($J$36+1)<1),Konstante_Werte!$E$67*$D$36*$D$23*$J$36/$D$29,IF(MOD($C190,$D$29)=0,0,IF(INT(MOD(($C190-$D$29*INT(($C190-1)/$D$29)),($D$29/($J$36+1))))<>0,0,Konstante_Werte!$E$67*$D$36*$D$23))))),0) -> 0 | G190: =IF($D$23>0,(IF($D$29=1,$D$23*$E$36*$K$36*Konstante_Werte!$E$68, IF(AND($D$29<>1,$D$29/($K$36+1)<1),Konstante_Werte!$E$68*$E$36*$D$23*$K$36/$D$29,IF(MOD($C190,$D$29)=0,0,IF(INT(MOD(($C190-$D$29*INT(($C190-1)/$D$29)),($D$29/($K$36+1))))<>0,0,Konstante_Werte!$E$68*$E$36*$D$23))))),0) -> 0 | H190: - | I190: 315.8503161 | J190: 334.6950484 | K190: 0 | L190: 0 | M190: 650.5453645 | N190: Euro/a | O190: -
C191: 12 | D191: =IF($D$23>0,(IF(MOD(($C157-1),$D$29)<>0,0,Konstante_Werte!$E$65*$D$23)),0) -> 0 | E191: =IF($E$23>0,(IF(MOD(($C191-1),$D$30)<>0,0,Konstante_Werte!$E$66*$E$23)),0) -> 0 | F191: =IF($D$23>0,(IF($D$29=1,$D$23*$D$36*$J$36*Konstante_Werte!$E$67, IF(AND($D$29<>1,$D$29/($J$36+1)<1),Konstante_Werte!$E$67*$D$36*$D$23*$J$36/$D$29,IF(MOD($C191,$D$29)=0,0,IF(INT(MOD(($C191-$D$29*INT(($C191-1)/$D$29)),($D$29/($J$36+1))))<>0,0,Konstante_Werte!$E$67*$D$36*$D$23))))),0) -> 0 | G191: =IF($D$23>0,(IF($D$29=1,$D$23*$E$36*$K$36*Konstante_Werte!$E$68, IF(AND($D$29<>1,$D$29/($K$36+1)<1),Konstante_Werte!$E$68*$E$36*$D$23*$K$36/$D$29,IF(MOD($C191,$D$29)=0,0,IF(INT(MOD(($C191-$D$29*INT(($C191-1)/$D$29)),($D$29/($K$36+1))))<>0,0,Konstante_Werte!$E$68*$E$36*$D$23))))),0) -> 0 | H191: - | I191: 317.6695135 | J191: 336.6227855 | K191: 0 | L191: 0 | M191: 654.292299 | N191: Euro/a | O191: -
C192: Summe über Betrachtungszeitraum | D192: =SUM(D180:OFFSET(D180,$F$89-1,0)) -> 45500 | E192: =SUM(E180:OFFSET(E180,$F$89-1,0)) -> 30240 | F192: =SUM(F180:OFFSET(F180,$F$89-1,0)) -> 0 | G192: =SUM(G180:OFFSET(G180,$F$89-1,0)) -> 0 | H192: - | I192: =SUM(I180:OFFSET(I180,$F$89-1,0)) -> 3714.89474 | J192: =SUM(J180:OFFSET(J180,$F$89-1,0)) -> 3936.538327 | K192: =SUM(K180:OFFSET(K180,$F$89-1,0)) -> 28387.82394 | L192: =SUM(L180:OFFSET(L180,$F$89-1,0)) -> 22840.27128 | M192: =SUM(M180:OFFSET(M180,$F$89-1,0)) -> 134619.5283 | N192: Euro/Betrachtungszeitraum | O192: =SUM(O180:O191) -> 1

Sheet Berechnung_Szen2 (hidden)
B1: Berechnung der CO2-Äquivalente und der Kosten
F2: Zurück zum Inhaltsverzeichnis
B3: =Szen2_Variablen!B3 -> Bezeichnung: | D3: =Szen2_Variablen!C3 -> Szenario 2
B4: 1. Feste Daten
C5: ='Default-Werte'!B4 -> Anzahl von Arbeitstagen/Jahr | E5: 203 | F5: d/a
C6: ='Default-Werte'!B5 -> Betrachtungszeitraum [Jahr] | E6: =IF(Konstante_Werte!E16<>"0", Konstante_Werte!E16, Konstante_Werte!L16) -> 10 | F6: Jahre
C8: =Konstante_Werte!C18 -> Strompreis: [€/kWh] | G8: =Konstante_Werte!E18 -> 0.212
C9: =Konstante_Werte!C19 -> Reale Preissteigerungsrate Strom: [%/Jahr] | G9: =Konstante_Werte!E19 -> 0.005759682224
C11: Durchschnittlicher Verwaltungsaufwand eines Beschaffungszyklus | H11: =Konstante_Werte!E59 -> Höherer Dienst | I11: =Konstante_Werte!F59 -> Gehobener Dienst | J11: =Konstante_Werte!G59 -> Mittlerer Dienst | K11: Summe
C12: =Konstante_Werte!C60 -> Personalaufwand [d/Stück] | H12: =Konstante_Werte!$E$60 -> 0.01162 | I12: =Konstante_Werte!F60 -> 0.08766 | J12: =Konstante_Werte!G60 -> 0.18442 | K12: =SUM(H12:J12) -> 0.2837
C13: Personalkosten pro Gerät [EUR/Stck] | H13: =$H$12*Konstante_Werte!E55 -> 6.2047314 | I13: =$I$12*Konstante_Werte!F55 -> 35.8450506 | J13: =$J$12*Konstante_Werte!G55 -> 52.5762978 | K13: =SUM(H13:J13) -> 94.6260798
C14: Sach- und Gemeinkosten pro Gerät [EUR/Stck] | H14: =$H$12*Konstante_Werte!E56 -> 4.0034386 | I14: =$I$12*Konstante_Werte!F56 -> 26.03502 | J14: =$J$12*Konstante_Werte!G56 -> 46.095779 | K14: =SUM(H14:J14) -> 76.1342376
C16: =Konstante_Werte!B47 -> Anteil Nutzer nach Nutzungsintensität | D16: =Konstante_Werte!C48 -> Hohe Nutzungsintensität [%] | E16: =Konstante_Werte!C49 -> Mittlere Nutzungsintensität [%] | F16: =Konstante_Werte!C50 -> Geringe Nutzungsintensität [%]
C17: Geräte | D17: =Konstante_Werte!E48 -> 0.25 | E17: =Konstante_Werte!E49 -> 0.5 | F17: =Konstante_Werte!E50 -> 0.25
B19: 2. Variable Daten
C20: =Szen2_Variablen!B13 -> Anzahl der Geräte [Stück] | D20: =Szen2_Variablen!E13 -> Anzahl der Geräte [Stück] | E20: =Szen2_Variablen!F13 -> Anzahl der zugeordneten Monitore
C21: =Szen2_Variablen!C14 -> APC-Desktop-PC | D21: =Szen2_Variablen!E14 -> 100 | E21: =Szen2_Variablen!F14 -> 120
C22: =Szen2_Variablen!C15 -> APC-Notebook | D22: =Szen2_Variablen!E15 -> 50 | E22: =Szen2_Variablen!F15 -> 50
C23: =Szen2_Variablen!C16 -> APC-Mini-PC | D23: =Szen2_Variablen!E16 -> 70 | E23: =Szen2_Variablen!F16 -> 80
C24: =Szen2_Variablen!C17 -> Summe | D24: =Szen2_Variablen!E17 -> 220 | E24: =SUM(E21:E23) -> 250
C26: =Szen2_Variablen!$B$19 -> Nutzungsdauer [Jahre]
C27: =Szen2_Variablen!C20 -> Desktop-PC | D27: =ROUND(Szen2_Variablen!E20,0) -> 6
C28: =Szen2_Variablen!C21 -> Notebook | D28: =ROUND(Szen2_Variablen!E21,0) -> 6
C29: =Szen2_Variablen!C22 -> Mini-PC | D29: =ROUND(Szen2_Variablen!E22,0) -> 6
C30: =Szen2_Variablen!C23 -> Monitor | D30: =ROUND(Szen2_Variablen!E23,0) -> 6
C32: =Szen2_Variablen!B31 -> Prozentualer Anteil der Geräte, bei denen während der Nutzungsphase folgende Komponenten nachgerüstet bzw. ausgetauscht werden [%] | I32: =Szen2_Variablen!B25 -> Anzahl der Austauschvorgänge von Komponenten je Gerät während der Nutzungsphase
D33: =Szen2_Variablen!E32 -> Ersatz HDD durch SSD | E33: =Szen2_Variablen!F32 -> RAM hinzufügen | F33: =Szen2_Variablen!G32 -> Wechsel des Akkus | J33: =Szen2_Variablen!E26 -> Ersatz HDD durch SSD | K33: =Szen2_Variablen!F26 -> RAM hinzufügen | L33: =Szen2_Variablen!G26 -> Wechsel des Akkus
C34: =Szen2_Variablen!C33 -> Desktop-PC | D34: =Szen2_Variablen!E33 -> 0 | E34: =Szen2_Variablen!F33 -> 0 | F34: =Szen2_Variablen!G33 -> - | I34: =Szen2_Variablen!C27 -> Desktop-PC | J34: =Szen2_Variablen!E27 -> 1 | K34: =Szen2_Variablen!F27 -> 1 | L34: =Szen2_Variablen!G27 -> -
C35: =Szen2_Variablen!C34 -> Notebook | D35: =Szen2_Variablen!E34 -> 0 | E35: =Szen2_Variablen!F34 -> 0 | F35: =Szen2_Variablen!G34 -> 0.5 | I35: =Szen2_Variablen!C28 -> Notebook | J35: =Szen2_Variablen!E28 -> 1 | K35: =Szen2_Variablen!F28 -> 1 | L35: =Szen2_Variablen!G28 -> 1
C36: =Szen2_Variablen!C35 -> Mini-PC | D36: =Szen2_Variablen!E35 -> 0 | E36: =Szen2_Variablen!F35 -> 0 | F36: =Szen2_Variablen!G35 -> - | I36: =Szen2_Variablen!C29 -> Mini-PC | J36: =Szen2_Variablen!E29 -> 1 | K36: =Szen2_Variablen!F29 -> 1 | L36: =Szen2_Variablen!G29 -> -
B38: 3. Ergebnisse
B39: 3.1 Stromverbrauch während der Nutzung
C40: Stromverbrauch pro Gerät während der Nutzung [kWh/Gerät/Betrachtungsraum]
C41: IT-Gerät | D41: kWh/Gerät/Betrachtungsraum
C42: Desktop-PC | D42: =$D$125 -> 415.3397949
C43: Notebook | D43: =$E$125 -> 131.453264
C44: Mini-PC | D44: =$F$125 -> 244.4099804
C45: Monitor | D45: =$G$125 -> 226.6182913
C47: Arbeitsplatztyp | D47: kWh/Betrachtungsraum
C48: APC mit Desktop-PC | D48: =D42*$D21+$D$45*$E21 -> 68728.17445
C49: APC mit Notebook | D49: =D43*$D22+$D$45*$E22 -> 17903.57776
C50: APC mit Mini-PC | D50: =D44*$D23+$D$45*$E23 -> 35238.16193
B52: 3.2 GWP-Ergebnisse bezogen auf alle Geräte des Typs über den Betrachtungszeitraum
C53: kg CO2e / Betrachtungszeitraum | D53: APC mit Desktop | E53: APC mit Notebook | F53: APC mit Mini-PC | G53: Summe | I53: GWP in % bezogen auf den Arbeitsplatztyp / Betrachtungszeitraum | J53: APC mit Desktop | K53: APC mit Notebook | L53: APC mit Mini-PC | M53: % (Summe)
C54: Herstellung | D54: =IF(OR($D$21>0,$E$21>0),('Default-Werte'!$D$24+$D$34*$J$34*'Default-Werte'!$C$26+$E$34*$K$34*'Default-Werte'!$C$12)*$J$91*$D$21+'Default-Werte'!$D$25*$E$21*$J$94,0) -> 75456.66667 | E54: =IF(OR($D$22>0,$E$22>0),('Default-Werte'!$D$47+'Default-Werte'!$C$39*$D$35*$J$35+'Default-Werte'!$C$30*$E$35*$K$35+'Default-Werte'!$C$38*$F$35*$L$35)*$J$92*$D$22+'Default-Werte'!$D$48*$J$94*$E$22,0) -> 28554.16667 | F54: =IF(OR($D$23>0,$E$23>0),('Default-Werte'!$D$67+'Default-Werte'!$C$60*$D$36*$J$36+'Default-Werte'!$C$53*$E$36*$K$36)*$J$93*$D$23+$E$23*$J$94*'Default-Werte'!$D$68,0) -> 33985 | G54: =SUM(D54:F54) -> 137995.8333 | I54: Herstellung | J54: =IF($D$58=0,0,D54/$D$58) -> 0.614937396 | K54: =IF($E$58=0,0,E54/$E$58) -> 0.7000796554 | L54: =IF($F$58=0,0,F54/$F$58) -> 0.587087326 | M54: =G54/$G$58 -> 0.6233416017
C55: Distribution | D55: =IF(OR($D$21>0,$E$21>0),('Default-Werte'!$C$72+$D$34*$J$34*'Default-Werte'!$C$78+$E$34*$K$34*'Default-Werte'!$C$77)*$J$91*$D$21+$J$94*$E$21*'Default-Werte'!$C$75,0) -> 3528 | E55: =IF(OR($D$22>0,$E$22>0),('Default-Werte'!$C$73+'Default-Werte'!$C$78*$D$35*$J$35+'Default-Werte'!$C$77*$E$35*$K$35+'Default-Werte'!$C$76*$F$35*$L$35)*$J$92*$D$22+$J$94*$E$22*'Default-Werte'!$C$75,0) -> 865.2916667 | F55: =IF(OR($D$23>0,$E$23>0),('Default-Werte'!$C$74+'Default-Werte'!$C$78*$D$36*$J$36+'Default-Werte'!$C$77*$E$36*$K$36)*$J$93*$D$23+$J$94*$E$23*'Default-Werte'!$C$75,0) -> 1678.5 | G55: =SUM(D55:F55) -> 6071.791667 | I55: Distribution | J55: =IF($D$58=0,0,D55/$D$58) -> 0.02875158987 | K55: =IF($E$58=0,0,E55/$E$58) -> 0.02121487554 | L55: =IF($F$58=0,0,F55/$F$58) -> 0.02899591222 | M55: =G55/$G$58 -> 0.02742691755
C56: Nutzung | D56: =IF(OR($D$21>0,$E$21>0),$D$48*Konstante_Werte!$E$17,0) -> 42748.92451 | E56: =IF(OR($D$22>0,$E$22>0),$D$49*Konstante_Werte!$E$17,0) -> 11136.02537 | F56: =IF(OR($D$23>0,$E$23>0),$D$50*Konstante_Werte!$E$17,0) -> 21918.13672 | G56: =SUM(D56:F56) -> 75803.08659 | I56: Nutzung | J56: =IF($D$58=0,0,D56/$D$58) -> 0.3483842247 | K56: 0.2730286229 | L56: 0.3786335229 | M56: 0.3424104647
C57: Entsorgung | D57: =IF(OR($D$21>0,$E$21>0),('Default-Werte'!$C$82+$D$34*$J$34*'Default-Werte'!$C$88+$E$34*$K$34*'Default-Werte'!$C$87)*$J$91*$D$21+$J$94*$E$21*'Default-Werte'!$C$85,0) -> 972.6666667 | E57: =IF(OR($D$22>0,$E$22>0),('Default-Werte'!$C$83+'Default-Werte'!$C$88*$D$35*$J$35+'Default-Werte'!$C$87*$E$35*$K$35+'Default-Werte'!$C$86*$F$35*$L$35)*$J$92*$D$22+$J$94*$E$22*'Default-Werte'!$C$85,0) -> 231.5416667 | F57: =IF(OR($D$23>0,$E$23>0),('Default-Werte'!$C$84+'Default-Werte'!$C$88*$D$36*$J$36+'Default-Werte'!$C$87*$E$36*$K$36)*$J$93*$D$23+$J$94*$E$23*'Default-Werte'!$C$85,0) -> 305.8333333 | G57: =SUM(D57:F57) -> 1510.041667 | I57: Entsorgung | J57: =IF($D$58=0,0,D57/$D$58) -> 0.007926789422 | K57: 0.005676846119 | L57: 0.005283238895 | M57: 0.00682101603
C58: Summe | D58: =SUM(D54:D57) -> 122706.2578 | E58: =SUM(E54:E57) -> 40787.02537 | F58: =SUM(F54:F57) -> 57887.47005 | G58: =SUM(D58:F58) -> 221380.7533 | I58: Summe | J58: =SUM(J54:J57) -> 1 | K58: =SUM(K54:K57) -> 1 | L58: =SUM(L54:L57) -> 1 | M58: =SUM(M54:M57) -> 1
B60: 3.3 Kosten-Ergebnisse bezogen auf Betrachtungszeitraum und je Haushaltsjahr
C61: Lebenszykluskosten-Ergebnisse bezogen auf Betrachtungszeitraum
C62: Kosten in EURO / Betrachtungszeitraum | D62: APC mit Desktop | E62: APC mit Notebook | F62: APC mit Mini-PC | G62: Summe | I62: Kosten in % / Betrachtungszeitraum | J62: APC mit Desktop | K62: APC mit Notebook | L62: APC mit Mini-PC | M62: % (Summe)
C63: Anschaffungskosten | D63: =IF(OR($D$21>0,$E$21>0),(Konstante_Werte!$E$63+$D$34*$J$34*Konstante_Werte!$E$67+$E$34*$K$34*Konstante_Werte!$E$68)*$J$91*$D$21+Konstante_Werte!$E$66*$J$94*$E$21,0) -> 89800 | E63: =IF(OR($D$22>0,$E$22>0),(Konstante_Werte!$E$64+Konstante_Werte!$E$67*$D$35*$J$35+Konstante_Werte!$E$68*$E$35*$K$35+Konstante_Werte!$E$69*$F$35*$L$35)*$J$92*$D$22+Konstante_Werte!$E$66*$J$94*$E$22,0) -> 54791.66667 | F63: =IF(OR($D$23>0,$E$23>0),(Konstante_Werte!$E$65+Konstante_Werte!$E$67*$D$36*$J$36+Konstante_Werte!$E$68*$E$36*$K$36)*$J$93*$D$23+Konstante_Werte!$E$66*$J$94*$E$23,0) -> 63116.66667 | G63: =SUM(D63:F63) -> 207708.3333 | I63: =C63 -> Anschaffungskosten | J63: =IF($D$67=0,0,D63/$D$67) -> 0.5366467638 | K63: =IF($E$67=0,0,E63/$E$67) -> 0.6287831448 | L63: =IF($F$67=0,0,F63/$F$67) -> 0.5562989568 | M63: =G63/$G$67 -> 0.5645279254
C64: Energiekosten | D64: =IF(OR($D$21>0,$E$21>0),D141*$D$21+$G$141*$E21,0) -> 14923.28197 | E64: =IF(OR($D$22>0,$E$22>0),(E141*$D$22+$G$141*$E$22),0) -> 3887.490704 | F64: =IF(OR($D$23>0,$E$23>0),(F141*$D$23+$G$141*$E$23),0) -> 7651.433067 | G64: =SUM(D64:F64) -> 26462.20574 | I64: =C64 -> Energiekosten | J64: =IF($D$67=0,0,D64/$D$67) -> 0.08918185942 | K64: =IF($E$67=0,0,E64/$E$67) -> 0.04461241607 | L64: =IF($F$67=0,0,F64/$F$67) -> 0.06743835596 | M64: =G64/$G$67 -> 0.07192130364
C65: Bruttopersonalkosten | D65: =IF(OR($D$21>0,$E$21>0),($K$13)*($J$91*$D$21+$E$21*$J$94),0) -> 34696.22926 | E65: =IF(OR($D$22>0,$E$22>0),($K$13)*($J$92*$D$22+$E$22*$J$94),0) -> 15771.0133 | F65: =IF(OR($D$23>0,$E$23>0),($K$13)*($J$93*$D$23+$E$23*$J$94),0) -> 23656.51995 | G65: =SUM(D65:F65) -> 74123.76251 | I65: Bruttopersonalkosten | J65: 0.2073454248 | K65: 0.1809864153 | L65: 0.2085043153 | M65: 0.2014600628
C66: Sach-und Gemeinkosten | D66: =IF(OR($D$21>0,$E$21>0),($K$14)*($J$91*$D$21+$E$21*$J$94),0) -> 27915.88712 | E66: =IF(OR($D$22>0,$E$22>0),($K$14)*($J$92*$D$22+$E$22*$J$94),0) -> 12689.0396 | F66: =IF(OR($D$23>0,$E$23>0),($K$14)*($J$93*$D$23+$E$23*$J$94),0) -> 19033.5594 | G66: =SUM(D66:F66) -> 59638.48612 | I66: Sach-und Gemeinkosten | J66: 0.1668259519 | K66: 0.1456180239 | L66: 0.1677583719 | M66: 0.1620907082
C67: Summe | D67: =SUM(D63:D66) -> 167335.3984 | E67: =SUM(E63:E66) -> 87139.21027 | F67: =SUM(F63:F66) -> 113458.1791 | G67: =SUM(D67:F67) -> 367932.7877 | I67: Summe | J67: =SUM(J63:J66) -> 1 | K67: =SUM(K63:K66) -> 1 | L67: =SUM(L63:L66) -> 1 | M67: =SUM(M63:M66) -> 1
C69: Kosten je Haushaltsjahr
C70: Haushaltplan: erforderliche Haushaltsmittel (in €) je Haushaltsjahr im Betrachtungszeitraum
C71: Hinweis: | D71: Die Summe kann höher sein als die Lebenszykluskosten. Bei den Lebenszykluskosten wird die letzte Beschaffung einer Komponente nur anteilig einbezogen, sofern der Betrachtungszeitraum kein ganzzahliges Vielfaches der angenommenen Nutzungsdauer der Komponente ist.
C73: Kosten in EURO / Betrachtungszeitraum | D73: APC mit Desktop | E73: APC mit Notebook | F73: APC mit Mini-PC | G73: Summe | I73: Kosten: Anteil der Ausstattung in % innerhalb eines Jahres | J73: APC mit Desktop | K73: APC mit Notebook | L73: APC mit Mini-PC | M73: Summe
C74: =C146 -> 1 | D74: =IF(C74<=$F$89,M146,"-") -> 93076.99846 | E74: =IF(C74<=$F$89,M163,"-") -> 48500.5734 | F74: =IF(C74<=$F$89,M180,"-") -> 64319.63857 | G74: =IF(C74<=$F$89,(IF(SUM(D74:F74)>=0,SUM(D74:F74),0)),"-") -> 205897.2104 | I74: =C74 -> 1 | J74: =IF(C74<=$F$89,(IF(G74=0,0,D74/$G$74)),"-") -> 0.4520556557 | K74: =IF(C74<=$F$89,(IF(G74=0,0,E74/$G$74)),"-") -> 0.2355572147 | L74: =IF(C74<=$F$89,(IF(G74=0,0,F74/$G$74)),"-") -> 0.3123871297 | M74: =IF(C74<=$F$89,SUM(J74:L74),"-") -> 1
C75: 2 | D75: 1639.115349 | E75: 426.9868851 | F75: 840.4037 | G75: 2906.505934 | I75: =C75 -> 2 | J75: =IF(C75<=$F$89,(IF(G75=0,0,D75/$G$74)),"-") -> 0.007960842918 | K75: 0.002073786644 | L75: =IF(C75<=$F$89,(IF(G75=0,0,F75/$G$74)),"-") -> 0.004081666275 | M75: =IF(C75<=$F$89,SUM(J75:L75),"-") -> 0.01411629584
C76: 3 | D76: 1648.556133 | E76: 2304.446194 | F76: 845.2441583 | G76: 4798.246485 | I76: 3 | J76: 0.008006694843 | K76: 0.01119221668 | L76: 0.004105175376 | M76: 0.0233040869
C77: 4 | D77: 1658.051292 | E77: 431.9196674 | F77: 850.112496 | G77: 2940.083456 | I77: 4 | J77: 0.008052810861 | K77: 0.002097744144 | L77: 0.004128819882 | M77: 0.01427937489
C78: 5 | D78: 1667.601141 | E78: 434.4073875 | F78: 855.0088738 | G78: 2957.017402 | I78: 5 | J78: 0.008099192493 | K78: 0.002109826484 | L78: 0.004152600572 | M78: 0.01436161955
C79: 6 | D79: 1677.205994 | E79: 436.909436 | F79: 859.9334533 | G79: 2974.048883 | I79: 6 | J79: 0.008145841268 | K79: 0.002121978414 | L79: 0.004176518232 | M79: 0.01444433791
C80: 7 | D80: 92687.27147 | E80: 48399.05015 | F80: 64119.81859 | G80: 205206.1402 | I80: 7 | J80: 0.4501628326 | K80: 0.2350641373 | L80: 0.3114166455 | M80: 0.9966436154
C81: 8 | D81: 1247.143655 | E81: 324.8788957 | F81: 639.4328153 | G81: 2211.455366 | I81: 8 | J81: 0.006057117786 | K81: 0.001577869341 | L81: 0.003105592417 | M81: 0.01074057954
C82: 9 | D82: 1254.326807 | E82: 2201.750095 | F82: 643.1157451 | G82: 4099.192647 | I82: 9 | J82: 0.00609200486 | K82: 0.01069344305 | L82: 0.003123479642 | M82: 0.01990892756
C83: 10 | D83: 1261.55133 | E83: 328.6320716 | F83: 646.8198875 | G83: 2237.003289 | I83: 10 | J83: 0.006127092872 | K83: 0.001596097737 | L83: 0.003141469892 | M83: 0.0108646605
C84: 11 | D84: - | E84: - | F84: - | G84: =IF(C84<=$F$89,(IF(SUM(D84:F84)>=0,SUM(D84:F84),0)),"-") -> - | I84: 11 | J84: - | K84: =IF(C84<=$F$89,(IF(G84=0,0,E84/$G$74)),"-") -> - | L84: - | M84: -
C85: 12 | D85: - | E85: - | F85: - | G85: =IF(C85<=$F$89,(IF(SUM(D85:F85)>=0,SUM(D85:F85),0)),"-") -> - | I85: 12 | J85: - | K85: - | L85: - | M85: -
B87: 4.Berechnungsweg: Stromverbrauch und Energiekosten
C88: Berechnung des Stromverbrauchs innerhalb des Betrachtungszeitraums
C89: Betrachtungszeitraum | F89: =E6 -> 10 | G89: Jahre
C90: =C26 -> Nutzungsdauer [Jahre] | I90: IT-Gerät | J90: Anzahl des Beschaffungszyklus | K90: Einheit
D91: Desktop-PC | F91: =D27 -> 6 | G91: Jahre | I91: Desktop-PC | J91: =IF(D21<>0,$E$6/D27, "0") -> 1.666666667 | K91: Anzahl des Beschaffungszyklus
D92: Notebook | F92: =D28 -> 6 | G92: Jahre | I92: Notebook | J92: =IF(D22<>0,$E$6/D28,"0") -> 1.666666667 | K92: Anzahl des Beschaffungszyklus
D93: Mini-PC | F93: =D29 -> 6 | G93: Jahre | I93: Mini-PC | J93: =IF(D23<>0,$E$6/D29, "0") -> 1.666666667 | K93: Anzahl des Beschaffungszyklus
D94: Monitor | F94: =D30 -> 6 | G94: Jahre | I94: Monitor | J94: =IF(D30<>0,$E$6/D30, "0") -> 1.666666667 | K94: Anzahl des Beschaffungszyklus
C95: Energieeffizienzsteigerung von 5% pro Jahr | F95: 0.05
C97: Stromverbrauch | D97: Wh/Gerät/pro Kalendertag | I97: Stromverbrauch | J97: kWh/Gerät/das erste Jahr
C98: IT-Gerät | D98: Hohe Nutzungsintensität | E98: Mittlere Nutzungsintensität | F98: Geringe Nutzungsintensität | I98: IT-Gerät | J98: Hohe Nutzungsintensität | K98: Mittlere Nutzungsintensität | L98: Geringe Nutzungsintensität
C99: Desktop-PC | D99: =IF($D$21>0,SUMPRODUCT(Konstante_Werte!$E$28:$G$28,Szen2_Variablen!$E$38:$G$38),0) -> 259.185 | E99: =IF($D$21>0,SUMPRODUCT(Konstante_Werte!$E$29:$G$29,Szen2_Variablen!$E$38:$G$38),0) -> 213.72 | F99: =IF($D$21>0,SUMPRODUCT(Konstante_Werte!$E$30:$G$30,Szen2_Variablen!$E$38:$G$38),0) -> 168.255 | I99: Desktop-PC | J99: =IF($D$21>0,(D$99*$E$5+Szen2_Variablen!$G$38*24*(365-$E$5))/1000,0) -> 55.686075 | K99: =IF($D$21>0,(E$99*$E$5+Szen2_Variablen!$G$38*24*(365-$E$5))/1000,0) -> 46.45668 | L99: =IF($D$21>0,(F$99*$E$5+Szen2_Variablen!$G$38*24*(365-$E$5))/1000,0) -> 37.227285
C100: Notebook | D100: =IF($D$22>0,SUMPRODUCT(Konstante_Werte!$E$33:$G$33,Szen2_Variablen!$E$42:$G$42),0) -> 76.0775 | E100: =IF($D$22>0,SUMPRODUCT(Konstante_Werte!$E$34:$G$34,Szen2_Variablen!$E$42:$G$42),0) -> 63.62 | F100: =IF($D$22>0,SUMPRODUCT(Konstante_Werte!$E$35:$G$35,Szen2_Variablen!$E$42:$G$42),0) -> 51.1625 | I100: Notebook | J100: =IF($D$22>0,(D$100*$E$5+Szen2_Variablen!$G$42*24*(365-$E$5))/1000,0) -> 17.2322125 | K100: =IF($D$22>0,(E$100*$E$5+Szen2_Variablen!$G$42*24*(365-$E$5))/1000,0) -> 14.70334 | L100: =IF($D$22>0,(F$100*$E$5+Szen2_Variablen!$G$42*24*(365-$E$5))/1000,0) -> 12.1744675
C101: Mini-PC | D101: =IF($D$23>0,SUMPRODUCT(Konstante_Werte!$E$38:$G$38,Szen2_Variablen!$E$46:$G$46),0) -> 139.065 | E101: =IF($D$23>0,SUMPRODUCT(Konstante_Werte!$E$39:$G$39,Szen2_Variablen!$E$46:$G$46),0) -> 117.24 | F101: =IF($D$23>0,SUMPRODUCT(Konstante_Werte!$E$40:$G$40,Szen2_Variablen!$E$46:$G$46),0) -> 95.415 | I101: Mini-PC | J101: =IF($D$23>0,(D$101*$E$5+Szen2_Variablen!$G$46*24*(365-$E$5))/1000,0) -> 31.768275 | K101: =IF($D$23>0,(E$101*$E$5+Szen2_Variablen!$G$46*24*(365-$E$5))/1000,0) -> 27.3378 | L101: =IF($D$23>0,(F$101*$E$5+Szen2_Variablen!$G$46*24*(365-$E$5))/1000,0) -> 22.907325
C102: Monitor | D102: =IF($E$24>0,SUMPRODUCT(Konstante_Werte!$E$43:$G$43,Szen2_Variablen!$E$50:$G$50),0) -> 146.6 | E102: =IF($E$24>0,SUMPRODUCT(Konstante_Werte!$E$44:$G$44,Szen2_Variablen!$E$50:$G$50),0) -> 119.12 | F102: =IF($E$24>0,SUMPRODUCT(Konstante_Werte!$E$45:$G$45,Szen2_Variablen!$E$50:$G$50),0) -> 91.64 | I102: Monitor | J102: =IF($E$24>0,(D$102*$E$5+Szen2_Variablen!$G$50*24*(365-$E$5))/1000,0) -> 30.9262 | K102: =IF($E$24>0,(E$102*$E$5+Szen2_Variablen!$G$50*24*(365-$E$5))/1000,0) -> 25.34776 | L102: =IF($E$24>0,(F$102*$E$5+Szen2_Variablen!$G$50*24*(365-$E$5))/1000,0) -> 19.76932
C104: Stromverbrauch im ersten Jahr je Geräteklasse unter Berücksichtigung der Nutzungsprofile
C105: IT-Gerät | D105: kWh/Gerät/das erste Jahr
C106: Desktop-PC | D106: =IF($D$21>0,SUMPRODUCT(J99:L99,$D$17:$F$17),0) -> 46.45668
C107: Notebook | D107: =IF($D$22>0,SUMPRODUCT(J100:L100,$D$17:$F$17),0) -> 14.70334
C108: Mini-PC | D108: =IF($D$23>0,SUMPRODUCT(J101:L101,$D$17:$F$17),0) -> 27.3378
C109: Monitor | D109: =IF($E$24>0,SUMPRODUCT(J102:L102,$D$17:$F$17),0) -> 25.34776
C111: Energieeffizienzsteigerung von 5% pro Jahr der neubeschafften Geräte wird berücksichtigt
C112: Jahr (max: 12 Jahre) | D112: Desktop | E112: Notebook | F112: Mini-PC | G112: Monitor | H112: Einheit
C113: 1 | D113: =D106 -> 46.45668 | E113: =D107 -> 14.70334 | F113: =D108 -> 27.3378 | G113: =D109 -> 25.34776 | H113: kWh/a/Gerät
C114: =C113+1 -> 2 | D114: =IF($D$113<>0,IF(MOD(C113,$F$91)=0,$D$113*(1-$F$95)^C113,D113),0) -> 46.45668 | E114: =IF($E$113<>0,IF(MOD(C113,$F$92)=0,$E$113*(1-$F$95)^C113,E113),0) -> 14.70334 | F114: =IF($F$113<>0,IF(MOD(C113,$F$93)=0,$F$113*(1-$F$95)^C113,F113),0) -> 27.3378 | G114: =IF($G$113<>0,IF(MOD(C113,$F$94)=0,$G$113*(1-$F$95)^C113,G113),0) -> 25.34776 | H114: kWh/a/Gerät
C115: =C114+1 -> 3 | D115: =IF($D$113<>0,IF(MOD(C114,$F$91)=0,$D$113*(1-$F$95)^C114,D114),0) -> 46.45668 | E115: =IF($E$113<>0,IF(MOD(C114,$F$92)=0,$E$113*(1-$F$95)^C114,E114),0) -> 14.70334 | F115: =IF($F$113<>0,IF(MOD(C114,$F$93)=0,$F$113*(1-$F$95)^C114,F114),0) -> 27.3378 | G115: =IF($G$113<>0,IF(MOD(C114,$F$94)=0,$G$113*(1-$F$95)^C114,G114),0) -> 25.34776 | H115: kWh/a/Gerät
C116: 4 | D116: 46.45668 | E116: 14.70334 | F116: 27.3378 | G116: 25.34776 | H116: kWh/a/Gerät
C117: 5 | D117: 46.45668 | E117: 14.70334 | F117: 27.3378 | G117: 25.34776 | H117: kWh/a/Gerät
C118: 6 | D118: 46.45668 | E118: 14.70334 | F118: 27.3378 | G118: 25.34776 | H118: kWh/a/Gerät
C119: 7 | D119: 34.14992873 | E119: 10.808306 | F119: 20.09579509 | G119: 18.63293282 | H119: kWh/a/Gerät
C120: 8 | D120: 34.14992873 | E120: 10.808306 | F120: 20.09579509 | G120: 18.63293282 | H120: kWh/a/Gerät
C121: 9 | D121: 34.14992873 | E121: 10.808306 | F121: 20.09579509 | G121: 18.63293282 | H121: kWh/a/Gerät
C122: 10 | D122: 34.14992873 | E122: 10.808306 | F122: 20.09579509 | G122: 18.63293282 | H122: kWh/a/Gerät
C123: 11 | D123: 34.14992873 | E123: 10.808306 | F123: 20.09579509 | G123: 18.63293282 | H123: kWh/a/Gerät
C124: 12 | D124: 34.14992873 | E124: 10.808306 | F124: 20.09579509 | G124: 18.63293282 | H124: kWh/a/Gerät
C125: ="Summe über Betrachtungszeitraum von " &$F$89 & " Jahren" -> Summe über Betrachtungszeitraum von 10 Jahren | D125: =SUM(D113:OFFSET(D113,$F$89-1,0)) -> 415.3397949 | E125: =SUM(E113:OFFSET(E113,$F$89-1,0)) -> 131.453264 | F125: =SUM(F113:OFFSET(F113,$F$89-1,0)) -> 244.4099804 | G125: =SUM(G113:OFFSET(G113,$F$89-1,0)) -> 226.6182913 | H125: kWh/Betrachtungszeitraum/Gerät
C127: Berechnung der Energiekosten innerhalb des Betrachtungszeitraums
C128: Jahr (max: 12 Jahre) | D128: Desktop | E128: Notebook | F128: Mini-PC | G128: Monitor | H128: Einheit
C129: 1 | D129: =IF($D$21>0,D113*$G8,0) -> 9.84881616 | E129: =IF($D$22>0,E113*$G8,0) -> 3.11710808 | F129: =IF($D$23>0,F113*$G8,0) -> 5.7956136 | G129: =IF($E$24>0,G113*$G8,0) -> 5.37372512 | H129: Euro/a/Gerät
C130: =C129+1 -> 2 | D130: =IF($D$21>0,D114*$G$8*(1+$G$9)^C129,0) -> 9.905542211 | E130: =IF($D$22>0,E114*$G$8*(1+$G$9)^C129,0) -> 3.135061632 | F130: =IF($D$23>0,F114*$G$8*(1+$G$9)^C129,0) -> 5.828994493 | G130: =IF($E$24>0,G114*$G$8*(1+$G$9)^C129,0) -> 5.404676069 | H130: Euro/a/Gerät
C131: =C130+1 -> 3 | D131: =IF($D$21>0,D115*$G$8*(1+$G$9)^C130,0) -> 9.962594987 | E131: =IF($D$22>0,E115*$G$8*(1+$G$9)^C130,0) -> 3.153118591 | F131: =IF($D$23>0,F115*$G$8*(1+$G$9)^C130,0) -> 5.862567649 | G131: =IF($E$24>0,G115*$G$8*(1+$G$9)^C130,0) -> 5.435805286 | H131: Euro/a/Gerät
C132: 4 | D132: 10.01997637 | E132: 3.171279552 | F132: 5.896334175 | G132: 5.467113797 | H132: Euro/a/Gerät
C133: 5 | D133: 10.07768825 | E133: 3.189545114 | F133: 5.930295186 | G133: 5.498602635 | H133: Euro/a/Gerät
C134: 6 | D134: 10.13573253 | E134: 3.207915881 | F134: 5.964451802 | G134: 5.530272839 | H134: Euro/a/Gerät
C135: 7 | D135: 7.493608422 | E135: 2.371694931 | F135: 4.409673019 | G135: 4.088673315 | H135: Euro/a/Gerät
C136: 8 | D136: 7.536769226 | E136: 2.38535514 | F136: 4.435071334 | G136: 4.112222774 | H136: Euro/a/Gerät
C137: 9 | D137: 7.580178621 | E137: 2.399094028 | F137: 4.460615935 | G137: 4.135907871 | H137: Euro/a/Gerät
C138: 10 | D138: 7.623838041 | E138: 2.412912047 | F138: 4.486307666 | G138: 4.159729386 | H138: Euro/a/Gerät
C139: 11 | D139: 7.667748926 | E139: 2.426809653 | F139: 4.512147372 | G139: 4.183688105 | H139: Euro/a/Gerät
C140: 12 | D140: 7.711912723 | E140: 2.440787306 | F140: 4.538135907 | G140: 4.207784819 | H140: Euro/a/Gerät
C141: =C125 -> Summe über Betrachtungszeitraum von 10 Jahren | D141: =SUM(D129:OFFSET(D129,$F$89-1,0)) -> 90.18474481 | E141: =SUM(E129:OFFSET(E129,$F$89-1,0)) -> 28.54308499 | F141: =SUM(F129:OFFSET(F129,$F$89-1,0)) -> 53.06992486 | G141: =SUM(G129:OFFSET(G129,$F$89-1,0)) -> 49.20672909 | H141: Euro/Betrachtungszeitraum/Gerät
C143: APC mit Desktop (für alle Geräte)
C144: In EURO | D144: Anschaffungskosten | I144: Energiekosten | K144: Bruttopersonal-kosten | L144: Sach-und Gemeinkosten | M144: Summe | O144: Anteil
C145: Jahr (max: 12 Jahre) | D145: Desktop | E145: Monitor | F145: Ersatz HDD durch SSD | G145: RAM hinzufügen | H145: Wechsel des Akkus | I145: Desktop | J145: Monitor
C146: 1 | D146: =IF($D$21>0,(IF(MOD(($C146-1),$D$27)<>0,0,Konstante_Werte!$E$63*$D$21)),0) -> 31200 | E146: =IF($E$21>0,(IF(MOD(($C146-1),$D$30)<>0,0,Konstante_Werte!$E$66*$E$21)),0) -> 22680 | F146: =IF($D$21>0,(IF($D$27=1,$D$21*$D$34*$J$34*Konstante_Werte!$E$67, IF(AND($D$27<>1,$D$27/($J$34+1)<1),Konstante_Werte!$E$67*$D$34*$D$21*$J$34/$D$27,IF(MOD($C146,$D$27)=0,0,IF(INT(MOD(($C146-$D$27*INT(($C146-1)/$D$27)),($D$27/($J$34+1))))<>0,0,Konstante_Werte!$E$67*$D$34*$D$21))))),0) -> 0 | G146: =IF($D$21>0,(IF($D$27=1,$D$21*$E$34*$K$34*Konstante_Werte!$E$68, IF(AND($D$27<>1,$D$27/($K$34+1)<1),Konstante_Werte!$E$68*$E$34*$D$21*$K$34/$D$27,IF(MOD($C146,$D$27)=0,0,IF(INT(MOD(($C146-$D$27*INT(($C146-1)/$D$27)),($D$27/($K$34+1))))<>0,0,Konstante_Werte!$E$68*$E$34*$D$21))))),0) -> 0 | H146: - | I146: =IF($D$21>0, D129*$D$21,0) -> 984.881616 | J146: =G129*$E$21 -> 644.8470144 | K146: =IF($D$21>0,(IF(MOD(($C146-1),$D$27)<>0,0,$K$13*$D$21)),0)+IF($E$21>0,(IF(MOD(($C146-1),$D$30)<>0,0,$K$13*$E$21)),0) -> 20817.73756 | L146: =IF($D$21>0,(IF(MOD(($C146-1),$D$27)<>0,0,$K$14*$D$21)),0)+IF($E$21>0,(IF(MOD(($C146-1),$D$30)<>0,0,$K$14*$E$21)),0) -> 16749.53227 | M146: =SUM(D146:L146) -> 93076.99846 | N146: Euro/a | O146: =IF($M$158<>0,(IF(C146<=$F$89,M146/$M$158,"-")),0) -> 0.4705187717
C147: =C146+1 -> 2 | D147: =IF($D$21>0,(IF(MOD(($C147-1),$D$27)<>0,0,Konstante_Werte!$E$63*$D$21)),0) -> 0 | E147: =IF($E$21>0,(IF(MOD(($C147-1),$D$30)<>0,0,Konstante_Werte!$E$66*$E$21)),0) -> 0 | F147: =IF($D$21>0,(IF($D$27=1,$D$21*$D$34*$J$34*Konstante_Werte!$E$67, IF(AND($D$27<>1,$D$27/($J$34+1)<1),Konstante_Werte!$E$67*$D$34*$D$21*$J$34/$D$27,IF(MOD($C147,$D$27)=0,0,IF(INT(MOD(($C147-$D$27*INT(($C147-1)/$D$27)),($D$27/($J$34+1))))<>0,0,Konstante_Werte!$E$67*$D$34*$D$21))))),0) -> 0 | G147: =IF($D$21>0,(IF($D$27=1,$D$21*$E$34*$K$34*Konstante_Werte!$E$68, IF(AND($D$27<>1,$D$27/($K$34+1)<1),Konstante_Werte!$E$68*$E$34*$D$21*$K$34/$D$27,IF(MOD($C147,$D$27)=0,0,IF(INT(MOD(($C147-$D$27*INT(($C147-1)/$D$27)),($D$27/($K$34+1))))<>0,0,Konstante_Werte!$E$68*$E$34*$D$21))))),0) -> 0 | H147: - | I147: 990.5542211 | J147: 648.5611283 | K147: 0 | L147: 0 | M147: =SUM(D147:L147) -> 1639.115349 | N147: Euro/a | O147: 0.008285984225
C148: =C147+1 -> 3 | D148: =IF($D$21>0,(IF(MOD(($C148-1),$D$27)<>0,0,Konstante_Werte!$E$63*$D$21)),0) -> 0 | E148: =IF($E$21>0,(IF(MOD(($C148-1),$D$30)<>0,0,Konstante_Werte!$E$66*$E$21)),0) -> 0 | F148: =IF($D$21>0,(IF($D$27=1,$D$21*$D$34*$J$34*Konstante_Werte!$E$67, IF(AND($D$27<>1,$D$27/($J$34+1)<1),Konstante_Werte!$E$67*$D$34*$D$21*$J$34/$D$27,IF(MOD($C148,$D$27)=0,0,IF(INT(MOD(($C148-$D$27*INT(($C148-1)/$D$27)),($D$27/($J$34+1))))<>0,0,Konstante_Werte!$E$67*$D$34*$D$21))))),0) -> 0 | G148: =IF($D$21>0,(IF($D$27=1,$D$21*$E$34*$K$34*Konstante_Werte!$E$68, IF(AND($D$27<>1,$D$27/($K$34+1)<1),Konstante_Werte!$E$68*$E$34*$D$21*$K$34/$D$27,IF(MOD($C148,$D$27)=0,0,IF(INT(MOD(($C148-$D$27*INT(($C148-1)/$D$27)),($D$27/($K$34+1))))<>0,0,Konstante_Werte!$E$68*$E$34*$D$21))))),0) -> 0 | H148: - | I148: 996.2594987 | J148: 652.2966343 | K148: 0 | L148: 0 | M148: 1648.556133 | N148: Euro/a | O148: 0.008333708861
C149: 4 | D149: =IF($D$21>0,(IF(MOD(($C149-1),$D$27)<>0,0,Konstante_Werte!$E$63*$D$21)),0) -> 0 | E149: =IF($E$21>0,(IF(MOD(($C149-1),$D$30)<>0,0,Konstante_Werte!$E$66*$E$21)),0) -> 0 | F149: =IF($D$21>0,(IF($D$27=1,$D$21*$D$34*$J$34*Konstante_Werte!$E$67, IF(AND($D$27<>1,$D$27/($J$34+1)<1),Konstante_Werte!$E$67*$D$34*$D$21*$J$34/$D$27,IF(MOD($C149,$D$27)=0,0,IF(INT(MOD(($C149-$D$27*INT(($C149-1)/$D$27)),($D$27/($J$34+1))))<>0,0,Konstante_Werte!$E$67*$D$34*$D$21))))),0) -> 0 | G149: =IF($D$21>0,(IF($D$27=1,$D$21*$E$34*$K$34*Konstante_Werte!$E$68, IF(AND($D$27<>1,$D$27/($K$34+1)<1),Konstante_Werte!$E$68*$E$34*$D$21*$K$34/$D$27,IF(MOD($C149,$D$27)=0,0,IF(INT(MOD(($C149-$D$27*INT(($C149-1)/$D$27)),($D$27/($K$34+1))))<>0,0,Konstante_Werte!$E$68*$E$34*$D$21))))),0) -> 0 | H149: - | I149: 1001.997637 | J149: 656.0536556 | K149: 0 | L149: 0 | M149: 1658.051292 | N149: Euro/a | O149: 0.008381708376
C150: 5 | D150: =IF($D$21>0,(IF(MOD(($C150-1),$D$27)<>0,0,Konstante_Werte!$E$63*$D$21)),0) -> 0 | E150: =IF($E$21>0,(IF(MOD(($C150-1),$D$30)<>0,0,Konstante_Werte!$E$66*$E$21)),0) -> 0 | F150: =IF($D$21>0,(IF($D$27=1,$D$21*$D$34*$J$34*Konstante_Werte!$E$67, IF(AND($D$27<>1,$D$27/($J$34+1)<1),Konstante_Werte!$E$67*$D$34*$D$21*$J$34/$D$27,IF(MOD($C150,$D$27)=0,0,IF(INT(MOD(($C150-$D$27*INT(($C150-1)/$D$27)),($D$27/($J$34+1))))<>0,0,Konstante_Werte!$E$67*$D$34*$D$21))))),0) -> 0 | G150: =IF($D$21>0,(IF($D$27=1,$D$21*$E$34*$K$34*Konstante_Werte!$E$68, IF(AND($D$27<>1,$D$27/($K$34+1)<1),Konstante_Werte!$E$68*$E$34*$D$21*$K$34/$D$27,IF(MOD($C150,$D$27)=0,0,IF(INT(MOD(($C150-$D$27*INT(($C150-1)/$D$27)),($D$27/($K$34+1))))<>0,0,Konstante_Werte!$E$68*$E$34*$D$21))))),0) -> 0 | H150: - | I150: 1007.768825 | J150: 659.8323162 | K150: 0 | L150: 0 | M150: 1667.601141 | N150: Euro/a | O150: 0.008429984353
C151: 6 | D151: =IF($D$21>0,(IF(MOD(($C151-1),$D$27)<>0,0,Konstante_Werte!$E$63*$D$21)),0) -> 0 | E151: =IF($E$21>0,(IF(MOD(($C151-1),$D$30)<>0,0,Konstante_Werte!$E$66*$E$21)),0) -> 0 | F151: =IF($D$21>0,(IF($D$27=1,$D$21*$D$34*$J$34*Konstante_Werte!$E$67, IF(AND($D$27<>1,$D$27/($J$34+1)<1),Konstante_Werte!$E$67*$D$34*$D$21*$J$34/$D$27,IF(MOD($C151,$D$27)=0,0,IF(INT(MOD(($C151-$D$27*INT(($C151-1)/$D$27)),($D$27/($J$34+1))))<>0,0,Konstante_Werte!$E$67*$D$34*$D$21))))),0) -> 0 | G151: =IF($D$21>0,(IF($D$27=1,$D$21*$E$34*$K$34*Konstante_Werte!$E$68, IF(AND($D$27<>1,$D$27/($K$34+1)<1),Konstante_Werte!$E$68*$E$34*$D$21*$K$34/$D$27,IF(MOD($C151,$D$27)=0,0,IF(INT(MOD(($C151-$D$27*INT(($C151-1)/$D$27)),($D$27/($K$34+1))))<>0,0,Konstante_Werte!$E$68*$E$34*$D$21))))),0) -> 0 | H151: - | I151: 1013.573253 | J151: 663.6327407 | K151: 0 | L151: 0 | M151: 1677.205994 | N151: Euro/a | O151: 0.008478538384
C152: 7 | D152: =IF($D$21>0,(IF(MOD(($C152-1),$D$27)<>0,0,Konstante_Werte!$E$63*$D$21)),0) -> 31200 | E152: =IF($E$21>0,(IF(MOD(($C152-1),$D$30)<>0,0,Konstante_Werte!$E$66*$E$21)),0) -> 22680 | F152: =IF($D$21>0,(IF($D$27=1,$D$21*$D$34*$J$34*Konstante_Werte!$E$67, IF(AND($D$27<>1,$D$27/($J$34+1)<1),Konstante_Werte!$E$67*$D$34*$D$21*$J$34/$D$27,IF(MOD($C152,$D$27)=0,0,IF(INT(MOD(($C152-$D$27*INT(($C152-1)/$D$27)),($D$27/($J$34+1))))<>0,0,Konstante_Werte!$E$67*$D$34*$D$21))))),0) -> 0 | G152: =IF($D$21>0,(IF($D$27=1,$D$21*$E$34*$K$34*Konstante_Werte!$E$68, IF(AND($D$27<>1,$D$27/($K$34+1)<1),Konstante_Werte!$E$68*$E$34*$D$21*$K$34/$D$27,IF(MOD($C152,$D$27)=0,0,IF(INT(MOD(($C152-$D$27*INT(($C152-1)/$D$27)),($D$27/($K$34+1))))<>0,0,Konstante_Werte!$E$68*$E$34*$D$21))))),0) -> 0 | H152: - | I152: 749.3608422 | J152: 490.6407978 | K152: 20817.73756 | L152: 16749.53227 | M152: 92687.27147 | N152: Euro/a | O152: 0.4685486409
C153: 8 | D153: =IF($D$21>0,(IF(MOD(($C153-1),$D$27)<>0,0,Konstante_Werte!$E$63*$D$21)),0) -> 0 | E153: =IF($E$21>0,(IF(MOD(($C153-1),$D$30)<>0,0,Konstante_Werte!$E$66*$E$21)),0) -> 0 | F153: =IF($D$21>0,(IF($D$27=1,$D$21*$D$34*$J$34*Konstante_Werte!$E$67, IF(AND($D$27<>1,$D$27/($J$34+1)<1),Konstante_Werte!$E$67*$D$34*$D$21*$J$34/$D$27,IF(MOD($C153,$D$27)=0,0,IF(INT(MOD(($C153-$D$27*INT(($C153-1)/$D$27)),($D$27/($J$34+1))))<>0,0,Konstante_Werte!$E$67*$D$34*$D$21))))),0) -> 0 | G153: =IF($D$21>0,(IF($D$27=1,$D$21*$E$34*$K$34*Konstante_Werte!$E$68, IF(AND($D$27<>1,$D$27/($K$34+1)<1),Konstante_Werte!$E$68*$E$34*$D$21*$K$34/$D$27,IF(MOD($C153,$D$27)=0,0,IF(INT(MOD(($C153-$D$27*INT(($C153-1)/$D$27)),($D$27/($K$34+1))))<>0,0,Konstante_Werte!$E$68*$E$34*$D$21))))),0) -> 0 | H153: - | I153: 753.6769226 | J153: 493.4667329 | K153: 0 | L153: 0 | M153: 1247.143655 | N153: Euro/a | O153: 0.006304506061
C154: 9 | D154: =IF($D$21>0,(IF(MOD(($C154-1),$D$27)<>0,0,Konstante_Werte!$E$63*$D$21)),0) -> 0 | E154: =IF($E$21>0,(IF(MOD(($C154-1),$D$30)<>0,0,Konstante_Werte!$E$66*$E$21)),0) -> 0 | F154: =IF($D$21>0,(IF($D$27=1,$D$21*$D$34*$J$34*Konstante_Werte!$E$67, IF(AND($D$27<>1,$D$27/($J$34+1)<1),Konstante_Werte!$E$67*$D$34*$D$21*$J$34/$D$27,IF(MOD($C154,$D$27)=0,0,IF(INT(MOD(($C154-$D$27*INT(($C154-1)/$D$27)),($D$27/($J$34+1))))<>0,0,Konstante_Werte!$E$67*$D$34*$D$21))))),0) -> 0 | G154: =IF($D$21>0,(IF($D$27=1,$D$21*$E$34*$K$34*Konstante_Werte!$E$68, IF(AND($D$27<>1,$D$27/($K$34+1)<1),Konstante_Werte!$E$68*$E$34*$D$21*$K$34/$D$27,IF(MOD($C154,$D$27)=0,0,IF(INT(MOD(($C154-$D$27*INT(($C154-1)/$D$27)),($D$27/($K$34+1))))<>0,0,Konstante_Werte!$E$68*$E$34*$D$21))))),0) -> 0 | H154: - | I154: 758.0178621 | J154: 496.3089445 | K154: 0 | L154: 0 | M154: 1254.326807 | N154: Euro/a | O154: 0.006340818013
C155: 10 | D155: =IF($D$21>0,(IF(MOD(($C155-1),$D$27)<>0,0,Konstante_Werte!$E$63*$D$21)),0) -> 0 | E155: =IF($E$21>0,(IF(MOD(($C155-1),$D$30)<>0,0,Konstante_Werte!$E$66*$E$21)),0) -> 0 | F155: =IF($D$21>0,(IF($D$27=1,$D$21*$D$34*$J$34*Konstante_Werte!$E$67, IF(AND($D$27<>1,$D$27/($J$34+1)<1),Konstante_Werte!$E$67*$D$34*$D$21*$J$34/$D$27,IF(MOD($C155,$D$27)=0,0,IF(INT(MOD(($C155-$D$27*INT(($C155-1)/$D$27)),($D$27/($J$34+1))))<>0,0,Konstante_Werte!$E$67*$D$34*$D$21))))),0) -> 0 | G155: =IF($D$21>0,(IF($D$27=1,$D$21*$E$34*$K$34*Konstante_Werte!$E$68, IF(AND($D$27<>1,$D$27/($K$34+1)<1),Konstante_Werte!$E$68*$E$34*$D$21*$K$34/$D$27,IF(MOD($C155,$D$27)=0,0,IF(INT(MOD(($C155-$D$27*INT(($C155-1)/$D$27)),($D$27/($K$34+1))))<>0,0,Konstante_Werte!$E$68*$E$34*$D$21))))),0) -> 0 | H155: - | I155: 762.3838041 | J155: 499.1675263 | K155: 0 | L155: 0 | M155: 1261.55133 | N155: Euro/a | O155: 0.006377339109
C156: 11 | D156: =IF($D$21>0,(IF(MOD(($C156-1),$D$27)<>0,0,Konstante_Werte!$E$63*$D$21)),0) -> 0 | E156: =IF($E$21>0,(IF(MOD(($C156-1),$D$30)<>0,0,Konstante_Werte!$E$66*$E$21)),0) -> 0 | F156: =IF($D$21>0,(IF($D$27=1,$D$21*$D$34*$J$34*Konstante_Werte!$E$67, IF(AND($D$27<>1,$D$27/($J$34+1)<1),Konstante_Werte!$E$67*$D$34*$D$21*$J$34/$D$27,IF(MOD($C156,$D$27)=0,0,IF(INT(MOD(($C156-$D$27*INT(($C156-1)/$D$27)),($D$27/($J$34+1))))<>0,0,Konstante_Werte!$E$67*$D$34*$D$21))))),0) -> 0 | G156: =IF($D$21>0,(IF($D$27=1,$D$21*$E$34*$K$34*Konstante_Werte!$E$68, IF(AND($D$27<>1,$D$27/($K$34+1)<1),Konstante_Werte!$E$68*$E$34*$D$21*$K$34/$D$27,IF(MOD($C156,$D$27)=0,0,IF(INT(MOD(($C156-$D$27*INT(($C156-1)/$D$27)),($D$27/($K$34+1))))<>0,0,Konstante_Werte!$E$68*$E$34*$D$21))))),0) -> 0 | H156: - | I156: 766.7748926 | J156: 502.0425726 | K156: 0 | L156: 0 | M156: 1268.817465 | N156: Euro/a | O156: -
C157: 12 | D157: =IF($D$21>0,(IF(MOD(($C157-1),$D$27)<>0,0,Konstante_Werte!$E$63*$D$21)),0) -> 0 | E157: =IF($E$21>0,(IF(MOD(($C157-1),$D$30)<>0,0,Konstante_Werte!$E$66*$E$21)),0) -> 0 | F157: =IF($D$21>0,(IF($D$27=1,$D$21*$D$34*$J$34*Konstante_Werte!$E$67, IF(AND($D$27<>1,$D$27/($J$34+1)<1),Konstante_Werte!$E$67*$D$34*$D$21*$J$34/$D$27,IF(MOD($C157,$D$27)=0,0,IF(INT(MOD(($C157-$D$27*INT(($C157-1)/$D$27)),($D$27/($J$34+1))))<>0,0,Konstante_Werte!$E$67*$D$34*$D$21))))),0) -> 0 | G157: =IF($D$21>0,(IF($D$27=1,$D$21*$E$34*$K$34*Konstante_Werte!$E$68, IF(AND($D$27<>1,$D$27/($K$34+1)<1),Konstante_Werte!$E$68*$E$34*$D$21*$K$34/$D$27,IF(MOD($C157,$D$27)=0,0,IF(INT(MOD(($C157-$D$27*INT(($C157-1)/$D$27)),($D$27/($K$34+1))))<>0,0,Konstante_Werte!$E$68*$E$34*$D$21))))),0) -> 0 | H157: - | I157: 771.1912723 | J157: 504.9341783 | K157: 0 | L157: 0 | M157: 1276.125451 | N157: Euro/a | O157: -
C158: Summe über Betrachtungszeitraum | D158: =SUM(D146:OFFSET(D146,$F$89-1,0)) -> 62400 | E158: =SUM(E146:OFFSET(E146,$F$89-1,0)) -> 45360 | F158: =SUM(F146:OFFSET(F146,$F$89-1,0)) -> 0 | G158: =SUM(G146:OFFSET(G146,$F$89-1,0)) -> 0 | H158: - | I158: =SUM(I146:OFFSET(I146,$F$89-1,0)) -> 9018.474481 | J158: =SUM(J146:OFFSET(J146,$F$89-1,0)) -> 5904.807491 | K158: =SUM(K146:OFFSET(K146,$F$89-1,0)) -> 41635.47511 | L158: =SUM(L146:OFFSET(L146,$F$89-1,0)) -> 33499.06454 | M158: =SUM(M146:OFFSET(M146,$F$89-1,0)) -> 197817.8216 | N158: Euro/Betrachtungszeitraum | O158: -
C160: APC mit Notebook (für alle Geräte)
C161: In EURO | D161: Anschaffungskosten | I161: Energiekosten | K161: Bruttopersonal-kosten | L161: Sach-und Gemeinkosten | M161: Summe | O161: Anteil
C162: Jahr (max: 12 Jahre) | D162: Notebook | E162: Monitor | F162: Ersatz HDD durch SSD | G162: RAM hinzufügen | H162: Wechsel des Akkus | I162: =E128 -> Notebook | J162: =G128 -> Monitor
C163: 1 | D163: =IF($D$22>0,(IF(MOD(($C146-1),$D$28)<>0,0,Konstante_Werte!$E$64*$D$22)),0) -> 21550 | E163: =IF($E$22>0,(IF(MOD(($C163-1),$D$30)<>0,0,Konstante_Werte!$E$66*$E$22)),0) -> 9450 | F163: =IF($D$22>0,(IF($D$28=1,$D$22*$D$35*$J$35*Konstante_Werte!$E$67, IF(AND($D$28<>1,$D$28/($J$35+1)<1),Konstante_Werte!$E$67*$D$35*$D$22*$J$35/$D$28,IF(MOD($C163,$D$28)=0,0,IF(INT(MOD(($C163-$D$28*INT(($C163-1)/$D$28)),($D$28/($J$35+1))))<>0,0,Konstante_Werte!$E$67*$D$35*$D$22))))),0) -> 0 | G163: =IF($D$22>0,(IF($D$28=1,$D$22*$E$35*$K$35*Konstante_Werte!$E$68, IF(AND($D$28<>1,$D$28/($K$35+1)<1),Konstante_Werte!$E$68*$E$35*$D$22*$K$35/$D$28,IF(MOD($C163,$D$28)=0,0,IF(INT(MOD(($C163-$D$28*INT(($C163-1)/$D$28)),($D$28/($K$35+1))))<>0,0,Konstante_Werte!$E$68*$E$35*$D$22))))),0) -> 0 | H163: =IF($D$22>0,(IF($D$28=1,$D$22*$F$35*$L$35*Konstante_Werte!$E$69, IF(AND($D$28<>1,$D$28/($L$35+1)<1),Konstante_Werte!$E$69*$F$35*$D$22*$L$35/$D$28,IF(MOD($C163,$D$28)=0,0,IF(INT(MOD(($C163-$D$28*INT(($C163-1)/$D$28)),($D$28/($L$35+1))))<>0,0,Konstante_Werte!$E$69*$F$35*$D$22))))),0) -> 0 | I163: =IF($D$22>0, E129*$D$22,"0") -> 155.855404 | J163: =G129*$E$22 -> 268.686256 | K163: =IF($D$22>0,(IF(MOD(($C163-1),$D$28)<>0,0,$K$13*$D$22)),0)+IF($E$22>0,(IF(MOD(($C163-1),$D$30)<>0,0,$K$13*$E$22)),0) -> 9462.60798 | L163: =IF($D$22>0,(IF(MOD(($C163-1),$D$28)<>0,0,$K$14*$D$22)),0)+IF($E$22>0,(IF(MOD(($C163-1),$D$30)<>0,0,$K$14*$E$22)),0) -> 7613.42376 | M163: =SUM(D163:L163) -> 48500.5734 | N163: Euro/a | O163: =IF($M$175<>0,(IF(C163<=$F$89,M163/$M$175,"-")),0) -> 0.4672972515
C164: =C163+1 -> 2 | D164: =IF($D$22>0,(IF(MOD(($C147-1),$D$28)<>0,0,Konstante_Werte!$E$64*$D$22)),0) -> 0 | E164: =IF($E$22>0,(IF(MOD(($C164-1),$D$30)<>0,0,Konstante_Werte!$E$66*$E$22)),0) -> 0 | F164: =IF($D$22>0,(IF($D$28=1,$D$22*$D$35*$J$35*Konstante_Werte!$E$67, IF(AND($D$28<>1,$D$28/($J$35+1)<1),Konstante_Werte!$E$67*$D$35*$D$22*$J$35/$D$28,IF(MOD($C164,$D$28)=0,0,IF(INT(MOD(($C164-$D$28*INT(($C164-1)/$D$28)),($D$28/($J$35+1))))<>0,0,Konstante_Werte!$E$67*$D$35*$D$22))))),0) -> 0 | G164: =IF($D$22>0,(IF($D$28=1,$D$22*$E$35*$K$35*Konstante_Werte!$E$68, IF(AND($D$28<>1,$D$28/($K$35+1)<1),Konstante_Werte!$E$68*$E$35*$D$22*$K$35/$D$28,IF(MOD($C164,$D$28)=0,0,IF(INT(MOD(($C164-$D$28*INT(($C164-1)/$D$28)),($D$28/($K$35+1))))<>0,0,Konstante_Werte!$E$68*$E$35*$D$22))))),0) -> 0 | H164: =IF($D$22>0,(IF($D$28=1,$D$22*$F$35*$L$35*Konstante_Werte!$E$69, IF(AND($D$28<>1,$D$28/($L$35+1)<1),Konstante_Werte!$E$69*$F$35*$D$22*$L$35/$D$28,IF(MOD($C164,$D$28)=0,0,IF(INT(MOD(($C164-$D$28*INT(($C164-1)/$D$28)),($D$28/($L$35+1))))<>0,0,Konstante_Werte!$E$69*$F$35*$D$22))))),0) -> 0 | I164: 156.7530816 | J164: 270.2338035 | K164: 0 | L164: 0 | M164: =SUM(D164:L164) -> 426.9868851 | N164: Euro/a | O164: 0.004113967811
C165: =C164+1 -> 3 | D165: =IF($D$22>0,(IF(MOD(($C148-1),$D$28)<>0,0,Konstante_Werte!$E$64*$D$22)),0) -> 0 | E165: =IF($E$22>0,(IF(MOD(($C165-1),$D$30)<>0,0,Konstante_Werte!$E$66*$E$22)),0) -> 0 | F165: =IF($D$22>0,(IF($D$28=1,$D$22*$D$35*$J$35*Konstante_Werte!$E$67, IF(AND($D$28<>1,$D$28/($J$35+1)<1),Konstante_Werte!$E$67*$D$35*$D$22*$J$35/$D$28,IF(MOD($C165,$D$28)=0,0,IF(INT(MOD(($C165-$D$28*INT(($C165-1)/$D$28)),($D$28/($J$35+1))))<>0,0,Konstante_Werte!$E$67*$D$35*$D$22))))),0) -> 0 | G165: =IF($D$22>0,(IF($D$28=1,$D$22*$E$35*$K$35*Konstante_Werte!$E$68, IF(AND($D$28<>1,$D$28/($K$35+1)<1),Konstante_Werte!$E$68*$E$35*$D$22*$K$35/$D$28,IF(MOD($C165,$D$28)=0,0,IF(INT(MOD(($C165-$D$28*INT(($C165-1)/$D$28)),($D$28/($K$35+1))))<>0,0,Konstante_Werte!$E$68*$E$35*$D$22))))),0) -> 0 | H165: =IF($D$22>0,(IF($D$28=1,$D$22*$F$35*$L$35*Konstante_Werte!$E$69, IF(AND($D$28<>1,$D$28/($L$35+1)<1),Konstante_Werte!$E$69*$F$35*$D$22*$L$35/$D$28,IF(MOD($C165,$D$28)=0,0,IF(INT(MOD(($C165-$D$28*INT(($C165-1)/$D$28)),($D$28/($L$35+1))))<>0,0,Konstante_Werte!$E$69*$F$35*$D$22))))),0) -> 1875 | I165: 157.6559295 | J165: 271.7902643 | K165: 0 | L165: 0 | M165: 2304.446194 | N165: Euro/a | O165: 0.02220306477
C166: 4 | D166: =IF($D$22>0,(IF(MOD(($C149-1),$D$28)<>0,0,Konstante_Werte!$E$64*$D$22)),0) -> 0 | E166: =IF($E$22>0,(IF(MOD(($C166-1),$D$30)<>0,0,Konstante_Werte!$E$66*$E$22)),0) -> 0 | F166: =IF($D$22>0,(IF($D$28=1,$D$22*$D$35*$J$35*Konstante_Werte!$E$67, IF(AND($D$28<>1,$D$28/($J$35+1)<1),Konstante_Werte!$E$67*$D$35*$D$22*$J$35/$D$28,IF(MOD($C166,$D$28)=0,0,IF(INT(MOD(($C166-$D$28*INT(($C166-1)/$D$28)),($D$28/($J$35+1))))<>0,0,Konstante_Werte!$E$67*$D$35*$D$22))))),0) -> 0 | G166: =IF($D$22>0,(IF($D$28=1,$D$22*$E$35*$K$35*Konstante_Werte!$E$68, IF(AND($D$28<>1,$D$28/($K$35+1)<1),Konstante_Werte!$E$68*$E$35*$D$22*$K$35/$D$28,IF(MOD($C166,$D$28)=0,0,IF(INT(MOD(($C166-$D$28*INT(($C166-1)/$D$28)),($D$28/($K$35+1))))<>0,0,Konstante_Werte!$E$68*$E$35*$D$22))))),0) -> 0 | H166: =IF($D$22>0,(IF($D$28=1,$D$22*$F$35*$L$35*Konstante_Werte!$E$69, IF(AND($D$28<>1,$D$28/($L$35+1)<1),Konstante_Werte!$E$69*$F$35*$D$22*$L$35/$D$28,IF(MOD($C166,$D$28)=0,0,IF(INT(MOD(($C166-$D$28*INT(($C166-1)/$D$28)),($D$28/($L$35+1))))<>0,0,Konstante_Werte!$E$69*$F$35*$D$22))))),0) -> 0 | I166: 158.5639776 | J166: 273.3556898 | K166: 0 | L166: 0 | M166: 431.9196674 | N166: Euro/a | O166: 0.004161494582
C167: 5 | D167: =IF($D$22>0,(IF(MOD(($C150-1),$D$28)<>0,0,Konstante_Werte!$E$64*$D$22)),0) -> 0 | E167: =IF($E$22>0,(IF(MOD(($C167-1),$D$30)<>0,0,Konstante_Werte!$E$66*$E$22)),0) -> 0 | F167: =IF($D$22>0,(IF($D$28=1,$D$22*$D$35*$J$35*Konstante_Werte!$E$67, IF(AND($D$28<>1,$D$28/($J$35+1)<1),Konstante_Werte!$E$67*$D$35*$D$22*$J$35/$D$28,IF(MOD($C167,$D$28)=0,0,IF(INT(MOD(($C167-$D$28*INT(($C167-1)/$D$28)),($D$28/($J$35+1))))<>0,0,Konstante_Werte!$E$67*$D$35*$D$22))))),0) -> 0 | G167: =IF($D$22>0,(IF($D$28=1,$D$22*$E$35*$K$35*Konstante_Werte!$E$68, IF(AND($D$28<>1,$D$28/($K$35+1)<1),Konstante_Werte!$E$68*$E$35*$D$22*$K$35/$D$28,IF(MOD($C167,$D$28)=0,0,IF(INT(MOD(($C167-$D$28*INT(($C167-1)/$D$28)),($D$28/($K$35+1))))<>0,0,Konstante_Werte!$E$68*$E$35*$D$22))))),0) -> 0 | H167: =IF($D$22>0,(IF($D$28=1,$D$22*$F$35*$L$35*Konstante_Werte!$E$69, IF(AND($D$28<>1,$D$28/($L$35+1)<1),Konstante_Werte!$E$69*$F$35*$D$22*$L$35/$D$28,IF(MOD($C167,$D$28)=0,0,IF(INT(MOD(($C167-$D$28*INT(($C167-1)/$D$28)),($D$28/($L$35+1))))<>0,0,Konstante_Werte!$E$69*$F$35*$D$22))))),0) -> 0 | I167: 159.4772557 | J167: 274.9301317 | K167: 0 | L167: 0 | M167: 434.4073875 | N167: Euro/a | O167: 0.004185463469
C168: 6 | D168: =IF($D$22>0,(IF(MOD(($C151-1),$D$28)<>0,0,Konstante_Werte!$E$64*$D$22)),0) -> 0 | E168: =IF($E$22>0,(IF(MOD(($C168-1),$D$30)<>0,0,Konstante_Werte!$E$66*$E$22)),0) -> 0 | F168: =IF($D$22>0,(IF($D$28=1,$D$22*$D$35*$J$35*Konstante_Werte!$E$67, IF(AND($D$28<>1,$D$28/($J$35+1)<1),Konstante_Werte!$E$67*$D$35*$D$22*$J$35/$D$28,IF(MOD($C168,$D$28)=0,0,IF(INT(MOD(($C168-$D$28*INT(($C168-1)/$D$28)),($D$28/($J$35+1))))<>0,0,Konstante_Werte!$E$67*$D$35*$D$22))))),0) -> 0 | G168: =IF($D$22>0,(IF($D$28=1,$D$22*$E$35*$K$35*Konstante_Werte!$E$68, IF(AND($D$28<>1,$D$28/($K$35+1)<1),Konstante_Werte!$E$68*$E$35*$D$22*$K$35/$D$28,IF(MOD($C168,$D$28)=0,0,IF(INT(MOD(($C168-$D$28*INT(($C168-1)/$D$28)),($D$28/($K$35+1))))<>0,0,Konstante_Werte!$E$68*$E$35*$D$22))))),0) -> 0 | H168: =IF($D$22>0,(IF($D$28=1,$D$22*$F$35*$L$35*Konstante_Werte!$E$69, IF(AND($D$28<>1,$D$28/($L$35+1)<1),Konstante_Werte!$E$69*$F$35*$D$22*$L$35/$D$28,IF(MOD($C168,$D$28)=0,0,IF(INT(MOD(($C168-$D$28*INT(($C168-1)/$D$28)),($D$28/($L$35+1))))<>0,0,Konstante_Werte!$E$69*$F$35*$D$22))))),0) -> 0 | I168: 160.395794 | J168: 276.5136419 | K168: 0 | L168: 0 | M168: 436.909436 | N168: Euro/a | O168: 0.004209570408
C169: 7 | D169: =IF($D$22>0,(IF(MOD(($C152-1),$D$28)<>0,0,Konstante_Werte!$E$64*$D$22)),0) -> 21550 | E169: =IF($E$22>0,(IF(MOD(($C169-1),$D$30)<>0,0,Konstante_Werte!$E$66*$E$22)),0) -> 9450 | F169: =IF($D$22>0,(IF($D$28=1,$D$22*$D$35*$J$35*Konstante_Werte!$E$67, IF(AND($D$28<>1,$D$28/($J$35+1)<1),Konstante_Werte!$E$67*$D$35*$D$22*$J$35/$D$28,IF(MOD($C169,$D$28)=0,0,IF(INT(MOD(($C169-$D$28*INT(($C169-1)/$D$28)),($D$28/($J$35+1))))<>0,0,Konstante_Werte!$E$67*$D$35*$D$22))))),0) -> 0 | G169: =IF($D$22>0,(IF($D$28=1,$D$22*$E$35*$K$35*Konstante_Werte!$E$68, IF(AND($D$28<>1,$D$28/($K$35+1)<1),Konstante_Werte!$E$68*$E$35*$D$22*$K$35/$D$28,IF(MOD($C169,$D$28)=0,0,IF(INT(MOD(($C169-$D$28*INT(($C169-1)/$D$28)),($D$28/($K$35+1))))<>0,0,Konstante_Werte!$E$68*$E$35*$D$22))))),0) -> 0 | H169: =IF($D$22>0,(IF($D$28=1,$D$22*$F$35*$L$35*Konstante_Werte!$E$69, IF(AND($D$28<>1,$D$28/($L$35+1)<1),Konstante_Werte!$E$69*$F$35*$D$22*$L$35/$D$28,IF(MOD($C169,$D$28)=0,0,IF(INT(MOD(($C169-$D$28*INT(($C169-1)/$D$28)),($D$28/($L$35+1))))<>0,0,Konstante_Werte!$E$69*$F$35*$D$22))))),0) -> 0 | I169: 118.5847465 | J169: 204.4336658 | K169: 9462.60798 | L169: 7613.42376 | M169: 48399.05015 | N169: Euro/a | O169: 0.466319087
C170: 8 | D170: =IF($D$22>0,(IF(MOD(($C153-1),$D$28)<>0,0,Konstante_Werte!$E$64*$D$22)),0) -> 0 | E170: =IF($E$22>0,(IF(MOD(($C170-1),$D$30)<>0,0,Konstante_Werte!$E$66*$E$22)),0) -> 0 | F170: =IF($D$22>0,(IF($D$28=1,$D$22*$D$35*$J$35*Konstante_Werte!$E$67, IF(AND($D$28<>1,$D$28/($J$35+1)<1),Konstante_Werte!$E$67*$D$35*$D$22*$J$35/$D$28,IF(MOD($C170,$D$28)=0,0,IF(INT(MOD(($C170-$D$28*INT(($C170-1)/$D$28)),($D$28/($J$35+1))))<>0,0,Konstante_Werte!$E$67*$D$35*$D$22))))),0) -> 0 | G170: =IF($D$22>0,(IF($D$28=1,$D$22*$E$35*$K$35*Konstante_Werte!$E$68, IF(AND($D$28<>1,$D$28/($K$35+1)<1),Konstante_Werte!$E$68*$E$35*$D$22*$K$35/$D$28,IF(MOD($C170,$D$28)=0,0,IF(INT(MOD(($C170-$D$28*INT(($C170-1)/$D$28)),($D$28/($K$35+1))))<>0,0,Konstante_Werte!$E$68*$E$35*$D$22))))),0) -> 0 | H170: =IF($D$22>0,(IF($D$28=1,$D$22*$F$35*$L$35*Konstante_Werte!$E$69, IF(AND($D$28<>1,$D$28/($L$35+1)<1),Konstante_Werte!$E$69*$F$35*$D$22*$L$35/$D$28,IF(MOD($C170,$D$28)=0,0,IF(INT(MOD(($C170-$D$28*INT(($C170-1)/$D$28)),($D$28/($L$35+1))))<>0,0,Konstante_Werte!$E$69*$F$35*$D$22))))),0) -> 0 | I170: 119.267757 | J170: 205.6111387 | K170: 0 | L170: 0 | M170: 324.8788957 | N170: Euro/a | O170: 0.003130169488
C171: 9 | D171: =IF($D$22>0,(IF(MOD(($C154-1),$D$28)<>0,0,Konstante_Werte!$E$64*$D$22)),0) -> 0 | E171: =IF($E$22>0,(IF(MOD(($C171-1),$D$30)<>0,0,Konstante_Werte!$E$66*$E$22)),0) -> 0 | F171: =IF($D$22>0,(IF($D$28=1,$D$22*$D$35*$J$35*Konstante_Werte!$E$67, IF(AND($D$28<>1,$D$28/($J$35+1)<1),Konstante_Werte!$E$67*$D$35*$D$22*$J$35/$D$28,IF(MOD($C171,$D$28)=0,0,IF(INT(MOD(($C171-$D$28*INT(($C171-1)/$D$28)),($D$28/($J$35+1))))<>0,0,Konstante_Werte!$E$67*$D$35*$D$22))))),0) -> 0 | G171: =IF($D$22>0,(IF($D$28=1,$D$22*$E$35*$K$35*Konstante_Werte!$E$68, IF(AND($D$28<>1,$D$28/($K$35+1)<1),Konstante_Werte!$E$68*$E$35*$D$22*$K$35/$D$28,IF(MOD($C171,$D$28)=0,0,IF(INT(MOD(($C171-$D$28*INT(($C171-1)/$D$28)),($D$28/($K$35+1))))<>0,0,Konstante_Werte!$E$68*$E$35*$D$22))))),0) -> 0 | H171: =IF($D$22>0,(IF($D$28=1,$D$22*$F$35*$L$35*Konstante_Werte!$E$69, IF(AND($D$28<>1,$D$28/($L$35+1)<1),Konstante_Werte!$E$69*$F$35*$D$22*$L$35/$D$28,IF(MOD($C171,$D$28)=0,0,IF(INT(MOD(($C171-$D$28*INT(($C171-1)/$D$28)),($D$28/($L$35+1))))<>0,0,Konstante_Werte!$E$69*$F$35*$D$22))))),0) -> 1875 | I171: 119.9547014 | J171: 206.7953935 | K171: 0 | L171: 0 | M171: 2201.750095 | N171: Euro/a | O171: 0.02121360008
C172: 10 | D172: =IF($D$22>0,(IF(MOD(($C155-1),$D$28)<>0,0,Konstante_Werte!$E$64*$D$22)),0) -> 0 | E172: =IF($E$22>0,(IF(MOD(($C172-1),$D$30)<>0,0,Konstante_Werte!$E$66*$E$22)),0) -> 0 | F172: =IF($D$22>0,(IF($D$28=1,$D$22*$D$35*$J$35*Konstante_Werte!$E$67, IF(AND($D$28<>1,$D$28/($J$35+1)<1),Konstante_Werte!$E$67*$D$35*$D$22*$J$35/$D$28,IF(MOD($C172,$D$28)=0,0,IF(INT(MOD(($C172-$D$28*INT(($C172-1)/$D$28)),($D$28/($J$35+1))))<>0,0,Konstante_Werte!$E$67*$D$35*$D$22))))),0) -> 0 | G172: =IF($D$22>0,(IF($D$28=1,$D$22*$E$35*$K$35*Konstante_Werte!$E$68, IF(AND($D$28<>1,$D$28/($K$35+1)<1),Konstante_Werte!$E$68*$E$35*$D$22*$K$35/$D$28,IF(MOD($C172,$D$28)=0,0,IF(INT(MOD(($C172-$D$28*INT(($C172-1)/$D$28)),($D$28/($K$35+1))))<>0,0,Konstante_Werte!$E$68*$E$35*$D$22))))),0) -> 0 | H172: =IF($D$22>0,(IF($D$28=1,$D$22*$F$35*$L$35*Konstante_Werte!$E$69, IF(AND($D$28<>1,$D$28/($L$35+1)<1),Konstante_Werte!$E$69*$F$35*$D$22*$L$35/$D$28,IF(MOD($C172,$D$28)=0,0,IF(INT(MOD(($C172-$D$28*INT(($C172-1)/$D$28)),($D$28/($L$35+1))))<>0,0,Konstante_Werte!$E$69*$F$35*$D$22))))),0) -> 0 | I172: 120.6456023 | J172: 207.9864693 | K172: 0 | L172: 0 | M172: 328.6320716 | N172: Euro/a | O172: 0.003166330891
C173: 11 | D173: =IF($D$22>0,(IF(MOD(($C156-1),$D$28)<>0,0,Konstante_Werte!$E$64*$D$22)),0) -> 0 | E173: =IF($E$22>0,(IF(MOD(($C173-1),$D$30)<>0,0,Konstante_Werte!$E$66*$E$22)),0) -> 0 | F173: =IF($D$22>0,(IF($D$28=1,$D$22*$D$35*$J$35*Konstante_Werte!$E$67, IF(AND($D$28<>1,$D$28/($J$35+1)<1),Konstante_Werte!$E$67*$D$35*$D$22*$J$35/$D$28,IF(MOD($C173,$D$28)=0,0,IF(INT(MOD(($C173-$D$28*INT(($C173-1)/$D$28)),($D$28/($J$35+1))))<>0,0,Konstante_Werte!$E$67*$D$35*$D$22))))),0) -> 0 | G173: =IF($D$22>0,(IF($D$28=1,$D$22*$E$35*$K$35*Konstante_Werte!$E$68, IF(AND($D$28<>1,$D$28/($K$35+1)<1),Konstante_Werte!$E$68*$E$35*$D$22*$K$35/$D$28,IF(MOD($C173,$D$28)=0,0,IF(INT(MOD(($C173-$D$28*INT(($C173-1)/$D$28)),($D$28/($K$35+1))))<>0,0,Konstante_Werte!$E$68*$E$35*$D$22))))),0) -> 0 | H173: =IF($D$22>0,(IF($D$28=1,$D$22*$F$35*$L$35*Konstante_Werte!$E$69, IF(AND($D$28<>1,$D$28/($L$35+1)<1),Konstante_Werte!$E$69*$F$35*$D$22*$L$35/$D$28,IF(MOD($C173,$D$28)=0,0,IF(INT(MOD(($C173-$D$28*INT(($C173-1)/$D$28)),($D$28/($L$35+1))))<>0,0,Konstante_Werte!$E$69*$F$35*$D$22))))),0) -> 0 | I173: 121.3404827 | J173: 209.1844053 | K173: 0 | L173: 0 | M173: 330.5248879 | N173: Euro/a | O173: -
C174: 12 | D174: =IF($D$22>0,(IF(MOD(($C157-1),$D$28)<>0,0,Konstante_Werte!$E$64*$D$22)),0) -> 0 | E174: =IF($E$22>0,(IF(MOD(($C174-1),$D$30)<>0,0,Konstante_Werte!$E$66*$E$22)),0) -> 0 | F174: =IF($D$22>0,(IF($D$28=1,$D$22*$D$35*$J$35*Konstante_Werte!$E$67, IF(AND($D$28<>1,$D$28/($J$35+1)<1),Konstante_Werte!$E$67*$D$35*$D$22*$J$35/$D$28,IF(MOD($C174,$D$28)=0,0,IF(INT(MOD(($C174-$D$28*INT(($C174-1)/$D$28)),($D$28/($J$35+1))))<>0,0,Konstante_Werte!$E$67*$D$35*$D$22))))),0) -> 0 | G174: =IF($D$22>0,(IF($D$28=1,$D$22*$E$35*$K$35*Konstante_Werte!$E$68, IF(AND($D$28<>1,$D$28/($K$35+1)<1),Konstante_Werte!$E$68*$E$35*$D$22*$K$35/$D$28,IF(MOD($C174,$D$28)=0,0,IF(INT(MOD(($C174-$D$28*INT(($C174-1)/$D$28)),($D$28/($K$35+1))))<>0,0,Konstante_Werte!$E$68*$E$35*$D$22))))),0) -> 0 | H174: =IF($D$22>0,(IF($D$28=1,$D$22*$F$35*$L$35*Konstante_Werte!$E$69, IF(AND($D$28<>1,$D$28/($L$35+1)<1),Konstante_Werte!$E$69*$F$35*$D$22*$L$35/$D$28,IF(MOD($C174,$D$28)=0,0,IF(INT(MOD(($C174-$D$28*INT(($C174-1)/$D$28)),($D$28/($L$35+1))))<>0,0,Konstante_Werte!$E$69*$F$35*$D$22))))),0) -> 0 | I174: 122.0393653 | J174: 210.389241 | K174: 0 | L174: 0 | M174: 332.4286062 | N174: Euro/a | O174: -
C175: Summe über Betrachtungszeitraum | D175: =SUM(D163:OFFSET(D163,$F$89-1,0)) -> 43100 | E175: =SUM(E163:OFFSET(E163,$F$89-1,0)) -> 18900 | F175: =SUM(F163:OFFSET(F163,$F$89-1,0)) -> 0 | G175: =SUM(G163:OFFSET(G163,$F$89-1,0)) -> 0 | H175: =SUM(H163:OFFSET(H163,$F$89-1,0)) -> 3750 | I175: =SUM(I163:OFFSET(I163,$F$89-1,0)) -> 1427.15425 | J175: =SUM(J163:OFFSET(J163,$F$89-1,0)) -> 2460.336455 | K175: =SUM(K163:OFFSET(K163,$F$89-1,0)) -> 18925.21596 | L175: =SUM(L163:OFFSET(L163,$F$89-1,0)) -> 15226.84752 | M175: =SUM(M163:OFFSET(M163,$F$89-1,0)) -> 103789.5542 | N175: Euro/Betrachtungszeitraum | O175: =SUM(O163:O174) -> 1
C177: APC mit Mini-PC (für alle Geräte)
C178: In EURO | D178: Anschaffungskosten | I178: Energiekosten | K178: Bruttopersonal-kosten | L178: Sach-und Gemeinkosten | M178: Summe | O178: Anteil
C179: Jahr (max: 12 Jahre) | D179: Mini-PC | E179: Monitor | F179: Ersatz HDD durch SSD | G179: RAM hinzufügen | H179: Wechsel des Akkus | I179: Desktop | J179: Monitor
C180: 1 | D180: =IF($D$23>0,(IF(MOD(($C146-1),$D$29)<>0,0,Konstante_Werte!$E$65*$D$23)),0) -> 22750 | E180: =IF($E$23>0,(IF(MOD(($C180-1),$D$30)<>0,0,Konstante_Werte!$E$66*$E$23)),0) -> 15120 | F180: =IF($D$23>0,(IF($D$29=1,$D$23*$D$36*$J$36*Konstante_Werte!$E$67, IF(AND($D$29<>1,$D$29/($J$36+1)<1),Konstante_Werte!$E$67*$D$36*$D$23*$J$36/$D$29,IF(MOD($C180,$D$29)=0,0,IF(INT(MOD(($C180-$D$29*INT(($C180-1)/$D$29)),($D$29/($J$36+1))))<>0,0,Konstante_Werte!$E$67*$D$36*$D$23))))),0) -> 0 | G180: =IF($D$23>0,(IF($D$29=1,$D$23*$E$36*$K$36*Konstante_Werte!$E$68, IF(AND($D$29<>1,$D$29/($K$36+1)<1),Konstante_Werte!$E$68*$E$36*$D$23*$K$36/$D$29,IF(MOD($C180,$D$29)=0,0,IF(INT(MOD(($C180-$D$29*INT(($C180-1)/$D$29)),($D$29/($K$36+1))))<>0,0,Konstante_Werte!$E$68*$E$36*$D$23))))),0) -> 0 | H180: - | I180: =IF($D$23>0, F129*$D$23,0) -> 405.692952 | J180: =G129*$E$23 -> 429.8980096 | K180: =IF($D$23>0,(IF(MOD(($C180-1),$D$29)<>0,0,$K$13*$D$23)),0)+IF($E$23>0,(IF(MOD(($C180-1),$D$30)<>0,0,$K$13*$E$23)),0) -> 14193.91197 | L180: =IF($D$23>0,(IF(MOD(($C180-1),$D$29)<>0,0,$K$14*$D$23)),0)+IF($E$23>0,(IF(MOD(($C180-1),$D$30)<>0,0,$K$14*$E$23)),0) -> 11420.13564 | M180: =SUM(D180:L180) -> 64319.63857 | N180: Euro/a | O180: =IF($M$192<>0,(IF(C180<=$F$89,M180/$M$192,"-")),0) -> 0.4777883223
C181: =C180+1 -> 2 | D181: =IF($D$23>0,(IF(MOD(($C147-1),$D$29)<>0,0,Konstante_Werte!$E$65*$D$23)),0) -> 0 | E181: =IF($E$23>0,(IF(MOD(($C181-1),$D$30)<>0,0,Konstante_Werte!$E$66*$E$23)),0) -> 0 | F181: =IF($D$23>0,(IF($D$29=1,$D$23*$D$36*$J$36*Konstante_Werte!$E$67, IF(AND($D$29<>1,$D$29/($J$36+1)<1),Konstante_Werte!$E$67*$D$36*$D$23*$J$36/$D$29,IF(MOD($C181,$D$29)=0,0,IF(INT(MOD(($C181-$D$29*INT(($C181-1)/$D$29)),($D$29/($J$36+1))))<>0,0,Konstante_Werte!$E$67*$D$36*$D$23))))),0) -> 0 | G181: =IF($D$23>0,(IF($D$29=1,$D$23*$E$36*$K$36*Konstante_Werte!$E$68, IF(AND($D$29<>1,$D$29/($K$36+1)<1),Konstante_Werte!$E$68*$E$36*$D$23*$K$36/$D$29,IF(MOD($C181,$D$29)=0,0,IF(INT(MOD(($C181-$D$29*INT(($C181-1)/$D$29)),($D$29/($K$36+1))))<>0,0,Konstante_Werte!$E$68*$E$36*$D$23))))),0) -> 0 | H181: - | I181: 408.0296145 | J181: 432.3740855 | K181: 0 | L181: 0 | M181: 840.4037 | N181: Euro/a | O181: 0.006242806751
C182: =C181+1 -> 3 | D182: =IF($D$23>0,(IF(MOD(($C148-1),$D$29)<>0,0,Konstante_Werte!$E$65*$D$23)),0) -> 0 | E182: =IF($E$23>0,(IF(MOD(($C182-1),$D$30)<>0,0,Konstante_Werte!$E$66*$E$23)),0) -> 0 | F182: =IF($D$23>0,(IF($D$29=1,$D$23*$D$36*$J$36*Konstante_Werte!$E$67, IF(AND($D$29<>1,$D$29/($J$36+1)<1),Konstante_Werte!$E$67*$D$36*$D$23*$J$36/$D$29,IF(MOD($C182,$D$29)=0,0,IF(INT(MOD(($C182-$D$29*INT(($C182-1)/$D$29)),($D$29/($J$36+1))))<>0,0,Konstante_Werte!$E$67*$D$36*$D$23))))),0) -> 0 | G182: =IF($D$23>0,(IF($D$29=1,$D$23*$E$36*$K$36*Konstante_Werte!$E$68, IF(AND($D$29<>1,$D$29/($K$36+1)<1),Konstante_Werte!$E$68*$E$36*$D$23*$K$36/$D$29,IF(MOD($C182,$D$29)=0,0,IF(INT(MOD(($C182-$D$29*INT(($C182-1)/$D$29)),($D$29/($K$36+1))))<>0,0,Konstante_Werte!$E$68*$E$36*$D$23))))),0) -> 0 | H182: - | I182: 410.3797354 | J182: 434.8644229 | K182: 0 | L182: 0 | M182: 845.2441583 | N182: Euro/a | O182: 0.006278763334
C183: 4 | D183: =IF($D$23>0,(IF(MOD(($C149-1),$D$29)<>0,0,Konstante_Werte!$E$65*$D$23)),0) -> 0 | E183: =IF($E$23>0,(IF(MOD(($C183-1),$D$30)<>0,0,Konstante_Werte!$E$66*$E$23)),0) -> 0 | F183: =IF($D$23>0,(IF($D$29=1,$D$23*$D$36*$J$36*Konstante_Werte!$E$67, IF(AND($D$29<>1,$D$29/($J$36+1)<1),Konstante_Werte!$E$67*$D$36*$D$23*$J$36/$D$29,IF(MOD($C183,$D$29)=0,0,IF(INT(MOD(($C183-$D$29*INT(($C183-1)/$D$29)),($D$29/($J$36+1))))<>0,0,Konstante_Werte!$E$67*$D$36*$D$23))))),0) -> 0 | G183: =IF($D$23>0,(IF($D$29=1,$D$23*$E$36*$K$36*Konstante_Werte!$E$68, IF(AND($D$29<>1,$D$29/($K$36+1)<1),Konstante_Werte!$E$68*$E$36*$D$23*$K$36/$D$29,IF(MOD($C183,$D$29)=0,0,IF(INT(MOD(($C183-$D$29*INT(($C183-1)/$D$29)),($D$29/($K$36+1))))<>0,0,Konstante_Werte!$E$68*$E$36*$D$23))))),0) -> 0 | H183: - | I183: 412.7433923 | J183: 437.3691037 | K183: 0 | L183: 0 | M183: 850.112496 | N183: Euro/a | O183: 0.006314927016
C184: 5 | D184: =IF($D$23>0,(IF(MOD(($C150-1),$D$29)<>0,0,Konstante_Werte!$E$65*$D$23)),0) -> 0 | E184: =IF($E$23>0,(IF(MOD(($C184-1),$D$30)<>0,0,Konstante_Werte!$E$66*$E$23)),0) -> 0 | F184: =IF($D$23>0,(IF($D$29=1,$D$23*$D$36*$J$36*Konstante_Werte!$E$67, IF(AND($D$29<>1,$D$29/($J$36+1)<1),Konstante_Werte!$E$67*$D$36*$D$23*$J$36/$D$29,IF(MOD($C184,$D$29)=0,0,IF(INT(MOD(($C184-$D$29*INT(($C184-1)/$D$29)),($D$29/($J$36+1))))<>0,0,Konstante_Werte!$E$67*$D$36*$D$23))))),0) -> 0 | G184: =IF($D$23>0,(IF($D$29=1,$D$23*$E$36*$K$36*Konstante_Werte!$E$68, IF(AND($D$29<>1,$D$29/($K$36+1)<1),Konstante_Werte!$E$68*$E$36*$D$23*$K$36/$D$29,IF(MOD($C184,$D$29)=0,0,IF(INT(MOD(($C184-$D$29*INT(($C184-1)/$D$29)),($D$29/($K$36+1))))<>0,0,Konstante_Werte!$E$68*$E$36*$D$23))))),0) -> 0 | H184: - | I184: 415.120663 | J184: 439.8882108 | K184: 0 | L184: 0 | M184: 855.0088738 | N184: Euro/a | O184: 0.006351298989
C185: 6 | D185: =IF($D$23>0,(IF(MOD(($C151-1),$D$29)<>0,0,Konstante_Werte!$E$65*$D$23)),0) -> 0 | E185: =IF($E$23>0,(IF(MOD(($C185-1),$D$30)<>0,0,Konstante_Werte!$E$66*$E$23)),0) -> 0 | F185: =IF($D$23>0,(IF($D$29=1,$D$23*$D$36*$J$36*Konstante_Werte!$E$67, IF(AND($D$29<>1,$D$29/($J$36+1)<1),Konstante_Werte!$E$67*$D$36*$D$23*$J$36/$D$29,IF(MOD($C185,$D$29)=0,0,IF(INT(MOD(($C185-$D$29*INT(($C185-1)/$D$29)),($D$29/($J$36+1))))<>0,0,Konstante_Werte!$E$67*$D$36*$D$23))))),0) -> 0 | G185: =IF($D$23>0,(IF($D$29=1,$D$23*$E$36*$K$36*Konstante_Werte!$E$68, IF(AND($D$29<>1,$D$29/($K$36+1)<1),Konstante_Werte!$E$68*$E$36*$D$23*$K$36/$D$29,IF(MOD($C185,$D$29)=0,0,IF(INT(MOD(($C185-$D$29*INT(($C185-1)/$D$29)),($D$29/($K$36+1))))<>0,0,Konstante_Werte!$E$68*$E$36*$D$23))))),0) -> 0 | H185: - | I185: 417.5116262 | J185: 442.4218271 | K185: 0 | L185: 0 | M185: 859.9334533 | N185: Euro/a | O185: 0.006387880452
C186: 7 | D186: =IF($D$23>0,(IF(MOD(($C152-1),$D$29)<>0,0,Konstante_Werte!$E$65*$D$23)),0) -> 22750 | E186: =IF($E$23>0,(IF(MOD(($C186-1),$D$30)<>0,0,Konstante_Werte!$E$66*$E$23)),0) -> 15120 | F186: =IF($D$23>0,(IF($D$29=1,$D$23*$D$36*$J$36*Konstante_Werte!$E$67, IF(AND($D$29<>1,$D$29/($J$36+1)<1),Konstante_Werte!$E$67*$D$36*$D$23*$J$36/$D$29,IF(MOD($C186,$D$29)=0,0,IF(INT(MOD(($C186-$D$29*INT(($C186-1)/$D$29)),($D$29/($J$36+1))))<>0,0,Konstante_Werte!$E$67*$D$36*$D$23))))),0) -> 0 | G186: =IF($D$23>0,(IF($D$29=1,$D$23*$E$36*$K$36*Konstante_Werte!$E$68, IF(AND($D$29<>1,$D$29/($K$36+1)<1),Konstante_Werte!$E$68*$E$36*$D$23*$K$36/$D$29,IF(MOD($C186,$D$29)=0,0,IF(INT(MOD(($C186-$D$29*INT(($C186-1)/$D$29)),($D$29/($K$36+1))))<>0,0,Konstante_Werte!$E$68*$E$36*$D$23))))),0) -> 0 | H186: - | I186: 308.6771113 | J186: 327.0938652 | K186: 14193.91197 | L186: 11420.13564 | M186: 64119.81859 | N186: Euro/a | O186: 0.476303991
C187: 8 | D187: =IF($D$23>0,(IF(MOD(($C153-1),$D$29)<>0,0,Konstante_Werte!$E$65*$D$23)),0) -> 0 | E187: =IF($E$23>0,(IF(MOD(($C187-1),$D$30)<>0,0,Konstante_Werte!$E$66*$E$23)),0) -> 0 | F187: =IF($D$23>0,(IF($D$29=1,$D$23*$D$36*$J$36*Konstante_Werte!$E$67, IF(AND($D$29<>1,$D$29/($J$36+1)<1),Konstante_Werte!$E$67*$D$36*$D$23*$J$36/$D$29,IF(MOD($C187,$D$29)=0,0,IF(INT(MOD(($C187-$D$29*INT(($C187-1)/$D$29)),($D$29/($J$36+1))))<>0,0,Konstante_Werte!$E$67*$D$36*$D$23))))),0) -> 0 | G187: =IF($D$23>0,(IF($D$29=1,$D$23*$E$36*$K$36*Konstante_Werte!$E$68, IF(AND($D$29<>1,$D$29/($K$36+1)<1),Konstante_Werte!$E$68*$E$36*$D$23*$K$36/$D$29,IF(MOD($C187,$D$29)=0,0,IF(INT(MOD(($C187-$D$29*INT(($C187-1)/$D$29)),($D$29/($K$36+1))))<>0,0,Konstante_Werte!$E$68*$E$36*$D$23))))),0) -> 0 | H187: - | I187: 310.4549934 | J187: 328.9778219 | K187: 0 | L187: 0 | M187: 639.4328153 | N187: Euro/a | O187: 0.004749926132
C188: 9 | D188: =IF($D$23>0,(IF(MOD(($C154-1),$D$29)<>0,0,Konstante_Werte!$E$65*$D$23)),0) -> 0 | E188: =IF($E$23>0,(IF(MOD(($C188-1),$D$30)<>0,0,Konstante_Werte!$E$66*$E$23)),0) -> 0 | F188: =IF($D$23>0,(IF($D$29=1,$D$23*$D$36*$J$36*Konstante_Werte!$E$67, IF(AND($D$29<>1,$D$29/($J$36+1)<1),Konstante_Werte!$E$67*$D$36*$D$23*$J$36/$D$29,IF(MOD($C188,$D$29)=0,0,IF(INT(MOD(($C188-$D$29*INT(($C188-1)/$D$29)),($D$29/($J$36+1))))<>0,0,Konstante_Werte!$E$67*$D$36*$D$23))))),0) -> 0 | G188: =IF($D$23>0,(IF($D$29=1,$D$23*$E$36*$K$36*Konstante_Werte!$E$68, IF(AND($D$29<>1,$D$29/($K$36+1)<1),Konstante_Werte!$E$68*$E$36*$D$23*$K$36/$D$29,IF(MOD($C188,$D$29)=0,0,IF(INT(MOD(($C188-$D$29*INT(($C188-1)/$D$29)),($D$29/($K$36+1))))<>0,0,Konstante_Werte!$E$68*$E$36*$D$23))))),0) -> 0 | H188: - | I188: 312.2431155 | J188: 330.8726296 | K188: 0 | L188: 0 | M188: 643.1157451 | N188: Euro/a | O188: 0.004777284197
C189: 10 | D189: =IF($D$23>0,(IF(MOD(($C155-1),$D$29)<>0,0,Konstante_Werte!$E$65*$D$23)),0) -> 0 | E189: =IF($E$23>0,(IF(MOD(($C189-1),$D$30)<>0,0,Konstante_Werte!$E$66*$E$23)),0) -> 0 | F189: =IF($D$23>0,(IF($D$29=1,$D$23*$D$36*$J$36*Konstante_Werte!$E$67, IF(AND($D$29<>1,$D$29/($J$36+1)<1),Konstante_Werte!$E$67*$D$36*$D$23*$J$36/$D$29,IF(MOD($C189,$D$29)=0,0,IF(INT(MOD(($C189-$D$29*INT(($C189-1)/$D$29)),($D$29/($J$36+1))))<>0,0,Konstante_Werte!$E$67*$D$36*$D$23))))),0) -> 0 | G189: =IF($D$23>0,(IF($D$29=1,$D$23*$E$36*$K$36*Konstante_Werte!$E$68, IF(AND($D$29<>1,$D$29/($K$36+1)<1),Konstante_Werte!$E$68*$E$36*$D$23*$K$36/$D$29,IF(MOD($C189,$D$29)=0,0,IF(INT(MOD(($C189-$D$29*INT(($C189-1)/$D$29)),($D$29/($K$36+1))))<>0,0,Konstante_Werte!$E$68*$E$36*$D$23))))),0) -> 0 | H189: - | I189: 314.0415366 | J189: 332.7783508 | K189: 0 | L189: 0 | M189: 646.8198875 | N189: Euro/a | O189: 0.004804799836
